Workbook

Sheet Title
X10: .
B11: Powercor augmentation capex
B12: Overview
B13: Organisation name | D13: Powercor Australia Ltd
B14: Workbook name | D14: Powercor augmentation capex
B16: Notes:
B17: Updated for 2015 RRP
B18: Revised demand is lower than RP, net decrease in demand-driven augex

Sheet Check
A1: PAL Augmentation Expenditure Model | H1: Model Master Check: | I1: =Model_Check -> 0
A2: =MID(CELL("Filename",A1),FIND("]",CELL("Filename",A1))+1,255) -> Check
A4: Model Checks | F4: =IF(OR(SUM(F8:F8)>1,SUM(F8:F8)<0),"ERROR","OK") -> OK
E6: Sheet Name
E8: =Assumptions!A2 -> Assumptions | I8: =Assumptions!I2 -> 0
E9: ='Project List (%)'!A2 -> Project List (%) | I9: ='Project List (%)'!J2 -> 0
E10: ='Function code by area'!A2 -> Function code by area | I10: ='Function code by area'!F2 -> 0
E11: ='Augex Calculations'!B2 -> Augex Calculations | I11: ='Augex Calculations'!H2 -> 0
E12: ='Augex Model Calculations'!A2 -> Augex Model Calculations | I12: ='Augex Model Calculations'!H2 -> 0
E13: =Outputs!A2 -> Outputs | I13: =Outputs!F2 -> 0
E14: ='Expenditure Check'!A2 -> Expenditure Check | I14: ='Expenditure Check'!J2 -> 0
I16: =SUM(I8:I15) -> 0
A19: End of Sheet

Sheet Inflation
A1: PAL Augmentation Expenditure Model | H1: Model Master Check: | I1: =Model_Check -> 0
A2: =MID(CELL("Filename",A1),FIND("]",CELL("Filename",A1))+1,255) -> Inflation | H2: Sheet Check:
D4: 1994 | E4: =D4+1 -> 1995 | F4: 1996 | G4: 1997 | H4: 1998 | I4: 1999 | J4: 2000 | K4: 2001 | L4: 2002 | M4: 2003 | N4: 2004 | O4: 2005 | P4: 2006 | Q4: 2007 | R4: 2008 | S4: 2009 | T4: 2010 | U4: 2011 | V4: 2012 | W4: 2013 | X4: 2014 | Y4: 2015 | Z4: 2016 | AA4: 2017 | AB4: 2018 | AC4: 2019 | AD4: 2020
B6: INFLATION ESCALATION
B7: CPI | E7: 0.01912568306 | F7: 0.0509383378 | G7: 0.0212585034 | H7: -0.003330557868 | I7: 0.01336675021 | J7: 0.01731244847 | K7: 0.06077795786 | L7: 0.02521008403 | M7: 0.03204172876 | N7: 0.02599277978 | O7: 0.02322308234 | P7: 0.03026134801 | Q7: 0.0393858478 | R7: 0.01862556198 | S7: 0.04981084489 | T7: 0.01261261261 | U7: 0.02787663108 | V7: 0.03519907675 | W7: 0.02004008016 | X7: 0.02161100196 | Y7: 0.03578644049 | Z7: 0.025 | AA7: 0.025 | AB7: 0.025 | AC7: 0.025 | AD7: 0.025
B8: Real cost year | C8: 2015
B9: Conversion factor to $2015 | D9: 1.763571687 | E9: 1.730475168 | F9: 1.646600096 | G9: 1.61232449 | H9: 1.617712375 | I9: 1.596374042 | J9: 1.569207223 | K9: 1.479298482 | L9: 1.44292229 | M9: 1.39812398 | N9: 1.362703528 | O9: 1.331775593 | P9: 1.292658019 | Q9: 1.243674831 | R9: 1.220934245 | S9: 1.163004032 | T9: 1.148518216 | U9: 1.117369713 | V9: 1.079376651 | W9: 1.058170823 | X9: 1.03578644 | Y9: 1 | Z9: 0.9756097561 | AA9: 0.9518143962 | AB9: 0.9285994109 | AC9: 0.9059506448 | AD9: 0.8838542876
X12: Real Escalation for "esc" tabs | Y12: =Y13-1 -> 0 | Z12: =Z13-1 -> 0.01107073824 | AA12: 0.02427124153 | AB12: 0.03694491489 | AC12: 0.04967210356 | AD12: 0.06364741883
Y13: =Y9 -> 1 | Z13: 1.011070738 | AA13: 1.024271242 | AB13: 1.036944915 | AC13: 1.049672104 | AD13: 1.063647419

Sheet Assumptions
A1: PAL Augmentation Expenditure Model | H1: Model Master Check: | I1: =Model_Check -> 0
A2: =MID(CELL("Filename",A1),FIND("]",CELL("Filename",A1))+1,255) -> Assumptions | H2: Sheet Check: | I2: =SUM(K13:P13) -> 0
A5: Assumptions and Historical
C8: FC | D8: Title | G8: Units | K8: 2009 | L8: =K8+1 -> 2010 | M8: 2011 | N8: 2012 | O8: 2013 | P8: 2014 | Q8: 2015 | R8: 2016 | S8: 2017 | T8: 2018 | U8: 2019 | V8: 2020 | W8: 2021 | X8: 2022 | Y8: 2023 | Z8: 2024+
C9: 160 | D9: Augmentation Lines (Supply Quality) | G9: [$000, 2015] | K9: =SUM('Augex Calculations'!D$100:D$103)*Inflation!S$9 -> 7545.570157 | L9: =SUM('Augex Calculations'!E$100:E$103)*Inflation!T$9 -> 5404.926726 | M9: =SUM('Augex Calculations'!F$100:F$103)*Inflation!U$9 -> 3879.507644 | N9: =SUM('Augex Calculations'!G$100:G$103)*Inflation!V$9 -> 2819.331813 | O9: =SUM('Augex Calculations'!H$100:H$103)*Inflation!W$9 -> 1781.959666 | P9: =SUM('Augex Calculations'!I$100:I$103)*Inflation!X$9 -> 1816.752823 | Q9: 1500 | R9: 3500 | S9: 3500 | T9: 3500 | U9: 3500 | V9: 3500 | W9: 4940 | X9: 4940 | Y9: 4940 | Z9: 4940
C10: 161 | D10: Augmentation of Zone Substation | G10: [$000, 2015] | K10: ='Augex Calculations'!D$96*Inflation!S$9 -> 9350.901315 | L10: ='Augex Calculations'!E$96*Inflation!T$9 -> 10891.28339 | M10: ='Augex Calculations'!F$96*Inflation!U$9 -> 7173.737031 | N10: ='Augex Calculations'!G$96*Inflation!V$9 -> 16030.90203 | O10: ='Augex Calculations'!H$96*Inflation!W$9 -> 5236.358319 | P10: ='Augex Calculations'!I$96*Inflation!X$9 -> 6589.673593
C11: 162 | D11: Network Development - Augment Dist | G11: [$000, 2015] | K11: =SUM('Augex Calculations'!D$97:D$99)*Inflation!S$9 -> 13149.22362 | L11: =SUM('Augex Calculations'!E$97:E$99)*Inflation!T$9 -> 10615.23777 | M11: =SUM('Augex Calculations'!F$97:F$99)*Inflation!U$9 -> 20705.99455 | N11: =SUM('Augex Calculations'!G$97:G$99)*Inflation!V$9 -> 16183.39919 | O11: =SUM('Augex Calculations'!H$97:H$99)*Inflation!W$9 -> 17997.35174 | P11: =SUM('Augex Calculations'!I$97:I$99)*Inflation!X$9 -> 9736.696471
J13: Check: | K13: =SUM(K$9:K$11)-(SUM('Augex Calculations'!D$96:D$103)*Inflation!S$9) -> 0 | L13: =SUM(L$9:L$11)-(SUM('Augex Calculations'!E$96:E$103)*Inflation!T$9) -> 0 | M13: =SUM(M$9:M$11)-(SUM('Augex Calculations'!F$96:F$103)*Inflation!U$9) -> 0 | N13: =SUM(N$9:N$11)-(SUM('Augex Calculations'!G$96:G$103)*Inflation!V$9) -> 0 | O13: =SUM(O$9:O$11)-(SUM('Augex Calculations'!H$96:H$103)*Inflation!W$9) -> 0 | P13: =SUM(P$9:P$11)-(SUM('Augex Calculations'!I$96:I$103)*Inflation!X$9) -> 0

Sheet Historical Projects
A1: PAL Augmentation Expenditure Model | I1: Model Master Check: | J1: =Model_Check -> 0
A2: =MID(CELL("Filename",A1),FIND("]",CELL("Filename",A1))+1,255) -> Historical Projects | I2: Sheet Check:
A4: O/H vs U/G comparison (HV feeders)
A5: Project Desciption | B5: Network No | C5: O/H units (km) | D5: U/G units (km) | E5: O/H costs | F5: U/G costs | G5: O/H costs (per km) | H5: U/G costs (per km) | I5: Ratio | J5: Source
A6: NP10 - GL Feeder Rearrangement | B6: 5059869 | C6: 0.4 | D6: 0.3 | E6: 153270 | F6: 236505.31 | G6: =E6/C6 -> 383175 | H6: =F6/D6 -> 788351.0333 | I6: =H6/G6 -> 2.057417716 | J6: Augex Model Project List
A7: NP11 - DDL021 new 22kV Feeder to Leopold | B7: 5065472 | C7: 6.7 | D7: 0.34 | E7: 934232.54 | F7: 171059.3 | G7: =E7/C7 -> 139437.6925 | H7: =F7/D7 -> 503115.5882 | I7: =H7/G7 -> 3.608174942 | J7: Augex Model Project List
A8: SSE33 New 22kV Feeder | B8: 5071526 | C8: 0.3 | D8: 0.48 | E8: 191965.81 | F8: 872018.64 | G8: 639886.0333 | H8: 1816705.5 | I8: 2.839107912 | J8: Unit Costs
A9: SSE31 New 22kV Feeder | B9: 5071525 | C9: 0.34 | D9: 0.285 | E9: 150536.85 | F9: 336551.09 | G9: 442755.4412 | H9: 1180881.018 | I9: 2.667118024 | J9: Unit Costs
H10: Average | I10: =AVERAGE(I6:I9) -> 2.792954649
H11: Ratio U/G to O/H | I11: 2.8
A12: FC 161 Type Project List
A13: Project Type | B13: Project Number | C13: Project Name | D13: Primary Voltage (kV) | E13: Secondary Voltage (kV) | F13: Transformers (Total Nameplate MVA added for all transformers). E.g. 2 x 55MVA equals 110MVA Total | G13: Transformers (Number added) | H13: Capacitors (MVAr added) | I13: Switchgear (Number added) - Primary Voltage | J13: Switchgear (Number added) - Secondary Voltage | K13: Switchgear - Ancillary Equipment | L13: Direct Labour | M13: Direct Materials | N13: Direct Contracts | O13: Year $'s are stated | P13: Total Direct Cost | Q13: Notes
A14: New ZSS Tx | B14: 5071347 | C14: SSE 3rd 66/22kV Transformer | D14: 66 | E14: 22 | F14: 33 | G14: 1 | H14: 0 | I14: 1 | J14: 0 | K14: 0 | L14: 984263.4251 | M14: 1024383.781 | N14: 361730.305 | O14: 2015 | P14: =SUM(L14:N14) -> 2370377.511
A15: ZSS Cap Bank Upgrade | B15: 5062209 | C15: NP10 - CMN Cap Bk Uprate | D15: 22 | F15: 0 | G15: 0 | H15: 2.8 | I15: 0 | J15: 0 | K15: 0 | L15: 105585.0072 | M15: 13675.25869 | N15: 19786.24835 | O15: 2015 | P15: =SUM(L15:N15) -> 139046.5143 | Q15: 2.8MVAr increase
A16: New ZSS Tx | B16: 5053934 | C16: NP08 - WMN Z/S New Tx #2 | D16: 66 | E16: 22 | F16: 33 | G16: 1 | H16: 0 | I16: 2 | J16: 4 | K16: 15 | L16: 1201836.586 | M16: 1876890.505 | N16: 756767.0365 | O16: 2015 | P16: 3835494.127
A17: New ZSS Tx | B17: 5055813 | C17: BAS 3rd Transformer | D17: 66 | E17: 22 | F17: 33 | G17: 1 | H17: 0 | I17: 6 | J17: 4 | K17: 2 | L17: 1843776.936 | M17: 1477270.049 | N17: 389311.1349 | O17: 2015 | P17: 3710358.12
A18: Install refurb ZSS Tx | B18: 5054483 | C18: COB 2nd Transformer | D18: 66 | E18: 22 | F18: 10 | G18: 1 | H18: 0 | I18: 1 | J18: 1 | K18: 2 | L18: 547312.3535 | M18: 274772.7854 | N18: 154935.5722 | O18: 2015 | P18: 977020.7111
A19: New ZSS Station Service Tx | B19: 5064448 | C19: NP10 - SA 2nd Station Service Transformer | D19: 22 | E19: 0.415 | F19: 0.063 | G19: 1 | H19: 0 | I19: 1 | J19: 0 | K19: 0 | L19: 84380.52456 | M19: 32059.24686 | N19: 1832.020451 | O19: 2015 | P19: 118271.7919
A20: Upgrade ZSS Tx | B20: 5054316 | C20: NP09 - WPD Z/S Install new 25/33MVA Tx & CB | D20: 66 | E20: 22 | F20: 33 | G20: 1 | H20: 0 | I20: 1 | J20: 3 | K20: 2 | L20: 1655384.587 | M20: 1779467.259 | N20: 444418.3424 | O20: 2015 | P20: 3879270.189
A21: New ZSS Tx | B21: 5059785 | C21: NP10 - CMN - New 25/33 Transformer (Dy1) | D21: 66 | E21: 22 | F21: 33 | G21: 1 | H21: 0 | I21: 2 | J21: 2 | K21: 9 | L21: 821483.835 | M21: 1574156.088 | N21: 633826.9381 | O21: 2015 | P21: 3029466.861
A22: New ZSS Tx Fans | B22: 5060176 | C22: NP10 - HSM - Tx3 - New Radiator & Fans | D22: 66 | E22: 22 | F22: 3 | G22: 0 | H22: 0 | I22: 0 | J22: 0 | K22: 0 | L22: 76303.93003 | M22: 40723.93757 | N22: 146961.6048 | O22: 2015 | P22: 263989.4724
A23: New ZSS PPS | B23: 5056420 | C23: NP09 - SA Plant Protection Scheme | F23: 0 | G23: 0 | H23: 0 | I23: 0 | J23: 0 | K23: 0 | L23: 145646.1151 | M23: 31038.37556 | N23: 3023.519634 | O23: 2015 | P23: 179708.0103
A24: New ZSS PPS | B24: GC/709017 | C24: NP09 - BGO Plant Protection Scheme | F24: 0 | G24: 0 | H24: 0 | I24: 0 | J24: 0 | K24: 0 | L24: 97566.39369 | M24: 28798.24416 | N24: 118.9963252 | O24: 2015 | P24: 126483.6342
A25: New ZSS PPS | B25: GC/709014 | C25: NP09 LV Plant Protection Scheme | F25: 0 | G25: 0 | H25: 0 | I25: 0 | J25: 0 | K25: 0 | L25: 91683.73969 | M25: 34938.71872 | N25: 9500.523252 | O25: 2015 | P25: 136122.9817
A26: 22kV Bus Reconductor | B26: GC/709226 | C26: NP09 MRO - 22kV Bus Reconductor | D26: 22 | F26: 0 | G26: 0 | H26: 0 | I26: 0 | J26: 0 | K26: 6 | L26: 95318.422 | M26: 24181.89018 | N26: 4931.288415 | O26: 2015 | P26: =SUM(L26:N26) -> 124431.6006
A27: New ZSS 22kV Switchboard | B27: GC/709405 | C27: DLF Switchboard | D27: 22 | L27: 0 | M27: 0 | N27: 1730962.979 | O27: 2015 | P27: 1730962.979
A28: New ZSS Tx Fans | B28: 5056438 | C28: NP09 EHK Z/S Install new Tx Cooling Fans | F28: 0 | G28: 0 | H28: 0 | I28: 0 | J28: 0 | K28: 0 | L28: 148969.7631 | M28: 60058.40525 | N28: 15233.55704 | O28: 2015 | P28: 224261.7253
A29: New ZSS Tx Fans | B29: 5056054 | C29: NP09 MBN Z/S Install new Tx Cooling Fans | F29: 0 | G29: 0 | H29: 0 | I29: 0 | J29: 0 | K29: 0 | L29: 127703.9572 | M29: 56824.01902 | N29: 7087.753585 | O29: 2015 | P29: 191615.7298
A30: New ZSS 66kV CB | B30: 5055165 | C30: NP09 WBL Z/S additional 66kV CB | D30: 66 | F30: 0 | G30: 0 | H30: 0 | I30: 2 | J30: 0 | K30: 0 | L30: 130365.9115 | M30: 118819.6592 | N30: 21193.13209 | O30: 2015 | P30: =SUM(L30:N30) -> 270378.7028
A31: New ZSS 66kV CB | B31: 5056661 | C31: NP09 CLC new 66kV CB in ring bus | D31: 66 | F31: 0 | G31: 0 | H31: 0 | I31: 1 | J31: 0 | K31: 3 | L31: 103336.9241 | M31: 143295.4616 | N31: 50470.0556 | O31: 2015 | P31: 297102.4413
A32: ZSS Cap Bank Upgrade | B32: 5071594 | C32: LVN ZSS 22k Capacitor banks | D32: 22 | F32: 0 | G32: 0 | H32: 24 | I32: 0 | J32: 0 | K32: 0 | L32: 302591.2886 | M32: 580317.0012 | N32: 141454.2307 | O32: 2015 | P32: =SUM(L32:N32) -> 1024362.52 | Q32: 24MVAr increase
A33: New ZSS Tx | B33: 5065862 | C33: STANHOPE 2nd TX | D33: 66 | E33: 22 | F33: 33 | G33: 1 | H33: 0 | I33: 1 | J33: 3 | K33: 3 | L33: 1065521.47 | M33: 1167785.002 | N33: 262921.9469 | O33: 2015 | P33: 2496228.419
A34: Install refurb ZSS Tx | B34: 5066603 | C34: NP11-CTN 3rd Transformer | D34: 66 | E34: 22 | F34: 13.5 | G34: 1 | H34: 0 | I34: 1 | J34: 1 | K34: 0 | L34: 1182751.443 | M34: 267958.059 | N34: 496583.9187 | O34: 2015 | P34: 1947293.421
A37: FC 161 Type Project List
A38: Project Type | B38: Project Number | C38: Project Name | E38: Direct Cost (no overheads) | F38: Year $'s are stated | G38: Direct Cost ($2015) | H38: Line Added (route kms) | I38: Line Upgraded (route kms) | J38: Cable Added (route kms) | K38: Cable Upgraded (route kms) | L38: Phasing or Unit
A39: ZSS 22kV Bus Upgrade | B39: 5085624 | C39: CDN - 22kV bus uprate | E39: 60231 | F39: 2014 | G39: =IF(F39=2014, E39*Inflation!$X$9,IF(F39=2013,E39*Inflation!$W$9,IF(F39=2012,E39*Inflation!$V$9,IF(F39=2011,E39*Inflation!$U$9,IF(F39=2010,E39*Inflation!$T$9,"ERROR"))))) -> 62386.4531 | H39: 0 | I39: 0.1 | J39: 0 | K39: 0 | L39: 22kV Bus
A40: HV Regulator | B40: 5091267 | C40: WPD 24 Mt Duneed 3 x 300 A Regulator | E40: 279677 | F40: 2014 | G40: =IF(F40=2014, E40*Inflation!$X$9,IF(F40=2013,E40*Inflation!$W$9,IF(F40=2012,E40*Inflation!$V$9,IF(F40=2011,E40*Inflation!$U$9,IF(F40=2010,E40*Inflation!$T$9,"ERROR"))))) -> 289685.6443 | H40: 0 | I40: 0 | J40: 0 | K40: 0 | L40: 3 x 300A Reg
B41: 5078629 | C41: BAN 15 augmentation & uprate to 65oC | E41: 149368 | F41: 2014 | G41: =IF(F41=2014, E41*Inflation!$X$9,IF(F41=2013,E41*Inflation!$W$9,IF(F41=2012,E41*Inflation!$V$9,IF(F41=2011,E41*Inflation!$U$9,IF(F41=2010,E41*Inflation!$T$9,"ERROR"))))) -> 154713.349 | H41: 0 | I41: 1.6 | J41: 0 | K41: 0 | L41: 3ph
A42: HV Regulator | B42: 5086079 | C42: WPD21 Forest Road 2 x 100 Amps Coopers Regulator | E42: 145083 | F42: 2014 | G42: =IF(F42=2014, E42*Inflation!$X$9,IF(F42=2013,E42*Inflation!$W$9,IF(F42=2012,E42*Inflation!$V$9,IF(F42=2011,E42*Inflation!$U$9,IF(F42=2010,E42*Inflation!$T$9,"ERROR"))))) -> 150275.0041 | H42: 0 | I42: 0 | J42: 0 | K42: 0 | L42: 2 x 100A Reg
B43: 5076676 | C43: GLE13 Uprate to 80oC | E43: 59205 | F43: 2014 | G43: =IF(F43=2014, E43*Inflation!$X$9,IF(F43=2013,E43*Inflation!$W$9,IF(F43=2012,E43*Inflation!$V$9,IF(F43=2011,E43*Inflation!$U$9,IF(F43=2010,E43*Inflation!$T$9,"ERROR"))))) -> 61323.73621 | H43: 0 | I43: 6.1 | J43: 0 | K43: 0 | L43: 3ph Uprate
B44: 5078743 | C44: PLD 1 Load Balance | E44: 340429 | F44: 2012 | G44: =IF(F44=2014, E44*Inflation!$X$9,IF(F44=2013,E44*Inflation!$W$9,IF(F44=2012,E44*Inflation!$V$9,IF(F44=2011,E44*Inflation!$U$9,IF(F44=2010,E44*Inflation!$T$9,"ERROR"))))) -> 367451.1141 | H44: 0 | I44: 5.8 | J44: 0 | K44: 0 | L44: 3ph
B45: 5078745 | C45: PLD 3 Load Balance | E45: 30600 | F45: 2012 | G45: =IF(F45=2014, E45*Inflation!$X$9,IF(F45=2013,E45*Inflation!$W$9,IF(F45=2012,E45*Inflation!$V$9,IF(F45=2011,E45*Inflation!$U$9,IF(F45=2010,E45*Inflation!$T$9,"ERROR"))))) -> 33028.92553 | H45: 0 | I45: 0 | J45: 0 | K45: 0 | L45: Load Balancing
B46: 5076674 | C46: BAS33 New 22kV Sebastopol feeder (Construct) | E46: 1399999 | F46: 2012 | G46: =IF(F46=2014, E46*Inflation!$X$9,IF(F46=2013,E46*Inflation!$W$9,IF(F46=2012,E46*Inflation!$V$9,IF(F46=2011,E46*Inflation!$U$9,IF(F46=2010,E46*Inflation!$T$9,"ERROR"))))) -> 1511126.233 | H46: 4.4 | I46: 1.4 | J46: 0.6 | K46: 0 | L46: 3ph
A47: Rural HV Upgrade | B47: 5065476 | C47: GL12 augment Shelford township to three phase (1.4km P98 - P113) | E47: 172610 | F47: 2010 | G47: =IF(F47=2014, E47*Inflation!$X$9,IF(F47=2013,E47*Inflation!$W$9,IF(F47=2012,E47*Inflation!$V$9,IF(F47=2011,E47*Inflation!$U$9,IF(F47=2010,E47*Inflation!$T$9,"ERROR"))))) -> 198245.7293 | H47: 0 | I47: 1.4 | J47: 0 | K47: 0 | L47: Add 3rd phase
A48: Rural HV Upgrade | B48: 5065483 | C48: BAN 6 3rd Phase Lexton Township (P5 - 102, 11kms 7/3.00AAC) | E48: 243175 | F48: 2010 | G48: =IF(F48=2014, E48*Inflation!$X$9,IF(F48=2013,E48*Inflation!$W$9,IF(F48=2012,E48*Inflation!$V$9,IF(F48=2011,E48*Inflation!$U$9,IF(F48=2010,E48*Inflation!$T$9,"ERROR"))))) -> 279290.9172 | H48: 0 | I48: 11 | J48: 0 | K48: 0 | L48: Add 3rd phase
A49: 1 MVAr Line Cap | B49: 5065481 | C49: BAN6 new 1MVAr line cap | E49: 68045 | F49: 2010 | G49: =IF(F49=2014, E49*Inflation!$X$9,IF(F49=2013,E49*Inflation!$W$9,IF(F49=2012,E49*Inflation!$V$9,IF(F49=2011,E49*Inflation!$U$9,IF(F49=2010,E49*Inflation!$T$9,"ERROR"))))) -> 78150.92203 | H49: 0 | I49: 0 | J49: 0 | K49: 0 | L49: 1MVAr Cap
B50: 5065486 | C50: BAS23 feeder uprate to 80oC | E50: 90875 | F50: 2010 | G50: =IF(F50=2014, E50*Inflation!$X$9,IF(F50=2013,E50*Inflation!$W$9,IF(F50=2012,E50*Inflation!$V$9,IF(F50=2011,E50*Inflation!$U$9,IF(F50=2010,E50*Inflation!$T$9,"ERROR"))))) -> 104371.5929 | H50: 0 | I50: 17.5 | J50: 0 | K50: 0 | L50: 3ph Uprate
A51: Feeder Exit Upgrade | B51: 5065479 | C51: GLE31 exit augment to Cu (94m underground cable) | E51: 124802 | F51: 2010 | G51: =IF(F51=2014, E51*Inflation!$X$9,IF(F51=2013,E51*Inflation!$W$9,IF(F51=2012,E51*Inflation!$V$9,IF(F51=2011,E51*Inflation!$U$9,IF(F51=2010,E51*Inflation!$T$9,"ERROR"))))) -> 143337.3704 | H51: 0 | I51: 0 | J51: 0 | K51: 0.1 | L51: U/G
A52: Backbone upgrade | B52: 5055797 | C52: NP09 - GL12 augment Teesdale Road P46 -P52 2.3kms | E52: 169000.3688 | F52: 2014 | G52: =IF(F52=2014, E52*Inflation!$X$9,IF(F52=2013,E52*Inflation!$W$9,IF(F52=2012,E52*Inflation!$V$9,IF(F52=2011,E52*Inflation!$U$9,IF(F52=2010,E52*Inflation!$T$9,"ERROR"))))) -> 175048.2905 | H52: 0 | I52: 2.3 | J52: 0 | K52: 0
A53: 2 x 100A Cooper Reg | B53: 5060930 | C53: CLC006 - New Line Regulator Swan Marsh (2 x 100A Coopers) | E53: 173540.3323 | F53: 2014 | G53: =IF(F53=2014, E53*Inflation!$X$9,IF(F53=2013,E53*Inflation!$W$9,IF(F53=2012,E53*Inflation!$V$9,IF(F53=2011,E53*Inflation!$U$9,IF(F53=2010,E53*Inflation!$T$9,"ERROR"))))) -> 179750.723
B54: 5076103 | C54: SSE13 South to offload SU8 south & SSE14 (former SU1) | E54: 511477 | F54: 2012 | G54: =IF(F54=2014, E54*Inflation!$X$9,IF(F54=2013,E54*Inflation!$W$9,IF(F54=2012,E54*Inflation!$V$9,IF(F54=2011,E54*Inflation!$U$9,IF(F54=2010,E54*Inflation!$T$9,"ERROR"))))) -> 552076.3315 | H54: 0.2 | I54: 0 | J54: 0.4 | K54: 0
B55: 5077493 | C55: CHA 3 - Uprate Backbone | E55: 243924 | F55: 2012 | G55: =IF(F55=2014, E55*Inflation!$X$9,IF(F55=2013,E55*Inflation!$W$9,IF(F55=2012,E55*Inflation!$V$9,IF(F55=2011,E55*Inflation!$U$9,IF(F55=2010,E55*Inflation!$T$9,"ERROR"))))) -> 263285.8703
B56: 5087178 | C56: LVN22 Uprate Princes Fwy to Altona Meadows | E56: 77475 | F56: 2014 | G56: =IF(F56=2014, E56*Inflation!$X$9,IF(F56=2013,E56*Inflation!$W$9,IF(F56=2012,E56*Inflation!$V$9,IF(F56=2011,E56*Inflation!$U$9,IF(F56=2010,E56*Inflation!$T$9,"ERROR"))))) -> 80247.55448 | H56: 0 | I56: 3.1 | J56: 0 | K56: 0 | L56: 3ph Uprate
B57: 5087331 | C57: MLN32 New 22kV Feeder to offload MLN24 & accept 5MW from BMH | E57: 1753308 | F57: 2014 | G57: =IF(F57=2014, E57*Inflation!$X$9,IF(F57=2013,E57*Inflation!$W$9,IF(F57=2012,E57*Inflation!$V$9,IF(F57=2011,E57*Inflation!$U$9,IF(F57=2010,E57*Inflation!$T$9,"ERROR"))))) -> 1816052.652 | H57: 2.9 | I57: 2.6 | J57: 0.29 | K57: 0 | L57: 3ph
A58: 1 MVAr Line Cap | B58: 5062644 | C58: NP10 LVN22 Line Capacitor no.2 | E58: 67891.75679 | F58: 2014 | G58: =IF(F58=2014, E58*Inflation!$X$9,IF(F58=2013,E58*Inflation!$W$9,IF(F58=2012,E58*Inflation!$V$9,IF(F58=2011,E58*Inflation!$U$9,IF(F58=2010,E58*Inflation!$T$9,"ERROR"))))) -> 70321.3611
A59: Urban HV Upgrade | B59: 5065735 | C59: NP11_ART034_HIGH ST WEST HV AUG | E59: 90083.39018 | F59: 2014 | G59: =IF(F59=2014, E59*Inflation!$X$9,IF(F59=2013,E59*Inflation!$W$9,IF(F59=2012,E59*Inflation!$V$9,IF(F59=2011,E59*Inflation!$U$9,IF(F59=2010,E59*Inflation!$T$9,"ERROR"))))) -> 93307.15406 | I59: =0.341+0.117 -> 0.458 | L59: 3ph
A60: Rural HV Upgrade | B60: 5048573 | C60: NP08-GL024 Augment Ballarat Rd P90-P109 (2.6kms) | E60: 168967.9876 | F60: 2014 | G60: =IF(F60=2014, E60*Inflation!$X$9,IF(F60=2013,E60*Inflation!$W$9,IF(F60=2012,E60*Inflation!$V$9,IF(F60=2011,E60*Inflation!$U$9,IF(F60=2010,E60*Inflation!$T$9,"ERROR"))))) -> 175014.7504 | I60: 2.2 | L60: 3ph
A61: Rural HV Upgrade | B61: 5071561 | C61: NP12 LV2 Dohertys Rd Augmentation Stage2 | E61: 343589.891 | F61: 2014 | G61: =IF(F61=2014, E61*Inflation!$X$9,IF(F61=2013,E61*Inflation!$W$9,IF(F61=2012,E61*Inflation!$V$9,IF(F61=2011,E61*Inflation!$U$9,IF(F61=2010,E61*Inflation!$T$9,"ERROR"))))) -> 355885.7502 | I61: 2.1
A62: Rural HV Upgrade | B62: 5076940 | C62: LV2 Dohertys Road Augment Stage3 | E62: 337079.234 | F62: 2014 | G62: =IF(F62=2014, E62*Inflation!$X$9,IF(F62=2013,E62*Inflation!$W$9,IF(F62=2012,E62*Inflation!$V$9,IF(F62=2011,E62*Inflation!$U$9,IF(F62=2010,E62*Inflation!$T$9,"ERROR"))))) -> 349142.1 | I62: 2.6
A63: Feeder Exit Upgrade | B63: 5065477 | C63: NP11 - GL12 augment feeder exit - 300mm2 | E63: 95428.99624 | F63: 2014 | G63: =IF(F63=2014, E63*Inflation!$X$9,IF(F63=2013,E63*Inflation!$W$9,IF(F63=2012,E63*Inflation!$V$9,IF(F63=2011,E63*Inflation!$U$9,IF(F63=2010,E63*Inflation!$T$9,"ERROR"))))) -> 98844.06033 | K63: 0.07 | L63: U/G
A64: Urban HV Upgrade | B64: 5061585 | C64: NP10 SSE14 Augment & Uprate BB | E64: 210890.6433 | F64: 2014 | G64: =IF(F64=2014, E64*Inflation!$X$9,IF(F64=2013,E64*Inflation!$W$9,IF(F64=2012,E64*Inflation!$V$9,IF(F64=2011,E64*Inflation!$U$9,IF(F64=2010,E64*Inflation!$T$9,"ERROR"))))) -> 218437.6687 | I64: 0.24
A65: Rural HV Upgrade | B65: 5055262 | C65: NP09 - EHK 24 Inglewood Line Reconductor (7km) | E65: 485092.9474 | F65: 2014 | G65: =IF(F65=2014, E65*Inflation!$X$9,IF(F65=2013,E65*Inflation!$W$9,IF(F65=2012,E65*Inflation!$V$9,IF(F65=2011,E65*Inflation!$U$9,IF(F65=2010,E65*Inflation!$T$9,"ERROR"))))) -> 502452.6973 | I65: 7
A66: 66kV HV Upgrade | B66: 5056972 | C66: SBY-WND No1 66kV Line Augmentation Desgn | E66: 502559.1389 | F66: 2014 | G66: =IF(F66=2014, E66*Inflation!$X$9,IF(F66=2013,E66*Inflation!$W$9,IF(F66=2012,E66*Inflation!$V$9,IF(F66=2011,E66*Inflation!$U$9,IF(F66=2010,E66*Inflation!$T$9,"ERROR"))))) -> 520543.9417 | I66: 1.1
A67: New 22kV Feeder | B67: 5071525 | C67: SSE31 New 22kV Feeder | E67: 633602.6757 | F67: 2014 | G67: =IF(F67=2014, E67*Inflation!$X$9,IF(F67=2013,E67*Inflation!$W$9,IF(F67=2012,E67*Inflation!$V$9,IF(F67=2011,E67*Inflation!$U$9,IF(F67=2010,E67*Inflation!$T$9,"ERROR"))))) -> 656277.0602 | H67: 0.34 | J67: 0.285
A68: New 22kV Feeder | B68: 5071526 | C68: SSE33 New 22kV Feeder | E68: 946806.9036 | F68: 2014 | G68: =IF(F68=2014, E68*Inflation!$X$9,IF(F68=2013,E68*Inflation!$W$9,IF(F68=2012,E68*Inflation!$V$9,IF(F68=2011,E68*Inflation!$U$9,IF(F68=2010,E68*Inflation!$T$9,"ERROR"))))) -> 980689.7525 | H68: 0.3 | J68: 0.48
A71: SWER | B71: 5055418 | C71: NP09_GL12_BANNOCKBURN 112 SWER AUG | E71: 247243.6807 | F71: 2014 | G71: =IF(F71=2014, E71*Inflation!$X$9,IF(F71=2013,E71*Inflation!$W$9,IF(F71=2012,E71*Inflation!$V$9,IF(F71=2011,E71*Inflation!$U$9,IF(F71=2010,E71*Inflation!$T$9,"ERROR"))))) -> 256091.6519 | H71: 1.5 | L71: 2 x 19/3.25AAC
A72: SWER | B72: 5065065 | C72: NP10_WND012_O'SULLIVANS LANE SWER AUG | E72: 420761.3912 | F72: 2014 | G72: =IF(F72=2014, E72*Inflation!$X$9,IF(F72=2013,E72*Inflation!$W$9,IF(F72=2012,E72*Inflation!$V$9,IF(F72=2011,E72*Inflation!$U$9,IF(F72=2010,E72*Inflation!$T$9,"ERROR"))))) -> 435818.9437
A73: SWER | B73: 5064963 | C73: NP10_KYM001_KNOWSLEY SWER AUG | E73: 231142.1203 | F73: 2014 | G73: =IF(F73=2014, E73*Inflation!$X$9,IF(F73=2013,E73*Inflation!$W$9,IF(F73=2012,E73*Inflation!$V$9,IF(F73=2011,E73*Inflation!$U$9,IF(F73=2010,E73*Inflation!$T$9,"ERROR"))))) -> 239413.874 | H73: =3.49+0.06 -> 3.55 | I73: 0.835
A74: SWER | B74: 5065227 | C74: NP10_WIN011_FULTONS LANE SWER AUG | E74: 477222.2462 | F74: 2014 | G74: =IF(F74=2014, E74*Inflation!$X$9,IF(F74=2013,E74*Inflation!$W$9,IF(F74=2012,E74*Inflation!$V$9,IF(F74=2011,E74*Inflation!$U$9,IF(F74=2010,E74*Inflation!$T$9,"ERROR"))))) -> 494300.3317 | H74: =2.6+0.64+1.661+0.77 -> 5.671 | L74: 3 - 3/2.75 St
A77: 2014/15 ZSS projects (all demand driven)
C78: MVA Added
A79: Project | B79: Tx to be installed | C79: Name Plate Rating Added | D79: Normal Cyclic Rating Added | E79: N-1 2 hour emergency rating added
A80: CLC - Augment 2nd 10/13.5 MVA transformer with new 25/33 MVA | B80: 1 x 25/33MVA | C80: 20 | D80: 16.8 | E80: 17.8
A81: 2nd transformer at BBD | B81: 1 x 25/33MVA | C81: 33 | D81: 45.6 | E81: 47.6
A82: WBL 22 kV Bus Aug | C82: 31
A85: 2014 Subtransmission lines projects (all demand driven)
A86: Project | D86: Name Plate Rating Added
A87: WPD Replace 66kV Duo-roll switches (BCG exit) | D87: 51.4
A88: WPD Replace 66kV Duo-roll switches (GTS exit) | D88: 51.4
A91: 2014 HV Feeder Projects
A92: Project | B92: Type | C92: Feeder Type | D92: Name Plate Rating Added
A93: ART 23 Burn & Kennedy Sts HV Aug | B93: Demand growth | C93: Rural Long | D93: 8
A94: ART 31 HV Fusing ART to STL 22kV Line | B94: Safety | C94: Rural Short | D94: 0
A95: ART 31 McLellan & Grano Sts HV Aug Tie | B95: Demand growth | C95: Rural Short | D95: 8
A96: ART 34 Laby St, Ararat HV Aug | B96: Demand growth | C96: Rural Short | D96: 4
A97: ART 34 Banfield St. HV Augmentation | B97: Demand growth | C97: Rural Short | D97: 8
A98: BGO 23 Wild Duck Swer Aug | B98: Demand growth | C98: Rural Long | D98: 0.1
A99: HSM 4 Noradjuha SWER Aug | B99: Demand growth | C99: Rural Long | D99: 0.075
A100: NP13_CME16_WILBY SWER CONVERSION STAGE 1 | B100: Demand growth | C100: Rural Long | D100: 0.1
A101: NP14_NHL 31 FEEDER PROTECTION UPGRADE | B101: Fault level issues | C101: Rural Long | D101: 0
A102: STL 5 Stawell East Tie Line Aug | B102: Demand growth | C102: Rural Long | D102: 8
A103: WND 11 Kratsis P2 SWER Aug | B103: Demand growth | C103: Rural Short | D103: 0.1
A104: BLT 16 augmentation | B104: Demand growth | C104: Urban | D104: 5.525242076
A105: GSB 13 New HV Sw- Gisborne East Spur | B105: Safety | C105: Rural Short | D105: 0
A106: GSB 13 New HV Sw- O'Hara Spur | B106: Safety | C106: Rural Short | D106: 0
A107: LV7 into Point Cook | B107: Demand growth | C107: Urban | D107: 0
A108: LVN34 new HV switch at Fitzgerald Rd | B108: Safety | C108: Urban | D108: 0
A109: MLN 13- Uprate Backbone | B109: Demand growth | C109: Rural Short | D109: 4.2
A110: MLN23 New 22kV fdr to offload MLN12, 14 & 22 | B110: Demand growth | C110: Rural Short | D110: 12
A111: NP11 WBE 14 New Feeder | B111: Demand growth | C111: Urban | D111: 12.2
A112: SA1 increase feeder ties | B112: Demand growth | C112: Rural Short | D112: 0
A113: SSE 13 New HV Sw | B113: Safety | C113: Urban | D113: 0
A114: SU02 - 22kV Feeder Augmentation | B114: Demand growth | C114: Urban | D114: 3.429460599
A115: SU4, 5 & 8 HV Rearrangement | B115: Demand growth | C115: Urban | D115: 0
A116: WND 13 New HV Sw- Lancefield | B116: Safety | C116: Rural Long | D116: 0
A117: WND23 HV Switch Malmsbury | B117: Safety | C117: Rural Long | D117: 0
A118: FNS22 Fdr Backbone Uprate 65oC | B118: Demand growth | C118: Rural Short | D118: 3.4
A119: GB31 - Baxter -Victoria new HV Switch | B119: Safety | C119: Urban | D119: 0
A120: GB31/ GL24 feeder tie, Victoria Street, North Geelong | B120: Other - specify | C120: Urban | D120: 15.4
A121: GL 12 Backbone Uprate to 80oC | B121: Demand growth | C121: Rural Long | D121: 3.4
A122: GL 12 New HV Fuses - Mobile Quarry Spur | B122: Safety | C122: Rural Long | D122: 0
A123: GL15 uprate backbone to 80oC to Ballarat Road P129 | B123: Demand growth | C123: Rural Long | D123: 3.4
A124: GL22 Hope Street new HV Switch | B124: Safety | C124: Urban | D124: 0
A125: GL24 new HV switch Thompson Road, North Geelong | B125: Safety | C125: Urban | D125: 0
A126: PLD 1 Add Switch P 366 Tyredarra | B126: Safety | C126: Rural Long | D126: 0
A127: PLD 1 Add Switch P 420 Tyredarra | B127: Safety | C127: Rural Long | D127: 0
A128: TRG 3 Add Switch P 883 CLC-CDN 66 kV-Ex EDO Fuses | B128: Safety | C128: Rural Long | D128: 0
A129: TRG 5 Add EDO fuses P 62 Terang Sth | B129: Safety | C129: Rural Long | D129: 0
A130: WBL002 Recond & Uprate to 80 Deg C | B130: Demand growth | C130: Rural Short | D130: 9
A131: WBL8 - WBL10 feeder tie & uprate | B131: Demand growth | C131: Urban | D131: 1
A132: DDL22 Fdr Backbone Uprate | B132: Demand growth | C132: Urban | D132: 3.4
A133: GCY14 new Latrobe Terrace ACR, South Geelong | B133: Other - specify | C133: Urban | D133: 0
A134: GCY14 remote gas switch, South Geelong | B134: Other - specify | C134: Urban | D134: 0
A135: GCY23 remote gas switches, South Geelong | B135: Other - specify | C135: Urban | D135: 0
A136: GLE 24/ GLE 31 Melaluka Road 22 kV tie, Leopold | B136: Other - specify | C136: Rural Short | D136: 15.4
A137: GLE13 new feeder exit HV switch, Townsend Road | B137: Safety | C137: Rural Short | D137: 0
A138: GLE21 new HV feeder exit switch at "Buckleys" | B138: Safety | C138: Urban | D138: 0
A139: GLE33 new feeder exit HV switch, St Albans Road | B139: Safety | C139: Urban | D139: 0
A140: BETS 22kV Feeder exits BET8 | B140: Demand growth | C140: Urban | D140: 15.4
A141: MRO 5 Dunolly Voltage Regulator | B141: Voltage issues | C141: Rural Long | D141: 0
A142: NP14 CMN1 ACR | B142: Fault level issues | C142: Rural Long | D142: 0
A143: NP13 - CMN 1 Elphinstone Regulator (B/F) | B143: Voltage issues | C143: Rural Long | D143: 0
A144: CLC 2 New Switch P 1 Rae st | B144: Safety | C144: Urban | D144: 0
A145: CLC 6 -Add Swith P 50 Gellibrand-Ferro | B145: Safety | C145: Rural Long | D145: 0
A146: CLC1 - CLC2 feeder interchange | B146: Demand growth | C146: Urban | D146: 0
A147: COB 11 -EDO Fuses P 397 Timboon | B147: Safety | C147: Rural Long | D147: 0
A148: HTN002 New ACR P198 Merino | B148: Fault level issues | C148: Rural Long | D148: 0
A149: HTN006 New ACR P202 Coleraine | B149: Fault level issues | C149: Rural Long | D149: 0
A150: BAN 9 Uprate to 65oC to Creswick P178 ACR | B150: Demand growth | C150: Rural Long | D150: 2.9
A151: BAN11 Glenlyon P2 ACR upgrade | B151: Fault level issues | C151: Rural Long | D151: 0
A152: BAS21 uprate feeder to 65oC to Skipton P293 | B152: Demand growth | C152: Rural Long | D152: 2.9
A153: BAS22 new HV switch Walker Street, Sebastopol | B153: Safety | C153: Rural Long | D153: 0
A154: BAS24 Augment, Ningana Streeet, Alfredton | B154: Demand growth | C154: Urban | D154: 11.4
A155: BAS34 uprate to 65oC | B155: Demand growth | C155: Urban | D155: 2.9
A156: WPD13 Cityview Drive 22kV tie, Wandana Heights | B156: Other - specify | C156: Rural Short | D156: 15.4
A157: WPD32 feeder extension to Torquay | B157: Demand growth | C157: Rural Short | D157: 22.8
A158: BBD14-21 HV Tie | B158: Demand growth | C158: Rural Short | D158: 23
A159: BET 1 Reconductor to Marong Road | B159: Demand growth | C159: Rural Long | D159: 23
A160: NP11 - MDA31 Uprate Cables * | B160: Demand growth | C160: Urban | D160: 0
A161: NP13 BBD13 Reconductor | B161: Demand growth | C161: Rural Short | D161: 6
A162: NP13 BBD21 Augementation | B162: Demand growth | C162: Rural Short | D162: 6
A163: NP13 MBN12 Augmentation | B163: Demand growth | C163: Urban | D163: 6
A164: NP13 MBN12 Eleventh St Uprate | B164: Demand growth | C164: Urban | D164: 6
A165: NP13 MBN21 Uprate | B165: Demand growth | C165: Rural Short | D165: 6
A166: NP13 MBN22 Deakin Ave Reconductor | B166: Demand growth | C166: Rural Short | D166: 6
A167: NP13 RCT21 Belar Ave Uprate | B167: Demand growth | C167: Rural Short | D167: 6
A168: NP13 RCT21 McCracken St Reconductor | B168: Demand growth | C168: Rural Short | D168: 6
A169: NP13 RVL1 Voltage Regulator | B169: Voltage issues | C169: Rural Short | D169: 0
A170: NP13 RVL8 Reconductor | B170: Demand growth | C170: Rural Short | D170: 6
A171: NP13 WMN14 Line Capacitor | B171: Voltage issues | C171: Rural Short | D171: 0
A172: RCT15 to RCT22 load transfer | B172: Demand growth | C172: Rural Short | D172: 0
A173: WMN 21 Line Recond (9.0 km WETS-RVL section) | B173: Demand growth | C173: Rural Short | D173: 6
A174: CME 14 Augmentation | B174: Demand growth | C174: Rural Short | D174: 6.287344431
A175: CME 16 Augmentation | B175: Demand growth | C175: Rural Long | D175: 2.857883832
A176: KYM 1 Colbinabbin ACR (to protect Elmore) | B176: Fault level issues | C176: Rural Long | D176: 0
A177: KYM 4 Yambuna Fused Switches | B177: Safety | C177: Rural Long | D177: 0
A178: MNA 14 Thermal uprate | B178: Demand growth | C178: Rural Long | D178: 5.144190898
A179: MNA 21 Syme Fuses | B179: Safety | C179: Rural Short | D179: 0
A180: MNA 22 & 34 Feeder Exit Isolators | B180: Demand growth | C180: Urban | D180: 0
A181: NKA 1 New ACR | B181: Fault level issues | C181: Rural Long | D181: 0
A182: SHP 12 Augmentation | B182: Demand growth | C182: Rural Long | D182: 6.287344431
A183: STN 11 Midland Hwy 205 | B183: Safety | C183: Rural Long | D183: 0
A184: CHA3 - HV Switch and load transfer | B184: Safety | C184: Rural Short | D184: 0
A185: Fusing Morn Spur CHA6 | B185: Safety | C185: Rural Long | D185: 0
A186: KGT4 - Uprate Backbone | B186: Demand growth | C186: Rural Long | D186: 3.2
A187: SHL2 - Uprate Backbone | B187: Demand growth | C187: Rural Long | D187: 4.6
A188: SHL2 P439 Nyah ACR Commisioning | B188: Fault level issues | C188: Rural Long | D188: 0
A189: SHL5 - Augment Backbone | B189: Demand growth | C189: Rural Long | D189: 3.2
A192: 2014 Distribution Substation & LV Feeder Projects
A194: Project | B194: Name Plate Rating Added
A195: 160COFF11 McIntyre Whitehill S/stn Upgra | B195: 0.315
A196: 160CVC12 198 McIntyre Road, Sunshine | B196: 0.315
A197: 160NVC12 Intouch Midland Hwy, Castlemain | B197: 0.1
A198: 160VCS13 Rudale Nominees Lyons Street No | B198: 0.315
A199: 160COFF13 Devonshire Clarke Indoor CCT 5 | B199: 0.315
A200: 160NVC13 Thomas Tungamah Rd, Youarang | B200: 0.04
A201: 160CVC13 76 Arundel Rd, Keilor | B201: 0.2
A202: 160NVC13 Crane Nhill Rd, Murrayville 5 | B202: 0.1
A203: 160LTS13 Swarby ISO 51, Winchelsea Upgra | B203: 0.05
A204: 160LTS13 Kooroocheang P16 ISO Upgrade | B204: 0.075
A205: 160VCS13 Denversouth 3 ISO, Glenlyon Upg | B205: 0.05
A206: 160LTS13 Barkstead 254, Daylesford Upgra | B206: 0.075
A207: 160COFF13 Merrawarp Rd 16 Overload | B207: 0.05
A208: 160CWLT13 Edols Seperation 46 Upgrade | B208: 0.215
A209: 160CVC13 4 Gregory Street, Sunshine West | B209: 0.094
A210: 160COFF13 Cresser Mills S/Stn Overload | B210: 0.319
A211: 160VCS13 Kemper, Bellinghams Hill Road, | B211: 0.1
A212: 160VCS13 Beausouth 40 ISO, Beaufort Upgr | B212: 0.05
A213: 160LTS13 Iceworks 4, Daylesford Upgrade | B213: 0.215
A214: 160VCS13 Riding for Disabled, Riverside | B214: 0.025
... 38 more rows

Sheet Project List (%)
A1: PAL Augmentation Expenditure Model | I1: Model Master Check: | J1: =Model_Check -> 0
A2: =MID(CELL("Filename",A1),FIND("]",CELL("Filename",A1))+1,255) -> Project List (%) | I2: Sheet Check: | J2: =SUM(I:I) -> 0
C4: =A2 -> Project List (%)
J6: Expenditure Summary | Z6: Overhead | AB6: Underground
C7: Area | D7: F Code | E7: Feeder Category | F7: Project ID: | G7: Project Description: | H7: Total Project Cost | I7: Check | J7: Pre-2014 | K7: 2014 | L7: 2015 | M7: 2016 | N7: 2017 | O7: 2018 | P7: 2019 | Q7: 2020 | R7: 2021+ | T7: Project Type | U7: Project Trigger | V7: MVA added (name plate) | W7: MVA added cyclic | X7: MVA added N-1 | Y7: Final Year | Z7: Line Added (Route Kms) | AA7: Line Upgraded (Route Kms) | AB7: Cable Added (Route Kms) | AC7: Cable Upgraded (Route Kms) | AD7: Phasing | AE7: Comments
C8: Fisherman's Bend | D8: 161 | E8: Subtransmission | G8: DLF Install new 25/33 (Yy0) Tx - #3 | H8: 0 | I8: =IF( OR( SUM(J8:R8)=0, SUM(J8:R8)=1), 0, 1) -> 0 | J8: 0 | K8: 0 | L8: 0 | M8: 0 | N8: 0 | O8: 0 | P8: 0 | Q8: 0 | R8: 0 | Y8: =IF(R8>0,$R$7,IF(Q8>0,$Q$7,IF(P8>0,$P$7,IF(O8>0,$O$7,IF(N8>0,$N$7,IF(M8>0,$M$7,IF(L8>0,$L$7,IF(K8>0,$K$7,IF(J8>0,$J$7,0))))))))) -> 0
H9: 0 | I9: =IF( OR( SUM(J9:R9)=0, SUM(J9:R9)=1), 0, 1) -> 0 | J9: 0 | K9: 0 | L9: 0 | M9: 0 | N9: 0 | O9: 0 | P9: 0 | Q9: 0 | R9: 0 | Y9: =IF(R9>0,$R$7,IF(Q9>0,$Q$7,IF(P9>0,$P$7,IF(O9>0,$O$7,IF(N9>0,$N$7,IF(M9>0,$M$7,IF(L9>0,$L$7,IF(K9>0,$K$7,IF(J9>0,$J$7,0))))))))) -> 0
D10: SUBTRANSMISSION | H10: 0 | I10: 0 | J10: 0 | K10: 0 | L10: 0 | M10: 0 | N10: 0 | O10: 0 | P10: 0 | Q10: 0 | R10: 0 | Y10: =IF(R10>0,$R$7,IF(Q10>0,$Q$7,IF(P10>0,$P$7,IF(O10>0,$O$7,IF(N10>0,$N$7,IF(M10>0,$M$7,IF(L10>0,$L$7,IF(K10>0,$K$7,IF(J10>0,$J$7,0))))))))) -> 0
C11: Deer Park | D11: 161 | E11: Subtransmission | G11: Land for Rockbank East Zone Substation (RBE) | H11: 776.8398304 | I11: 0 | J11: 0 | K11: 0 | L11: 0 | M11: 0.06666666667 | N11: 0.9333333333 | O11: 0 | P11: 0 | Q11: 0 | R11: 0 | U11: Demand growth | V11: 0 | W11: 0 | X11: 0 | Y11: 2017
C12: Deer Park | D12: 161 | E12: Subtransmission | G12: Establish Zone Substation Rockbank East (RBE) 2 x Tx & busses & 1 x 12 MVAr Cap Bank | H12: 0 | I12: 0 | J12: 0 | K12: 0 | L12: 0 | M12: 0 | N12: 0 | O12: 0 | P12: 0 | Q12: 0 | R12: 1 | Y12: 2021+
C13: Deer Park | D13: 161 | E13: Subtransmission | G13: 3rd Transformer and 22kV bus at RBE | H13: 0 | I13: 0 | J13: 0 | K13: 0 | L13: 0 | M13: 0 | N13: 0 | O13: 0 | P13: 0 | Q13: 0 | R13: 1 | Y13: 2021+
C14: Deer Park | D14: 161 | E14: Subtransmission | G14: Establish Zone Substation Rockbank (RBK) | H14: 0 | I14: 0 | J14: 0 | K14: 0 | L14: 0 | M14: 0 | N14: 0 | O14: 0 | P14: 0 | Q14: 0 | R14: 1 | Y14: 2021+
C15: Keilor | D15: 161 | E15: Subtransmission | G15: Cap Bank at SA | H15: 0 | I15: 0 | J15: 0 | K15: 0 | L15: 0 | M15: 0 | N15: 0 | O15: 0 | P15: 0 | Q15: 0 | R15: 1 | Y15: 2021+
C16: Keilor | D16: 161 | E16: Subtransmission | G16: Transformer fans at SA | H16: 0 | I16: 0 | J16: 0 | K16: 0 | L16: 0 | M16: 0 | N16: 0 | O16: 0 | P16: 0 | Q16: 0 | R16: 1 | Y16: 2021+
C17: Keilor | D17: 161 | E17: Subtransmission | G17: SA 22kV transformer CB isolator | H17: 207.1572881 | I17: 0 | J17: 0 | K17: 0 | L17: 0 | M17: 0 | N17: 0 | O17: 0 | P17: 0 | Q17: 1 | R17: 0 | T17: Overhead | U17: Demand growth | V17: 6 | W17: 6 | X17: 4 | Y17: 2020
C18: Keilor | D18: 162 | E18: Subtransmission | G18: Reconductor KTS - SA #1&#2 line to 0.4 equiv | H18: 0 | I18: 0 | J18: 0 | K18: 0 | L18: 0 | M18: 0 | N18: 0 | O18: 0 | P18: 0 | Q18: 0 | R18: 1 | Y18: 2021+
C19: Deer Park | D19: 161 | E19: Subtransmission | G19: Uprate MLN cap bank to 12MVAr | H19: 0 | I19: 0 | J19: 0 | K19: 0 | L19: 0 | M19: 0 | N19: 0 | O19: 0 | P19: 0 | Q19: 0 | R19: 1 | Y19: 2021+ | AE19: Deferred due to lower growth.
C20: Deer Park | D20: 161 | E20: Subtransmission | F20: 5071602 | G20: MLN - Install 3rd Transformer, 3rd 22kV Bus & 4th 66kV CB | H20: 4891.923716 | I20: 0 | J20: 0 | K20: 0 | L20: 0 | M20: 0.1041666667 | N20: 0.8958333333 | O20: 0 | P20: 0 | Q20: 0 | R20: 0 | T20: Overhead | U20: Demand growth | V20: 42 | W20: 46.2 | X20: 41.7 | Y20: 2017
C21: Keilor | D21: 161 | E21: Subtransmission | G21: GSB - Install 3rd transformer | H21: 0 | I21: 0 | J21: 0 | K21: 0 | L21: 0 | M21: 0 | N21: 0 | O21: 0 | P21: 0 | Q21: 0 | R21: 1 | Y21: 2021+
C22: Keilor | D22: 162 | E22: Subtransmission | G22: GSB - 66kV line exit augmentation | H22: 0 | I22: 0 | J22: 0 | K22: 0 | L22: 0 | M22: 0 | N22: 0 | O22: 0 | P22: 0 | Q22: 0 | R22: 1 | Y22: 2021+
C23: Keilor | D23: 161 | E23: Subtransmission | G23: SU Plant Protection Scheme | H23: 0 | I23: 0 | J23: 0 | K23: 0 | L23: 0 | M23: 0 | N23: 0 | O23: 0 | P23: 0 | Q23: 0 | R23: 1 | Y23: 2021+ | AE23: Deferred due to lower growth.
C24: Keilor | D24: 162 | E24: Subtransmission | G24: SBY-WND #2 Dynamic line monitoring via SCADA - Design & Construct | H24: 0 | I24: 0 | J24: 0 | K24: 0 | L24: 0 | M24: 0 | N24: 0 | O24: 0 | P24: 0 | Q24: 0 | R24: 0 | Y24: 0 | AE24: Project no longer proceeding (125k removed from 2019).
C25: Keilor | D25: 162 | E25: Subtransmission | G25: SBY - GSB#1 reconductor parallel cct (P4-P22, P29-P39, P42-P62, P82A-T103) (9.3 kM) (SBY-GSB section) | H25: 0 | I25: 0 | J25: 0 | K25: 0 | L25: 0 | M25: 0 | N25: 0 | O25: 0 | P25: 0 | Q25: 0 | R25: 1 | Y25: 2021+
C26: Keilor | D26: 162 | E26: Subtransmission | G26: SBY -GSB#2 Reconductor (6/4.72 - 7/1.57) ACSR to 19/4.75 AAC (13.7 kM) | H26: 0 | I26: 0 | J26: 0 | K26: 0 | L26: 0 | M26: 0 | N26: 0 | O26: 0 | P26: 0 | Q26: 0 | R26: 1 | Y26: 2021+
C27: Keilor | D27: 161 | E27: Subtransmission | G27: 2 x 12MVAR Capbank at SSE | H27: 0 | I27: 0 | J27: 0 | K27: 0 | L27: 0 | M27: 0 | N27: 0 | O27: 0 | P27: 0 | Q27: 0 | R27: 1 | Y27: 2021+
C28: Keilor | D28: 161 | E28: Subtransmission | G28: SU Uprate 66kV bus incl 1-3 BT CBs & 3 Isols | H28: 0 | I28: 0 | J28: 0 | K28: 0 | L28: 0 | M28: 0 | N28: 0 | O28: 0 | P28: 0 | Q28: 0 | R28: 1 | Y28: 2021+
C29: Keilor | D29: 162 | E29: Subtransmission | G29: Reconductor KTS-SSE (P7-P27) (1.5km) | H29: 0 | I29: 0 | J29: 0 | K29: 0 | L29: 0 | M29: 0 | N29: 0 | O29: 0 | P29: 0 | Q29: 0 | R29: 1 | Y29: 2021+
C30: Deer Park | D30: 162 | E30: Subtransmission | G30: Reconductor SU-SSE | H30: 0 | I30: 0 | J30: 0 | K30: 0 | L30: 0 | M30: 0 | N30: 0 | O30: 0 | P30: 0 | Q30: 0 | R30: 1 | Y30: 2021+
C31: Keilor | D31: 161 | E31: Subtransmission | G31: Romsey Zone Substation and 66 KV line from Sunbury | H31: 0 | I31: 0 | J31: 0 | K31: 0 | L31: 0 | M31: 0 | N31: 0 | O31: 0 | P31: 0 | Q31: 0 | R31: 1 | Y31: 2021+
C32: Keilor | D32: 162 | E32: Subtransmission | G32: GSB - RSY | H32: 0 | I32: 0 | J32: 0 | K32: 0 | L32: 0 | M32: 0 | N32: 0 | O32: 0 | P32: 0 | Q32: 0 | R32: 1 | Y32: 2021+
C33: Keilor | D33: 161 | E33: Subtransmission | G33: SU Fault Mitigation (Design & Construct) | H33: 0 | I33: 0 | J33: 0 | K33: 0 | L33: 0 | M33: 0 | N33: 0 | O33: 0 | P33: 0 | Q33: 0 | R33: 1 | Y33: 2021+
C34: Deer Park | D34: 162 | E34: Subtransmission | F34: 5080491, 5078702 | G34: DPTS-MLN No1 & No2 66kV Lines only | H34: 8758 | I34: =IF( OR( SUM(J34:R34)=0, SUM(J34:R34)=1), 0, 1) -> 0 | J34: 0 | K34: 0.008335236355 | L34: 0.1323361498 | M34: 0.5355103905 | N34: 0.3036081297 | O34: 0.02021009363 | P34: 0 | Q34: 0 | R34: 0 | T34: Overhead | U34: Transmission connection point | V34: 220 | Y34: 2018 | Z34: 37
C35: Deer Park | D35: 162 | E35: Subtransmission | F35: 5078699, 5081224, 5087484 | G35: DPTS-SU No1 & No2 66kV, KTS-SSE No1 & No2 Lines with SU-SSE N.O. tie | H35: 13014.7584 | I35: 0 | J35: 0.002363347751 | K35: 0.0122937357 | L35: 0.3269365338 | M35: 0.157359817 | N35: 0.4899822036 | O35: 0.01106436213 | P35: 0 | Q35: 0 | R35: 0 | T35: Both | U35: Transmission connection point | V35: 220 | Y35: 2018 | Z35: 19.5 | AB35: 2.1
C36: Deer Park | D36: 162 | E36: Subtransmission | G36: DPTS-RBE No1 & No2 and MLN-RBE | H36: 0 | I36: 0 | J36: 0 | K36: 0 | L36: 0 | M36: 0 | N36: 0 | O36: 0 | P36: 0 | Q36: 0 | R36: 1 | Y36: 2021+
C37: Deer Park | D37: 161 | E37: Subtransmission | G37: DPTS-RBE exit CBs at RBE (ring bus) | H37: 0 | I37: 0 | J37: 0 | K37: 0 | L37: 0 | M37: 0 | N37: 0 | O37: 0 | P37: 0 | Q37: 0 | R37: 1 | Y37: 2021+
C38: Deer Park | D38: 162 | E38: Subtransmission | G38: DPTS-SSE & reconnect SU-SSE | H38: 0 | I38: 0 | J38: 0 | K38: 0 | L38: 0 | M38: 0 | N38: 0 | O38: 0 | P38: 0 | Q38: 0 | R38: 1 | Y38: 2021+
C39: Deer Park | D39: 162 | E39: Subtransmission | G39: Land for Rockbank Zone Substation, RBK | H39: 0 | I39: 0 | J39: 0 | K39: 0 | L39: 0 | M39: 0 | N39: 0 | O39: 0 | P39: 0 | Q39: 0 | R39: 1 | Y39: 2021+
H40: 0 | I40: 0 | J40: 0 | K40: 0 | L40: 0 | M40: 0 | N40: 0 | O40: 0 | P40: 0 | Q40: 0 | R40: 0 | Y40: 0
D41: DISTRIBUTION MAJOR | G41: Rockbank East, RBE | H41: 0 | I41: 0 | J41: 0 | K41: 0 | L41: 0 | M41: 0 | N41: 0 | O41: 0 | P41: 0 | Q41: 0 | R41: 0 | Y41: 0
C42: Deer Park | D42: 162 | E42: Urban | G42: RBE 4 New 22kV Feeders | H42: 0 | I42: 0 | J42: 0 | K42: 0 | L42: 0 | M42: 0 | N42: 0 | O42: 0 | P42: 0 | Q42: 0 | R42: 1 | Y42: 2021+
C43: Deer Park | D43: 162 | E43: Urban | G43: RBE 2 Additional 22kV Feeders | H43: 0 | I43: 0 | J43: 0 | K43: 0 | L43: 0 | M43: 0 | N43: 0 | O43: 0 | P43: 0 | Q43: 0 | R43: 1 | Y43: 2021+
C44: Deer Park | D44: 162 | E44: Urban | G44: RBE 2 Additional 22kV Feeders | H44: 0 | I44: 0 | J44: 0 | K44: 0 | L44: 0 | M44: 0 | N44: 0 | O44: 0 | P44: 0 | Q44: 0 | R44: 1 | Y44: 2021+
C45: Deer Park | D45: 162 | E45: Urban | G45: RBE 2 Additional 22kV Feeders | H45: 0 | I45: 0 | J45: 0 | K45: 0 | L45: 0 | M45: 0 | N45: 0 | O45: 0 | P45: 0 | Q45: 0 | R45: 1 | Y45: 2021+
C46: Deer Park | D46: 162 | E46: Urban | G46: RBE Additional 22kV Feeder | H46: 0 | I46: 0 | J46: 0 | K46: 0 | L46: 0 | M46: 0 | N46: 0 | O46: 0 | P46: 0 | Q46: 0 | R46: 1 | Y46: 2021+
C47: Deer Park | D47: 162 | E47: Urban | G47: RBE Additional 22kV Feeder | H47: 0 | I47: 0 | J47: 0 | K47: 0 | L47: 0 | M47: 0 | N47: 0 | O47: 0 | P47: 0 | Q47: 0 | R47: 1 | Y47: 2021+
C48: Keilor | H48: 0 | I48: 0 | J48: 0 | K48: 0 | L48: 0 | M48: 0 | N48: 0 | O48: 0 | P48: 0 | Q48: 0 | R48: 0 | Y48: 0
C49: Keilor | G49: Sunshine East, SSE | H49: 0 | I49: 0 | J49: 0 | K49: 0 | L49: 0 | M49: 0 | N49: 0 | O49: 0 | P49: 0 | Q49: 0 | R49: 0 | Y49: 0
C50: Keilor | D50: 162 | E50: Urban | G50: SSE 11 Uprate + reconductor in McIntyre Rd (design) | H50: 262.1575482 | I50: 0 | J50: 0 | K50: 0 | L50: 0 | M50: 0 | N50: 0 | O50: 1 | P50: 0 | Q50: 0 | R50: 0 | T50: Overhead | U50: Demand growth | V50: 3.5 | Y50: 2018 | Z50: 0 | AA50: 1 | AB50: 0 | AC50: 0 | AD50: 3-Phase
C51: Keilor | D51: 162 | E51: Urban | G51: SSE 11 Stage 2 Augment | H51: 0 | I51: 0 | J51: 0 | K51: 0 | L51: 0 | M51: 0 | N51: 0 | O51: 0 | P51: 0 | Q51: 0 | R51: 1 | Y51: 2021+
C52: Keilor | D52: 162 | E52: Urban | G52: SSE13 South to offload SU8 south & SSE14 (former SU1) | H52: 561.052658 | I52: 0 | J52: 0 | K52: 0 | L52: 0 | M52: 0 | N52: 0 | O52: 0 | P52: 0 | Q52: 1 | R52: 0 | T52: Underground | U52: Demand growth | V52: 5 | Y52: 2020 | Z52: 0.3 | AA52: 0 | AB52: 0.4 | AC52: 0 | AD52: 3-Phase
C53: Deer Park | D53: 162 | E53: Urban | G53: SSE 13 Clarke-Dickson ID Sub HV Loop | H53: 0 | I53: 0 | J53: 0 | K53: 0 | L53: 0 | M53: 0 | N53: 0 | O53: 0 | P53: 0 | Q53: 0 | R53: 1 | Y53: 2021+
C54: Deer Park | D54: 162 | E54: Urban | G54: SSE13 Feeder rearrangement | H54: 250 | I54: 0 | J54: 0 | K54: 0 | L54: 0 | M54: 0 | N54: 0 | O54: 1 | P54: 0 | Q54: 0 | R54: 0 | T54: Underground | U54: Demand growth | V54: 5 | Y54: 2018 | Z54: 0 | AA54: 0 | AB54: 0.25 | AC54: 0 | AD54: 3-Phase | AE54: New project due to higher load growth.
C55: Keilor | D55: 162 | E55: Urban | G55: Thermal uprate for SSE31 & SSE33 backbone conductor | H55: 41.94520771 | I55: 0 | J55: 0 | K55: 0 | L55: 0 | M55: 1 | N55: 0 | O55: 0 | P55: 0 | Q55: 0 | R55: 0 | T55: Overhead | U55: Demand growth | V55: 13.4 | Y55: 2016 | AA55: 1.6 | AD55: 3-Phase
C56: Keilor | H56: 0 | I56: 0 | J56: 0 | K56: 0 | L56: 0 | M56: 0 | N56: 0 | O56: 0 | P56: 0 | Q56: 0 | R56: 0 | Y56: 0
C57: Keilor | G57: St Albans, SA | H57: 0 | I57: 0 | J57: 0 | K57: 0 | L57: 0 | M57: 0 | N57: 0 | O57: 0 | P57: 0 | Q57: 0 | R57: 0 | Y57: 0
C58: Keilor | D58: 162 | E58: Urban | G58: SA 3 Augment feeder exit or tie to another feeder that is underutilised | H58: 0 | I58: 0 | J58: 0 | K58: 0 | L58: 0 | M58: 0 | N58: 0 | O58: 0 | P58: 0 | Q58: 0 | R58: 1 | Y58: 2021+
C59: Keilor | D59: 162 | E59: Urban | G59: SA 4 Augment feeder exit or tie to SA9 | H59: 315 | I59: 0 | J59: 0 | K59: 0 | L59: 0 | M59: 0 | N59: 1 | O59: 0 | P59: 0 | Q59: 0 | R59: 0 | T59: Underground | U59: Demand growth | V59: 5 | Y59: 2017 | Z59: 1.6 | AA59: 1.2 | AB59: 0.5 | AC59: 0 | AD59: 3-Phase | AE59: Project cost increase due to change in scope of works (126k to 315k).
C60: Keilor | D60: 162 | E60: Urban | G60: SA 11 Augment feeder exit or tie to another feeder that is underutilised | H60: 0 | I60: 0 | J60: 0 | K60: 0 | L60: 0 | M60: 0 | N60: 0 | O60: 0 | P60: 0 | Q60: 0 | R60: 1 | Y60: 2021+
C61: Keilor | D61: 162 | E61: Urban | G61: SA009 HV Isolators Replacement | H61: 41.94520771 | I61: 0 | J61: 0 | K61: 0 | L61: 1 | M61: 0 | N61: 0 | O61: 0 | P61: 0 | Q61: 0 | R61: 0 | T61: Overhead | U61: Demand growth | V61: 1 | Y61: 2015
C62: Keilor | H62: 0 | I62: =IF( OR( SUM(J62:R62)=0, SUM(J62:R62)=1), 0, 1) -> 0 | J62: 0 | K62: 0 | L62: 0 | M62: 0 | N62: 0 | O62: 0 | P62: 0 | Q62: 0 | R62: 0 | Y62: 0
C63: Keilor | G63: Sunshine, SU | H63: 0 | I63: 0 | J63: 0 | K63: 0 | L63: 0 | M63: 0 | N63: 0 | O63: 0 | P63: 0 | Q63: 0 | R63: 0 | Y63: 0
C64: Keilor | D64: 162 | E64: Urban | G64: SU 3,4,5 & 8 HV ties and rearrangement | H64: 0 | I64: 0 | J64: 0 | K64: 0 | L64: 0 | M64: 0 | N64: 0 | O64: 0 | P64: 0 | Q64: 0 | R64: 1 | Y64: 2021+
C65: Deer Park | D65: 162 | E65: Urban | G65: SU5 Augment BB & HV Rearrangement to offload SU4 | H65: 314.5890579 | I65: 0 | J65: 0 | K65: 0 | L65: 0 | M65: 0 | N65: 0 | O65: 0 | P65: 1 | Q65: 0 | R65: 0 | T65: Overhead | U65: Demand growth | V65: 3.5 | Y65: 2019 | Z65: 0 | AA65: 1 | AB65: 0.15 | AC65: 0 | AD65: 3-Phase
C66: Deer Park | D66: 162 | E66: Urban | G66: SU 3 Uprate feeder | H66: 0 | I66: 0 | J66: 0 | K66: 0 | L66: 0 | M66: 0 | N66: 0 | O66: 0 | P66: 0 | Q66: 0 | R66: 1 | Y66: 2021+
C67: Deer Park | D67: 162 | E67: Urban | G67: SU 8 Augment Feeder Stage 2 | H67: 0 | I67: 0 | J67: 0 | K67: 0 | L67: 0 | M67: 0 | N67: 0 | O67: 0 | P67: 0 | Q67: 0 | R67: 1 | Y67: 2021+
C68: Deer Park | D68: 162 | E68: Urban | G68: Establish new SU14 feeder to ORICA site | H68: 2034.342574 | I68: 0 | J68: 0 | K68: 0 | L68: 0 | M68: 0 | N68: 0 | O68: 0 | P68: 1 | Q68: 0 | R68: 0 | T68: Underground | U68: Demand growth | V68: 12 | Y68: 2019 | Z68: 0 | AA68: 0 | AB68: 2.1 | AC68: 0 | AD68: 3-Phase
C69: Keilor | D69: 162 | E69: Urban | G69: SSE/SU - SA Feeder tie for offload project | H69: 938.5240226 | I69: 0 | J69: 0 | K69: 0 | L69: 0 | M69: 1 | N69: 0 | O69: 0 | P69: 0 | Q69: 0 | R69: 0 | T69: Both | U69: Demand growth | V69: 5 | Y69: 2016 | AA69: 4 | AB69: 0.4 | AD69: 3-Phase
C70: Keilor | H70: 0 | I70: 0 | J70: 0 | K70: 0 | L70: 0 | M70: 0 | N70: 0 | O70: 0 | P70: 0 | Q70: 0 | R70: 0 | Y70: 0
C71: Keilor | G71: Woodend, WND | H71: 0 | I71: 0 | J71: 0 | K71: 0 | L71: 0 | M71: 0 | N71: 0 | O71: 0 | P71: 0 | Q71: 0 | R71: 0 | Y71: 0
C72: Keilor | D72: 162 | E72: Rural Short | G72: WND 12 Kerrie Iso SWER Aug (WND12) | H72: 360.8256374 | I72: 0 | J72: 0 | K72: 0 | L72: 0 | M72: 0 | N72: 1 | O72: 0 | P72: 0 | Q72: 0 | R72: 0 | T72: Both | U72: Demand growth | V72: 0.1 | Y72: 2017 | AE72: Brought forward due to voltage complaints.
C73: Keilor | D73: 162 | E73: Rural Short | G73: WND 12 LUCERNEDALE P61 SWER AUG | H73: 0 | I73: 0 | J73: 0 | K73: 0 | L73: 0 | M73: 0 | N73: 0 | O73: 0 | P73: 0 | Q73: 0 | R73: 1 | Y73: 2021+ | AE73: Deferred due to lower growth.
C74: Keilor | D74: 162 | E74: Rural Short | G74: WND 12 Hesket Rd Tie P15 SWER Aug | H74: 209.7260386 | I74: 0 | J74: 0 | K74: 0 | L74: 0 | M74: 0 | N74: 0 | O74: 0 | P74: 0 | Q74: 1 | R74: 0 | T74: Both | U74: Demand growth | V74: 0.1 | Y74: =IF(R74>0,$R$7,IF(Q74>0,$Q$7,IF(P74>0,$P$7,IF(O74>0,$O$7,IF(N74>0,$N$7,IF(M74>0,$M$7,IF(L74>0,$L$7,IF(K74>0,$K$7,IF(J74>0,$J$7,0))))))))) -> 2020
C75: Keilor | D75: 162 | E75: Rural Long | G75: WND 12/13/21/22 reconfiguration (19/3.25 TIE TO ROMSEY) | H75: 20.97260386 | I75: 0 | J75: 0 | K75: 0 | L75: 0 | M75: 0 | N75: 0 | O75: 1 | P75: 0 | Q75: 0 | R75: 0 | T75: Overhead | U75: Demand growth | V75: 4 | Y75: 2018 | Z75: 0 | AA75: 0 | AB75: 0 | AC75: 0 | AD75: 0
C76: Keilor | D76: 162 | E76: Rural Long | G76: WND 13 Cobaw Swer Aug | H76: 0 | I76: 0 | J76: 0 | K76: 0 | L76: 0 | M76: 0 | N76: 0 | O76: 0 | P76: 0 | Q76: 0 | R76: 1 | Y76: 2021+ | AE76: Deferred due to lower growth.
C77: Keilor | D77: 162 | E77: Rural Long | G77: WND 13 Goldie North SWER aug | H77: 314.5890579 | I77: 0 | J77: 0 | K77: 0 | L77: 1 | M77: 0 | N77: 0 | O77: 0 | P77: 0 | Q77: 0 | R77: 0 | T77: Overhead | U77: Demand growth | V77: 0.1 | Y77: 2015 | Z77: 0 | AA77: 4.1 | AB77: 0 | AC77: 0 | AD77: 3-Phase
C78: Keilor | D78: 162 | E78: Rural Long | G78: WND 13 Cobaw line aug stage 2 | H78: 0 | I78: 0 | J78: 0 | K78: 0 | L78: 0 | M78: 0 | N78: 0 | O78: 0 | P78: 0 | Q78: 0 | R78: 1 | Y78: 2021+
C79: Keilor | D79: 162 | E79: Rural Long | G79: WND 13 Stage 2 Kyneton 2nd feeder to connect to WND 13 | H79: 0 | I79: 0 | J79: 0 | K79: 0 | L79: 0 | M79: 0 | N79: 0 | O79: 0 | P79: 0 | Q79: 0 | R79: 0 | Y79: 0 | AE79: Project no longer required due to GSB ZSS (315k removed from 2021+).
C80: Keilor | D80: 162 | E80: Rural Short | G80: WND 14 Stage 1 Kyneton 2nd feeder WND 14 | H80: 0 | I80: 0 | J80: 0 | K80: 0 | L80: 0 | M80: 0 | N80: 0 | O80: 0 | P80: 0 | Q80: 0 | R80: 0 | Y80: 0 | AE80: Project no longer required due to GSB ZSS (210k removed from 2021+).
C81: Keilor | D81: 162 | E81: Rural Long | G81: WND 22 Uprate to 65 Deg | H81: 0 | I81: =IF( OR( SUM(J81:R81)=0, SUM(J81:R81)=1), 0, 1) -> 0 | J81: 0 | K81: 0 | L81: 0 | M81: 0 | N81: 0 | O81: 0 | P81: 0 | Q81: 0 | R81: 1 | Y81: 2021+ | AE81: New project for higher load growth.
C82: Keilor | D82: 162 | E82: Rural Long | G82: WND 23 Vaughan Springs SWER Aug | H82: 0 | I82: 0 | J82: 0 | K82: 0 | L82: 0 | M82: 0 | N82: 0 | O82: 0 | P82: 0 | Q82: 0 | R82: 1 | Y82: 2021+
C83: Keilor | D83: 162 | E83: Rural Long | G83: WND 23 SPRING PLAINS SWER AUG | H83: 0 | I83: 0 | J83: 0 | K83: 0 | L83: 0 | M83: 0 | N83: 0 | O83: 0 | P83: 0 | Q83: 0 | R83: 1 | Y83: 2021+ | AE83: Deferred due to lower growth.
C84: Keilor | D84: 162 | E84: Rural Long | G84: WND 23 Langley Line reconductor WND 23 STG1 | H84: 0 | I84: 0 | J84: 0 | K84: 0 | L84: 0 | M84: 0 | N84: 0 | O84: 0 | P84: 0 | Q84: 0 | R84: 1 | Y84: 2021+
C85: Keilor | D85: 162 | E85: Rural Long | G85: WND 23 Langley Line reconductor WND 23 STG2 | H85: 0 | I85: 0 | J85: 0 | K85: 0 | L85: 0 | M85: 0 | N85: 0 | O85: 0 | P85: 0 | Q85: 0 | R85: 1 | Y85: 2021+
C86: Keilor | D86: 162 | E86: Rural Long | G86: WND 23 New Regulator pole 90 Trentham line WND 23 | H86: 251.6712463 | I86: 0 | J86: 0 | K86: 0 | L86: 0 | M86: 0 | N86: 0 | O86: 0 | P86: 0 | Q86: 1 | R86: 0 | T86: Overhead | U86: Voltage issues | V86: 5 | Y86: 2020
C87: Keilor | D87: 162 | E87: Rural Long | G87: WND 24 Chanters Lane SWER Aug | H87: 360.8256374 | I87: 0 | J87: 0 | K87: 0 | L87: 0 | M87: 1 | N87: 0 | O87: 0 | P87: 0 | Q87: 0 | R87: 0 | T87: Overhead | U87: Demand growth | V87: 0.1 | Y87: 2016 | Z87: 0 | AA87: 3 | AB87: 0 | AC87: 0 | AD87: SWER
C88: Keilor | D88: 162 | E88: Rural Long | G88: WND 24 Little Hampton SWER Aug | H88: 262.1575482 | I88: 0 | J88: 0 | K88: 0 | L88: 0 | M88: 0 | N88: 0 | O88: 1 | P88: 0 | Q88: 0 | R88: 0 | T88: Overhead | U88: Demand growth | V88: 0.1 | Y88: 2018 | Z88: 0.1 | AA88: 0 | AB88: 0 | AC88: 1.3 | AD88: 3-Phase
C89: Keilor | D89: 162 | E89: Rural Long | G89: WND 24 Spring Hill East SWER Aug | H89: 360.8256374 | I89: 0 | J89: 0 | K89: 0 | L89: 0 | M89: 1 | N89: 0 | O89: 0 | P89: 0 | Q89: 0 | R89: 0 | T89: Both | U89: Demand growth | V89: 0.1 | Y89: 2016 | Z89: 0 | AA89: 0 | AB89: 0 | AC89: 1.3 | AD89: 3-Phase
C90: Keilor | D90: 162 | E90: Rural Long | G90: WND 24 Upper Coliban SWER aug | H90: 0 | I90: 0 | J90: 0 | K90: 0 | L90: 0 | M90: 0 | N90: 0 | O90: 0 | P90: 0 | Q90: 0 | R90: 1 | Y90: 2021+
C91: Keilor | D91: 162 | E91: Rural Long | G91: WND 24 Lauriston SWER aug | H91: 360.8256374 | I91: 0 | J91: 0 | K91: 0 | L91: 0 | M91: 0 | N91: 0 | O91: 0 | P91: 1 | Q91: 0 | R91: 0 | T91: Overhead | U91: Demand growth | V91: 0.1 | Y91: 2019 | Z91: 4 | AA91: 0 | AB91: 0 | AC91: 0 | AD91: Add Third Phase
C92: Keilor | D92: 162 | E92: Rural Long | G92: WND 23 Uprate to 65 Deg | H92: 0 | I92: 0 | J92: 0 | K92: 0 | L92: 0 | M92: 0 | N92: 0 | O92: 0 | P92: 0 | Q92: 0 | R92: 1 | Y92: 2021+ | AE92: New project for higher load growth.
C93: Bendigo | D93: 162 | E93: Rural Long | G93: CMN 1 Augment supply to Malmsbury | H93: 0 | I93: 0 | J93: 0 | K93: 0 | L93: 0 | M93: 0 | N93: 0 | O93: 0 | P93: 0 | Q93: 0 | R93: 1 | Y93: 2021+ | AE93: Revised scope, project title change and area change from WND 23 to CMN 1.
C94: Keilor | H94: 0 | I94: 0 | J94: 0 | K94: 0 | L94: 0 | M94: 0 | N94: 0 | O94: 0 | P94: 0 | Q94: 0 | R94: 0 | Y94: 0
C95: Keilor | G95: Gisborne, GSB | H95: 0 | I95: 0 | J95: 0 | K95: 0 | L95: 0 | M95: 0 | N95: 0 | O95: 0 | P95: 0 | Q95: 0 | R95: 0 | Y95: 0
C96: Keilor | D96: 162 | E96: Rural Short | G96: GSB 21 & 22 feeders Design | H96: 0 | I96: 0 | J96: 0 | K96: 0 | L96: 0 | M96: 0 | N96: 0 | O96: 0 | P96: 0 | Q96: 0 | R96: 1 | Y96: 2021+ | AE96: Project title change to design.
C97: Keilor | D97: 162 | E97: Rural Short | G97: GSB 21 & 22 feeders Construct | H97: 0 | I97: =IF( OR( SUM(J97:R97)=0, SUM(J97:R97)=1), 0, 1) -> 0 | J97: 0 | K97: 0 | L97: 0 | M97: 0 | N97: 0 | O97: 0 | P97: 0 | Q97: 0 | R97: 1 | Y97: 2021+ | AE97: New project for feeder construction (600k in 2021+).
C98: Keilor | D98: 162 | E98: Rural Short | G98: GSB 23 & 24 feeders | H98: 0 | I98: 0 | J98: 0 | K98: 0 | L98: 0 | M98: 0 | N98: 0 | O98: 0 | P98: 0 | Q98: 0 | R98: 1 | Y98: 2021+
C99: Keilor | H99: 0 | I99: 0 | J99: 0 | K99: 0 | L99: 0 | M99: 0 | N99: 0 | O99: 0 | P99: 0 | Q99: 0 | R99: 0 | Y99: 0
C100: Keilor | G100: Melton, MLN | H100: 0 | I100: 0 | J100: 0 | K100: 0 | L100: 0 | M100: 0 | N100: 0 | O100: 0 | P100: 0 | Q100: 0 | R100: 0 | Y100: 0
C101: Deer Park | D101: 162 | E101: Urban | G101: MLN 21 Ferris Rd 3PH steel tie to MLN 11 | H101: 0 | I101: 0 | J101: 0 | K101: 0 | L101: 0 | M101: 0 | N101: 0 | O101: 0 | P101: 0 | Q101: 0 | R101: 1 | Y101: 2021+ | AE101: Deferred due to lower growth.
C102: Deer Park | D102: 162 | E102: Urban | G102: MLN 21 Uprate | H102: 0 | I102: 0 | J102: 0 | K102: 0 | L102: 0 | M102: 0 | N102: 0 | O102: 0 | P102: 0 | Q102: 0 | R102: 1 | Y102: 2021+
C103: Deer Park | D103: 162 | E103: Rural Short | F103: 5087331 | G103: MLN32 New 22kV Feeder to offload MLN24 & accept 5MW from BMH | H103: 1816.052652 | I103: 0 | J103: 0 | K103: 0 | L103: 0 | M103: 0.05 | N103: 0.95 | O103: 0 | P103: 0 | Q103: 0 | R103: 0 | T103: Both | U103: Demand growth | V103: 12 | Y103: 2017 | Z103: 2.9 | AA103: 2.6 | AB103: 0.29 | AC103: 0 | AD103: 3-Phase
C104: Deer Park | D104: 162 | E104: Rural Short | G104: MLN 31 New 22kV fdr to offload MLN11 & 24 | H104: 0 | I104: 0 | J104: 0 | K104: 0 | L104: 0 | M104: 0 | N104: 0 | O104: 0 | P104: 0 | Q104: 0 | R104: 1 | Y104: 2021+
C105: Deer Park | D105: 162 | E105: Rural Short | G105: MLN12 & 14 HV Rearrangement - Stage 2 | H105: 0 | I105: 0 | J105: 0 | K105: 0 | L105: 0 | M105: 0 | N105: 0 | O105: 0 | P105: 0 | Q105: 0 | R105: 1 | Y105: 2021+
C106: Deer Park | D106: 162 | E106: Rural Short | G106: MLN33 New 22kV Feeder to offload MLN 11, MLN13 and MLN23 | H106: 1336.164508 | I106: 0 | J106: 0 | K106: 0 | L106: 0 | M106: 0 | N106: 0 | O106: 0 | P106: 0.07 | Q106: 0.93 | R106: 0 | T106: Both | U106: Demand growth | V106: 8 | Y106: 2020 | Z106: 2.9 | AA106: 2.6 | AB106: 0.29 | AC106: 0 | AD106: 3-Phase | AE106: Brought forward due to higher load growth.
C107: Deer Park | D107: 162 | E107: Rural Short | G107: MLN34 New 22kV fdr to offload MLN12, 14 & 22 | H107: 621.4718643 | I107: 0 | J107: 0 | K107: 0 | L107: 0 | M107: 0 | N107: 0 | O107: 1 | P107: 0 | Q107: 0 | R107: 0 | T107: Both | U107: Demand growth | V107: 5 | Y107: 2018 | Z107: 3.7 | AA107: 0.15 | AB107: 0.4 | AC107: 0 | AD107: 3-Phase | AE107: Brought forward due to higher load growth.
C108: Deer Park | D108: 162 | E108: Urban | G108: MLN 13 New HV Sw- Coburns Rd | H108: 56.96825423 | I108: 0 | J108: 0 | K108: 0 | L108: 0 | M108: 0 | N108: 0 | O108: 0 | P108: 0 | Q108: 1 | R108: 0 | T108: Overhead | U108: Demand growth | V108: 1 | Y108: 2020 | AE108: Deferred due to lower growth.
H109: 0 | I109: 0 | J109: 0 | K109: 0 | L109: 0 | M109: 0 | N109: 0 | O109: 0 | P109: 0 | Q109: 0 | R109: 0 | Y109: 0
C110: Altona-Brooklyn | D110: SUBTRANSMISSION | H110: 0 | I110: 0 | J110: 0 | K110: 0 | L110: 0 | M110: 0 | N110: 0 | O110: 0 | P110: 0 | Q110: 0 | R110: 0 | Y110: 0
C111: Altona-Brooklyn | D111: 162 | E111: Subtransmission | G111: LV - WBE third 66kV line | H111: 0 | I111: =IF( OR( SUM(J111:R111)=0, SUM(J111:R111)=1), 0, 1) -> 0 | J111: 0 | K111: 0 | L111: 0 | M111: 0 | N111: 0 | O111: 0 | P111: 0 | Q111: 0 | R111: 1 | Y111: 2021+
C112: Altona-Brooklyn | D112: 161 | E112: Subtransmission | G112: WBE 66kV Ring Bus for new line to LV | H112: 0 | I112: 0 | J112: 0 | K112: 0 | L112: 0 | M112: 0 | N112: 0 | O112: 0 | P112: 0 | Q112: 0 | R112: 1 | Y112: 2021+
C113: Altona-Brooklyn | D113: 162 | E113: Subtransmission | G113: BLTS-BMH Voltage Regulator or BMH-MLN Tie | H113: 0 | I113: 0 | J113: 0 | K113: 0 | L113: 0 | M113: 0 | N113: 0 | O113: 0 | P113: 0 | Q113: 0 | R113: 1 | Y113: 2021+
C114: Deer Park | D114: 161 | E114: Subtransmission | G114: Land for Tarneit Zone substation (TRT) | H114: 1191.154407 | I114: 0 | J114: 0 | K114: 0.04347826087 | L114: 0.9565217391 | M114: 0 | N114: 0 | O114: 0 | P114: 0 | Q114: 0 | R114: 0 | U114: Demand growth | V114: 0 | W114: 0 | X114: 0 | Y114: 2015
C115: Deer Park | D115: 161 | E115: Subtransmission | G115: Rebuild/Reroute BLTS-BMH for TRT 66kV lines | H115: 0 | I115: 0 | J115: 0 | K115: 0 | L115: 0 | M115: 0 | N115: 0 | O115: 0 | P115: 0 | Q115: 0 | R115: 1 | Y115: 2021+
C116: Deer Park | D116: 161 | E116: Subtransmission | G116: Establish New DPTS-TRT 66kV line | H116: 0 | I116: 0 | J116: 0 | K116: 0 | L116: 0 | M116: 0 | N116: 0 | O116: 0 | P116: 0 | Q116: 0 | R116: 1 | Y116: 2021+
C117: Deer Park | D117: 161 | E117: Subtransmission | G117: Establish New TNA-TRT 66kV line | H117: 0 | I117: 0 | J117: 0 | K117: 0 | L117: 0 | M117: 0 | N117: 0 | O117: 0 | P117: 0 | Q117: 0 | R117: 1 | Y117: 2021+
C118: Altona-Brooklyn | D118: 161 | E118: Subtransmission | G118: Land for Point Cook zone substation (PCK) | H118: 1139.365085 | I118: 0 | J118: 0 | K118: 0 | L118: 0 | M118: 0 | N118: 0 | O118: 1 | P118: 0 | Q118: 0 | R118: 0 | U118: Demand growth | V118: 0 | W118: 0 | X118: 0 | Y118: 2018
C119: Altona-Brooklyn | D119: 161 | E119: Subtransmission | G119: New PCK Zone substation with 2 x 33/25MVA Tx+12MVAr Cap bank | H119: 0 | I119: 0 | J119: 0 | K119: 0 | L119: 0 | M119: 0 | N119: 0 | O119: 0 | P119: 0 | Q119: 0 | R119: 1 | Y119: 2021+
C120: Altona-Brooklyn | D120: 162 | E120: Subtransmission | G120: New 66kV line LV-PCK | H120: 0 | I120: 0 | J120: 0 | K120: 0 | L120: 0 | M120: 0 | N120: 0 | O120: 0 | P120: 0 | Q120: 0 | R120: 1 | Y120: 2021+
C121: Altona-Brooklyn | D121: 162 | E121: Subtransmission | G121: Second LV-PCK 66kV line | H121: 0 | I121: 0 | J121: 0 | K121: 0 | L121: 0 | M121: 0 | N121: 0 | O121: 0 | P121: 0 | Q121: 0 | R121: 1 | Y121: 2021+
C122: Altona-Brooklyn | D122: 161 | E122: Subtransmission | G122: Land For Cocoroc Zone Substation (CRC ZSS) | H122: 0 | I122: 0 | J122: 0 | K122: 0 | L122: 0 | M122: 0 | N122: 0 | O122: 0 | P122: 0 | Q122: 0 | R122: 1 | Y122: 2021+
C123: Altona-Brooklyn | D123: 161 | E123: Subtransmission | G123: Establish CRC | H123: 0 | I123: 0 | J123: 0 | K123: 0 | L123: 0 | M123: 0 | N123: 0 | O123: 0 | P123: 0 | Q123: 0 | R123: 1 | Y123: 2021+
C124: Altona-Brooklyn | D124: 161 | E124: Subtransmission | G124: 2nd transformer st CRC and second bus. | H124: 0 | I124: 0 | J124: 0 | K124: 0 | L124: 0 | M124: 0 | N124: 0 | O124: 0 | P124: 0 | Q124: 0 | R124: 1 | Y124: 2021+
C125: Altona-Brooklyn | D125: 161 | E125: Subtransmission | G125: 3rd transformer st CRC and 3rd bus. | H125: 0 | I125: 0 | J125: 0 | K125: 0 | L125: 0 | M125: 0 | N125: 0 | O125: 0 | P125: 0 | Q125: 0 | R125: 1 | Y125: 2021+
C126: Altona-Brooklyn | D126: 162 | E126: Subtransmission | G126: Establish ATS West-CRC and WBE-CRC 66kV loops | H126: 0 | I126: 0 | J126: 0 | K126: 0 | L126: 0 | M126: 0 | N126: 0 | O126: 0 | P126: 0 | Q126: 0 | R126: 1 | Y126: 2021+
C127: Deer Park | D127: 161 | E127: Subtransmission | F127: 5080697 | G127: Establish TNA with two Tx and 22kV Busses and 12MVAr Cap Bank | H127: 13871 | I127: 0 | J127: 0 | K127: 0.02227669238 | L127: 0.05637661308 | M127: 0.3704130921 | N127: 0.5414173455 | O127: 0.009516256939 | P127: 0 | Q127: 0 | R127: 0 | U127: Demand growth | V127: 84 | W127: 91.4 | X127: 47.6 | Y127: 2018
C128: Deer Park | D128: 162 | E128: Subtransmission | F128: 5080699, 5078700 | G128: Establish DPTS-TNA 66kV loop | H128: 4036 | I128: 0 | J128: 0 | K128: 0.02056491576 | L128: 0.2918731417 | M128: 0.2668483647 | N128: 0.3939544103 | O128: 0.02675916749 | P128: 0 | Q128: 0 | R128: 0 | T128: Overhead | U128: Transmission connection point | V128: 220 | Y128: 2018 | Z128: 8.8
C129: Deer Park | D129: 161 | E129: Subtransmission | G129: 3rd transformer st TNA and 3rd bus. | H129: 4848.86159 | I129: 0 | J129: 0 | K129: 0 | L129: 0 | M129: 0 | N129: 0 | O129: 0.1 | P129: 0.9 | Q129: 0 | R129: 0 | U129: Demand growth | V129: 42 | W129: 45.7 | X129: 47.6 | Y129: 2019
C130: Altona-Brooklyn | D130: 161 | E130: Subtransmission | G130: WBE 2nd cap bank | H130: 0 | I130: 0 | J130: 0 | K130: 0 | L130: 0 | M130: 0 | N130: 0 | O130: 0 | P130: 0 | Q130: 0 | R130: 1 | Y130: 2021+ | AE130: Deferred due to lower growth.
C131: Altona-Brooklyn | D131: 161 | E131: Subtransmission | G131: Land for Wyndham Vale Zone substation (WVL) | H131: 0 | I131: 0 | J131: 0 | K131: 0 | L131: 0 | M131: 0 | N131: 0 | O131: 0 | P131: 0 | Q131: 0 | R131: 1 | Y131: 2021+
C132: Altona-Brooklyn | D132: 162 | E132: Subtransmission | G132: Series Cap or Reg on WVL-WBE Line | H132: 0 | I132: 0 | J132: 0 | K132: 0 | L132: 0 | M132: 0 | N132: 0 | O132: 0 | P132: 0 | Q132: 0 | R132: 1 | Y132: 2021+
C133: Altona-Brooklyn | D133: 161 | E133: Subtransmission | G133: New WVL Zone substation with 2 x 33/25MVA Tx+12MVAr Cap bank | H133: 0 | I133: 0 | J133: 0 | K133: 0 | L133: 0 | M133: 0 | N133: 0 | O133: 0 | P133: 0 | Q133: 0 | R133: 1 | Y133: 2021+
C134: Altona-Brooklyn | D134: 162 | E134: Subtransmission | G134: 66KV lines to WVL (Form ATS-WVL-WBE-HCP-ATS) | H134: 0 | I134: 0 | J134: 0 | K134: 0 | L134: 0 | M134: 0 | N134: 0 | O134: 0 | P134: 0 | Q134: 0 | R134: 1 | Y134: 2021+
C135: Altona-Brooklyn | D135: 161 | E135: Subtransmission | G135: Install 1st 66/22kV transf at AC + 1 x 22kV Bus | H135: 0 | I135: 0 | J135: 0 | K135: 0 | L135: 0 | M135: 0 | N135: 0 | O135: 0 | P135: 0 | Q135: 0 | R135: 1 | Y135: 2021+
C136: Altona-Brooklyn | D136: 161 | E136: Subtransmission | G136: Install 2nd 66/22kV transf at AC + 1 x 22kV Bus | H136: 0 | I136: 0 | J136: 0 | K136: 0 | L136: 0 | M136: 0 | N136: 0 | O136: 0 | P136: 0 | Q136: 0 | R136: 1 | Y136: 2021+
C137: Altona-Brooklyn | D137: 161 | E137: Subtransmission | G137: Move 1 x 66/11TR from AC to AL | H137: 0 | I137: 0 | J137: 0 | K137: 0 | L137: 0 | M137: 0 | N137: 0 | O137: 0 | P137: 0 | Q137: 0 | R137: 1 | Y137: 2021+
C138: Altona-Brooklyn | D138: 162 | E138: Subtransmission | G138: BLTS-BMH 66kV line augmentation Stage 1 | H138: 0 | I138: 0 | J138: 0 | K138: 0 | L138: 0 | M138: 0 | N138: 0 | O138: 0 | P138: 0 | Q138: 0 | R138: 1 | Y138: =IF(R138>0,$R$7,IF(Q138>0,$Q$7,IF(P138>0,$P$7,IF(O138>0,$O$7,IF(N138>0,$N$7,IF(M138>0,$M$7,IF(L138>0,$L$7,IF(K138>0,$K$7,IF(J138>0,$J$7,0))))))))) -> 2021+
C139: Altona-Brooklyn | D139: 162 | E139: Subtransmission | G139: BLTS-BMH 66kV line augmentation Stage 2 | H139: 0 | I139: 0 | J139: 0 | K139: 0 | L139: 0 | M139: 0 | N139: 0 | O139: 0 | P139: 0 | Q139: 0 | R139: 1 | Y139: 2021+
C140: Altona-Brooklyn | D140: 161 | E140: Subtransmission | G140: BMH ZSS new 66/22kV 25/33 MVA Tr-3 | H140: 0 | I140: 0 | J140: 0 | K140: 0 | L140: 0 | M140: 0 | N140: 0 | O140: 0 | P140: 0 | Q140: 0 | R140: 1 | Y140: 2021+
C141: Deer Park | D141: 161 | E141: Subtransmission | G141: New TRT Zone substation with 2 x 33/25MVA Tx+12MVAr Cap bank | H141: 0 | I141: 0 | J141: 0 | K141: 0 | L141: 0 | M141: 0 | N141: 0 | O141: 0 | P141: 0 | Q141: 0 | R141: 1 | Y141: 2021+
C142: Deer Park | D142: 161 | E142: Subtransmission | G142: TRT 3rd Tx & Bus | H142: 0 | I142: 0 | J142: 0 | K142: 0 | L142: 0 | M142: 0 | N142: 0 | O142: 0 | P142: 0 | Q142: 0 | R142: 1 | Y142: 2021+
C143: Deer Park | D143: 161 | E143: Subtransmission | G143: BMH transfer to ATS/West DPTS | H143: 0 | I143: 0 | J143: 0 | K143: 0 | L143: 0 | M143: 0 | N143: 0 | O143: 0 | P143: 0 | Q143: 0 | R143: 1 | Y143: 2021+
C144: Altona-Brooklyn | D144: 162 | E144: Subtransmission | G144: Uprate ATS-WBE Exit and HCP-WBE at WBE to 1050A minimum summer | H144: 0 | I144: 0 | J144: 0 | K144: 0 | L144: 0 | M144: 0 | N144: 0 | O144: 0 | P144: 0 | Q144: 0 | R144: 1 | Y144: 2021+
C145: Altona-Brooklyn | D145: 162 | E145: Subtransmission | G145: Uprate ATS-HCP Exit and HCP-WBE at HCP to 1050A minimum summer | H145: 0 | I145: 0 | J145: 0 | K145: 0 | L145: 0 | M145: 0 | N145: 0 | O145: 0 | P145: 0 | Q145: 0 | R145: 1 | Y145: 2021+
C146: Altona-Brooklyn | H146: 0 | I146: 0 | J146: 0 | K146: 0 | L146: 0 | M146: 0 | N146: 0 | O146: 0 | P146: 0 | Q146: 0 | R146: 0 | Y146: 0
C147: Altona-Brooklyn | D147: DISTRIBUTION MAJOR | G147: Altona Chem, AC | H147: 0 | I147: 0 | J147: 0 | K147: 0 | L147: 0 | M147: 0 | N147: 0 | O147: 0 | P147: 0 | Q147: 0 | R147: 0 | Y147: 0
C148: Altona-Brooklyn | H148: 0 | I148: 0 | J148: 0 | K148: 0 | L148: 0 | M148: 0 | N148: 0 | O148: 0 | P148: 0 | Q148: 0 | R148: 0 | Y148: 0
C149: Altona-Brooklyn | G149: Altona, Al | H149: 0 | I149: 0 | J149: 0 | K149: 0 | L149: 0 | M149: 0 | N149: 0 | O149: 0 | P149: 0 | Q149: 0 | R149: 0 | Y149: 0
C150: Altona-Brooklyn | D150: 162 | E150: Urban | G150: AL 12 Extend feeder to Civic Pde and other works. | H150: 621.4718643 | I150: 0 | J150: 0 | K150: 0 | L150: 0 | M150: 0 | N150: 0 | O150: 1 | P150: 0 | Q150: 0 | R150: 0 | T150: Both | U150: Demand growth | V150: 6 | Y150: 2018 | Z150: 1.65 | AA150: 1.3 | AB150: 0 | AC150: 0 | AD150: 3-Phase
C151: Altona-Brooklyn | D151: 162 | E151: Urban | G151: AL 1 New feeder | H151: 0 | I151: 0 | J151: 0 | K151: 0 | L151: 0 | M151: 0 | N151: 0 | O151: 0 | P151: 0 | Q151: 0 | R151: 1 | Y151: 2021+
C152: Altona-Brooklyn | H152: 0 | I152: 0 | J152: 0 | K152: 0 | L152: 0 | M152: 0 | N152: 0 | O152: 0 | P152: 0 | Q152: 0 | R152: 0 | Y152: 0
C153: Altona-Brooklyn | F153: Laverton | G153: Laverton, LV | H153: 0 | I153: 0 | J153: 0 | K153: 0 | L153: 0 | M153: 0 | N153: 0 | O153: 0 | P153: 0 | Q153: 0 | R153: 0 | Y153: 0
C154: Altona-Brooklyn | D154: 162 | E154: Urban | G154: LV7 - Augment to 19/4.75AAC conductors in old Geelong Rd (2.2km) plus New ACR. | H154: 0 | I154: 0 | J154: 0 | K154: 0 | L154: 0 | M154: 0 | N154: 0 | O154: 0 | P154: 0 | Q154: 0 | R154: 1 | Y154: 2021+
C155: Altona-Brooklyn | D155: 162 | E155: Urban | G155: Uprate LV1 (80/45oC) 2.4km | H155: 0 | I155: 0 | J155: 0 | K155: 0 | L155: 0 | M155: 0 | N155: 0 | O155: 0 | P155: 0 | Q155: 0 | R155: 1 | Y155: 2021+
C156: Altona-Brooklyn | D156: 162 | E156: Urban | G156: HV U/G tie LV3 to LV2 | H156: 0 | I156: 0 | J156: 0 | K156: 0 | L156: 0 | M156: 0 | N156: 0 | O156: 0 | P156: 0 | Q156: 0 | R156: 1 | Y156: 2021+
C157: Altona-Brooklyn | D157: 162 | E157: Rural Short | G157: HV tie LV3 to LV1 Morris Rd (replace 95mm2 HV cable 500m +T joint) | H157: 0 | I157: 0 | J157: 0 | K157: 0 | L157: 0 | M157: 0 | N157: 0 | O157: 0 | P157: 0 | Q157: 0 | R157: 1 | Y157: 2021+ | AE157: Deferred due to lower growth.
C158: Altona-Brooklyn | D158: 162 | E158: Rural Short | F158: 5087117 | G158: LV21 into Point Cook New Feeder Design& Construction | H158: 1905.84705 | I158: 0 | J158: 0 | K158: 0 | L158: 0 | M158: 0.25 | N158: 0.75 | O158: 0 | P158: 0 | Q158: 0 | R158: 0 | T158: Both | U158: Demand growth | V158: 12 | Y158: 2017 | Z158: 0.63 | AA158: 0 | AB158: 2.7 | AC158: 0 | AD158: 3-Phase
C159: Altona-Brooklyn | D159: 162 | E159: Urban | G159: LV5 HV switch - Forsyth Road | H159: 39.48360002 | I159: =IF( OR( SUM(J159:R159)=0, SUM(J159:R159)=1), 0, 1) -> 0 | J159: 0 | K159: 0 | L159: 1 | M159: 0 | N159: 0 | O159: 0 | P159: 0 | Q159: 0 | R159: 0 | T159: Overhead | U159: Demand growth | V159: 0 | Y159: 2015
C160: Altona-Brooklyn | D160: 162 | E160: Urban | G160: LV5 CHP HV switch | H160: 39.35988474 | I160: 0 | J160: 0 | K160: 0 | L160: 1 | M160: 0 | N160: 0 | O160: 0 | P160: 0 | Q160: 0 | R160: 0 | T160: Overhead | U160: Demand growth | V160: 0 | Y160: 2015
C161: Altona-Brooklyn | D161: 162 | E161: Urban | G161: LV3 to LV6 HV tie | H161: 59.03982711 | I161: 0 | J161: 0 | K161: 0 | L161: 1 | M161: 0 | N161: 0 | O161: 0 | P161: 0 | Q161: 0 | R161: 0 | T161: Overhead | U161: Demand growth | V161: 6 | Y161: 2015 | Z161: 0 | AA161: 0 | AB161: 0 | AC161: 0 | AD161: 3-Phase
C162: Altona-Brooklyn | H162: 0 | I162: 0 | J162: 0 | K162: 0 | L162: 0 | M162: 0 | N162: 0 | O162: 0 | P162: 0 | Q162: 0 | R162: 0 | Y162: 0
C163: Altona-Brooklyn | G163: Laverton North, LVN | H163: 0 | I163: 0 | J163: 0 | K163: 0 | L163: 0 | M163: 0 | N163: 0 | O163: 0 | P163: 0 | Q163: 0 | R163: 0 | Y163: 0
C164: Altona-Brooklyn | D164: 162 | E164: Urban | G164: Augment LVN33 19/4.75 | H164: 0 | I164: 0 | J164: 0 | K164: 0 | L164: 0 | M164: 0 | N164: 0 | O164: 0 | P164: 0 | Q164: 0 | R164: 1 | Y164: 2021+
C165: Altona-Brooklyn | D165: 162 | E165: Urban | G165: LVN22 Uprate Princes Fwy to Altona Meadows | H165: 155.3679661 | I165: =IF( OR( SUM(J165:R165)=0, SUM(J165:R165)=1), 0, 1) -> 0 | J165: 0 | K165: 0 | L165: 1 | M165: 0 | N165: 0 | O165: 0 | P165: 0 | Q165: 0 | R165: 0 | T165: Overhead | U165: Demand growth | V165: 5.5 | Y165: 2015
C166: Altona-Brooklyn | D166: 162 | E166: Urban | G166: LVN22 Augment 1km Cherry La to Princes Fwy | H166: 155.3679661 | I166: 0 | J166: 0 | K166: 0 | L166: 0 | M166: 0 | N166: 0 | O166: 0 | P166: 0 | Q166: 1 | R166: 0 | T166: Overhead | U166: Demand growth | V166: 5.5 | Y166: 2020 | Z166: 0 | AA166: 1 | AB166: 0 | AC166: 0 | AD166: 3-Phase
C167: Altona-Brooklyn | D167: 162 | E167: Urban | G167: LVN21 - LVN24 Feeder load rearrangement | H167: 310.7359321 | I167: 0 | J167: 0 | K167: 0 | L167: 0 | M167: 0 | N167: 0 | O167: 1 | P167: 0 | Q167: 0 | R167: 0 | T167: Both | U167: Demand growth | V167: 5 | Y167: 2018
C168: Altona-Brooklyn | D168: 162 | E168: Urban | G168: LVN23-LVN24 tie in along Foundation Rd | H168: 427.6343474 | I168: 0 | J168: 0 | K168: 0 | L168: 0 | M168: 0 | N168: 0 | O168: 0 | P168: 0 | Q168: 1 | R168: 0 | T168: Both | U168: Demand growth | V168: 4 | Y168: 2020 | Z168: 1 | AA168: 0 | AB168: 0.3 | AC168: 0 | AD168: 3-Phase
C169: Altona-Brooklyn | H169: 0 | I169: 0 | J169: 0 | K169: 0 | L169: 0 | M169: 0 | N169: 0 | O169: 0 | P169: 0 | Q169: 0 | R169: 0 | Y169: 0
C170: Altona-Brooklyn | G170: Werribee, WBE | H170: 0 | I170: 0 | J170: 0 | K170: 0 | L170: 0 | M170: 0 | N170: 0 | O170: 0 | P170: 0 | Q170: 0 | R170: 0 | Y170: 0
C171: Altona-Brooklyn | D171: 162 | E171: Urban | G171: WBE12 HV T-Joints Removal | H171: 0 | I171: 0 | J171: 0 | K171: 0 | L171: 0 | M171: 0 | N171: 0 | O171: 0 | P171: 0 | Q171: 0 | R171: 1 | Y171: 2021+ | AE171: Deferred due to lower growth.
C172: Altona-Brooklyn | D172: 162 | E172: Rural Short | G172: WBE34 Augment (Robbs Rd& Cunningham Rd) | H172: 0 | I172: 0 | J172: 0 | K172: 0 | L172: 0 | M172: 0 | N172: 0 | O172: 0 | P172: 0 | Q172: 0 | R172: 1 | Y172: 2021+
C173: Altona-Brooklyn | H173: 0 | I173: 0 | J173: 0 | K173: 0 | L173: 0 | M173: 0 | N173: 0 | O173: 0 | P173: 0 | Q173: 0 | R173: 0 | Y173: 0
C174: Altona-Brooklyn | G174: Brooklyn, BLT | H174: 0 | I174: 0 | J174: 0 | K174: 0 | L174: 0 | M174: 0 | N174: 0 | O174: 0 | P174: 0 | Q174: 0 | R174: 0 | Y174: 0
C175: Altona-Brooklyn | D175: 162 | E175: Rural Short | G175: BLT20 exit cable (to 300mm2) and rerate 19/3.75 to 65oC and replace 250mm to 300mm2 | H175: 0 | I175: 0 | J175: 0 | K175: 0 | L175: 0 | M175: 0 | N175: 0 | O175: 0 | P175: 0 | Q175: 0 | R175: 1 | Y175: 2021+ | AE175: Deferred due to lower growth.
C176: Altona-Brooklyn | D176: 162 | E176: Rural Short | G176: BLT 17, 21, 30 and 31 feeder rearrangement Phase 1 | H176: 155.3679661 | I176: 0 | J176: 0 | K176: 0 | L176: 1 | M176: 0 | N176: 0 | O176: 0 | P176: 0 | Q176: 0 | R176: 0 | T176: Overhead | U176: Demand growth | V176: 3 | Y176: 2015 | Z176: 0 | AA176: 0 | AB176: 0 | AC176: 0 | AD176: 3-Phase
C177: Altona-Brooklyn | D177: 162 | E177: Rural Short | G177: Uprate/Augment BLT22 feeder to 65oC | H177: 0 | I177: 0 | J177: 0 | K177: 0 | L177: 0 | M177: 0 | N177: 0 | O177: 0 | P177: 0 | Q177: 0 | R177: 1 | Y177: 2021+
C178: Altona-Brooklyn | D178: 162 | E178: Urban | G178: BLT15 Re-commission | H178: 1584.753254 | I178: 0 | J178: 0 | K178: 0 | L178: 0 | M178: 0 | N178: 0 | O178: 0 | P178: 0 | Q178: 1 | R178: 0 | T178: Both | U178: Demand growth | V178: 12 | Y178: 2020 | Z178: 2 | AA178: 0.7 | AB178: 1.2 | AC178: 0 | AD178: 3-Phase
C179: Altona-Brooklyn | D179: 162 | E179: Urban | G179: BLT31 East Leg Tie to offload other feeders | H179: 310.7359321 | I179: 0 | J179: 0 | K179: 0 | L179: 0 | M179: 0 | N179: 0 | O179: 0 | P179: 1 | Q179: 0 | R179: 0 | T179: Both | U179: Demand growth | V179: 5 | Y179: 2019 | Z179: 0 | AA179: 0 | AB179: 0 | AC179: 0.3 | AD179: 3-Phase
C180: Altona-Brooklyn | H180: 0 | I180: 0 | J180: 0 | K180: 0 | L180: 0 | M180: 0 | N180: 0 | O180: 0 | P180: 0 | Q180: 0 | R180: 0 | Y180: 0
C181: Altona-Brooklyn | H181: 0 | I181: 0 | J181: 0 | K181: 0 | L181: 0 | M181: 0 | N181: 0 | O181: 0 | P181: 0 | Q181: 0 | R181: 0 | Y181: 0
C182: Deer Park | D182: 162 | E182: Urban | F182: 5080700 | G182: TNA Build 5 x 22kV feeders | H182: 1646.162401 | I182: 0 | J182: 0 | K182: 0.0110701107 | L182: 0.1285362854 | M182: 0.106396064 | N182: 0.7177121771 | O182: 0.03628536285 | P182: 0 | Q182: 0 | R182: 0 | T182: Both | U182: Demand growth | V182: 60 | Y182: 2018 | Z182: 7.23 | AA182: 0 | AB182: 2.51 | AC182: 0 | AD182: 3-Phase
C183: Deer Park | D183: 162 | E183: Urban | G183: TNA next 3 feeders | H183: 3332.124979 | I183: 0 | J183: 0 | K183: 0 | L183: 0 | M183: 0 | N183: 0 | O183: 0 | P183: 1 | Q183: 0 | R183: 0 | T183: Both | U183: Demand growth | V183: 36 | Y183: 2019 | Z183: 4.6 | AA183: 12 | AB183: 1.75 | AC183: 0 | AD183: 3-Phase
C184: Deer Park | D184: 162 | E184: Urban | G184: TNA next 2 feeder | H184: 3832.40983 | I184: 0 | J184: 0 | K184: 0 | L184: 0 | M184: 0 | N184: 0 | O184: 0 | P184: 0 | Q184: 0 | R184: 1 | T184: Both | U184: Demand growth | V184: 24 | Y184: 2021+ | Z184: 0 | AA184: 13.7 | AB184: 1.5 | AC184: 0 | AD184: 3-Phase | AE184: Deferred due to lower growth.
C185: Deer Park | D185: 162 | E185: Urban | G185: TNA24 to TNA23 HV tie | H185: 207.1572881 | I185: 0 | J185: 0 | K185: 0 | L185: 0 | M185: 0 | N185: 1 | O185: 0 | P185: 0 | Q185: 0 | R185: 0 | T185: Both | U185: Demand growth | V185: 14.6 | Y185: 2017 | Z185: 0 | AA185: 0 | AB185: 0.12 | AC185: 0 | AD185: 3-Phase
C186: Altona-Brooklyn | H186: 0 | I186: 0 | J186: 0 | K186: 0 | L186: 0 | M186: 0 | N186: 0 | O186: 0 | P186: 0 | Q186: 0 | R186: 0 | Y186: 0
C187: Deer Park | D187: 162 | E187: Urban | G187: TRT Feeders x 6 | H187: 0 | I187: 0 | J187: 0 | K187: 0 | L187: 0 | M187: 0 | N187: 0 | O187: 0 | P187: 0 | Q187: 0 | R187: 1 | Y187: 2021+
C188: Deer Park | D188: 162 | E188: Urban | G188: TRT next 2 feeders | H188: 0 | I188: 0 | J188: 0 | K188: 0 | L188: 0 | M188: 0 | N188: 0 | O188: 0 | P188: 0 | Q188: 0 | R188: 1 | Y188: 2021+
C189: Deer Park | D189: 162 | E189: Urban | G189: TRT next 2 feeders | H189: 0 | I189: 0 | J189: 0 | K189: 0 | L189: 0 | M189: 0 | N189: 0 | O189: 0 | P189: 0 | Q189: 0 | R189: 1 | Y189: 2021+
C190: Deer Park | D190: 162 | E190: Urban | G190: TRT Build 2 feeders | H190: 0 | I190: 0 | J190: 0 | K190: 0 | L190: 0 | M190: 0 | N190: 0 | O190: 0 | P190: 0 | Q190: 0 | R190: 1 | Y190: 2021+
C191: Altona-Brooklyn | H191: 0 | I191: 0 | J191: 0 | K191: 0 | L191: 0 | M191: 0 | N191: 0 | O191: 0 | P191: 0 | Q191: 0 | R191: 0 | Y191: 0
C192: Altona-Brooklyn | D192: 162 | E192: Urban | G192: CRC Feeders x 6 | H192: 0 | I192: 0 | J192: 0 | K192: 0 | L192: 0 | M192: 0 | N192: 0 | O192: 0 | P192: 0 | Q192: 0 | R192: 1 | Y192: 2021+
C193: Altona-Brooklyn | D193: 162 | E193: Urban | G193: CRC next 2 feeders | H193: 0 | I193: 0 | J193: 0 | K193: 0 | L193: 0 | M193: 0 | N193: 0 | O193: 0 | P193: 0 | Q193: 0 | R193: 1 | Y193: 2021+
C194: Altona-Brooklyn | D194: 162 | E194: Urban | G194: CRC next 2 feeders | H194: 0 | I194: 0 | J194: 0 | K194: 0 | L194: 0 | M194: 0 | N194: 0 | O194: 0 | P194: 0 | Q194: 0 | R194: 1 | Y194: 2021+
C195: Altona-Brooklyn | D195: 162 | E195: Urban | G195: CRC Build 2 feeders | H195: 0 | I195: 0 | J195: 0 | K195: 0 | L195: 0 | M195: 0 | N195: 0 | O195: 0 | P195: 0 | Q195: 0 | R195: 1 | Y195: 2021+
C196: Altona-Brooklyn | H196: 0 | I196: 0 | J196: 0 | K196: 0 | L196: 0 | M196: 0 | N196: 0 | O196: 0 | P196: 0 | Q196: 0 | R196: 0 | Y196: 0
C197: Altona-Brooklyn | D197: 162 | E197: Urban | G197: AC Build 4 x 22kV feeders | H197: 0 | I197: 0 | J197: 0 | K197: 0 | L197: 0 | M197: 0 | N197: 0 | O197: 0 | P197: 0 | Q197: 0 | R197: 1 | Y197: 2021+
C198: Altona-Brooklyn | D198: 162 | E198: Urban | G198: AC Build 2 x 22kV feeders | H198: 0 | I198: 0 | J198: 0 | K198: 0 | L198: 0 | M198: 0 | N198: 0 | O198: 0 | P198: 0 | Q198: 0 | R198: 1 | Y198: 2021+
C199: Altona-Brooklyn | D199: 162 | E199: Urban | G199: AC Build 2 x 22kV feeders | H199: 0 | I199: 0 | J199: 0 | K199: 0 | L199: 0 | M199: 0 | N199: 0 | O199: 0 | P199: 0 | Q199: 0 | R199: 1 | Y199: 2021+
C200: Altona-Brooklyn | H200: 0 | I200: 0 | J200: 0 | K200: 0 | L200: 0 | M200: 0 | N200: 0 | O200: 0 | P200: 0 | Q200: 0 | R200: 0 | Y200: 0
C201: Altona-Brooklyn | D201: 162 | E201: Rural Short | G201: PCK establish 4 x new feeders | H201: 0 | I201: 0 | J201: 0 | K201: 0 | L201: 0 | M201: 0 | N201: 0 | O201: 0 | P201: 0 | Q201: 0 | R201: 1 | Y201: 2021+
C202: Altona-Brooklyn | D202: 162 | E202: Rural Short | G202: WVL establish 4 x new feeders | H202: 0 | I202: 0 | J202: 0 | K202: 0 | L202: 0 | M202: 0 | N202: 0 | O202: 0 | P202: 0 | Q202: 0 | R202: 1 | Y202: =IF(R202>0,$R$7,IF(Q202>0,$Q$7,IF(P202>0,$P$7,IF(O202>0,$O$7,IF(N202>0,$N$7,IF(M202>0,$M$7,IF(L202>0,$L$7,IF(K202>0,$K$7,IF(J202>0,$J$7,0))))))))) -> 2021+
... 687 more rows

Sheet Project List ($)
A1: PAL Augmentation Expenditure Model | H1: Model Master Check: | I1: =Model_Check -> 0
A2: =MID(CELL("Filename",A1),FIND("]",CELL("Filename",A1))+1,255) -> Project List ($) | H2: Sheet Check:
C4: =A2 -> Project List ($)
J6: ='Project List (%)'!J6 -> Expenditure Summary
C7: ='Project List (%)'!C7 -> Area | D7: ='Project List (%)'!D7 -> F Code | E7: ='Project List (%)'!E7 -> Feeder Category | F7: ='Project List (%)'!F7 -> Project ID: | G7: ='Project List (%)'!G7 -> Project Description: | H7: ='Project List (%)'!H7 -> Total Project Cost | J7: ='Project List (%)'!J7 -> Pre-2014 | K7: ='Project List (%)'!K7 -> 2014 | L7: ='Project List (%)'!L7 -> 2015 | M7: ='Project List (%)'!M7 -> 2016 | N7: ='Project List (%)'!N7 -> 2017 | O7: ='Project List (%)'!O7 -> 2018 | P7: ='Project List (%)'!P7 -> 2019 | Q7: ='Project List (%)'!Q7 -> 2020 | R7: ='Project List (%)'!R7 -> 2021+ | T7: ='Project List (%)'!T7 -> Project Type | U7: ='Project List (%)'!U7 -> Project Trigger | V7: ='Project List (%)'!V7 -> MVA added (name plate) | W7: ='Project List (%)'!W7 -> MVA added cyclic | X7: ='Project List (%)'!X7 -> MVA added N-1 | Y7: ='Project List (%)'!Y7 -> Final Year
C8: ='Project List (%)'!C8 -> Fisherman's Bend | D8: ='Project List (%)'!D8 -> 161 | E8: ='Project List (%)'!E8 -> Subtransmission | F8: ='Project List (%)'!F8 -> 0 | G8: ='Project List (%)'!G8 -> DLF Install new 25/33 (Yy0) Tx - #3 | H8: ='Project List (%)'!H8 -> 0 | J8: =$H8 * 'Project List (%)'!J8 -> 0 | K8: =$H8 * 'Project List (%)'!K8 -> 0 | L8: =$H8 * 'Project List (%)'!L8 -> 0 | M8: =$H8 * 'Project List (%)'!M8 -> 0 | N8: =$H8 * 'Project List (%)'!N8 -> 0 | O8: =$H8 * 'Project List (%)'!O8 -> 0 | P8: =$H8 * 'Project List (%)'!P8 -> 0 | Q8: =$H8 * 'Project List (%)'!Q8 -> 0 | R8: =$H8 * 'Project List (%)'!R8 -> 0 | S8: ='Project List (%)'!S8 -> 0 | T8: ='Project List (%)'!T8 -> 0 | U8: ='Project List (%)'!U8 -> 0 | V8: ='Project List (%)'!V8 -> 0 | W8: ='Project List (%)'!W8 -> 0 | X8: ='Project List (%)'!X8 -> 0 | Y8: ='Project List (%)'!Y8 -> 0
C9: ='Project List (%)'!C9 -> 0 | D9: ='Project List (%)'!D9 -> 0 | E9: ='Project List (%)'!E9 -> 0 | F9: ='Project List (%)'!F9 -> 0 | G9: ='Project List (%)'!G9 -> 0 | H9: ='Project List (%)'!H9 -> 0 | J9: =$H9 * 'Project List (%)'!J9 -> 0 | K9: =$H9 * 'Project List (%)'!K9 -> 0 | L9: =$H9 * 'Project List (%)'!L9 -> 0 | M9: =$H9 * 'Project List (%)'!M9 -> 0 | N9: =$H9 * 'Project List (%)'!N9 -> 0 | O9: =$H9 * 'Project List (%)'!O9 -> 0 | P9: =$H9 * 'Project List (%)'!P9 -> 0 | Q9: =$H9 * 'Project List (%)'!Q9 -> 0 | R9: =$H9 * 'Project List (%)'!R9 -> 0 | S9: ='Project List (%)'!S9 -> 0 | T9: ='Project List (%)'!T9 -> 0 | U9: ='Project List (%)'!U9 -> 0 | V9: ='Project List (%)'!V9 -> 0 | W9: ='Project List (%)'!W9 -> 0 | X9: ='Project List (%)'!X9 -> 0 | Y9: ='Project List (%)'!Y9 -> 0
C10: ='Project List (%)'!C10 -> 0 | D10: ='Project List (%)'!D10 -> SUBTRANSMISSION | E10: ='Project List (%)'!E10 -> 0 | F10: ='Project List (%)'!F10 -> 0 | G10: ='Project List (%)'!G10 -> 0 | H10: ='Project List (%)'!H10 -> 0 | J10: =$H10 * 'Project List (%)'!J10 -> 0 | K10: =$H10 * 'Project List (%)'!K10 -> 0 | L10: =$H10 * 'Project List (%)'!L10 -> 0 | M10: =$H10 * 'Project List (%)'!M10 -> 0 | N10: =$H10 * 'Project List (%)'!N10 -> 0 | O10: =$H10 * 'Project List (%)'!O10 -> 0 | P10: =$H10 * 'Project List (%)'!P10 -> 0 | Q10: =$H10 * 'Project List (%)'!Q10 -> 0 | R10: =$H10 * 'Project List (%)'!R10 -> 0 | S10: ='Project List (%)'!S10 -> 0 | T10: ='Project List (%)'!T10 -> 0 | U10: ='Project List (%)'!U10 -> 0 | V10: ='Project List (%)'!V10 -> 0 | W10: ='Project List (%)'!W10 -> 0 | X10: ='Project List (%)'!X10 -> 0 | Y10: ='Project List (%)'!Y10 -> 0
C11: ='Project List (%)'!C11 -> Deer Park | D11: ='Project List (%)'!D11 -> 161 | E11: ='Project List (%)'!E11 -> Subtransmission | F11: ='Project List (%)'!F11 -> 0 | G11: ='Project List (%)'!G11 -> Land for Rockbank East Zone Substation (RBE) | H11: ='Project List (%)'!H11 -> 776.8398304 | J11: =$H11 * 'Project List (%)'!J11 -> 0 | K11: =$H11 * 'Project List (%)'!K11 -> 0 | L11: =$H11 * 'Project List (%)'!L11 -> 0 | M11: =$H11 * 'Project List (%)'!M11 -> 51.78932202 | N11: =$H11 * 'Project List (%)'!N11 -> 725.0505083 | O11: =$H11 * 'Project List (%)'!O11 -> 0 | P11: =$H11 * 'Project List (%)'!P11 -> 0 | Q11: =$H11 * 'Project List (%)'!Q11 -> 0 | R11: =$H11 * 'Project List (%)'!R11 -> 0 | S11: ='Project List (%)'!S11 -> 0 | T11: ='Project List (%)'!T11 -> 0 | U11: ='Project List (%)'!U11 -> Demand growth | V11: ='Project List (%)'!V11 -> 0 | W11: ='Project List (%)'!W11 -> 0 | X11: ='Project List (%)'!X11 -> 0 | Y11: ='Project List (%)'!Y11 -> 2017
C12: ='Project List (%)'!C12 -> Deer Park | D12: ='Project List (%)'!D12 -> 161 | E12: ='Project List (%)'!E12 -> Subtransmission | F12: ='Project List (%)'!F12 -> 0 | G12: ='Project List (%)'!G12 -> Establish Zone Substation Rockbank East (RBE) 2 x Tx & busses & 1 x 12 MVAr Cap Bank | H12: ='Project List (%)'!H12 -> 0 | J12: =$H12 * 'Project List (%)'!J12 -> 0 | K12: =$H12 * 'Project List (%)'!K12 -> 0 | L12: =$H12 * 'Project List (%)'!L12 -> 0 | M12: =$H12 * 'Project List (%)'!M12 -> 0 | N12: =$H12 * 'Project List (%)'!N12 -> 0 | O12: =$H12 * 'Project List (%)'!O12 -> 0 | P12: =$H12 * 'Project List (%)'!P12 -> 0 | Q12: =$H12 * 'Project List (%)'!Q12 -> 0 | R12: =$H12 * 'Project List (%)'!R12 -> 0 | S12: ='Project List (%)'!S12 -> 0 | T12: ='Project List (%)'!T12 -> 0 | U12: ='Project List (%)'!U12 -> 0 | V12: ='Project List (%)'!V12 -> 0 | W12: ='Project List (%)'!W12 -> 0 | X12: ='Project List (%)'!X12 -> 0 | Y12: ='Project List (%)'!Y12 -> 2021+
C13: ='Project List (%)'!C13 -> Deer Park | D13: ='Project List (%)'!D13 -> 161 | E13: ='Project List (%)'!E13 -> Subtransmission | F13: ='Project List (%)'!F13 -> 0 | G13: ='Project List (%)'!G13 -> 3rd Transformer and 22kV bus at RBE | H13: ='Project List (%)'!H13 -> 0 | J13: =$H13 * 'Project List (%)'!J13 -> 0 | K13: =$H13 * 'Project List (%)'!K13 -> 0 | L13: =$H13 * 'Project List (%)'!L13 -> 0 | M13: =$H13 * 'Project List (%)'!M13 -> 0 | N13: =$H13 * 'Project List (%)'!N13 -> 0 | O13: =$H13 * 'Project List (%)'!O13 -> 0 | P13: =$H13 * 'Project List (%)'!P13 -> 0 | Q13: =$H13 * 'Project List (%)'!Q13 -> 0 | R13: =$H13 * 'Project List (%)'!R13 -> 0 | S13: ='Project List (%)'!S13 -> 0 | T13: ='Project List (%)'!T13 -> 0 | U13: ='Project List (%)'!U13 -> 0 | V13: ='Project List (%)'!V13 -> 0 | W13: ='Project List (%)'!W13 -> 0 | X13: ='Project List (%)'!X13 -> 0 | Y13: ='Project List (%)'!Y13 -> 2021+
C14: ='Project List (%)'!C14 -> Deer Park | D14: ='Project List (%)'!D14 -> 161 | E14: ='Project List (%)'!E14 -> Subtransmission | F14: ='Project List (%)'!F14 -> 0 | G14: ='Project List (%)'!G14 -> Establish Zone Substation Rockbank (RBK) | H14: ='Project List (%)'!H14 -> 0 | J14: =$H14 * 'Project List (%)'!J14 -> 0 | K14: =$H14 * 'Project List (%)'!K14 -> 0 | L14: =$H14 * 'Project List (%)'!L14 -> 0 | M14: =$H14 * 'Project List (%)'!M14 -> 0 | N14: =$H14 * 'Project List (%)'!N14 -> 0 | O14: =$H14 * 'Project List (%)'!O14 -> 0 | P14: =$H14 * 'Project List (%)'!P14 -> 0 | Q14: =$H14 * 'Project List (%)'!Q14 -> 0 | R14: =$H14 * 'Project List (%)'!R14 -> 0 | S14: ='Project List (%)'!S14 -> 0 | T14: ='Project List (%)'!T14 -> 0 | U14: ='Project List (%)'!U14 -> 0 | V14: ='Project List (%)'!V14 -> 0 | W14: ='Project List (%)'!W14 -> 0 | X14: ='Project List (%)'!X14 -> 0 | Y14: ='Project List (%)'!Y14 -> 2021+
C15: ='Project List (%)'!C15 -> Keilor | D15: ='Project List (%)'!D15 -> 161 | E15: ='Project List (%)'!E15 -> Subtransmission | F15: ='Project List (%)'!F15 -> 0 | G15: ='Project List (%)'!G15 -> Cap Bank at SA | H15: ='Project List (%)'!H15 -> 0 | J15: =$H15 * 'Project List (%)'!J15 -> 0 | K15: =$H15 * 'Project List (%)'!K15 -> 0 | L15: =$H15 * 'Project List (%)'!L15 -> 0 | M15: =$H15 * 'Project List (%)'!M15 -> 0 | N15: =$H15 * 'Project List (%)'!N15 -> 0 | O15: =$H15 * 'Project List (%)'!O15 -> 0 | P15: =$H15 * 'Project List (%)'!P15 -> 0 | Q15: =$H15 * 'Project List (%)'!Q15 -> 0 | R15: =$H15 * 'Project List (%)'!R15 -> 0 | S15: ='Project List (%)'!S15 -> 0 | T15: ='Project List (%)'!T15 -> 0 | U15: ='Project List (%)'!U15 -> 0 | V15: ='Project List (%)'!V15 -> 0 | W15: ='Project List (%)'!W15 -> 0 | X15: ='Project List (%)'!X15 -> 0 | Y15: ='Project List (%)'!Y15 -> 2021+
C16: ='Project List (%)'!C16 -> Keilor | D16: ='Project List (%)'!D16 -> 161 | E16: ='Project List (%)'!E16 -> Subtransmission | F16: ='Project List (%)'!F16 -> 0 | G16: ='Project List (%)'!G16 -> Transformer fans at SA | H16: ='Project List (%)'!H16 -> 0 | J16: =$H16 * 'Project List (%)'!J16 -> 0 | K16: =$H16 * 'Project List (%)'!K16 -> 0 | L16: =$H16 * 'Project List (%)'!L16 -> 0 | M16: =$H16 * 'Project List (%)'!M16 -> 0 | N16: =$H16 * 'Project List (%)'!N16 -> 0 | O16: =$H16 * 'Project List (%)'!O16 -> 0 | P16: =$H16 * 'Project List (%)'!P16 -> 0 | Q16: =$H16 * 'Project List (%)'!Q16 -> 0 | R16: =$H16 * 'Project List (%)'!R16 -> 0 | S16: ='Project List (%)'!S16 -> 0 | T16: ='Project List (%)'!T16 -> 0 | U16: ='Project List (%)'!U16 -> 0 | V16: ='Project List (%)'!V16 -> 0 | W16: ='Project List (%)'!W16 -> 0 | X16: ='Project List (%)'!X16 -> 0 | Y16: ='Project List (%)'!Y16 -> 2021+
C17: ='Project List (%)'!C17 -> Keilor | D17: ='Project List (%)'!D17 -> 161 | E17: ='Project List (%)'!E17 -> Subtransmission | F17: ='Project List (%)'!F17 -> 0 | G17: ='Project List (%)'!G17 -> SA 22kV transformer CB isolator | H17: ='Project List (%)'!H17 -> 207.1572881 | J17: =$H17 * 'Project List (%)'!J17 -> 0 | K17: =$H17 * 'Project List (%)'!K17 -> 0 | L17: =$H17 * 'Project List (%)'!L17 -> 0 | M17: =$H17 * 'Project List (%)'!M17 -> 0 | N17: =$H17 * 'Project List (%)'!N17 -> 0 | O17: =$H17 * 'Project List (%)'!O17 -> 0 | P17: =$H17 * 'Project List (%)'!P17 -> 0 | Q17: =$H17 * 'Project List (%)'!Q17 -> 207.1572881 | R17: =$H17 * 'Project List (%)'!R17 -> 0 | S17: ='Project List (%)'!S17 -> 0 | T17: ='Project List (%)'!T17 -> Overhead | U17: ='Project List (%)'!U17 -> Demand growth | V17: ='Project List (%)'!V17 -> 6 | W17: ='Project List (%)'!W17 -> 6 | X17: ='Project List (%)'!X17 -> 4 | Y17: ='Project List (%)'!Y17 -> 2020
C18: ='Project List (%)'!C18 -> Keilor | D18: ='Project List (%)'!D18 -> 162 | E18: ='Project List (%)'!E18 -> Subtransmission | F18: ='Project List (%)'!F18 -> 0 | G18: ='Project List (%)'!G18 -> Reconductor KTS - SA #1&#2 line to 0.4 equiv | H18: ='Project List (%)'!H18 -> 0 | J18: =$H18 * 'Project List (%)'!J18 -> 0 | K18: =$H18 * 'Project List (%)'!K18 -> 0 | L18: =$H18 * 'Project List (%)'!L18 -> 0 | M18: =$H18 * 'Project List (%)'!M18 -> 0 | N18: =$H18 * 'Project List (%)'!N18 -> 0 | O18: =$H18 * 'Project List (%)'!O18 -> 0 | P18: =$H18 * 'Project List (%)'!P18 -> 0 | Q18: =$H18 * 'Project List (%)'!Q18 -> 0 | R18: =$H18 * 'Project List (%)'!R18 -> 0 | S18: ='Project List (%)'!S18 -> 0 | T18: ='Project List (%)'!T18 -> 0 | U18: ='Project List (%)'!U18 -> 0 | V18: ='Project List (%)'!V18 -> 0 | W18: ='Project List (%)'!W18 -> 0 | X18: ='Project List (%)'!X18 -> 0 | Y18: ='Project List (%)'!Y18 -> 2021+
C19: ='Project List (%)'!C19 -> Deer Park | D19: ='Project List (%)'!D19 -> 161 | E19: ='Project List (%)'!E19 -> Subtransmission | F19: ='Project List (%)'!F19 -> 0 | G19: ='Project List (%)'!G19 -> Uprate MLN cap bank to 12MVAr | H19: ='Project List (%)'!H19 -> 0 | J19: =$H19 * 'Project List (%)'!J19 -> 0 | K19: =$H19 * 'Project List (%)'!K19 -> 0 | L19: =$H19 * 'Project List (%)'!L19 -> 0 | M19: =$H19 * 'Project List (%)'!M19 -> 0 | N19: =$H19 * 'Project List (%)'!N19 -> 0 | O19: =$H19 * 'Project List (%)'!O19 -> 0 | P19: =$H19 * 'Project List (%)'!P19 -> 0 | Q19: =$H19 * 'Project List (%)'!Q19 -> 0 | R19: =$H19 * 'Project List (%)'!R19 -> 0 | S19: ='Project List (%)'!S19 -> 0 | T19: ='Project List (%)'!T19 -> 0 | U19: ='Project List (%)'!U19 -> 0 | V19: ='Project List (%)'!V19 -> 0 | W19: ='Project List (%)'!W19 -> 0 | X19: ='Project List (%)'!X19 -> 0 | Y19: ='Project List (%)'!Y19 -> 2021+
C20: ='Project List (%)'!C20 -> Deer Park | D20: ='Project List (%)'!D20 -> 161 | E20: ='Project List (%)'!E20 -> Subtransmission | F20: ='Project List (%)'!F20 -> 5071602 | G20: ='Project List (%)'!G20 -> MLN - Install 3rd Transformer, 3rd 22kV Bus & 4th 66kV CB | H20: ='Project List (%)'!H20 -> 4891.923716 | J20: =$H20 * 'Project List (%)'!J20 -> 0 | K20: =$H20 * 'Project List (%)'!K20 -> 0 | L20: =$H20 * 'Project List (%)'!L20 -> 0 | M20: =$H20 * 'Project List (%)'!M20 -> 509.5753871 | N20: =$H20 * 'Project List (%)'!N20 -> 4382.348329 | O20: =$H20 * 'Project List (%)'!O20 -> 0 | P20: =$H20 * 'Project List (%)'!P20 -> 0 | Q20: =$H20 * 'Project List (%)'!Q20 -> 0 | R20: =$H20 * 'Project List (%)'!R20 -> 0 | S20: ='Project List (%)'!S20 -> 0 | T20: ='Project List (%)'!T20 -> Overhead | U20: ='Project List (%)'!U20 -> Demand growth | V20: ='Project List (%)'!V20 -> 42 | W20: ='Project List (%)'!W20 -> 46.2 | X20: ='Project List (%)'!X20 -> 41.7 | Y20: ='Project List (%)'!Y20 -> 2017
C21: ='Project List (%)'!C21 -> Keilor | D21: ='Project List (%)'!D21 -> 161 | E21: ='Project List (%)'!E21 -> Subtransmission | F21: ='Project List (%)'!F21 -> 0 | G21: ='Project List (%)'!G21 -> GSB - Install 3rd transformer | H21: ='Project List (%)'!H21 -> 0 | J21: =$H21 * 'Project List (%)'!J21 -> 0 | K21: =$H21 * 'Project List (%)'!K21 -> 0 | L21: =$H21 * 'Project List (%)'!L21 -> 0 | M21: =$H21 * 'Project List (%)'!M21 -> 0 | N21: =$H21 * 'Project List (%)'!N21 -> 0 | O21: =$H21 * 'Project List (%)'!O21 -> 0 | P21: =$H21 * 'Project List (%)'!P21 -> 0 | Q21: =$H21 * 'Project List (%)'!Q21 -> 0 | R21: =$H21 * 'Project List (%)'!R21 -> 0 | S21: ='Project List (%)'!S21 -> 0 | T21: ='Project List (%)'!T21 -> 0 | U21: ='Project List (%)'!U21 -> 0 | V21: ='Project List (%)'!V21 -> 0 | W21: ='Project List (%)'!W21 -> 0 | X21: ='Project List (%)'!X21 -> 0 | Y21: ='Project List (%)'!Y21 -> 2021+
C22: ='Project List (%)'!C22 -> Keilor | D22: ='Project List (%)'!D22 -> 162 | E22: ='Project List (%)'!E22 -> Subtransmission | F22: ='Project List (%)'!F22 -> 0 | G22: ='Project List (%)'!G22 -> GSB - 66kV line exit augmentation | H22: ='Project List (%)'!H22 -> 0 | J22: =$H22 * 'Project List (%)'!J22 -> 0 | K22: =$H22 * 'Project List (%)'!K22 -> 0 | L22: =$H22 * 'Project List (%)'!L22 -> 0 | M22: =$H22 * 'Project List (%)'!M22 -> 0 | N22: =$H22 * 'Project List (%)'!N22 -> 0 | O22: =$H22 * 'Project List (%)'!O22 -> 0 | P22: =$H22 * 'Project List (%)'!P22 -> 0 | Q22: =$H22 * 'Project List (%)'!Q22 -> 0 | R22: =$H22 * 'Project List (%)'!R22 -> 0 | S22: ='Project List (%)'!S22 -> 0 | T22: ='Project List (%)'!T22 -> 0 | U22: ='Project List (%)'!U22 -> 0 | V22: ='Project List (%)'!V22 -> 0 | W22: ='Project List (%)'!W22 -> 0 | X22: ='Project List (%)'!X22 -> 0 | Y22: ='Project List (%)'!Y22 -> 2021+
C23: ='Project List (%)'!C23 -> Keilor | D23: ='Project List (%)'!D23 -> 161 | E23: ='Project List (%)'!E23 -> Subtransmission | F23: ='Project List (%)'!F23 -> 0 | G23: ='Project List (%)'!G23 -> SU Plant Protection Scheme | H23: ='Project List (%)'!H23 -> 0 | J23: =$H23 * 'Project List (%)'!J23 -> 0 | K23: =$H23 * 'Project List (%)'!K23 -> 0 | L23: =$H23 * 'Project List (%)'!L23 -> 0 | M23: =$H23 * 'Project List (%)'!M23 -> 0 | N23: =$H23 * 'Project List (%)'!N23 -> 0 | O23: =$H23 * 'Project List (%)'!O23 -> 0 | P23: =$H23 * 'Project List (%)'!P23 -> 0 | Q23: =$H23 * 'Project List (%)'!Q23 -> 0 | R23: =$H23 * 'Project List (%)'!R23 -> 0 | S23: ='Project List (%)'!S23 -> 0 | T23: ='Project List (%)'!T23 -> 0 | U23: ='Project List (%)'!U23 -> 0 | V23: ='Project List (%)'!V23 -> 0 | W23: ='Project List (%)'!W23 -> 0 | X23: ='Project List (%)'!X23 -> 0 | Y23: ='Project List (%)'!Y23 -> 2021+
C24: ='Project List (%)'!C24 -> Keilor | D24: ='Project List (%)'!D24 -> 162 | E24: ='Project List (%)'!E24 -> Subtransmission | F24: ='Project List (%)'!F24 -> 0 | G24: ='Project List (%)'!G24 -> SBY-WND #2 Dynamic line monitoring via SCADA - Design & Construct | H24: ='Project List (%)'!H24 -> 0 | J24: =$H24 * 'Project List (%)'!J24 -> 0 | K24: =$H24 * 'Project List (%)'!K24 -> 0 | L24: =$H24 * 'Project List (%)'!L24 -> 0 | M24: =$H24 * 'Project List (%)'!M24 -> 0 | N24: =$H24 * 'Project List (%)'!N24 -> 0 | O24: =$H24 * 'Project List (%)'!O24 -> 0 | P24: =$H24 * 'Project List (%)'!P24 -> 0 | Q24: =$H24 * 'Project List (%)'!Q24 -> 0 | R24: =$H24 * 'Project List (%)'!R24 -> 0 | S24: ='Project List (%)'!S24 -> 0 | T24: ='Project List (%)'!T24 -> 0 | U24: ='Project List (%)'!U24 -> 0 | V24: ='Project List (%)'!V24 -> 0 | W24: ='Project List (%)'!W24 -> 0 | X24: ='Project List (%)'!X24 -> 0 | Y24: ='Project List (%)'!Y24 -> 0
C25: ='Project List (%)'!C25 -> Keilor | D25: ='Project List (%)'!D25 -> 162 | E25: ='Project List (%)'!E25 -> Subtransmission | F25: ='Project List (%)'!F25 -> 0 | G25: ='Project List (%)'!G25 -> SBY - GSB#1 reconductor parallel cct (P4-P22, P29-P39, P42-P62, P82A-T103) (9.3 kM) (SBY-GSB section) | H25: ='Project List (%)'!H25 -> 0 | J25: =$H25 * 'Project List (%)'!J25 -> 0 | K25: =$H25 * 'Project List (%)'!K25 -> 0 | L25: =$H25 * 'Project List (%)'!L25 -> 0 | M25: =$H25 * 'Project List (%)'!M25 -> 0 | N25: =$H25 * 'Project List (%)'!N25 -> 0 | O25: =$H25 * 'Project List (%)'!O25 -> 0 | P25: =$H25 * 'Project List (%)'!P25 -> 0 | Q25: =$H25 * 'Project List (%)'!Q25 -> 0 | R25: =$H25 * 'Project List (%)'!R25 -> 0 | S25: ='Project List (%)'!S25 -> 0 | T25: ='Project List (%)'!T25 -> 0 | U25: ='Project List (%)'!U25 -> 0 | V25: ='Project List (%)'!V25 -> 0 | W25: ='Project List (%)'!W25 -> 0 | X25: ='Project List (%)'!X25 -> 0 | Y25: ='Project List (%)'!Y25 -> 2021+
C26: ='Project List (%)'!C26 -> Keilor | D26: ='Project List (%)'!D26 -> 162 | E26: ='Project List (%)'!E26 -> Subtransmission | F26: ='Project List (%)'!F26 -> 0 | G26: ='Project List (%)'!G26 -> SBY -GSB#2 Reconductor (6/4.72 - 7/1.57) ACSR to 19/4.75 AAC (13.7 kM) | H26: ='Project List (%)'!H26 -> 0 | J26: =$H26 * 'Project List (%)'!J26 -> 0 | K26: =$H26 * 'Project List (%)'!K26 -> 0 | L26: =$H26 * 'Project List (%)'!L26 -> 0 | M26: =$H26 * 'Project List (%)'!M26 -> 0 | N26: =$H26 * 'Project List (%)'!N26 -> 0 | O26: =$H26 * 'Project List (%)'!O26 -> 0 | P26: =$H26 * 'Project List (%)'!P26 -> 0 | Q26: =$H26 * 'Project List (%)'!Q26 -> 0 | R26: =$H26 * 'Project List (%)'!R26 -> 0 | S26: ='Project List (%)'!S26 -> 0 | T26: ='Project List (%)'!T26 -> 0 | U26: ='Project List (%)'!U26 -> 0 | V26: ='Project List (%)'!V26 -> 0 | W26: ='Project List (%)'!W26 -> 0 | X26: ='Project List (%)'!X26 -> 0 | Y26: ='Project List (%)'!Y26 -> 2021+
C27: ='Project List (%)'!C27 -> Keilor | D27: ='Project List (%)'!D27 -> 161 | E27: ='Project List (%)'!E27 -> Subtransmission | F27: ='Project List (%)'!F27 -> 0 | G27: ='Project List (%)'!G27 -> 2 x 12MVAR Capbank at SSE | H27: ='Project List (%)'!H27 -> 0 | J27: =$H27 * 'Project List (%)'!J27 -> 0 | K27: =$H27 * 'Project List (%)'!K27 -> 0 | L27: =$H27 * 'Project List (%)'!L27 -> 0 | M27: =$H27 * 'Project List (%)'!M27 -> 0 | N27: =$H27 * 'Project List (%)'!N27 -> 0 | O27: =$H27 * 'Project List (%)'!O27 -> 0 | P27: =$H27 * 'Project List (%)'!P27 -> 0 | Q27: =$H27 * 'Project List (%)'!Q27 -> 0 | R27: =$H27 * 'Project List (%)'!R27 -> 0 | S27: ='Project List (%)'!S27 -> 0 | T27: ='Project List (%)'!T27 -> 0 | U27: ='Project List (%)'!U27 -> 0 | V27: ='Project List (%)'!V27 -> 0 | W27: ='Project List (%)'!W27 -> 0 | X27: ='Project List (%)'!X27 -> 0 | Y27: ='Project List (%)'!Y27 -> 2021+
C28: ='Project List (%)'!C28 -> Keilor | D28: ='Project List (%)'!D28 -> 161 | E28: ='Project List (%)'!E28 -> Subtransmission | F28: ='Project List (%)'!F28 -> 0 | G28: ='Project List (%)'!G28 -> SU Uprate 66kV bus incl 1-3 BT CBs & 3 Isols | H28: ='Project List (%)'!H28 -> 0 | J28: =$H28 * 'Project List (%)'!J28 -> 0 | K28: =$H28 * 'Project List (%)'!K28 -> 0 | L28: =$H28 * 'Project List (%)'!L28 -> 0 | M28: =$H28 * 'Project List (%)'!M28 -> 0 | N28: =$H28 * 'Project List (%)'!N28 -> 0 | O28: =$H28 * 'Project List (%)'!O28 -> 0 | P28: =$H28 * 'Project List (%)'!P28 -> 0 | Q28: =$H28 * 'Project List (%)'!Q28 -> 0 | R28: =$H28 * 'Project List (%)'!R28 -> 0 | S28: ='Project List (%)'!S28 -> 0 | T28: ='Project List (%)'!T28 -> 0 | U28: ='Project List (%)'!U28 -> 0 | V28: ='Project List (%)'!V28 -> 0 | W28: ='Project List (%)'!W28 -> 0 | X28: ='Project List (%)'!X28 -> 0 | Y28: ='Project List (%)'!Y28 -> 2021+
C29: ='Project List (%)'!C29 -> Keilor | D29: ='Project List (%)'!D29 -> 162 | E29: ='Project List (%)'!E29 -> Subtransmission | F29: ='Project List (%)'!F29 -> 0 | G29: ='Project List (%)'!G29 -> Reconductor KTS-SSE (P7-P27) (1.5km) | H29: ='Project List (%)'!H29 -> 0 | J29: =$H29 * 'Project List (%)'!J29 -> 0 | K29: =$H29 * 'Project List (%)'!K29 -> 0 | L29: =$H29 * 'Project List (%)'!L29 -> 0 | M29: =$H29 * 'Project List (%)'!M29 -> 0 | N29: =$H29 * 'Project List (%)'!N29 -> 0 | O29: =$H29 * 'Project List (%)'!O29 -> 0 | P29: =$H29 * 'Project List (%)'!P29 -> 0 | Q29: =$H29 * 'Project List (%)'!Q29 -> 0 | R29: =$H29 * 'Project List (%)'!R29 -> 0 | S29: ='Project List (%)'!S29 -> 0 | T29: ='Project List (%)'!T29 -> 0 | U29: ='Project List (%)'!U29 -> 0 | V29: ='Project List (%)'!V29 -> 0 | W29: ='Project List (%)'!W29 -> 0 | X29: ='Project List (%)'!X29 -> 0 | Y29: ='Project List (%)'!Y29 -> 2021+
C30: ='Project List (%)'!C30 -> Deer Park | D30: ='Project List (%)'!D30 -> 162 | E30: ='Project List (%)'!E30 -> Subtransmission | F30: ='Project List (%)'!F30 -> 0 | G30: ='Project List (%)'!G30 -> Reconductor SU-SSE | H30: ='Project List (%)'!H30 -> 0 | J30: =$H30 * 'Project List (%)'!J30 -> 0 | K30: =$H30 * 'Project List (%)'!K30 -> 0 | L30: =$H30 * 'Project List (%)'!L30 -> 0 | M30: =$H30 * 'Project List (%)'!M30 -> 0 | N30: =$H30 * 'Project List (%)'!N30 -> 0 | O30: =$H30 * 'Project List (%)'!O30 -> 0 | P30: =$H30 * 'Project List (%)'!P30 -> 0 | Q30: =$H30 * 'Project List (%)'!Q30 -> 0 | R30: =$H30 * 'Project List (%)'!R30 -> 0 | S30: ='Project List (%)'!S30 -> 0 | T30: ='Project List (%)'!T30 -> 0 | U30: ='Project List (%)'!U30 -> 0 | V30: ='Project List (%)'!V30 -> 0 | W30: ='Project List (%)'!W30 -> 0 | X30: ='Project List (%)'!X30 -> 0 | Y30: ='Project List (%)'!Y30 -> 2021+
C31: ='Project List (%)'!C31 -> Keilor | D31: ='Project List (%)'!D31 -> 161 | E31: ='Project List (%)'!E31 -> Subtransmission | F31: ='Project List (%)'!F31 -> 0 | G31: ='Project List (%)'!G31 -> Romsey Zone Substation and 66 KV line from Sunbury | H31: ='Project List (%)'!H31 -> 0 | J31: =$H31 * 'Project List (%)'!J31 -> 0 | K31: =$H31 * 'Project List (%)'!K31 -> 0 | L31: =$H31 * 'Project List (%)'!L31 -> 0 | M31: =$H31 * 'Project List (%)'!M31 -> 0 | N31: =$H31 * 'Project List (%)'!N31 -> 0 | O31: =$H31 * 'Project List (%)'!O31 -> 0 | P31: =$H31 * 'Project List (%)'!P31 -> 0 | Q31: =$H31 * 'Project List (%)'!Q31 -> 0 | R31: =$H31 * 'Project List (%)'!R31 -> 0 | S31: ='Project List (%)'!S31 -> 0 | T31: ='Project List (%)'!T31 -> 0 | U31: ='Project List (%)'!U31 -> 0 | V31: ='Project List (%)'!V31 -> 0 | W31: ='Project List (%)'!W31 -> 0 | X31: ='Project List (%)'!X31 -> 0 | Y31: ='Project List (%)'!Y31 -> 2021+
C32: ='Project List (%)'!C32 -> Keilor | D32: ='Project List (%)'!D32 -> 162 | E32: ='Project List (%)'!E32 -> Subtransmission | F32: ='Project List (%)'!F32 -> 0 | G32: ='Project List (%)'!G32 -> GSB - RSY | H32: ='Project List (%)'!H32 -> 0 | J32: =$H32 * 'Project List (%)'!J32 -> 0 | K32: =$H32 * 'Project List (%)'!K32 -> 0 | L32: =$H32 * 'Project List (%)'!L32 -> 0 | M32: =$H32 * 'Project List (%)'!M32 -> 0 | N32: =$H32 * 'Project List (%)'!N32 -> 0 | O32: =$H32 * 'Project List (%)'!O32 -> 0 | P32: =$H32 * 'Project List (%)'!P32 -> 0 | Q32: =$H32 * 'Project List (%)'!Q32 -> 0 | R32: =$H32 * 'Project List (%)'!R32 -> 0 | S32: ='Project List (%)'!S32 -> 0 | T32: ='Project List (%)'!T32 -> 0 | U32: ='Project List (%)'!U32 -> 0 | V32: ='Project List (%)'!V32 -> 0 | W32: ='Project List (%)'!W32 -> 0 | X32: ='Project List (%)'!X32 -> 0 | Y32: ='Project List (%)'!Y32 -> 2021+
C33: ='Project List (%)'!C33 -> Keilor | D33: ='Project List (%)'!D33 -> 161 | E33: ='Project List (%)'!E33 -> Subtransmission | F33: ='Project List (%)'!F33 -> 0 | G33: ='Project List (%)'!G33 -> SU Fault Mitigation (Design & Construct) | H33: ='Project List (%)'!H33 -> 0 | J33: =$H33 * 'Project List (%)'!J33 -> 0 | K33: =$H33 * 'Project List (%)'!K33 -> 0 | L33: =$H33 * 'Project List (%)'!L33 -> 0 | M33: =$H33 * 'Project List (%)'!M33 -> 0 | N33: =$H33 * 'Project List (%)'!N33 -> 0 | O33: =$H33 * 'Project List (%)'!O33 -> 0 | P33: =$H33 * 'Project List (%)'!P33 -> 0 | Q33: =$H33 * 'Project List (%)'!Q33 -> 0 | R33: =$H33 * 'Project List (%)'!R33 -> 0 | S33: ='Project List (%)'!S33 -> 0 | T33: ='Project List (%)'!T33 -> 0 | U33: ='Project List (%)'!U33 -> 0 | V33: ='Project List (%)'!V33 -> 0 | W33: ='Project List (%)'!W33 -> 0 | X33: ='Project List (%)'!X33 -> 0 | Y33: ='Project List (%)'!Y33 -> 2021+
C34: ='Project List (%)'!C34 -> Deer Park | D34: ='Project List (%)'!D34 -> 162 | E34: ='Project List (%)'!E34 -> Subtransmission | F34: ='Project List (%)'!F34 -> 5080491, 5078702 | G34: ='Project List (%)'!G34 -> DPTS-MLN No1 & No2 66kV Lines only | H34: ='Project List (%)'!H34 -> 8758 | J34: =$H34 * 'Project List (%)'!J34 -> 0 | K34: =$H34 * 'Project List (%)'!K34 -> 73 | L34: =$H34 * 'Project List (%)'!L34 -> 1159 | M34: =$H34 * 'Project List (%)'!M34 -> 4690 | N34: =$H34 * 'Project List (%)'!N34 -> 2659 | O34: =$H34 * 'Project List (%)'!O34 -> 177 | P34: =$H34 * 'Project List (%)'!P34 -> 0 | Q34: =$H34 * 'Project List (%)'!Q34 -> 0 | R34: =$H34 * 'Project List (%)'!R34 -> 0 | S34: ='Project List (%)'!S34 -> 0 | T34: ='Project List (%)'!T34 -> Overhead | U34: ='Project List (%)'!U34 -> Transmission connection point | V34: ='Project List (%)'!V34 -> 220 | W34: ='Project List (%)'!W34 -> 0 | X34: ='Project List (%)'!X34 -> 0 | Y34: ='Project List (%)'!Y34 -> 2018
C35: ='Project List (%)'!C35 -> Deer Park | D35: ='Project List (%)'!D35 -> 162 | E35: ='Project List (%)'!E35 -> Subtransmission | F35: ='Project List (%)'!F35 -> 5078699, 5081224, 5087484 | G35: ='Project List (%)'!G35 -> DPTS-SU No1 & No2 66kV, KTS-SSE No1 & No2 Lines with SU-SSE N.O. tie | H35: ='Project List (%)'!H35 -> 13014.7584 | J35: =$H35 * 'Project List (%)'!J35 -> 30.7584 | K35: =$H35 * 'Project List (%)'!K35 -> 160 | L35: =$H35 * 'Project List (%)'!L35 -> 4255 | M35: =$H35 * 'Project List (%)'!M35 -> 2048 | N35: =$H35 * 'Project List (%)'!N35 -> 6377 | O35: =$H35 * 'Project List (%)'!O35 -> 144 | P35: =$H35 * 'Project List (%)'!P35 -> 0 | Q35: =$H35 * 'Project List (%)'!Q35 -> 0 | R35: =$H35 * 'Project List (%)'!R35 -> 0 | S35: ='Project List (%)'!S35 -> 0 | T35: ='Project List (%)'!T35 -> Both | U35: ='Project List (%)'!U35 -> Transmission connection point | V35: ='Project List (%)'!V35 -> 220 | W35: ='Project List (%)'!W35 -> 0 | X35: ='Project List (%)'!X35 -> 0 | Y35: ='Project List (%)'!Y35 -> 2018
C36: ='Project List (%)'!C36 -> Deer Park | D36: ='Project List (%)'!D36 -> 162 | E36: ='Project List (%)'!E36 -> Subtransmission | F36: ='Project List (%)'!F36 -> 0 | G36: ='Project List (%)'!G36 -> DPTS-RBE No1 & No2 and MLN-RBE | H36: ='Project List (%)'!H36 -> 0 | J36: =$H36 * 'Project List (%)'!J36 -> 0 | K36: =$H36 * 'Project List (%)'!K36 -> 0 | L36: =$H36 * 'Project List (%)'!L36 -> 0 | M36: =$H36 * 'Project List (%)'!M36 -> 0 | N36: =$H36 * 'Project List (%)'!N36 -> 0 | O36: =$H36 * 'Project List (%)'!O36 -> 0 | P36: =$H36 * 'Project List (%)'!P36 -> 0 | Q36: =$H36 * 'Project List (%)'!Q36 -> 0 | R36: =$H36 * 'Project List (%)'!R36 -> 0 | S36: ='Project List (%)'!S36 -> 0 | T36: ='Project List (%)'!T36 -> 0 | U36: ='Project List (%)'!U36 -> 0 | V36: ='Project List (%)'!V36 -> 0 | W36: ='Project List (%)'!W36 -> 0 | X36: ='Project List (%)'!X36 -> 0 | Y36: ='Project List (%)'!Y36 -> 2021+
C37: ='Project List (%)'!C37 -> Deer Park | D37: ='Project List (%)'!D37 -> 161 | E37: ='Project List (%)'!E37 -> Subtransmission | F37: ='Project List (%)'!F37 -> 0 | G37: ='Project List (%)'!G37 -> DPTS-RBE exit CBs at RBE (ring bus) | H37: ='Project List (%)'!H37 -> 0 | J37: =$H37 * 'Project List (%)'!J37 -> 0 | K37: =$H37 * 'Project List (%)'!K37 -> 0 | L37: =$H37 * 'Project List (%)'!L37 -> 0 | M37: =$H37 * 'Project List (%)'!M37 -> 0 | N37: =$H37 * 'Project List (%)'!N37 -> 0 | O37: =$H37 * 'Project List (%)'!O37 -> 0 | P37: =$H37 * 'Project List (%)'!P37 -> 0 | Q37: =$H37 * 'Project List (%)'!Q37 -> 0 | R37: =$H37 * 'Project List (%)'!R37 -> 0 | S37: ='Project List (%)'!S37 -> 0 | T37: ='Project List (%)'!T37 -> 0 | U37: ='Project List (%)'!U37 -> 0 | V37: ='Project List (%)'!V37 -> 0 | W37: ='Project List (%)'!W37 -> 0 | X37: ='Project List (%)'!X37 -> 0 | Y37: ='Project List (%)'!Y37 -> 2021+
C38: ='Project List (%)'!C38 -> Deer Park | D38: ='Project List (%)'!D38 -> 162 | E38: ='Project List (%)'!E38 -> Subtransmission | F38: ='Project List (%)'!F38 -> 0 | G38: ='Project List (%)'!G38 -> DPTS-SSE & reconnect SU-SSE | H38: ='Project List (%)'!H38 -> 0 | J38: =$H38 * 'Project List (%)'!J38 -> 0 | K38: =$H38 * 'Project List (%)'!K38 -> 0 | L38: =$H38 * 'Project List (%)'!L38 -> 0 | M38: =$H38 * 'Project List (%)'!M38 -> 0 | N38: =$H38 * 'Project List (%)'!N38 -> 0 | O38: =$H38 * 'Project List (%)'!O38 -> 0 | P38: =$H38 * 'Project List (%)'!P38 -> 0 | Q38: =$H38 * 'Project List (%)'!Q38 -> 0 | R38: =$H38 * 'Project List (%)'!R38 -> 0 | S38: ='Project List (%)'!S38 -> 0 | T38: ='Project List (%)'!T38 -> 0 | U38: ='Project List (%)'!U38 -> 0 | V38: ='Project List (%)'!V38 -> 0 | W38: ='Project List (%)'!W38 -> 0 | X38: ='Project List (%)'!X38 -> 0 | Y38: ='Project List (%)'!Y38 -> 2021+
C39: ='Project List (%)'!C39 -> Deer Park | D39: ='Project List (%)'!D39 -> 162 | E39: ='Project List (%)'!E39 -> Subtransmission | F39: ='Project List (%)'!F39 -> 0 | G39: ='Project List (%)'!G39 -> Land for Rockbank Zone Substation, RBK | H39: ='Project List (%)'!H39 -> 0 | J39: =$H39 * 'Project List (%)'!J39 -> 0 | K39: =$H39 * 'Project List (%)'!K39 -> 0 | L39: =$H39 * 'Project List (%)'!L39 -> 0 | M39: =$H39 * 'Project List (%)'!M39 -> 0 | N39: =$H39 * 'Project List (%)'!N39 -> 0 | O39: =$H39 * 'Project List (%)'!O39 -> 0 | P39: =$H39 * 'Project List (%)'!P39 -> 0 | Q39: =$H39 * 'Project List (%)'!Q39 -> 0 | R39: =$H39 * 'Project List (%)'!R39 -> 0 | S39: ='Project List (%)'!S39 -> 0 | T39: ='Project List (%)'!T39 -> 0 | U39: ='Project List (%)'!U39 -> 0 | V39: ='Project List (%)'!V39 -> 0 | W39: ='Project List (%)'!W39 -> 0 | X39: ='Project List (%)'!X39 -> 0 | Y39: ='Project List (%)'!Y39 -> 2021+
C40: ='Project List (%)'!C40 -> 0 | D40: ='Project List (%)'!D40 -> 0 | E40: ='Project List (%)'!E40 -> 0 | F40: ='Project List (%)'!F40 -> 0 | G40: ='Project List (%)'!G40 -> 0 | H40: ='Project List (%)'!H40 -> 0 | J40: =$H40 * 'Project List (%)'!J40 -> 0 | K40: =$H40 * 'Project List (%)'!K40 -> 0 | L40: =$H40 * 'Project List (%)'!L40 -> 0 | M40: =$H40 * 'Project List (%)'!M40 -> 0 | N40: =$H40 * 'Project List (%)'!N40 -> 0 | O40: =$H40 * 'Project List (%)'!O40 -> 0 | P40: =$H40 * 'Project List (%)'!P40 -> 0 | Q40: =$H40 * 'Project List (%)'!Q40 -> 0 | R40: =$H40 * 'Project List (%)'!R40 -> 0 | S40: ='Project List (%)'!S40 -> 0 | T40: ='Project List (%)'!T40 -> 0 | U40: ='Project List (%)'!U40 -> 0 | V40: ='Project List (%)'!V40 -> 0 | W40: ='Project List (%)'!W40 -> 0 | X40: ='Project List (%)'!X40 -> 0 | Y40: ='Project List (%)'!Y40 -> 0
C41: ='Project List (%)'!C41 -> 0 | D41: ='Project List (%)'!D41 -> DISTRIBUTION MAJOR | E41: ='Project List (%)'!E41 -> 0 | F41: ='Project List (%)'!F41 -> 0 | G41: ='Project List (%)'!G41 -> Rockbank East, RBE | H41: ='Project List (%)'!H41 -> 0 | J41: =$H41 * 'Project List (%)'!J41 -> 0 | K41: =$H41 * 'Project List (%)'!K41 -> 0 | L41: =$H41 * 'Project List (%)'!L41 -> 0 | M41: =$H41 * 'Project List (%)'!M41 -> 0 | N41: =$H41 * 'Project List (%)'!N41 -> 0 | O41: =$H41 * 'Project List (%)'!O41 -> 0 | P41: =$H41 * 'Project List (%)'!P41 -> 0 | Q41: =$H41 * 'Project List (%)'!Q41 -> 0 | R41: =$H41 * 'Project List (%)'!R41 -> 0 | S41: ='Project List (%)'!S41 -> 0 | T41: ='Project List (%)'!T41 -> 0 | U41: ='Project List (%)'!U41 -> 0 | V41: ='Project List (%)'!V41 -> 0 | W41: ='Project List (%)'!W41 -> 0 | X41: ='Project List (%)'!X41 -> 0 | Y41: ='Project List (%)'!Y41 -> 0
C42: ='Project List (%)'!C42 -> Deer Park | D42: ='Project List (%)'!D42 -> 162 | E42: ='Project List (%)'!E42 -> Urban | F42: ='Project List (%)'!F42 -> 0 | G42: ='Project List (%)'!G42 -> RBE 4 New 22kV Feeders | H42: ='Project List (%)'!H42 -> 0 | J42: =$H42 * 'Project List (%)'!J42 -> 0 | K42: =$H42 * 'Project List (%)'!K42 -> 0 | L42: =$H42 * 'Project List (%)'!L42 -> 0 | M42: =$H42 * 'Project List (%)'!M42 -> 0 | N42: =$H42 * 'Project List (%)'!N42 -> 0 | O42: =$H42 * 'Project List (%)'!O42 -> 0 | P42: =$H42 * 'Project List (%)'!P42 -> 0 | Q42: =$H42 * 'Project List (%)'!Q42 -> 0 | R42: =$H42 * 'Project List (%)'!R42 -> 0 | S42: ='Project List (%)'!S42 -> 0 | T42: ='Project List (%)'!T42 -> 0 | U42: ='Project List (%)'!U42 -> 0 | V42: ='Project List (%)'!V42 -> 0 | W42: ='Project List (%)'!W42 -> 0 | X42: ='Project List (%)'!X42 -> 0 | Y42: ='Project List (%)'!Y42 -> 2021+
C43: ='Project List (%)'!C43 -> Deer Park | D43: ='Project List (%)'!D43 -> 162 | E43: ='Project List (%)'!E43 -> Urban | F43: ='Project List (%)'!F43 -> 0 | G43: ='Project List (%)'!G43 -> RBE 2 Additional 22kV Feeders | H43: ='Project List (%)'!H43 -> 0 | J43: =$H43 * 'Project List (%)'!J43 -> 0 | K43: =$H43 * 'Project List (%)'!K43 -> 0 | L43: =$H43 * 'Project List (%)'!L43 -> 0 | M43: =$H43 * 'Project List (%)'!M43 -> 0 | N43: =$H43 * 'Project List (%)'!N43 -> 0 | O43: =$H43 * 'Project List (%)'!O43 -> 0 | P43: =$H43 * 'Project List (%)'!P43 -> 0 | Q43: =$H43 * 'Project List (%)'!Q43 -> 0 | R43: =$H43 * 'Project List (%)'!R43 -> 0 | S43: ='Project List (%)'!S43 -> 0 | T43: ='Project List (%)'!T43 -> 0 | U43: ='Project List (%)'!U43 -> 0 | V43: ='Project List (%)'!V43 -> 0 | W43: ='Project List (%)'!W43 -> 0 | X43: ='Project List (%)'!X43 -> 0 | Y43: ='Project List (%)'!Y43 -> 2021+
C44: ='Project List (%)'!C44 -> Deer Park | D44: ='Project List (%)'!D44 -> 162 | E44: ='Project List (%)'!E44 -> Urban | F44: ='Project List (%)'!F44 -> 0 | G44: ='Project List (%)'!G44 -> RBE 2 Additional 22kV Feeders | H44: ='Project List (%)'!H44 -> 0 | J44: =$H44 * 'Project List (%)'!J44 -> 0 | K44: =$H44 * 'Project List (%)'!K44 -> 0 | L44: =$H44 * 'Project List (%)'!L44 -> 0 | M44: =$H44 * 'Project List (%)'!M44 -> 0 | N44: =$H44 * 'Project List (%)'!N44 -> 0 | O44: =$H44 * 'Project List (%)'!O44 -> 0 | P44: =$H44 * 'Project List (%)'!P44 -> 0 | Q44: =$H44 * 'Project List (%)'!Q44 -> 0 | R44: =$H44 * 'Project List (%)'!R44 -> 0 | S44: ='Project List (%)'!S44 -> 0 | T44: ='Project List (%)'!T44 -> 0 | U44: ='Project List (%)'!U44 -> 0 | V44: ='Project List (%)'!V44 -> 0 | W44: ='Project List (%)'!W44 -> 0 | X44: ='Project List (%)'!X44 -> 0 | Y44: ='Project List (%)'!Y44 -> 2021+
C45: ='Project List (%)'!C45 -> Deer Park | D45: ='Project List (%)'!D45 -> 162 | E45: ='Project List (%)'!E45 -> Urban | F45: ='Project List (%)'!F45 -> 0 | G45: ='Project List (%)'!G45 -> RBE 2 Additional 22kV Feeders | H45: ='Project List (%)'!H45 -> 0 | J45: =$H45 * 'Project List (%)'!J45 -> 0 | K45: =$H45 * 'Project List (%)'!K45 -> 0 | L45: =$H45 * 'Project List (%)'!L45 -> 0 | M45: =$H45 * 'Project List (%)'!M45 -> 0 | N45: =$H45 * 'Project List (%)'!N45 -> 0 | O45: =$H45 * 'Project List (%)'!O45 -> 0 | P45: =$H45 * 'Project List (%)'!P45 -> 0 | Q45: =$H45 * 'Project List (%)'!Q45 -> 0 | R45: =$H45 * 'Project List (%)'!R45 -> 0 | S45: ='Project List (%)'!S45 -> 0 | T45: ='Project List (%)'!T45 -> 0 | U45: ='Project List (%)'!U45 -> 0 | V45: ='Project List (%)'!V45 -> 0 | W45: ='Project List (%)'!W45 -> 0 | X45: ='Project List (%)'!X45 -> 0 | Y45: ='Project List (%)'!Y45 -> 2021+
C46: ='Project List (%)'!C46 -> Deer Park | D46: ='Project List (%)'!D46 -> 162 | E46: ='Project List (%)'!E46 -> Urban | F46: ='Project List (%)'!F46 -> 0 | G46: ='Project List (%)'!G46 -> RBE Additional 22kV Feeder | H46: ='Project List (%)'!H46 -> 0 | J46: =$H46 * 'Project List (%)'!J46 -> 0 | K46: =$H46 * 'Project List (%)'!K46 -> 0 | L46: =$H46 * 'Project List (%)'!L46 -> 0 | M46: =$H46 * 'Project List (%)'!M46 -> 0 | N46: =$H46 * 'Project List (%)'!N46 -> 0 | O46: =$H46 * 'Project List (%)'!O46 -> 0 | P46: =$H46 * 'Project List (%)'!P46 -> 0 | Q46: =$H46 * 'Project List (%)'!Q46 -> 0 | R46: =$H46 * 'Project List (%)'!R46 -> 0 | S46: ='Project List (%)'!S46 -> 0 | T46: ='Project List (%)'!T46 -> 0 | U46: ='Project List (%)'!U46 -> 0 | V46: ='Project List (%)'!V46 -> 0 | W46: ='Project List (%)'!W46 -> 0 | X46: ='Project List (%)'!X46 -> 0 | Y46: ='Project List (%)'!Y46 -> 2021+
C47: ='Project List (%)'!C47 -> Deer Park | D47: ='Project List (%)'!D47 -> 162 | E47: ='Project List (%)'!E47 -> Urban | F47: ='Project List (%)'!F47 -> 0 | G47: ='Project List (%)'!G47 -> RBE Additional 22kV Feeder | H47: ='Project List (%)'!H47 -> 0 | J47: =$H47 * 'Project List (%)'!J47 -> 0 | K47: =$H47 * 'Project List (%)'!K47 -> 0 | L47: =$H47 * 'Project List (%)'!L47 -> 0 | M47: =$H47 * 'Project List (%)'!M47 -> 0 | N47: =$H47 * 'Project List (%)'!N47 -> 0 | O47: =$H47 * 'Project List (%)'!O47 -> 0 | P47: =$H47 * 'Project List (%)'!P47 -> 0 | Q47: =$H47 * 'Project List (%)'!Q47 -> 0 | R47: =$H47 * 'Project List (%)'!R47 -> 0 | S47: ='Project List (%)'!S47 -> 0 | T47: ='Project List (%)'!T47 -> 0 | U47: ='Project List (%)'!U47 -> 0 | V47: ='Project List (%)'!V47 -> 0 | W47: ='Project List (%)'!W47 -> 0 | X47: ='Project List (%)'!X47 -> 0 | Y47: ='Project List (%)'!Y47 -> 2021+
C48: ='Project List (%)'!C48 -> Keilor | D48: ='Project List (%)'!D48 -> 0 | E48: ='Project List (%)'!E48 -> 0 | F48: ='Project List (%)'!F48 -> 0 | G48: ='Project List (%)'!G48 -> 0 | H48: ='Project List (%)'!H48 -> 0 | J48: =$H48 * 'Project List (%)'!J48 -> 0 | K48: =$H48 * 'Project List (%)'!K48 -> 0 | L48: =$H48 * 'Project List (%)'!L48 -> 0 | M48: =$H48 * 'Project List (%)'!M48 -> 0 | N48: =$H48 * 'Project List (%)'!N48 -> 0 | O48: =$H48 * 'Project List (%)'!O48 -> 0 | P48: =$H48 * 'Project List (%)'!P48 -> 0 | Q48: =$H48 * 'Project List (%)'!Q48 -> 0 | R48: =$H48 * 'Project List (%)'!R48 -> 0 | S48: ='Project List (%)'!S48 -> 0 | T48: ='Project List (%)'!T48 -> 0 | U48: ='Project List (%)'!U48 -> 0 | V48: ='Project List (%)'!V48 -> 0 | W48: ='Project List (%)'!W48 -> 0 | X48: ='Project List (%)'!X48 -> 0 | Y48: ='Project List (%)'!Y48 -> 0
C49: ='Project List (%)'!C49 -> Keilor | D49: ='Project List (%)'!D49 -> 0 | E49: ='Project List (%)'!E49 -> 0 | F49: ='Project List (%)'!F49 -> 0 | G49: ='Project List (%)'!G49 -> Sunshine East, SSE | H49: ='Project List (%)'!H49 -> 0 | J49: =$H49 * 'Project List (%)'!J49 -> 0 | K49: =$H49 * 'Project List (%)'!K49 -> 0 | L49: =$H49 * 'Project List (%)'!L49 -> 0 | M49: =$H49 * 'Project List (%)'!M49 -> 0 | N49: =$H49 * 'Project List (%)'!N49 -> 0 | O49: =$H49 * 'Project List (%)'!O49 -> 0 | P49: =$H49 * 'Project List (%)'!P49 -> 0 | Q49: =$H49 * 'Project List (%)'!Q49 -> 0 | R49: =$H49 * 'Project List (%)'!R49 -> 0 | S49: ='Project List (%)'!S49 -> 0 | T49: ='Project List (%)'!T49 -> 0 | U49: ='Project List (%)'!U49 -> 0 | V49: ='Project List (%)'!V49 -> 0 | W49: ='Project List (%)'!W49 -> 0 | X49: ='Project List (%)'!X49 -> 0 | Y49: ='Project List (%)'!Y49 -> 0
C50: ='Project List (%)'!C50 -> Keilor | D50: ='Project List (%)'!D50 -> 162 | E50: ='Project List (%)'!E50 -> Urban | F50: ='Project List (%)'!F50 -> 0 | G50: ='Project List (%)'!G50 -> SSE 11 Uprate + reconductor in McIntyre Rd (design) | H50: ='Project List (%)'!H50 -> 262.1575482 | J50: =$H50 * 'Project List (%)'!J50 -> 0 | K50: =$H50 * 'Project List (%)'!K50 -> 0 | L50: =$H50 * 'Project List (%)'!L50 -> 0 | M50: =$H50 * 'Project List (%)'!M50 -> 0 | N50: =$H50 * 'Project List (%)'!N50 -> 0 | O50: =$H50 * 'Project List (%)'!O50 -> 262.1575482 | P50: =$H50 * 'Project List (%)'!P50 -> 0 | Q50: =$H50 * 'Project List (%)'!Q50 -> 0 | R50: =$H50 * 'Project List (%)'!R50 -> 0 | S50: ='Project List (%)'!S50 -> 0 | T50: ='Project List (%)'!T50 -> Overhead | U50: ='Project List (%)'!U50 -> Demand growth | V50: ='Project List (%)'!V50 -> 3.5 | W50: ='Project List (%)'!W50 -> 0 | X50: ='Project List (%)'!X50 -> 0 | Y50: ='Project List (%)'!Y50 -> 2018
C51: ='Project List (%)'!C51 -> Keilor | D51: ='Project List (%)'!D51 -> 162 | E51: ='Project List (%)'!E51 -> Urban | F51: ='Project List (%)'!F51 -> 0 | G51: ='Project List (%)'!G51 -> SSE 11 Stage 2 Augment | H51: ='Project List (%)'!H51 -> 0 | J51: =$H51 * 'Project List (%)'!J51 -> 0 | K51: =$H51 * 'Project List (%)'!K51 -> 0 | L51: =$H51 * 'Project List (%)'!L51 -> 0 | M51: =$H51 * 'Project List (%)'!M51 -> 0 | N51: =$H51 * 'Project List (%)'!N51 -> 0 | O51: =$H51 * 'Project List (%)'!O51 -> 0 | P51: =$H51 * 'Project List (%)'!P51 -> 0 | Q51: =$H51 * 'Project List (%)'!Q51 -> 0 | R51: =$H51 * 'Project List (%)'!R51 -> 0 | S51: ='Project List (%)'!S51 -> 0 | T51: ='Project List (%)'!T51 -> 0 | U51: ='Project List (%)'!U51 -> 0 | V51: ='Project List (%)'!V51 -> 0 | W51: ='Project List (%)'!W51 -> 0 | X51: ='Project List (%)'!X51 -> 0 | Y51: ='Project List (%)'!Y51 -> 2021+
C52: ='Project List (%)'!C52 -> Keilor | D52: ='Project List (%)'!D52 -> 162 | E52: ='Project List (%)'!E52 -> Urban | F52: ='Project List (%)'!F52 -> 0 | G52: ='Project List (%)'!G52 -> SSE13 South to offload SU8 south & SSE14 (former SU1) | H52: ='Project List (%)'!H52 -> 561.052658 | J52: =$H52 * 'Project List (%)'!J52 -> 0 | K52: =$H52 * 'Project List (%)'!K52 -> 0 | L52: =$H52 * 'Project List (%)'!L52 -> 0 | M52: =$H52 * 'Project List (%)'!M52 -> 0 | N52: =$H52 * 'Project List (%)'!N52 -> 0 | O52: =$H52 * 'Project List (%)'!O52 -> 0 | P52: =$H52 * 'Project List (%)'!P52 -> 0 | Q52: =$H52 * 'Project List (%)'!Q52 -> 561.052658 | R52: =$H52 * 'Project List (%)'!R52 -> 0 | S52: ='Project List (%)'!S52 -> 0 | T52: ='Project List (%)'!T52 -> Underground | U52: ='Project List (%)'!U52 -> Demand growth | V52: ='Project List (%)'!V52 -> 5 | W52: ='Project List (%)'!W52 -> 0 | X52: ='Project List (%)'!X52 -> 0 | Y52: ='Project List (%)'!Y52 -> 2020
C53: ='Project List (%)'!C53 -> Deer Park | D53: ='Project List (%)'!D53 -> 162 | E53: ='Project List (%)'!E53 -> Urban | F53: ='Project List (%)'!F53 -> 0 | G53: ='Project List (%)'!G53 -> SSE 13 Clarke-Dickson ID Sub HV Loop | H53: ='Project List (%)'!H53 -> 0 | J53: =$H53 * 'Project List (%)'!J53 -> 0 | K53: =$H53 * 'Project List (%)'!K53 -> 0 | L53: =$H53 * 'Project List (%)'!L53 -> 0 | M53: =$H53 * 'Project List (%)'!M53 -> 0 | N53: =$H53 * 'Project List (%)'!N53 -> 0 | O53: =$H53 * 'Project List (%)'!O53 -> 0 | P53: =$H53 * 'Project List (%)'!P53 -> 0 | Q53: =$H53 * 'Project List (%)'!Q53 -> 0 | R53: =$H53 * 'Project List (%)'!R53 -> 0 | S53: ='Project List (%)'!S53 -> 0 | T53: ='Project List (%)'!T53 -> 0 | U53: ='Project List (%)'!U53 -> 0 | V53: ='Project List (%)'!V53 -> 0 | W53: ='Project List (%)'!W53 -> 0 | X53: ='Project List (%)'!X53 -> 0 | Y53: ='Project List (%)'!Y53 -> 2021+
C54: ='Project List (%)'!C54 -> Deer Park | D54: ='Project List (%)'!D54 -> 162 | E54: ='Project List (%)'!E54 -> Urban | F54: ='Project List (%)'!F54 -> 0 | G54: ='Project List (%)'!G54 -> SSE13 Feeder rearrangement | H54: ='Project List (%)'!H54 -> 250 | J54: =$H54 * 'Project List (%)'!J54 -> 0 | K54: =$H54 * 'Project List (%)'!K54 -> 0 | L54: =$H54 * 'Project List (%)'!L54 -> 0 | M54: =$H54 * 'Project List (%)'!M54 -> 0 | N54: =$H54 * 'Project List (%)'!N54 -> 0 | O54: =$H54 * 'Project List (%)'!O54 -> 250 | P54: =$H54 * 'Project List (%)'!P54 -> 0 | Q54: =$H54 * 'Project List (%)'!Q54 -> 0 | R54: =$H54 * 'Project List (%)'!R54 -> 0 | S54: ='Project List (%)'!S54 -> 0 | T54: ='Project List (%)'!T54 -> Underground | U54: ='Project List (%)'!U54 -> Demand growth | V54: ='Project List (%)'!V54 -> 5 | W54: ='Project List (%)'!W54 -> 0 | X54: ='Project List (%)'!X54 -> 0 | Y54: ='Project List (%)'!Y54 -> 2018
C55: ='Project List (%)'!C55 -> Keilor | D55: ='Project List (%)'!D55 -> 162 | E55: ='Project List (%)'!E55 -> Urban | F55: ='Project List (%)'!F55 -> 0 | G55: ='Project List (%)'!G55 -> Thermal uprate for SSE31 & SSE33 backbone conductor | H55: ='Project List (%)'!H55 -> 41.94520771 | J55: =$H55 * 'Project List (%)'!J55 -> 0 | K55: =$H55 * 'Project List (%)'!K55 -> 0 | L55: =$H55 * 'Project List (%)'!L55 -> 0 | M55: =$H55 * 'Project List (%)'!M55 -> 41.94520771 | N55: =$H55 * 'Project List (%)'!N55 -> 0 | O55: =$H55 * 'Project List (%)'!O55 -> 0 | P55: =$H55 * 'Project List (%)'!P55 -> 0 | Q55: =$H55 * 'Project List (%)'!Q55 -> 0 | R55: =$H55 * 'Project List (%)'!R55 -> 0 | S55: ='Project List (%)'!S55 -> 0 | T55: ='Project List (%)'!T55 -> Overhead | U55: ='Project List (%)'!U55 -> Demand growth | V55: ='Project List (%)'!V55 -> 13.4 | W55: ='Project List (%)'!W55 -> 0 | X55: ='Project List (%)'!X55 -> 0 | Y55: ='Project List (%)'!Y55 -> 2016
C56: ='Project List (%)'!C56 -> Keilor | D56: ='Project List (%)'!D56 -> 0 | E56: ='Project List (%)'!E56 -> 0 | F56: ='Project List (%)'!F56 -> 0 | G56: ='Project List (%)'!G56 -> 0 | H56: ='Project List (%)'!H56 -> 0 | J56: =$H56 * 'Project List (%)'!J56 -> 0 | K56: =$H56 * 'Project List (%)'!K56 -> 0 | L56: =$H56 * 'Project List (%)'!L56 -> 0 | M56: =$H56 * 'Project List (%)'!M56 -> 0 | N56: =$H56 * 'Project List (%)'!N56 -> 0 | O56: =$H56 * 'Project List (%)'!O56 -> 0 | P56: =$H56 * 'Project List (%)'!P56 -> 0 | Q56: =$H56 * 'Project List (%)'!Q56 -> 0 | R56: =$H56 * 'Project List (%)'!R56 -> 0 | S56: ='Project List (%)'!S56 -> 0 | T56: ='Project List (%)'!T56 -> 0 | U56: ='Project List (%)'!U56 -> 0 | V56: ='Project List (%)'!V56 -> 0 | W56: ='Project List (%)'!W56 -> 0 | X56: ='Project List (%)'!X56 -> 0 | Y56: ='Project List (%)'!Y56 -> 0
C57: ='Project List (%)'!C57 -> Keilor | D57: ='Project List (%)'!D57 -> 0 | E57: ='Project List (%)'!E57 -> 0 | F57: ='Project List (%)'!F57 -> 0 | G57: ='Project List (%)'!G57 -> St Albans, SA | H57: ='Project List (%)'!H57 -> 0 | J57: =$H57 * 'Project List (%)'!J57 -> 0 | K57: =$H57 * 'Project List (%)'!K57 -> 0 | L57: =$H57 * 'Project List (%)'!L57 -> 0 | M57: =$H57 * 'Project List (%)'!M57 -> 0 | N57: =$H57 * 'Project List (%)'!N57 -> 0 | O57: =$H57 * 'Project List (%)'!O57 -> 0 | P57: =$H57 * 'Project List (%)'!P57 -> 0 | Q57: =$H57 * 'Project List (%)'!Q57 -> 0 | R57: =$H57 * 'Project List (%)'!R57 -> 0 | S57: ='Project List (%)'!S57 -> 0 | T57: ='Project List (%)'!T57 -> 0 | U57: ='Project List (%)'!U57 -> 0 | V57: ='Project List (%)'!V57 -> 0 | W57: ='Project List (%)'!W57 -> 0 | X57: ='Project List (%)'!X57 -> 0 | Y57: ='Project List (%)'!Y57 -> 0
C58: ='Project List (%)'!C58 -> Keilor | D58: ='Project List (%)'!D58 -> 162 | E58: ='Project List (%)'!E58 -> Urban | F58: ='Project List (%)'!F58 -> 0 | G58: ='Project List (%)'!G58 -> SA 3 Augment feeder exit or tie to another feeder that is underutilised | H58: ='Project List (%)'!H58 -> 0 | J58: =$H58 * 'Project List (%)'!J58 -> 0 | K58: =$H58 * 'Project List (%)'!K58 -> 0 | L58: =$H58 * 'Project List (%)'!L58 -> 0 | M58: =$H58 * 'Project List (%)'!M58 -> 0 | N58: =$H58 * 'Project List (%)'!N58 -> 0 | O58: =$H58 * 'Project List (%)'!O58 -> 0 | P58: =$H58 * 'Project List (%)'!P58 -> 0 | Q58: =$H58 * 'Project List (%)'!Q58 -> 0 | R58: =$H58 * 'Project List (%)'!R58 -> 0 | S58: ='Project List (%)'!S58 -> 0 | T58: ='Project List (%)'!T58 -> 0 | U58: ='Project List (%)'!U58 -> 0 | V58: ='Project List (%)'!V58 -> 0 | W58: ='Project List (%)'!W58 -> 0 | X58: ='Project List (%)'!X58 -> 0 | Y58: ='Project List (%)'!Y58 -> 2021+
C59: ='Project List (%)'!C59 -> Keilor | D59: ='Project List (%)'!D59 -> 162 | E59: ='Project List (%)'!E59 -> Urban | F59: ='Project List (%)'!F59 -> 0 | G59: ='Project List (%)'!G59 -> SA 4 Augment feeder exit or tie to SA9 | H59: ='Project List (%)'!H59 -> 315 | J59: =$H59 * 'Project List (%)'!J59 -> 0 | K59: =$H59 * 'Project List (%)'!K59 -> 0 | L59: =$H59 * 'Project List (%)'!L59 -> 0 | M59: =$H59 * 'Project List (%)'!M59 -> 0 | N59: =$H59 * 'Project List (%)'!N59 -> 315 | O59: =$H59 * 'Project List (%)'!O59 -> 0 | P59: =$H59 * 'Project List (%)'!P59 -> 0 | Q59: =$H59 * 'Project List (%)'!Q59 -> 0 | R59: =$H59 * 'Project List (%)'!R59 -> 0 | S59: ='Project List (%)'!S59 -> 0 | T59: ='Project List (%)'!T59 -> Underground | U59: ='Project List (%)'!U59 -> Demand growth | V59: ='Project List (%)'!V59 -> 5 | W59: ='Project List (%)'!W59 -> 0 | X59: ='Project List (%)'!X59 -> 0 | Y59: ='Project List (%)'!Y59 -> 2017
C60: ='Project List (%)'!C60 -> Keilor | D60: ='Project List (%)'!D60 -> 162 | E60: ='Project List (%)'!E60 -> Urban | F60: ='Project List (%)'!F60 -> 0 | G60: ='Project List (%)'!G60 -> SA 11 Augment feeder exit or tie to another feeder that is underutilised | H60: ='Project List (%)'!H60 -> 0 | J60: =$H60 * 'Project List (%)'!J60 -> 0 | K60: =$H60 * 'Project List (%)'!K60 -> 0 | L60: =$H60 * 'Project List (%)'!L60 -> 0 | M60: =$H60 * 'Project List (%)'!M60 -> 0 | N60: =$H60 * 'Project List (%)'!N60 -> 0 | O60: =$H60 * 'Project List (%)'!O60 -> 0 | P60: =$H60 * 'Project List (%)'!P60 -> 0 | Q60: =$H60 * 'Project List (%)'!Q60 -> 0 | R60: =$H60 * 'Project List (%)'!R60 -> 0 | S60: ='Project List (%)'!S60 -> 0 | T60: ='Project List (%)'!T60 -> 0 | U60: ='Project List (%)'!U60 -> 0 | V60: ='Project List (%)'!V60 -> 0 | W60: ='Project List (%)'!W60 -> 0 | X60: ='Project List (%)'!X60 -> 0 | Y60: ='Project List (%)'!Y60 -> 2021+
C61: ='Project List (%)'!C61 -> Keilor | D61: ='Project List (%)'!D61 -> 162 | E61: ='Project List (%)'!E61 -> Urban | F61: ='Project List (%)'!F61 -> 0 | G61: ='Project List (%)'!G61 -> SA009 HV Isolators Replacement | H61: ='Project List (%)'!H61 -> 41.94520771 | J61: =$H61 * 'Project List (%)'!J61 -> 0 | K61: =$H61 * 'Project List (%)'!K61 -> 0 | L61: =$H61 * 'Project List (%)'!L61 -> 41.94520771 | M61: =$H61 * 'Project List (%)'!M61 -> 0 | N61: =$H61 * 'Project List (%)'!N61 -> 0 | O61: =$H61 * 'Project List (%)'!O61 -> 0 | P61: =$H61 * 'Project List (%)'!P61 -> 0 | Q61: =$H61 * 'Project List (%)'!Q61 -> 0 | R61: =$H61 * 'Project List (%)'!R61 -> 0 | S61: ='Project List (%)'!S61 -> 0 | T61: ='Project List (%)'!T61 -> Overhead | U61: ='Project List (%)'!U61 -> Demand growth | V61: ='Project List (%)'!V61 -> 1 | W61: ='Project List (%)'!W61 -> 0 | X61: ='Project List (%)'!X61 -> 0 | Y61: ='Project List (%)'!Y61 -> 2015
C62: ='Project List (%)'!C62 -> Keilor | D62: ='Project List (%)'!D62 -> 0 | E62: ='Project List (%)'!E62 -> 0 | F62: ='Project List (%)'!F62 -> 0 | G62: ='Project List (%)'!G62 -> 0 | H62: ='Project List (%)'!H62 -> 0 | J62: =$H62 * 'Project List (%)'!J62 -> 0 | K62: =$H62 * 'Project List (%)'!K62 -> 0 | L62: =$H62 * 'Project List (%)'!L62 -> 0 | M62: =$H62 * 'Project List (%)'!M62 -> 0 | N62: =$H62 * 'Project List (%)'!N62 -> 0 | O62: =$H62 * 'Project List (%)'!O62 -> 0 | P62: =$H62 * 'Project List (%)'!P62 -> 0 | Q62: =$H62 * 'Project List (%)'!Q62 -> 0 | R62: =$H62 * 'Project List (%)'!R62 -> 0 | S62: ='Project List (%)'!S62 -> 0 | T62: ='Project List (%)'!T62 -> 0 | U62: ='Project List (%)'!U62 -> 0 | V62: ='Project List (%)'!V62 -> 0 | W62: ='Project List (%)'!W62 -> 0 | X62: ='Project List (%)'!X62 -> 0 | Y62: ='Project List (%)'!Y62 -> 0
C63: ='Project List (%)'!C63 -> Keilor | D63: ='Project List (%)'!D63 -> 0 | E63: ='Project List (%)'!E63 -> 0 | F63: ='Project List (%)'!F63 -> 0 | G63: ='Project List (%)'!G63 -> Sunshine, SU | H63: ='Project List (%)'!H63 -> 0 | J63: =$H63 * 'Project List (%)'!J63 -> 0 | K63: =$H63 * 'Project List (%)'!K63 -> 0 | L63: =$H63 * 'Project List (%)'!L63 -> 0 | M63: =$H63 * 'Project List (%)'!M63 -> 0 | N63: =$H63 * 'Project List (%)'!N63 -> 0 | O63: =$H63 * 'Project List (%)'!O63 -> 0 | P63: =$H63 * 'Project List (%)'!P63 -> 0 | Q63: =$H63 * 'Project List (%)'!Q63 -> 0 | R63: =$H63 * 'Project List (%)'!R63 -> 0 | S63: ='Project List (%)'!S63 -> 0 | T63: ='Project List (%)'!T63 -> 0 | U63: ='Project List (%)'!U63 -> 0 | V63: ='Project List (%)'!V63 -> 0 | W63: ='Project List (%)'!W63 -> 0 | X63: ='Project List (%)'!X63 -> 0 | Y63: ='Project List (%)'!Y63 -> 0
C64: ='Project List (%)'!C64 -> Keilor | D64: ='Project List (%)'!D64 -> 162 | E64: ='Project List (%)'!E64 -> Urban | F64: ='Project List (%)'!F64 -> 0 | G64: ='Project List (%)'!G64 -> SU 3,4,5 & 8 HV ties and rearrangement | H64: ='Project List (%)'!H64 -> 0 | J64: =$H64 * 'Project List (%)'!J64 -> 0 | K64: =$H64 * 'Project List (%)'!K64 -> 0 | L64: =$H64 * 'Project List (%)'!L64 -> 0 | M64: =$H64 * 'Project List (%)'!M64 -> 0 | N64: =$H64 * 'Project List (%)'!N64 -> 0 | O64: =$H64 * 'Project List (%)'!O64 -> 0 | P64: =$H64 * 'Project List (%)'!P64 -> 0 | Q64: =$H64 * 'Project List (%)'!Q64 -> 0 | R64: =$H64 * 'Project List (%)'!R64 -> 0 | S64: ='Project List (%)'!S64 -> 0 | T64: ='Project List (%)'!T64 -> 0 | U64: ='Project List (%)'!U64 -> 0 | V64: ='Project List (%)'!V64 -> 0 | W64: ='Project List (%)'!W64 -> 0 | X64: ='Project List (%)'!X64 -> 0 | Y64: ='Project List (%)'!Y64 -> 2021+
C65: ='Project List (%)'!C65 -> Deer Park | D65: ='Project List (%)'!D65 -> 162 | E65: ='Project List (%)'!E65 -> Urban | F65: ='Project List (%)'!F65 -> 0 | G65: ='Project List (%)'!G65 -> SU5 Augment BB & HV Rearrangement to offload SU4 | H65: ='Project List (%)'!H65 -> 314.5890579 | J65: =$H65 * 'Project List (%)'!J65 -> 0 | K65: =$H65 * 'Project List (%)'!K65 -> 0 | L65: =$H65 * 'Project List (%)'!L65 -> 0 | M65: =$H65 * 'Project List (%)'!M65 -> 0 | N65: =$H65 * 'Project List (%)'!N65 -> 0 | O65: =$H65 * 'Project List (%)'!O65 -> 0 | P65: =$H65 * 'Project List (%)'!P65 -> 314.5890579 | Q65: =$H65 * 'Project List (%)'!Q65 -> 0 | R65: =$H65 * 'Project List (%)'!R65 -> 0 | S65: ='Project List (%)'!S65 -> 0 | T65: ='Project List (%)'!T65 -> Overhead | U65: ='Project List (%)'!U65 -> Demand growth | V65: ='Project List (%)'!V65 -> 3.5 | W65: ='Project List (%)'!W65 -> 0 | X65: ='Project List (%)'!X65 -> 0 | Y65: ='Project List (%)'!Y65 -> 2019
C66: ='Project List (%)'!C66 -> Deer Park | D66: ='Project List (%)'!D66 -> 162 | E66: ='Project List (%)'!E66 -> Urban | F66: ='Project List (%)'!F66 -> 0 | G66: ='Project List (%)'!G66 -> SU 3 Uprate feeder | H66: ='Project List (%)'!H66 -> 0 | J66: =$H66 * 'Project List (%)'!J66 -> 0 | K66: =$H66 * 'Project List (%)'!K66 -> 0 | L66: =$H66 * 'Project List (%)'!L66 -> 0 | M66: =$H66 * 'Project List (%)'!M66 -> 0 | N66: =$H66 * 'Project List (%)'!N66 -> 0 | O66: =$H66 * 'Project List (%)'!O66 -> 0 | P66: =$H66 * 'Project List (%)'!P66 -> 0 | Q66: =$H66 * 'Project List (%)'!Q66 -> 0 | R66: =$H66 * 'Project List (%)'!R66 -> 0 | S66: ='Project List (%)'!S66 -> 0 | T66: ='Project List (%)'!T66 -> 0 | U66: ='Project List (%)'!U66 -> 0 | V66: ='Project List (%)'!V66 -> 0 | W66: ='Project List (%)'!W66 -> 0 | X66: ='Project List (%)'!X66 -> 0 | Y66: ='Project List (%)'!Y66 -> 2021+
C67: ='Project List (%)'!C67 -> Deer Park | D67: ='Project List (%)'!D67 -> 162 | E67: ='Project List (%)'!E67 -> Urban | F67: ='Project List (%)'!F67 -> 0 | G67: ='Project List (%)'!G67 -> SU 8 Augment Feeder Stage 2 | H67: ='Project List (%)'!H67 -> 0 | J67: =$H67 * 'Project List (%)'!J67 -> 0 | K67: =$H67 * 'Project List (%)'!K67 -> 0 | L67: =$H67 * 'Project List (%)'!L67 -> 0 | M67: =$H67 * 'Project List (%)'!M67 -> 0 | N67: =$H67 * 'Project List (%)'!N67 -> 0 | O67: =$H67 * 'Project List (%)'!O67 -> 0 | P67: =$H67 * 'Project List (%)'!P67 -> 0 | Q67: =$H67 * 'Project List (%)'!Q67 -> 0 | R67: =$H67 * 'Project List (%)'!R67 -> 0 | S67: ='Project List (%)'!S67 -> 0 | T67: ='Project List (%)'!T67 -> 0 | U67: ='Project List (%)'!U67 -> 0 | V67: ='Project List (%)'!V67 -> 0 | W67: ='Project List (%)'!W67 -> 0 | X67: ='Project List (%)'!X67 -> 0 | Y67: ='Project List (%)'!Y67 -> 2021+
C68: ='Project List (%)'!C68 -> Deer Park | D68: ='Project List (%)'!D68 -> 162 | E68: ='Project List (%)'!E68 -> Urban | F68: ='Project List (%)'!F68 -> 0 | G68: ='Project List (%)'!G68 -> Establish new SU14 feeder to ORICA site | H68: ='Project List (%)'!H68 -> 2034.342574 | J68: =$H68 * 'Project List (%)'!J68 -> 0 | K68: =$H68 * 'Project List (%)'!K68 -> 0 | L68: =$H68 * 'Project List (%)'!L68 -> 0 | M68: =$H68 * 'Project List (%)'!M68 -> 0 | N68: =$H68 * 'Project List (%)'!N68 -> 0 | O68: =$H68 * 'Project List (%)'!O68 -> 0 | P68: =$H68 * 'Project List (%)'!P68 -> 2034.342574 | Q68: =$H68 * 'Project List (%)'!Q68 -> 0 | R68: =$H68 * 'Project List (%)'!R68 -> 0 | S68: ='Project List (%)'!S68 -> 0 | T68: ='Project List (%)'!T68 -> Underground | U68: ='Project List (%)'!U68 -> Demand growth | V68: ='Project List (%)'!V68 -> 12 | W68: ='Project List (%)'!W68 -> 0 | X68: ='Project List (%)'!X68 -> 0 | Y68: ='Project List (%)'!Y68 -> 2019
C69: ='Project List (%)'!C69 -> Keilor | D69: ='Project List (%)'!D69 -> 162 | E69: ='Project List (%)'!E69 -> Urban | F69: ='Project List (%)'!F69 -> 0 | G69: ='Project List (%)'!G69 -> SSE/SU - SA Feeder tie for offload project | H69: ='Project List (%)'!H69 -> 938.5240226 | J69: =$H69 * 'Project List (%)'!J69 -> 0 | K69: =$H69 * 'Project List (%)'!K69 -> 0 | L69: =$H69 * 'Project List (%)'!L69 -> 0 | M69: =$H69 * 'Project List (%)'!M69 -> 938.5240226 | N69: =$H69 * 'Project List (%)'!N69 -> 0 | O69: =$H69 * 'Project List (%)'!O69 -> 0 | P69: =$H69 * 'Project List (%)'!P69 -> 0 | Q69: =$H69 * 'Project List (%)'!Q69 -> 0 | R69: =$H69 * 'Project List (%)'!R69 -> 0 | S69: ='Project List (%)'!S69 -> 0 | T69: ='Project List (%)'!T69 -> Both | U69: ='Project List (%)'!U69 -> Demand growth | V69: ='Project List (%)'!V69 -> 5 | W69: ='Project List (%)'!W69 -> 0 | X69: ='Project List (%)'!X69 -> 0 | Y69: ='Project List (%)'!Y69 -> 2016
C70: ='Project List (%)'!C70 -> Keilor | D70: ='Project List (%)'!D70 -> 0 | E70: ='Project List (%)'!E70 -> 0 | F70: ='Project List (%)'!F70 -> 0 | G70: ='Project List (%)'!G70 -> 0 | H70: ='Project List (%)'!H70 -> 0 | J70: =$H70 * 'Project List (%)'!J70 -> 0 | K70: =$H70 * 'Project List (%)'!K70 -> 0 | L70: =$H70 * 'Project List (%)'!L70 -> 0 | M70: =$H70 * 'Project List (%)'!M70 -> 0 | N70: =$H70 * 'Project List (%)'!N70 -> 0 | O70: =$H70 * 'Project List (%)'!O70 -> 0 | P70: =$H70 * 'Project List (%)'!P70 -> 0 | Q70: =$H70 * 'Project List (%)'!Q70 -> 0 | R70: =$H70 * 'Project List (%)'!R70 -> 0 | S70: ='Project List (%)'!S70 -> 0 | T70: ='Project List (%)'!T70 -> 0 | U70: ='Project List (%)'!U70 -> 0 | V70: ='Project List (%)'!V70 -> 0 | W70: ='Project List (%)'!W70 -> 0 | X70: ='Project List (%)'!X70 -> 0 | Y70: ='Project List (%)'!Y70 -> 0
C71: ='Project List (%)'!C71 -> Keilor | D71: ='Project List (%)'!D71 -> 0 | E71: ='Project List (%)'!E71 -> 0 | F71: ='Project List (%)'!F71 -> 0 | G71: ='Project List (%)'!G71 -> Woodend, WND | H71: ='Project List (%)'!H71 -> 0 | J71: =$H71 * 'Project List (%)'!J71 -> 0 | K71: =$H71 * 'Project List (%)'!K71 -> 0 | L71: =$H71 * 'Project List (%)'!L71 -> 0 | M71: =$H71 * 'Project List (%)'!M71 -> 0 | N71: =$H71 * 'Project List (%)'!N71 -> 0 | O71: =$H71 * 'Project List (%)'!O71 -> 0 | P71: =$H71 * 'Project List (%)'!P71 -> 0 | Q71: =$H71 * 'Project List (%)'!Q71 -> 0 | R71: =$H71 * 'Project List (%)'!R71 -> 0 | S71: ='Project List (%)'!S71 -> 0 | T71: ='Project List (%)'!T71 -> 0 | U71: ='Project List (%)'!U71 -> 0 | V71: ='Project List (%)'!V71 -> 0 | W71: ='Project List (%)'!W71 -> 0 | X71: ='Project List (%)'!X71 -> 0 | Y71: ='Project List (%)'!Y71 -> 0
C72: ='Project List (%)'!C72 -> Keilor | D72: ='Project List (%)'!D72 -> 162 | E72: ='Project List (%)'!E72 -> Rural Short | F72: ='Project List (%)'!F72 -> 0 | G72: ='Project List (%)'!G72 -> WND 12 Kerrie Iso SWER Aug (WND12) | H72: ='Project List (%)'!H72 -> 360.8256374 | J72: =$H72 * 'Project List (%)'!J72 -> 0 | K72: =$H72 * 'Project List (%)'!K72 -> 0 | L72: =$H72 * 'Project List (%)'!L72 -> 0 | M72: =$H72 * 'Project List (%)'!M72 -> 0 | N72: =$H72 * 'Project List (%)'!N72 -> 360.8256374 | O72: =$H72 * 'Project List (%)'!O72 -> 0 | P72: =$H72 * 'Project List (%)'!P72 -> 0 | Q72: =$H72 * 'Project List (%)'!Q72 -> 0 | R72: =$H72 * 'Project List (%)'!R72 -> 0 | S72: ='Project List (%)'!S72 -> 0 | T72: ='Project List (%)'!T72 -> Both | U72: ='Project List (%)'!U72 -> Demand growth | V72: ='Project List (%)'!V72 -> 0.1 | W72: ='Project List (%)'!W72 -> 0 | X72: ='Project List (%)'!X72 -> 0 | Y72: ='Project List (%)'!Y72 -> 2017
C73: ='Project List (%)'!C73 -> Keilor | D73: ='Project List (%)'!D73 -> 162 | E73: ='Project List (%)'!E73 -> Rural Short | F73: ='Project List (%)'!F73 -> 0 | G73: ='Project List (%)'!G73 -> WND 12 LUCERNEDALE P61 SWER AUG | H73: ='Project List (%)'!H73 -> 0 | J73: =$H73 * 'Project List (%)'!J73 -> 0 | K73: =$H73 * 'Project List (%)'!K73 -> 0 | L73: =$H73 * 'Project List (%)'!L73 -> 0 | M73: =$H73 * 'Project List (%)'!M73 -> 0 | N73: =$H73 * 'Project List (%)'!N73 -> 0 | O73: =$H73 * 'Project List (%)'!O73 -> 0 | P73: =$H73 * 'Project List (%)'!P73 -> 0 | Q73: =$H73 * 'Project List (%)'!Q73 -> 0 | R73: =$H73 * 'Project List (%)'!R73 -> 0 | S73: ='Project List (%)'!S73 -> 0 | T73: ='Project List (%)'!T73 -> 0 | U73: ='Project List (%)'!U73 -> 0 | V73: ='Project List (%)'!V73 -> 0 | W73: ='Project List (%)'!W73 -> 0 | X73: ='Project List (%)'!X73 -> 0 | Y73: ='Project List (%)'!Y73 -> 2021+
C74: ='Project List (%)'!C74 -> Keilor | D74: ='Project List (%)'!D74 -> 162 | E74: ='Project List (%)'!E74 -> Rural Short | F74: ='Project List (%)'!F74 -> 0 | G74: ='Project List (%)'!G74 -> WND 12 Hesket Rd Tie P15 SWER Aug | H74: ='Project List (%)'!H74 -> 209.7260386 | J74: =$H74 * 'Project List (%)'!J74 -> 0 | K74: =$H74 * 'Project List (%)'!K74 -> 0 | L74: =$H74 * 'Project List (%)'!L74 -> 0 | M74: =$H74 * 'Project List (%)'!M74 -> 0 | N74: =$H74 * 'Project List (%)'!N74 -> 0 | O74: =$H74 * 'Project List (%)'!O74 -> 0 | P74: =$H74 * 'Project List (%)'!P74 -> 0 | Q74: =$H74 * 'Project List (%)'!Q74 -> 209.7260386 | R74: =$H74 * 'Project List (%)'!R74 -> 0 | S74: ='Project List (%)'!S74 -> 0 | T74: ='Project List (%)'!T74 -> Both | U74: ='Project List (%)'!U74 -> Demand growth | V74: ='Project List (%)'!V74 -> 0.1 | W74: ='Project List (%)'!W74 -> 0 | X74: ='Project List (%)'!X74 -> 0 | Y74: ='Project List (%)'!Y74 -> 2020
C75: ='Project List (%)'!C75 -> Keilor | D75: ='Project List (%)'!D75 -> 162 | E75: ='Project List (%)'!E75 -> Rural Long | F75: ='Project List (%)'!F75 -> 0 | G75: ='Project List (%)'!G75 -> WND 12/13/21/22 reconfiguration (19/3.25 TIE TO ROMSEY) | H75: ='Project List (%)'!H75 -> 20.97260386 | J75: =$H75 * 'Project List (%)'!J75 -> 0 | K75: =$H75 * 'Project List (%)'!K75 -> 0 | L75: =$H75 * 'Project List (%)'!L75 -> 0 | M75: =$H75 * 'Project List (%)'!M75 -> 0 | N75: =$H75 * 'Project List (%)'!N75 -> 0 | O75: =$H75 * 'Project List (%)'!O75 -> 20.97260386 | P75: =$H75 * 'Project List (%)'!P75 -> 0 | Q75: =$H75 * 'Project List (%)'!Q75 -> 0 | R75: =$H75 * 'Project List (%)'!R75 -> 0 | S75: ='Project List (%)'!S75 -> 0 | T75: ='Project List (%)'!T75 -> Overhead | U75: ='Project List (%)'!U75 -> Demand growth | V75: ='Project List (%)'!V75 -> 4 | W75: ='Project List (%)'!W75 -> 0 | X75: ='Project List (%)'!X75 -> 0 | Y75: ='Project List (%)'!Y75 -> 2018
C76: ='Project List (%)'!C76 -> Keilor | D76: ='Project List (%)'!D76 -> 162 | E76: ='Project List (%)'!E76 -> Rural Long | F76: ='Project List (%)'!F76 -> 0 | G76: ='Project List (%)'!G76 -> WND 13 Cobaw Swer Aug | H76: ='Project List (%)'!H76 -> 0 | J76: =$H76 * 'Project List (%)'!J76 -> 0 | K76: =$H76 * 'Project List (%)'!K76 -> 0 | L76: =$H76 * 'Project List (%)'!L76 -> 0 | M76: =$H76 * 'Project List (%)'!M76 -> 0 | N76: =$H76 * 'Project List (%)'!N76 -> 0 | O76: =$H76 * 'Project List (%)'!O76 -> 0 | P76: =$H76 * 'Project List (%)'!P76 -> 0 | Q76: =$H76 * 'Project List (%)'!Q76 -> 0 | R76: =$H76 * 'Project List (%)'!R76 -> 0 | S76: ='Project List (%)'!S76 -> 0 | T76: ='Project List (%)'!T76 -> 0 | U76: ='Project List (%)'!U76 -> 0 | V76: ='Project List (%)'!V76 -> 0 | W76: ='Project List (%)'!W76 -> 0 | X76: ='Project List (%)'!X76 -> 0 | Y76: ='Project List (%)'!Y76 -> 2021+
C77: ='Project List (%)'!C77 -> Keilor | D77: ='Project List (%)'!D77 -> 162 | E77: ='Project List (%)'!E77 -> Rural Long | F77: ='Project List (%)'!F77 -> 0 | G77: ='Project List (%)'!G77 -> WND 13 Goldie North SWER aug | H77: ='Project List (%)'!H77 -> 314.5890579 | J77: =$H77 * 'Project List (%)'!J77 -> 0 | K77: =$H77 * 'Project List (%)'!K77 -> 0 | L77: =$H77 * 'Project List (%)'!L77 -> 314.5890579 | M77: =$H77 * 'Project List (%)'!M77 -> 0 | N77: =$H77 * 'Project List (%)'!N77 -> 0 | O77: =$H77 * 'Project List (%)'!O77 -> 0 | P77: =$H77 * 'Project List (%)'!P77 -> 0 | Q77: =$H77 * 'Project List (%)'!Q77 -> 0 | R77: =$H77 * 'Project List (%)'!R77 -> 0 | S77: ='Project List (%)'!S77 -> 0 | T77: ='Project List (%)'!T77 -> Overhead | U77: ='Project List (%)'!U77 -> Demand growth | V77: ='Project List (%)'!V77 -> 0.1 | W77: ='Project List (%)'!W77 -> 0 | X77: ='Project List (%)'!X77 -> 0 | Y77: ='Project List (%)'!Y77 -> 2015
C78: ='Project List (%)'!C78 -> Keilor | D78: ='Project List (%)'!D78 -> 162 | E78: ='Project List (%)'!E78 -> Rural Long | F78: ='Project List (%)'!F78 -> 0 | G78: ='Project List (%)'!G78 -> WND 13 Cobaw line aug stage 2 | H78: ='Project List (%)'!H78 -> 0 | J78: =$H78 * 'Project List (%)'!J78 -> 0 | K78: =$H78 * 'Project List (%)'!K78 -> 0 | L78: =$H78 * 'Project List (%)'!L78 -> 0 | M78: =$H78 * 'Project List (%)'!M78 -> 0 | N78: =$H78 * 'Project List (%)'!N78 -> 0 | O78: =$H78 * 'Project List (%)'!O78 -> 0 | P78: =$H78 * 'Project List (%)'!P78 -> 0 | Q78: =$H78 * 'Project List (%)'!Q78 -> 0 | R78: =$H78 * 'Project List (%)'!R78 -> 0 | S78: ='Project List (%)'!S78 -> 0 | T78: ='Project List (%)'!T78 -> 0 | U78: ='Project List (%)'!U78 -> 0 | V78: ='Project List (%)'!V78 -> 0 | W78: ='Project List (%)'!W78 -> 0 | X78: ='Project List (%)'!X78 -> 0 | Y78: ='Project List (%)'!Y78 -> 2021+
C79: ='Project List (%)'!C79 -> Keilor | D79: ='Project List (%)'!D79 -> 162 | E79: ='Project List (%)'!E79 -> Rural Long | F79: ='Project List (%)'!F79 -> 0 | G79: ='Project List (%)'!G79 -> WND 13 Stage 2 Kyneton 2nd feeder to connect to WND 13 | H79: ='Project List (%)'!H79 -> 0 | J79: =$H79 * 'Project List (%)'!J79 -> 0 | K79: =$H79 * 'Project List (%)'!K79 -> 0 | L79: =$H79 * 'Project List (%)'!L79 -> 0 | M79: =$H79 * 'Project List (%)'!M79 -> 0 | N79: =$H79 * 'Project List (%)'!N79 -> 0 | O79: =$H79 * 'Project List (%)'!O79 -> 0 | P79: =$H79 * 'Project List (%)'!P79 -> 0 | Q79: =$H79 * 'Project List (%)'!Q79 -> 0 | R79: =$H79 * 'Project List (%)'!R79 -> 0 | S79: ='Project List (%)'!S79 -> 0 | T79: ='Project List (%)'!T79 -> 0 | U79: ='Project List (%)'!U79 -> 0 | V79: ='Project List (%)'!V79 -> 0 | W79: ='Project List (%)'!W79 -> 0 | X79: ='Project List (%)'!X79 -> 0 | Y79: ='Project List (%)'!Y79 -> 0
C80: ='Project List (%)'!C80 -> Keilor | D80: ='Project List (%)'!D80 -> 162 | E80: ='Project List (%)'!E80 -> Rural Short | F80: ='Project List (%)'!F80 -> 0 | G80: ='Project List (%)'!G80 -> WND 14 Stage 1 Kyneton 2nd feeder WND 14 | H80: ='Project List (%)'!H80 -> 0 | J80: =$H80 * 'Project List (%)'!J80 -> 0 | K80: =$H80 * 'Project List (%)'!K80 -> 0 | L80: =$H80 * 'Project List (%)'!L80 -> 0 | M80: =$H80 * 'Project List (%)'!M80 -> 0 | N80: =$H80 * 'Project List (%)'!N80 -> 0 | O80: =$H80 * 'Project List (%)'!O80 -> 0 | P80: =$H80 * 'Project List (%)'!P80 -> 0 | Q80: =$H80 * 'Project List (%)'!Q80 -> 0 | R80: =$H80 * 'Project List (%)'!R80 -> 0 | S80: ='Project List (%)'!S80 -> 0 | T80: ='Project List (%)'!T80 -> 0 | U80: ='Project List (%)'!U80 -> 0 | V80: ='Project List (%)'!V80 -> 0 | W80: ='Project List (%)'!W80 -> 0 | X80: ='Project List (%)'!X80 -> 0 | Y80: ='Project List (%)'!Y80 -> 0
C81: ='Project List (%)'!C81 -> Keilor | D81: ='Project List (%)'!D81 -> 162 | E81: ='Project List (%)'!E81 -> Rural Long | F81: ='Project List (%)'!F81 -> 0 | G81: ='Project List (%)'!G81 -> WND 22 Uprate to 65 Deg | H81: ='Project List (%)'!H81 -> 0 | J81: =$H81 * 'Project List (%)'!J81 -> 0 | K81: =$H81 * 'Project List (%)'!K81 -> 0 | L81: =$H81 * 'Project List (%)'!L81 -> 0 | M81: =$H81 * 'Project List (%)'!M81 -> 0 | N81: =$H81 * 'Project List (%)'!N81 -> 0 | O81: =$H81 * 'Project List (%)'!O81 -> 0 | P81: =$H81 * 'Project List (%)'!P81 -> 0 | Q81: =$H81 * 'Project List (%)'!Q81 -> 0 | R81: =$H81 * 'Project List (%)'!R81 -> 0 | S81: ='Project List (%)'!S81 -> 0 | T81: ='Project List (%)'!T81 -> 0 | U81: ='Project List (%)'!U81 -> 0 | V81: ='Project List (%)'!V81 -> 0 | W81: ='Project List (%)'!W81 -> 0 | X81: ='Project List (%)'!X81 -> 0 | Y81: ='Project List (%)'!Y81 -> 2021+
C82: ='Project List (%)'!C82 -> Keilor | D82: ='Project List (%)'!D82 -> 162 | E82: ='Project List (%)'!E82 -> Rural Long | F82: ='Project List (%)'!F82 -> 0 | G82: ='Project List (%)'!G82 -> WND 23 Vaughan Springs SWER Aug | H82: ='Project List (%)'!H82 -> 0 | J82: =$H82 * 'Project List (%)'!J82 -> 0 | K82: =$H82 * 'Project List (%)'!K82 -> 0 | L82: =$H82 * 'Project List (%)'!L82 -> 0 | M82: =$H82 * 'Project List (%)'!M82 -> 0 | N82: =$H82 * 'Project List (%)'!N82 -> 0 | O82: =$H82 * 'Project List (%)'!O82 -> 0 | P82: =$H82 * 'Project List (%)'!P82 -> 0 | Q82: =$H82 * 'Project List (%)'!Q82 -> 0 | R82: =$H82 * 'Project List (%)'!R82 -> 0 | S82: ='Project List (%)'!S82 -> 0 | T82: ='Project List (%)'!T82 -> 0 | U82: ='Project List (%)'!U82 -> 0 | V82: ='Project List (%)'!V82 -> 0 | W82: ='Project List (%)'!W82 -> 0 | X82: ='Project List (%)'!X82 -> 0 | Y82: ='Project List (%)'!Y82 -> 2021+
C83: ='Project List (%)'!C83 -> Keilor | D83: ='Project List (%)'!D83 -> 162 | E83: ='Project List (%)'!E83 -> Rural Long | F83: ='Project List (%)'!F83 -> 0 | G83: ='Project List (%)'!G83 -> WND 23 SPRING PLAINS SWER AUG | H83: ='Project List (%)'!H83 -> 0 | J83: =$H83 * 'Project List (%)'!J83 -> 0 | K83: =$H83 * 'Project List (%)'!K83 -> 0 | L83: =$H83 * 'Project List (%)'!L83 -> 0 | M83: =$H83 * 'Project List (%)'!M83 -> 0 | N83: =$H83 * 'Project List (%)'!N83 -> 0 | O83: =$H83 * 'Project List (%)'!O83 -> 0 | P83: =$H83 * 'Project List (%)'!P83 -> 0 | Q83: =$H83 * 'Project List (%)'!Q83 -> 0 | R83: =$H83 * 'Project List (%)'!R83 -> 0 | S83: ='Project List (%)'!S83 -> 0 | T83: ='Project List (%)'!T83 -> 0 | U83: ='Project List (%)'!U83 -> 0 | V83: ='Project List (%)'!V83 -> 0 | W83: ='Project List (%)'!W83 -> 0 | X83: ='Project List (%)'!X83 -> 0 | Y83: ='Project List (%)'!Y83 -> 2021+
C84: ='Project List (%)'!C84 -> Keilor | D84: ='Project List (%)'!D84 -> 162 | E84: ='Project List (%)'!E84 -> Rural Long | F84: ='Project List (%)'!F84 -> 0 | G84: ='Project List (%)'!G84 -> WND 23 Langley Line reconductor WND 23 STG1 | H84: ='Project List (%)'!H84 -> 0 | J84: =$H84 * 'Project List (%)'!J84 -> 0 | K84: =$H84 * 'Project List (%)'!K84 -> 0 | L84: =$H84 * 'Project List (%)'!L84 -> 0 | M84: =$H84 * 'Project List (%)'!M84 -> 0 | N84: =$H84 * 'Project List (%)'!N84 -> 0 | O84: =$H84 * 'Project List (%)'!O84 -> 0 | P84: =$H84 * 'Project List (%)'!P84 -> 0 | Q84: =$H84 * 'Project List (%)'!Q84 -> 0 | R84: =$H84 * 'Project List (%)'!R84 -> 0 | S84: ='Project List (%)'!S84 -> 0 | T84: ='Project List (%)'!T84 -> 0 | U84: ='Project List (%)'!U84 -> 0 | V84: ='Project List (%)'!V84 -> 0 | W84: ='Project List (%)'!W84 -> 0 | X84: ='Project List (%)'!X84 -> 0 | Y84: ='Project List (%)'!Y84 -> 2021+
C85: ='Project List (%)'!C85 -> Keilor | D85: ='Project List (%)'!D85 -> 162 | E85: ='Project List (%)'!E85 -> Rural Long | F85: ='Project List (%)'!F85 -> 0 | G85: ='Project List (%)'!G85 -> WND 23 Langley Line reconductor WND 23 STG2 | H85: ='Project List (%)'!H85 -> 0 | J85: =$H85 * 'Project List (%)'!J85 -> 0 | K85: =$H85 * 'Project List (%)'!K85 -> 0 | L85: =$H85 * 'Project List (%)'!L85 -> 0 | M85: =$H85 * 'Project List (%)'!M85 -> 0 | N85: =$H85 * 'Project List (%)'!N85 -> 0 | O85: =$H85 * 'Project List (%)'!O85 -> 0 | P85: =$H85 * 'Project List (%)'!P85 -> 0 | Q85: =$H85 * 'Project List (%)'!Q85 -> 0 | R85: =$H85 * 'Project List (%)'!R85 -> 0 | S85: ='Project List (%)'!S85 -> 0 | T85: ='Project List (%)'!T85 -> 0 | U85: ='Project List (%)'!U85 -> 0 | V85: ='Project List (%)'!V85 -> 0 | W85: ='Project List (%)'!W85 -> 0 | X85: ='Project List (%)'!X85 -> 0 | Y85: ='Project List (%)'!Y85 -> 2021+
C86: ='Project List (%)'!C86 -> Keilor | D86: ='Project List (%)'!D86 -> 162 | E86: ='Project List (%)'!E86 -> Rural Long | F86: ='Project List (%)'!F86 -> 0 | G86: ='Project List (%)'!G86 -> WND 23 New Regulator pole 90 Trentham line WND 23 | H86: ='Project List (%)'!H86 -> 251.6712463 | J86: =$H86 * 'Project List (%)'!J86 -> 0 | K86: =$H86 * 'Project List (%)'!K86 -> 0 | L86: =$H86 * 'Project List (%)'!L86 -> 0 | M86: =$H86 * 'Project List (%)'!M86 -> 0 | N86: =$H86 * 'Project List (%)'!N86 -> 0 | O86: =$H86 * 'Project List (%)'!O86 -> 0 | P86: =$H86 * 'Project List (%)'!P86 -> 0 | Q86: =$H86 * 'Project List (%)'!Q86 -> 251.6712463 | R86: =$H86 * 'Project List (%)'!R86 -> 0 | S86: ='Project List (%)'!S86 -> 0 | T86: ='Project List (%)'!T86 -> Overhead | U86: ='Project List (%)'!U86 -> Voltage issues | V86: ='Project List (%)'!V86 -> 5 | W86: ='Project List (%)'!W86 -> 0 | X86: ='Project List (%)'!X86 -> 0 | Y86: ='Project List (%)'!Y86 -> 2020
C87: ='Project List (%)'!C87 -> Keilor | D87: ='Project List (%)'!D87 -> 162 | E87: ='Project List (%)'!E87 -> Rural Long | F87: ='Project List (%)'!F87 -> 0 | G87: ='Project List (%)'!G87 -> WND 24 Chanters Lane SWER Aug | H87: ='Project List (%)'!H87 -> 360.8256374 | J87: =$H87 * 'Project List (%)'!J87 -> 0 | K87: =$H87 * 'Project List (%)'!K87 -> 0 | L87: =$H87 * 'Project List (%)'!L87 -> 0 | M87: =$H87 * 'Project List (%)'!M87 -> 360.8256374 | N87: =$H87 * 'Project List (%)'!N87 -> 0 | O87: =$H87 * 'Project List (%)'!O87 -> 0 | P87: =$H87 * 'Project List (%)'!P87 -> 0 | Q87: =$H87 * 'Project List (%)'!Q87 -> 0 | R87: =$H87 * 'Project List (%)'!R87 -> 0 | S87: ='Project List (%)'!S87 -> 0 | T87: ='Project List (%)'!T87 -> Overhead | U87: ='Project List (%)'!U87 -> Demand growth | V87: ='Project List (%)'!V87 -> 0.1 | W87: ='Project List (%)'!W87 -> 0 | X87: ='Project List (%)'!X87 -> 0 | Y87: ='Project List (%)'!Y87 -> 2016
C88: ='Project List (%)'!C88 -> Keilor | D88: ='Project List (%)'!D88 -> 162 | E88: ='Project List (%)'!E88 -> Rural Long | F88: ='Project List (%)'!F88 -> 0 | G88: ='Project List (%)'!G88 -> WND 24 Little Hampton SWER Aug | H88: ='Project List (%)'!H88 -> 262.1575482 | J88: =$H88 * 'Project List (%)'!J88 -> 0 | K88: =$H88 * 'Project List (%)'!K88 -> 0 | L88: =$H88 * 'Project List (%)'!L88 -> 0 | M88: =$H88 * 'Project List (%)'!M88 -> 0 | N88: =$H88 * 'Project List (%)'!N88 -> 0 | O88: =$H88 * 'Project List (%)'!O88 -> 262.1575482 | P88: =$H88 * 'Project List (%)'!P88 -> 0 | Q88: =$H88 * 'Project List (%)'!Q88 -> 0 | R88: =$H88 * 'Project List (%)'!R88 -> 0 | S88: ='Project List (%)'!S88 -> 0 | T88: ='Project List (%)'!T88 -> Overhead | U88: ='Project List (%)'!U88 -> Demand growth | V88: ='Project List (%)'!V88 -> 0.1 | W88: ='Project List (%)'!W88 -> 0 | X88: ='Project List (%)'!X88 -> 0 | Y88: ='Project List (%)'!Y88 -> 2018
C89: ='Project List (%)'!C89 -> Keilor | D89: ='Project List (%)'!D89 -> 162 | E89: ='Project List (%)'!E89 -> Rural Long | F89: ='Project List (%)'!F89 -> 0 | G89: ='Project List (%)'!G89 -> WND 24 Spring Hill East SWER Aug | H89: ='Project List (%)'!H89 -> 360.8256374 | J89: =$H89 * 'Project List (%)'!J89 -> 0 | K89: =$H89 * 'Project List (%)'!K89 -> 0 | L89: =$H89 * 'Project List (%)'!L89 -> 0 | M89: =$H89 * 'Project List (%)'!M89 -> 360.8256374 | N89: =$H89 * 'Project List (%)'!N89 -> 0 | O89: =$H89 * 'Project List (%)'!O89 -> 0 | P89: =$H89 * 'Project List (%)'!P89 -> 0 | Q89: =$H89 * 'Project List (%)'!Q89 -> 0 | R89: =$H89 * 'Project List (%)'!R89 -> 0 | S89: ='Project List (%)'!S89 -> 0 | T89: ='Project List (%)'!T89 -> Both | U89: ='Project List (%)'!U89 -> Demand growth | V89: ='Project List (%)'!V89 -> 0.1 | W89: ='Project List (%)'!W89 -> 0 | X89: ='Project List (%)'!X89 -> 0 | Y89: ='Project List (%)'!Y89 -> 2016
C90: ='Project List (%)'!C90 -> Keilor | D90: ='Project List (%)'!D90 -> 162 | E90: ='Project List (%)'!E90 -> Rural Long | F90: ='Project List (%)'!F90 -> 0 | G90: ='Project List (%)'!G90 -> WND 24 Upper Coliban SWER aug | H90: ='Project List (%)'!H90 -> 0 | J90: =$H90 * 'Project List (%)'!J90 -> 0 | K90: =$H90 * 'Project List (%)'!K90 -> 0 | L90: =$H90 * 'Project List (%)'!L90 -> 0 | M90: =$H90 * 'Project List (%)'!M90 -> 0 | N90: =$H90 * 'Project List (%)'!N90 -> 0 | O90: =$H90 * 'Project List (%)'!O90 -> 0 | P90: =$H90 * 'Project List (%)'!P90 -> 0 | Q90: =$H90 * 'Project List (%)'!Q90 -> 0 | R90: =$H90 * 'Project List (%)'!R90 -> 0 | S90: ='Project List (%)'!S90 -> 0 | T90: ='Project List (%)'!T90 -> 0 | U90: ='Project List (%)'!U90 -> 0 | V90: ='Project List (%)'!V90 -> 0 | W90: ='Project List (%)'!W90 -> 0 | X90: ='Project List (%)'!X90 -> 0 | Y90: ='Project List (%)'!Y90 -> 2021+
C91: ='Project List (%)'!C91 -> Keilor | D91: ='Project List (%)'!D91 -> 162 | E91: ='Project List (%)'!E91 -> Rural Long | F91: ='Project List (%)'!F91 -> 0 | G91: ='Project List (%)'!G91 -> WND 24 Lauriston SWER aug | H91: ='Project List (%)'!H91 -> 360.8256374 | J91: =$H91 * 'Project List (%)'!J91 -> 0 | K91: =$H91 * 'Project List (%)'!K91 -> 0 | L91: =$H91 * 'Project List (%)'!L91 -> 0 | M91: =$H91 * 'Project List (%)'!M91 -> 0 | N91: =$H91 * 'Project List (%)'!N91 -> 0 | O91: =$H91 * 'Project List (%)'!O91 -> 0 | P91: =$H91 * 'Project List (%)'!P91 -> 360.8256374 | Q91: =$H91 * 'Project List (%)'!Q91 -> 0 | R91: =$H91 * 'Project List (%)'!R91 -> 0 | S91: ='Project List (%)'!S91 -> 0 | T91: ='Project List (%)'!T91 -> Overhead | U91: ='Project List (%)'!U91 -> Demand growth | V91: ='Project List (%)'!V91 -> 0.1 | W91: ='Project List (%)'!W91 -> 0 | X91: ='Project List (%)'!X91 -> 0 | Y91: ='Project List (%)'!Y91 -> 2019
C92: ='Project List (%)'!C92 -> Keilor | D92: ='Project List (%)'!D92 -> 162 | E92: ='Project List (%)'!E92 -> Rural Long | F92: ='Project List (%)'!F92 -> 0 | G92: ='Project List (%)'!G92 -> WND 23 Uprate to 65 Deg | H92: ='Project List (%)'!H92 -> 0 | J92: =$H92 * 'Project List (%)'!J92 -> 0 | K92: =$H92 * 'Project List (%)'!K92 -> 0 | L92: =$H92 * 'Project List (%)'!L92 -> 0 | M92: =$H92 * 'Project List (%)'!M92 -> 0 | N92: =$H92 * 'Project List (%)'!N92 -> 0 | O92: =$H92 * 'Project List (%)'!O92 -> 0 | P92: =$H92 * 'Project List (%)'!P92 -> 0 | Q92: =$H92 * 'Project List (%)'!Q92 -> 0 | R92: =$H92 * 'Project List (%)'!R92 -> 0 | S92: ='Project List (%)'!S92 -> 0 | T92: ='Project List (%)'!T92 -> 0 | U92: ='Project List (%)'!U92 -> 0 | V92: ='Project List (%)'!V92 -> 0 | W92: ='Project List (%)'!W92 -> 0 | X92: ='Project List (%)'!X92 -> 0 | Y92: ='Project List (%)'!Y92 -> 2021+
C93: ='Project List (%)'!C93 -> Bendigo | D93: ='Project List (%)'!D93 -> 162 | E93: ='Project List (%)'!E93 -> Rural Long | F93: ='Project List (%)'!F93 -> 0 | G93: ='Project List (%)'!G93 -> CMN 1 Augment supply to Malmsbury | H93: ='Project List (%)'!H93 -> 0 | J93: =$H93 * 'Project List (%)'!J93 -> 0 | K93: =$H93 * 'Project List (%)'!K93 -> 0 | L93: =$H93 * 'Project List (%)'!L93 -> 0 | M93: =$H93 * 'Project List (%)'!M93 -> 0 | N93: =$H93 * 'Project List (%)'!N93 -> 0 | O93: =$H93 * 'Project List (%)'!O93 -> 0 | P93: =$H93 * 'Project List (%)'!P93 -> 0 | Q93: =$H93 * 'Project List (%)'!Q93 -> 0 | R93: =$H93 * 'Project List (%)'!R93 -> 0 | S93: ='Project List (%)'!S93 -> 0 | T93: ='Project List (%)'!T93 -> 0 | U93: ='Project List (%)'!U93 -> 0 | V93: ='Project List (%)'!V93 -> 0 | W93: ='Project List (%)'!W93 -> 0 | X93: ='Project List (%)'!X93 -> 0 | Y93: ='Project List (%)'!Y93 -> 2021+
C94: ='Project List (%)'!C94 -> Keilor | D94: ='Project List (%)'!D94 -> 0 | E94: ='Project List (%)'!E94 -> 0 | F94: ='Project List (%)'!F94 -> 0 | G94: ='Project List (%)'!G94 -> 0 | H94: ='Project List (%)'!H94 -> 0 | J94: =$H94 * 'Project List (%)'!J94 -> 0 | K94: =$H94 * 'Project List (%)'!K94 -> 0 | L94: =$H94 * 'Project List (%)'!L94 -> 0 | M94: =$H94 * 'Project List (%)'!M94 -> 0 | N94: =$H94 * 'Project List (%)'!N94 -> 0 | O94: =$H94 * 'Project List (%)'!O94 -> 0 | P94: =$H94 * 'Project List (%)'!P94 -> 0 | Q94: =$H94 * 'Project List (%)'!Q94 -> 0 | R94: =$H94 * 'Project List (%)'!R94 -> 0 | S94: ='Project List (%)'!S94 -> 0 | T94: ='Project List (%)'!T94 -> 0 | U94: ='Project List (%)'!U94 -> 0 | V94: ='Project List (%)'!V94 -> 0 | W94: ='Project List (%)'!W94 -> 0 | X94: ='Project List (%)'!X94 -> 0 | Y94: ='Project List (%)'!Y94 -> 0
C95: ='Project List (%)'!C95 -> Keilor | D95: ='Project List (%)'!D95 -> 0 | E95: ='Project List (%)'!E95 -> 0 | F95: ='Project List (%)'!F95 -> 0 | G95: ='Project List (%)'!G95 -> Gisborne, GSB | H95: ='Project List (%)'!H95 -> 0 | J95: =$H95 * 'Project List (%)'!J95 -> 0 | K95: =$H95 * 'Project List (%)'!K95 -> 0 | L95: =$H95 * 'Project List (%)'!L95 -> 0 | M95: =$H95 * 'Project List (%)'!M95 -> 0 | N95: =$H95 * 'Project List (%)'!N95 -> 0 | O95: =$H95 * 'Project List (%)'!O95 -> 0 | P95: =$H95 * 'Project List (%)'!P95 -> 0 | Q95: =$H95 * 'Project List (%)'!Q95 -> 0 | R95: =$H95 * 'Project List (%)'!R95 -> 0 | S95: ='Project List (%)'!S95 -> 0 | T95: ='Project List (%)'!T95 -> 0 | U95: ='Project List (%)'!U95 -> 0 | V95: ='Project List (%)'!V95 -> 0 | W95: ='Project List (%)'!W95 -> 0 | X95: ='Project List (%)'!X95 -> 0 | Y95: ='Project List (%)'!Y95 -> 0
C96: ='Project List (%)'!C96 -> Keilor | D96: ='Project List (%)'!D96 -> 162 | E96: ='Project List (%)'!E96 -> Rural Short | F96: ='Project List (%)'!F96 -> 0 | G96: ='Project List (%)'!G96 -> GSB 21 & 22 feeders Design | H96: ='Project List (%)'!H96 -> 0 | J96: =$H96 * 'Project List (%)'!J96 -> 0 | K96: =$H96 * 'Project List (%)'!K96 -> 0 | L96: =$H96 * 'Project List (%)'!L96 -> 0 | M96: =$H96 * 'Project List (%)'!M96 -> 0 | N96: =$H96 * 'Project List (%)'!N96 -> 0 | O96: =$H96 * 'Project List (%)'!O96 -> 0 | P96: =$H96 * 'Project List (%)'!P96 -> 0 | Q96: =$H96 * 'Project List (%)'!Q96 -> 0 | R96: =$H96 * 'Project List (%)'!R96 -> 0 | S96: ='Project List (%)'!S96 -> 0 | T96: ='Project List (%)'!T96 -> 0 | U96: ='Project List (%)'!U96 -> 0 | V96: ='Project List (%)'!V96 -> 0 | W96: ='Project List (%)'!W96 -> 0 | X96: ='Project List (%)'!X96 -> 0 | Y96: ='Project List (%)'!Y96 -> 2021+
C97: ='Project List (%)'!C97 -> Keilor | D97: ='Project List (%)'!D97 -> 162 | E97: ='Project List (%)'!E97 -> Rural Short | F97: ='Project List (%)'!F97 -> 0 | G97: ='Project List (%)'!G97 -> GSB 21 & 22 feeders Construct | H97: ='Project List (%)'!H97 -> 0 | J97: =$H97 * 'Project List (%)'!J97 -> 0 | K97: =$H97 * 'Project List (%)'!K97 -> 0 | L97: =$H97 * 'Project List (%)'!L97 -> 0 | M97: =$H97 * 'Project List (%)'!M97 -> 0 | N97: =$H97 * 'Project List (%)'!N97 -> 0 | O97: =$H97 * 'Project List (%)'!O97 -> 0 | P97: =$H97 * 'Project List (%)'!P97 -> 0 | Q97: =$H97 * 'Project List (%)'!Q97 -> 0 | R97: =$H97 * 'Project List (%)'!R97 -> 0 | S97: ='Project List (%)'!S97 -> 0 | T97: ='Project List (%)'!T97 -> 0 | U97: ='Project List (%)'!U97 -> 0 | V97: ='Project List (%)'!V97 -> 0 | W97: ='Project List (%)'!W97 -> 0 | X97: ='Project List (%)'!X97 -> 0 | Y97: ='Project List (%)'!Y97 -> 2021+
C98: ='Project List (%)'!C98 -> Keilor | D98: ='Project List (%)'!D98 -> 162 | E98: ='Project List (%)'!E98 -> Rural Short | F98: ='Project List (%)'!F98 -> 0 | G98: ='Project List (%)'!G98 -> GSB 23 & 24 feeders | H98: ='Project List (%)'!H98 -> 0 | J98: =$H98 * 'Project List (%)'!J98 -> 0 | K98: =$H98 * 'Project List (%)'!K98 -> 0 | L98: =$H98 * 'Project List (%)'!L98 -> 0 | M98: =$H98 * 'Project List (%)'!M98 -> 0 | N98: =$H98 * 'Project List (%)'!N98 -> 0 | O98: =$H98 * 'Project List (%)'!O98 -> 0 | P98: =$H98 * 'Project List (%)'!P98 -> 0 | Q98: =$H98 * 'Project List (%)'!Q98 -> 0 | R98: =$H98 * 'Project List (%)'!R98 -> 0 | S98: ='Project List (%)'!S98 -> 0 | T98: ='Project List (%)'!T98 -> 0 | U98: ='Project List (%)'!U98 -> 0 | V98: ='Project List (%)'!V98 -> 0 | W98: ='Project List (%)'!W98 -> 0 | X98: ='Project List (%)'!X98 -> 0 | Y98: ='Project List (%)'!Y98 -> 2021+
C99: ='Project List (%)'!C99 -> Keilor | D99: ='Project List (%)'!D99 -> 0 | E99: ='Project List (%)'!E99 -> 0 | F99: ='Project List (%)'!F99 -> 0 | G99: ='Project List (%)'!G99 -> 0 | H99: ='Project List (%)'!H99 -> 0 | J99: =$H99 * 'Project List (%)'!J99 -> 0 | K99: =$H99 * 'Project List (%)'!K99 -> 0 | L99: =$H99 * 'Project List (%)'!L99 -> 0 | M99: =$H99 * 'Project List (%)'!M99 -> 0 | N99: =$H99 * 'Project List (%)'!N99 -> 0 | O99: =$H99 * 'Project List (%)'!O99 -> 0 | P99: =$H99 * 'Project List (%)'!P99 -> 0 | Q99: =$H99 * 'Project List (%)'!Q99 -> 0 | R99: =$H99 * 'Project List (%)'!R99 -> 0 | S99: ='Project List (%)'!S99 -> 0 | T99: ='Project List (%)'!T99 -> 0 | U99: ='Project List (%)'!U99 -> 0 | V99: ='Project List (%)'!V99 -> 0 | W99: ='Project List (%)'!W99 -> 0 | X99: ='Project List (%)'!X99 -> 0 | Y99: ='Project List (%)'!Y99 -> 0
C100: ='Project List (%)'!C100 -> Keilor | D100: ='Project List (%)'!D100 -> 0 | E100: ='Project List (%)'!E100 -> 0 | F100: ='Project List (%)'!F100 -> 0 | G100: ='Project List (%)'!G100 -> Melton, MLN | H100: ='Project List (%)'!H100 -> 0 | J100: =$H100 * 'Project List (%)'!J100 -> 0 | K100: =$H100 * 'Project List (%)'!K100 -> 0 | L100: =$H100 * 'Project List (%)'!L100 -> 0 | M100: =$H100 * 'Project List (%)'!M100 -> 0 | N100: =$H100 * 'Project List (%)'!N100 -> 0 | O100: =$H100 * 'Project List (%)'!O100 -> 0 | P100: =$H100 * 'Project List (%)'!P100 -> 0 | Q100: =$H100 * 'Project List (%)'!Q100 -> 0 | R100: =$H100 * 'Project List (%)'!R100 -> 0 | S100: ='Project List (%)'!S100 -> 0 | T100: ='Project List (%)'!T100 -> 0 | U100: ='Project List (%)'!U100 -> 0 | V100: ='Project List (%)'!V100 -> 0 | W100: ='Project List (%)'!W100 -> 0 | X100: ='Project List (%)'!X100 -> 0 | Y100: ='Project List (%)'!Y100 -> 0
C101: ='Project List (%)'!C101 -> Deer Park | D101: ='Project List (%)'!D101 -> 162 | E101: ='Project List (%)'!E101 -> Urban | F101: ='Project List (%)'!F101 -> 0 | G101: ='Project List (%)'!G101 -> MLN 21 Ferris Rd 3PH steel tie to MLN 11 | H101: ='Project List (%)'!H101 -> 0 | J101: =$H101 * 'Project List (%)'!J101 -> 0 | K101: =$H101 * 'Project List (%)'!K101 -> 0 | L101: =$H101 * 'Project List (%)'!L101 -> 0 | M101: =$H101 * 'Project List (%)'!M101 -> 0 | N101: =$H101 * 'Project List (%)'!N101 -> 0 | O101: =$H101 * 'Project List (%)'!O101 -> 0 | P101: =$H101 * 'Project List (%)'!P101 -> 0 | Q101: =$H101 * 'Project List (%)'!Q101 -> 0 | R101: =$H101 * 'Project List (%)'!R101 -> 0 | S101: ='Project List (%)'!S101 -> 0 | T101: ='Project List (%)'!T101 -> 0 | U101: ='Project List (%)'!U101 -> 0 | V101: ='Project List (%)'!V101 -> 0 | W101: ='Project List (%)'!W101 -> 0 | X101: ='Project List (%)'!X101 -> 0 | Y101: ='Project List (%)'!Y101 -> 2021+
C102: ='Project List (%)'!C102 -> Deer Park | D102: ='Project List (%)'!D102 -> 162 | E102: ='Project List (%)'!E102 -> Urban | F102: ='Project List (%)'!F102 -> 0 | G102: ='Project List (%)'!G102 -> MLN 21 Uprate | H102: ='Project List (%)'!H102 -> 0 | J102: =$H102 * 'Project List (%)'!J102 -> 0 | K102: =$H102 * 'Project List (%)'!K102 -> 0 | L102: =$H102 * 'Project List (%)'!L102 -> 0 | M102: =$H102 * 'Project List (%)'!M102 -> 0 | N102: =$H102 * 'Project List (%)'!N102 -> 0 | O102: =$H102 * 'Project List (%)'!O102 -> 0 | P102: =$H102 * 'Project List (%)'!P102 -> 0 | Q102: =$H102 * 'Project List (%)'!Q102 -> 0 | R102: =$H102 * 'Project List (%)'!R102 -> 0 | S102: ='Project List (%)'!S102 -> 0 | T102: ='Project List (%)'!T102 -> 0 | U102: ='Project List (%)'!U102 -> 0 | V102: ='Project List (%)'!V102 -> 0 | W102: ='Project List (%)'!W102 -> 0 | X102: ='Project List (%)'!X102 -> 0 | Y102: ='Project List (%)'!Y102 -> 2021+
C103: ='Project List (%)'!C103 -> Deer Park | D103: ='Project List (%)'!D103 -> 162 | E103: ='Project List (%)'!E103 -> Rural Short | F103: ='Project List (%)'!F103 -> 5087331 | G103: ='Project List (%)'!G103 -> MLN32 New 22kV Feeder to offload MLN24 & accept 5MW from BMH | H103: ='Project List (%)'!H103 -> 1816.052652 | J103: =$H103 * 'Project List (%)'!J103 -> 0 | K103: =$H103 * 'Project List (%)'!K103 -> 0 | L103: =$H103 * 'Project List (%)'!L103 -> 0 | M103: =$H103 * 'Project List (%)'!M103 -> 90.80263262 | N103: =$H103 * 'Project List (%)'!N103 -> 1725.25002 | O103: =$H103 * 'Project List (%)'!O103 -> 0 | P103: =$H103 * 'Project List (%)'!P103 -> 0 | Q103: =$H103 * 'Project List (%)'!Q103 -> 0 | R103: =$H103 * 'Project List (%)'!R103 -> 0 | S103: ='Project List (%)'!S103 -> 0 | T103: ='Project List (%)'!T103 -> Both | U103: ='Project List (%)'!U103 -> Demand growth | V103: ='Project List (%)'!V103 -> 12 | W103: ='Project List (%)'!W103 -> 0 | X103: ='Project List (%)'!X103 -> 0 | Y103: ='Project List (%)'!Y103 -> 2017
C104: ='Project List (%)'!C104 -> Deer Park | D104: ='Project List (%)'!D104 -> 162 | E104: ='Project List (%)'!E104 -> Rural Short | F104: ='Project List (%)'!F104 -> 0 | G104: ='Project List (%)'!G104 -> MLN 31 New 22kV fdr to offload MLN11 & 24 | H104: ='Project List (%)'!H104 -> 0 | J104: =$H104 * 'Project List (%)'!J104 -> 0 | K104: =$H104 * 'Project List (%)'!K104 -> 0 | L104: =$H104 * 'Project List (%)'!L104 -> 0 | M104: =$H104 * 'Project List (%)'!M104 -> 0 | N104: =$H104 * 'Project List (%)'!N104 -> 0 | O104: =$H104 * 'Project List (%)'!O104 -> 0 | P104: =$H104 * 'Project List (%)'!P104 -> 0 | Q104: =$H104 * 'Project List (%)'!Q104 -> 0 | R104: =$H104 * 'Project List (%)'!R104 -> 0 | S104: ='Project List (%)'!S104 -> 0 | T104: ='Project List (%)'!T104 -> 0 | U104: ='Project List (%)'!U104 -> 0 | V104: ='Project List (%)'!V104 -> 0 | W104: ='Project List (%)'!W104 -> 0 | X104: ='Project List (%)'!X104 -> 0 | Y104: ='Project List (%)'!Y104 -> 2021+
C105: ='Project List (%)'!C105 -> Deer Park | D105: ='Project List (%)'!D105 -> 162 | E105: ='Project List (%)'!E105 -> Rural Short | F105: ='Project List (%)'!F105 -> 0 | G105: ='Project List (%)'!G105 -> MLN12 & 14 HV Rearrangement - Stage 2 | H105: ='Project List (%)'!H105 -> 0 | J105: =$H105 * 'Project List (%)'!J105 -> 0 | K105: =$H105 * 'Project List (%)'!K105 -> 0 | L105: =$H105 * 'Project List (%)'!L105 -> 0 | M105: =$H105 * 'Project List (%)'!M105 -> 0 | N105: =$H105 * 'Project List (%)'!N105 -> 0 | O105: =$H105 * 'Project List (%)'!O105 -> 0 | P105: =$H105 * 'Project List (%)'!P105 -> 0 | Q105: =$H105 * 'Project List (%)'!Q105 -> 0 | R105: =$H105 * 'Project List (%)'!R105 -> 0 | S105: ='Project List (%)'!S105 -> 0 | T105: ='Project List (%)'!T105 -> 0 | U105: ='Project List (%)'!U105 -> 0 | V105: ='Project List (%)'!V105 -> 0 | W105: ='Project List (%)'!W105 -> 0 | X105: ='Project List (%)'!X105 -> 0 | Y105: ='Project List (%)'!Y105 -> 2021+
C106: ='Project List (%)'!C106 -> Deer Park | D106: ='Project List (%)'!D106 -> 162 | E106: ='Project List (%)'!E106 -> Rural Short | F106: ='Project List (%)'!F106 -> 0 | G106: ='Project List (%)'!G106 -> MLN33 New 22kV Feeder to offload MLN 11, MLN13 and MLN23 | H106: ='Project List (%)'!H106 -> 1336.164508 | J106: =$H106 * 'Project List (%)'!J106 -> 0 | K106: =$H106 * 'Project List (%)'!K106 -> 0 | L106: =$H106 * 'Project List (%)'!L106 -> 0 | M106: =$H106 * 'Project List (%)'!M106 -> 0 | N106: =$H106 * 'Project List (%)'!N106 -> 0 | O106: =$H106 * 'Project List (%)'!O106 -> 0 | P106: =$H106 * 'Project List (%)'!P106 -> 93.53151558 | Q106: =$H106 * 'Project List (%)'!Q106 -> 1242.632993 | R106: =$H106 * 'Project List (%)'!R106 -> 0 | S106: ='Project List (%)'!S106 -> 0 | T106: ='Project List (%)'!T106 -> Both | U106: ='Project List (%)'!U106 -> Demand growth | V106: ='Project List (%)'!V106 -> 8 | W106: ='Project List (%)'!W106 -> 0 | X106: ='Project List (%)'!X106 -> 0 | Y106: ='Project List (%)'!Y106 -> 2020
C107: ='Project List (%)'!C107 -> Deer Park | D107: ='Project List (%)'!D107 -> 162 | E107: ='Project List (%)'!E107 -> Rural Short | F107: ='Project List (%)'!F107 -> 0 | G107: ='Project List (%)'!G107 -> MLN34 New 22kV fdr to offload MLN12, 14 & 22 | H107: ='Project List (%)'!H107 -> 621.4718643 | J107: =$H107 * 'Project List (%)'!J107 -> 0 | K107: =$H107 * 'Project List (%)'!K107 -> 0 | L107: =$H107 * 'Project List (%)'!L107 -> 0 | M107: =$H107 * 'Project List (%)'!M107 -> 0 | N107: =$H107 * 'Project List (%)'!N107 -> 0 | O107: =$H107 * 'Project List (%)'!O107 -> 621.4718643 | P107: =$H107 * 'Project List (%)'!P107 -> 0 | Q107: =$H107 * 'Project List (%)'!Q107 -> 0 | R107: =$H107 * 'Project List (%)'!R107 -> 0 | S107: ='Project List (%)'!S107 -> 0 | T107: ='Project List (%)'!T107 -> Both | U107: ='Project List (%)'!U107 -> Demand growth | V107: ='Project List (%)'!V107 -> 5 | W107: ='Project List (%)'!W107 -> 0 | X107: ='Project List (%)'!X107 -> 0 | Y107: ='Project List (%)'!Y107 -> 2018
C108: ='Project List (%)'!C108 -> Deer Park | D108: ='Project List (%)'!D108 -> 162 | E108: ='Project List (%)'!E108 -> Urban | F108: ='Project List (%)'!F108 -> 0 | G108: ='Project List (%)'!G108 -> MLN 13 New HV Sw- Coburns Rd | H108: ='Project List (%)'!H108 -> 56.96825423 | J108: =$H108 * 'Project List (%)'!J108 -> 0 | K108: =$H108 * 'Project List (%)'!K108 -> 0 | L108: =$H108 * 'Project List (%)'!L108 -> 0 | M108: =$H108 * 'Project List (%)'!M108 -> 0 | N108: =$H108 * 'Project List (%)'!N108 -> 0 | O108: =$H108 * 'Project List (%)'!O108 -> 0 | P108: =$H108 * 'Project List (%)'!P108 -> 0 | Q108: =$H108 * 'Project List (%)'!Q108 -> 56.96825423 | R108: =$H108 * 'Project List (%)'!R108 -> 0 | S108: ='Project List (%)'!S108 -> 0 | T108: ='Project List (%)'!T108 -> Overhead | U108: ='Project List (%)'!U108 -> Demand growth | V108: ='Project List (%)'!V108 -> 1 | W108: ='Project List (%)'!W108 -> 0 | X108: ='Project List (%)'!X108 -> 0 | Y108: ='Project List (%)'!Y108 -> 2020
C109: ='Project List (%)'!C109 -> 0 | D109: ='Project List (%)'!D109 -> 0 | E109: ='Project List (%)'!E109 -> 0 | F109: ='Project List (%)'!F109 -> 0 | G109: ='Project List (%)'!G109 -> 0 | H109: ='Project List (%)'!H109 -> 0 | J109: =$H109 * 'Project List (%)'!J109 -> 0 | K109: =$H109 * 'Project List (%)'!K109 -> 0 | L109: =$H109 * 'Project List (%)'!L109 -> 0 | M109: =$H109 * 'Project List (%)'!M109 -> 0 | N109: =$H109 * 'Project List (%)'!N109 -> 0 | O109: =$H109 * 'Project List (%)'!O109 -> 0 | P109: =$H109 * 'Project List (%)'!P109 -> 0 | Q109: =$H109 * 'Project List (%)'!Q109 -> 0 | R109: =$H109 * 'Project List (%)'!R109 -> 0 | S109: ='Project List (%)'!S109 -> 0 | T109: ='Project List (%)'!T109 -> 0 | U109: ='Project List (%)'!U109 -> 0 | V109: ='Project List (%)'!V109 -> 0 | W109: ='Project List (%)'!W109 -> 0 | X109: ='Project List (%)'!X109 -> 0 | Y109: ='Project List (%)'!Y109 -> 0
C110: ='Project List (%)'!C110 -> Altona-Brooklyn | D110: ='Project List (%)'!D110 -> SUBTRANSMISSION | E110: ='Project List (%)'!E110 -> 0 | F110: ='Project List (%)'!F110 -> 0 | G110: ='Project List (%)'!G110 -> 0 | H110: ='Project List (%)'!H110 -> 0 | J110: =$H110 * 'Project List (%)'!J110 -> 0 | K110: =$H110 * 'Project List (%)'!K110 -> 0 | L110: =$H110 * 'Project List (%)'!L110 -> 0 | M110: =$H110 * 'Project List (%)'!M110 -> 0 | N110: =$H110 * 'Project List (%)'!N110 -> 0 | O110: =$H110 * 'Project List (%)'!O110 -> 0 | P110: =$H110 * 'Project List (%)'!P110 -> 0 | Q110: =$H110 * 'Project List (%)'!Q110 -> 0 | R110: =$H110 * 'Project List (%)'!R110 -> 0 | S110: ='Project List (%)'!S110 -> 0 | T110: ='Project List (%)'!T110 -> 0 | U110: ='Project List (%)'!U110 -> 0 | V110: ='Project List (%)'!V110 -> 0 | W110: ='Project List (%)'!W110 -> 0 | X110: ='Project List (%)'!X110 -> 0 | Y110: ='Project List (%)'!Y110 -> 0
C111: ='Project List (%)'!C111 -> Altona-Brooklyn | D111: ='Project List (%)'!D111 -> 162 | E111: ='Project List (%)'!E111 -> Subtransmission | F111: ='Project List (%)'!F111 -> 0 | G111: ='Project List (%)'!G111 -> LV - WBE third 66kV line | H111: ='Project List (%)'!H111 -> 0 | J111: =$H111 * 'Project List (%)'!J111 -> 0 | K111: =$H111 * 'Project List (%)'!K111 -> 0 | L111: =$H111 * 'Project List (%)'!L111 -> 0 | M111: =$H111 * 'Project List (%)'!M111 -> 0 | N111: =$H111 * 'Project List (%)'!N111 -> 0 | O111: =$H111 * 'Project List (%)'!O111 -> 0 | P111: =$H111 * 'Project List (%)'!P111 -> 0 | Q111: =$H111 * 'Project List (%)'!Q111 -> 0 | R111: =$H111 * 'Project List (%)'!R111 -> 0 | S111: ='Project List (%)'!S111 -> 0 | T111: ='Project List (%)'!T111 -> 0 | U111: ='Project List (%)'!U111 -> 0 | V111: ='Project List (%)'!V111 -> 0 | W111: ='Project List (%)'!W111 -> 0 | X111: ='Project List (%)'!X111 -> 0 | Y111: ='Project List (%)'!Y111 -> 2021+
C112: ='Project List (%)'!C112 -> Altona-Brooklyn | D112: ='Project List (%)'!D112 -> 161 | E112: ='Project List (%)'!E112 -> Subtransmission | F112: ='Project List (%)'!F112 -> 0 | G112: ='Project List (%)'!G112 -> WBE 66kV Ring Bus for new line to LV | H112: ='Project List (%)'!H112 -> 0 | J112: =$H112 * 'Project List (%)'!J112 -> 0 | K112: =$H112 * 'Project List (%)'!K112 -> 0 | L112: =$H112 * 'Project List (%)'!L112 -> 0 | M112: =$H112 * 'Project List (%)'!M112 -> 0 | N112: =$H112 * 'Project List (%)'!N112 -> 0 | O112: =$H112 * 'Project List (%)'!O112 -> 0 | P112: =$H112 * 'Project List (%)'!P112 -> 0 | Q112: =$H112 * 'Project List (%)'!Q112 -> 0 | R112: =$H112 * 'Project List (%)'!R112 -> 0 | S112: ='Project List (%)'!S112 -> 0 | T112: ='Project List (%)'!T112 -> 0 | U112: ='Project List (%)'!U112 -> 0 | V112: ='Project List (%)'!V112 -> 0 | W112: ='Project List (%)'!W112 -> 0 | X112: ='Project List (%)'!X112 -> 0 | Y112: ='Project List (%)'!Y112 -> 2021+
C113: ='Project List (%)'!C113 -> Altona-Brooklyn | D113: ='Project List (%)'!D113 -> 162 | E113: ='Project List (%)'!E113 -> Subtransmission | F113: ='Project List (%)'!F113 -> 0 | G113: ='Project List (%)'!G113 -> BLTS-BMH Voltage Regulator or BMH-MLN Tie | H113: ='Project List (%)'!H113 -> 0 | J113: =$H113 * 'Project List (%)'!J113 -> 0 | K113: =$H113 * 'Project List (%)'!K113 -> 0 | L113: =$H113 * 'Project List (%)'!L113 -> 0 | M113: =$H113 * 'Project List (%)'!M113 -> 0 | N113: =$H113 * 'Project List (%)'!N113 -> 0 | O113: =$H113 * 'Project List (%)'!O113 -> 0 | P113: =$H113 * 'Project List (%)'!P113 -> 0 | Q113: =$H113 * 'Project List (%)'!Q113 -> 0 | R113: =$H113 * 'Project List (%)'!R113 -> 0 | S113: ='Project List (%)'!S113 -> 0 | T113: ='Project List (%)'!T113 -> 0 | U113: ='Project List (%)'!U113 -> 0 | V113: ='Project List (%)'!V113 -> 0 | W113: ='Project List (%)'!W113 -> 0 | X113: ='Project List (%)'!X113 -> 0 | Y113: ='Project List (%)'!Y113 -> 2021+
C114: ='Project List (%)'!C114 -> Deer Park | D114: ='Project List (%)'!D114 -> 161 | E114: ='Project List (%)'!E114 -> Subtransmission | F114: ='Project List (%)'!F114 -> 0 | G114: ='Project List (%)'!G114 -> Land for Tarneit Zone substation (TRT) | H114: ='Project List (%)'!H114 -> 1191.154407 | J114: =$H114 * 'Project List (%)'!J114 -> 0 | K114: =$H114 * 'Project List (%)'!K114 -> 51.78932202 | L114: =$H114 * 'Project List (%)'!L114 -> 1139.365085 | M114: =$H114 * 'Project List (%)'!M114 -> 0 | N114: =$H114 * 'Project List (%)'!N114 -> 0 | O114: =$H114 * 'Project List (%)'!O114 -> 0 | P114: =$H114 * 'Project List (%)'!P114 -> 0 | Q114: =$H114 * 'Project List (%)'!Q114 -> 0 | R114: =$H114 * 'Project List (%)'!R114 -> 0 | S114: ='Project List (%)'!S114 -> 0 | T114: ='Project List (%)'!T114 -> 0 | U114: ='Project List (%)'!U114 -> Demand growth | V114: ='Project List (%)'!V114 -> 0 | W114: ='Project List (%)'!W114 -> 0 | X114: ='Project List (%)'!X114 -> 0 | Y114: ='Project List (%)'!Y114 -> 2015
C115: ='Project List (%)'!C115 -> Deer Park | D115: ='Project List (%)'!D115 -> 161 | E115: ='Project List (%)'!E115 -> Subtransmission | F115: ='Project List (%)'!F115 -> 0 | G115: ='Project List (%)'!G115 -> Rebuild/Reroute BLTS-BMH for TRT 66kV lines | H115: ='Project List (%)'!H115 -> 0 | J115: =$H115 * 'Project List (%)'!J115 -> 0 | K115: =$H115 * 'Project List (%)'!K115 -> 0 | L115: =$H115 * 'Project List (%)'!L115 -> 0 | M115: =$H115 * 'Project List (%)'!M115 -> 0 | N115: =$H115 * 'Project List (%)'!N115 -> 0 | O115: =$H115 * 'Project List (%)'!O115 -> 0 | P115: =$H115 * 'Project List (%)'!P115 -> 0 | Q115: =$H115 * 'Project List (%)'!Q115 -> 0 | R115: =$H115 * 'Project List (%)'!R115 -> 0 | S115: ='Project List (%)'!S115 -> 0 | T115: ='Project List (%)'!T115 -> 0 | U115: ='Project List (%)'!U115 -> 0 | V115: ='Project List (%)'!V115 -> 0 | W115: ='Project List (%)'!W115 -> 0 | X115: ='Project List (%)'!X115 -> 0 | Y115: ='Project List (%)'!Y115 -> 2021+
C116: ='Project List (%)'!C116 -> Deer Park | D116: ='Project List (%)'!D116 -> 161 | E116: ='Project List (%)'!E116 -> Subtransmission | F116: ='Project List (%)'!F116 -> 0 | G116: ='Project List (%)'!G116 -> Establish New DPTS-TRT 66kV line | H116: ='Project List (%)'!H116 -> 0 | J116: =$H116 * 'Project List (%)'!J116 -> 0 | K116: =$H116 * 'Project List (%)'!K116 -> 0 | L116: =$H116 * 'Project List (%)'!L116 -> 0 | M116: =$H116 * 'Project List (%)'!M116 -> 0 | N116: =$H116 * 'Project List (%)'!N116 -> 0 | O116: =$H116 * 'Project List (%)'!O116 -> 0 | P116: =$H116 * 'Project List (%)'!P116 -> 0 | Q116: =$H116 * 'Project List (%)'!Q116 -> 0 | R116: =$H116 * 'Project List (%)'!R116 -> 0 | S116: ='Project List (%)'!S116 -> 0 | T116: ='Project List (%)'!T116 -> 0 | U116: ='Project List (%)'!U116 -> 0 | V116: ='Project List (%)'!V116 -> 0 | W116: ='Project List (%)'!W116 -> 0 | X116: ='Project List (%)'!X116 -> 0 | Y116: ='Project List (%)'!Y116 -> 2021+
C117: ='Project List (%)'!C117 -> Deer Park | D117: ='Project List (%)'!D117 -> 161 | E117: ='Project List (%)'!E117 -> Subtransmission | F117: ='Project List (%)'!F117 -> 0 | G117: ='Project List (%)'!G117 -> Establish New TNA-TRT 66kV line | H117: ='Project List (%)'!H117 -> 0 | J117: =$H117 * 'Project List (%)'!J117 -> 0 | K117: =$H117 * 'Project List (%)'!K117 -> 0 | L117: =$H117 * 'Project List (%)'!L117 -> 0 | M117: =$H117 * 'Project List (%)'!M117 -> 0 | N117: =$H117 * 'Project List (%)'!N117 -> 0 | O117: =$H117 * 'Project List (%)'!O117 -> 0 | P117: =$H117 * 'Project List (%)'!P117 -> 0 | Q117: =$H117 * 'Project List (%)'!Q117 -> 0 | R117: =$H117 * 'Project List (%)'!R117 -> 0 | S117: ='Project List (%)'!S117 -> 0 | T117: ='Project List (%)'!T117 -> 0 | U117: ='Project List (%)'!U117 -> 0 | V117: ='Project List (%)'!V117 -> 0 | W117: ='Project List (%)'!W117 -> 0 | X117: ='Project List (%)'!X117 -> 0 | Y117: ='Project List (%)'!Y117 -> 2021+
C118: ='Project List (%)'!C118 -> Altona-Brooklyn | D118: ='Project List (%)'!D118 -> 161 | E118: ='Project List (%)'!E118 -> Subtransmission | F118: ='Project List (%)'!F118 -> 0 | G118: ='Project List (%)'!G118 -> Land for Point Cook zone substation (PCK) | H118: ='Project List (%)'!H118 -> 1139.365085 | J118: =$H118 * 'Project List (%)'!J118 -> 0 | K118: =$H118 * 'Project List (%)'!K118 -> 0 | L118: =$H118 * 'Project List (%)'!L118 -> 0 | M118: =$H118 * 'Project List (%)'!M118 -> 0 | N118: =$H118 * 'Project List (%)'!N118 -> 0 | O118: =$H118 * 'Project List (%)'!O118 -> 1139.365085 | P118: =$H118 * 'Project List (%)'!P118 -> 0 | Q118: =$H118 * 'Project List (%)'!Q118 -> 0 | R118: =$H118 * 'Project List (%)'!R118 -> 0 | S118: ='Project List (%)'!S118 -> 0 | T118: ='Project List (%)'!T118 -> 0 | U118: ='Project List (%)'!U118 -> Demand growth | V118: ='Project List (%)'!V118 -> 0 | W118: ='Project List (%)'!W118 -> 0 | X118: ='Project List (%)'!X118 -> 0 | Y118: ='Project List (%)'!Y118 -> 2018
C119: ='Project List (%)'!C119 -> Altona-Brooklyn | D119: ='Project List (%)'!D119 -> 161 | E119: ='Project List (%)'!E119 -> Subtransmission | F119: ='Project List (%)'!F119 -> 0 | G119: ='Project List (%)'!G119 -> New PCK Zone substation with 2 x 33/25MVA Tx+12MVAr Cap bank | H119: ='Project List (%)'!H119 -> 0 | J119: =$H119 * 'Project List (%)'!J119 -> 0 | K119: =$H119 * 'Project List (%)'!K119 -> 0 | L119: =$H119 * 'Project List (%)'!L119 -> 0 | M119: =$H119 * 'Project List (%)'!M119 -> 0 | N119: =$H119 * 'Project List (%)'!N119 -> 0 | O119: =$H119 * 'Project List (%)'!O119 -> 0 | P119: =$H119 * 'Project List (%)'!P119 -> 0 | Q119: =$H119 * 'Project List (%)'!Q119 -> 0 | R119: =$H119 * 'Project List (%)'!R119 -> 0 | S119: ='Project List (%)'!S119 -> 0 | T119: ='Project List (%)'!T119 -> 0 | U119: ='Project List (%)'!U119 -> 0 | V119: ='Project List (%)'!V119 -> 0 | W119: ='Project List (%)'!W119 -> 0 | X119: ='Project List (%)'!X119 -> 0 | Y119: ='Project List (%)'!Y119 -> 2021+
C120: ='Project List (%)'!C120 -> Altona-Brooklyn | D120: ='Project List (%)'!D120 -> 162 | E120: ='Project List (%)'!E120 -> Subtransmission | F120: ='Project List (%)'!F120 -> 0 | G120: ='Project List (%)'!G120 -> New 66kV line LV-PCK | H120: ='Project List (%)'!H120 -> 0 | J120: =$H120 * 'Project List (%)'!J120 -> 0 | K120: =$H120 * 'Project List (%)'!K120 -> 0 | L120: =$H120 * 'Project List (%)'!L120 -> 0 | M120: =$H120 * 'Project List (%)'!M120 -> 0 | N120: =$H120 * 'Project List (%)'!N120 -> 0 | O120: =$H120 * 'Project List (%)'!O120 -> 0 | P120: =$H120 * 'Project List (%)'!P120 -> 0 | Q120: =$H120 * 'Project List (%)'!Q120 -> 0 | R120: =$H120 * 'Project List (%)'!R120 -> 0 | S120: ='Project List (%)'!S120 -> 0 | T120: ='Project List (%)'!T120 -> 0 | U120: ='Project List (%)'!U120 -> 0 | V120: ='Project List (%)'!V120 -> 0 | W120: ='Project List (%)'!W120 -> 0 | X120: ='Project List (%)'!X120 -> 0 | Y120: ='Project List (%)'!Y120 -> 2021+
C121: ='Project List (%)'!C121 -> Altona-Brooklyn | D121: ='Project List (%)'!D121 -> 162 | E121: ='Project List (%)'!E121 -> Subtransmission | F121: ='Project List (%)'!F121 -> 0 | G121: ='Project List (%)'!G121 -> Second LV-PCK 66kV line | H121: ='Project List (%)'!H121 -> 0 | J121: =$H121 * 'Project List (%)'!J121 -> 0 | K121: =$H121 * 'Project List (%)'!K121 -> 0 | L121: =$H121 * 'Project List (%)'!L121 -> 0 | M121: =$H121 * 'Project List (%)'!M121 -> 0 | N121: =$H121 * 'Project List (%)'!N121 -> 0 | O121: =$H121 * 'Project List (%)'!O121 -> 0 | P121: =$H121 * 'Project List (%)'!P121 -> 0 | Q121: =$H121 * 'Project List (%)'!Q121 -> 0 | R121: =$H121 * 'Project List (%)'!R121 -> 0 | S121: ='Project List (%)'!S121 -> 0 | T121: ='Project List (%)'!T121 -> 0 | U121: ='Project List (%)'!U121 -> 0 | V121: ='Project List (%)'!V121 -> 0 | W121: ='Project List (%)'!W121 -> 0 | X121: ='Project List (%)'!X121 -> 0 | Y121: ='Project List (%)'!Y121 -> 2021+
C122: ='Project List (%)'!C122 -> Altona-Brooklyn | D122: ='Project List (%)'!D122 -> 161 | E122: ='Project List (%)'!E122 -> Subtransmission | F122: ='Project List (%)'!F122 -> 0 | G122: ='Project List (%)'!G122 -> Land For Cocoroc Zone Substation (CRC ZSS) | H122: ='Project List (%)'!H122 -> 0 | J122: =$H122 * 'Project List (%)'!J122 -> 0 | K122: =$H122 * 'Project List (%)'!K122 -> 0 | L122: =$H122 * 'Project List (%)'!L122 -> 0 | M122: =$H122 * 'Project List (%)'!M122 -> 0 | N122: =$H122 * 'Project List (%)'!N122 -> 0 | O122: =$H122 * 'Project List (%)'!O122 -> 0 | P122: =$H122 * 'Project List (%)'!P122 -> 0 | Q122: =$H122 * 'Project List (%)'!Q122 -> 0 | R122: =$H122 * 'Project List (%)'!R122 -> 0 | S122: ='Project List (%)'!S122 -> 0 | T122: ='Project List (%)'!T122 -> 0 | U122: ='Project List (%)'!U122 -> 0 | V122: ='Project List (%)'!V122 -> 0 | W122: ='Project List (%)'!W122 -> 0 | X122: ='Project List (%)'!X122 -> 0 | Y122: ='Project List (%)'!Y122 -> 2021+
C123: ='Project List (%)'!C123 -> Altona-Brooklyn | D123: ='Project List (%)'!D123 -> 161 | E123: ='Project List (%)'!E123 -> Subtransmission | F123: ='Project List (%)'!F123 -> 0 | G123: ='Project List (%)'!G123 -> Establish CRC | H123: ='Project List (%)'!H123 -> 0 | J123: =$H123 * 'Project List (%)'!J123 -> 0 | K123: =$H123 * 'Project List (%)'!K123 -> 0 | L123: =$H123 * 'Project List (%)'!L123 -> 0 | M123: =$H123 * 'Project List (%)'!M123 -> 0 | N123: =$H123 * 'Project List (%)'!N123 -> 0 | O123: =$H123 * 'Project List (%)'!O123 -> 0 | P123: =$H123 * 'Project List (%)'!P123 -> 0 | Q123: =$H123 * 'Project List (%)'!Q123 -> 0 | R123: =$H123 * 'Project List (%)'!R123 -> 0 | S123: ='Project List (%)'!S123 -> 0 | T123: ='Project List (%)'!T123 -> 0 | U123: ='Project List (%)'!U123 -> 0 | V123: ='Project List (%)'!V123 -> 0 | W123: ='Project List (%)'!W123 -> 0 | X123: ='Project List (%)'!X123 -> 0 | Y123: ='Project List (%)'!Y123 -> 2021+
C124: ='Project List (%)'!C124 -> Altona-Brooklyn | D124: ='Project List (%)'!D124 -> 161 | E124: ='Project List (%)'!E124 -> Subtransmission | F124: ='Project List (%)'!F124 -> 0 | G124: ='Project List (%)'!G124 -> 2nd transformer st CRC and second bus. | H124: ='Project List (%)'!H124 -> 0 | J124: =$H124 * 'Project List (%)'!J124 -> 0 | K124: =$H124 * 'Project List (%)'!K124 -> 0 | L124: =$H124 * 'Project List (%)'!L124 -> 0 | M124: =$H124 * 'Project List (%)'!M124 -> 0 | N124: =$H124 * 'Project List (%)'!N124 -> 0 | O124: =$H124 * 'Project List (%)'!O124 -> 0 | P124: =$H124 * 'Project List (%)'!P124 -> 0 | Q124: =$H124 * 'Project List (%)'!Q124 -> 0 | R124: =$H124 * 'Project List (%)'!R124 -> 0 | S124: ='Project List (%)'!S124 -> 0 | T124: ='Project List (%)'!T124 -> 0 | U124: ='Project List (%)'!U124 -> 0 | V124: ='Project List (%)'!V124 -> 0 | W124: ='Project List (%)'!W124 -> 0 | X124: ='Project List (%)'!X124 -> 0 | Y124: ='Project List (%)'!Y124 -> 2021+
C125: ='Project List (%)'!C125 -> Altona-Brooklyn | D125: ='Project List (%)'!D125 -> 161 | E125: ='Project List (%)'!E125 -> Subtransmission | F125: ='Project List (%)'!F125 -> 0 | G125: ='Project List (%)'!G125 -> 3rd transformer st CRC and 3rd bus. | H125: ='Project List (%)'!H125 -> 0 | J125: =$H125 * 'Project List (%)'!J125 -> 0 | K125: =$H125 * 'Project List (%)'!K125 -> 0 | L125: =$H125 * 'Project List (%)'!L125 -> 0 | M125: =$H125 * 'Project List (%)'!M125 -> 0 | N125: =$H125 * 'Project List (%)'!N125 -> 0 | O125: =$H125 * 'Project List (%)'!O125 -> 0 | P125: =$H125 * 'Project List (%)'!P125 -> 0 | Q125: =$H125 * 'Project List (%)'!Q125 -> 0 | R125: =$H125 * 'Project List (%)'!R125 -> 0 | S125: ='Project List (%)'!S125 -> 0 | T125: ='Project List (%)'!T125 -> 0 | U125: ='Project List (%)'!U125 -> 0 | V125: ='Project List (%)'!V125 -> 0 | W125: ='Project List (%)'!W125 -> 0 | X125: ='Project List (%)'!X125 -> 0 | Y125: ='Project List (%)'!Y125 -> 2021+
C126: ='Project List (%)'!C126 -> Altona-Brooklyn | D126: ='Project List (%)'!D126 -> 162 | E126: ='Project List (%)'!E126 -> Subtransmission | F126: ='Project List (%)'!F126 -> 0 | G126: ='Project List (%)'!G126 -> Establish ATS West-CRC and WBE-CRC 66kV loops | H126: ='Project List (%)'!H126 -> 0 | J126: =$H126 * 'Project List (%)'!J126 -> 0 | K126: =$H126 * 'Project List (%)'!K126 -> 0 | L126: =$H126 * 'Project List (%)'!L126 -> 0 | M126: =$H126 * 'Project List (%)'!M126 -> 0 | N126: =$H126 * 'Project List (%)'!N126 -> 0 | O126: =$H126 * 'Project List (%)'!O126 -> 0 | P126: =$H126 * 'Project List (%)'!P126 -> 0 | Q126: =$H126 * 'Project List (%)'!Q126 -> 0 | R126: =$H126 * 'Project List (%)'!R126 -> 0 | S126: ='Project List (%)'!S126 -> 0 | T126: ='Project List (%)'!T126 -> 0 | U126: ='Project List (%)'!U126 -> 0 | V126: ='Project List (%)'!V126 -> 0 | W126: ='Project List (%)'!W126 -> 0 | X126: ='Project List (%)'!X126 -> 0 | Y126: ='Project List (%)'!Y126 -> 2021+
C127: ='Project List (%)'!C127 -> Deer Park | D127: ='Project List (%)'!D127 -> 161 | E127: ='Project List (%)'!E127 -> Subtransmission | F127: ='Project List (%)'!F127 -> 5080697 | G127: ='Project List (%)'!G127 -> Establish TNA with two Tx and 22kV Busses and 12MVAr Cap Bank | H127: ='Project List (%)'!H127 -> 13871 | J127: =$H127 * 'Project List (%)'!J127 -> 0 | K127: =$H127 * 'Project List (%)'!K127 -> 309 | L127: =$H127 * 'Project List (%)'!L127 -> 782 | M127: =$H127 * 'Project List (%)'!M127 -> 5138 | N127: =$H127 * 'Project List (%)'!N127 -> 7510 | O127: =$H127 * 'Project List (%)'!O127 -> 132 | P127: =$H127 * 'Project List (%)'!P127 -> 0 | Q127: =$H127 * 'Project List (%)'!Q127 -> 0 | R127: =$H127 * 'Project List (%)'!R127 -> 0 | S127: ='Project List (%)'!S127 -> 0 | T127: ='Project List (%)'!T127 -> 0 | U127: ='Project List (%)'!U127 -> Demand growth | V127: ='Project List (%)'!V127 -> 84 | W127: ='Project List (%)'!W127 -> 91.4 | X127: ='Project List (%)'!X127 -> 47.6 | Y127: ='Project List (%)'!Y127 -> 2018
C128: ='Project List (%)'!C128 -> Deer Park | D128: ='Project List (%)'!D128 -> 162 | E128: ='Project List (%)'!E128 -> Subtransmission | F128: ='Project List (%)'!F128 -> 5080699, 5078700 | G128: ='Project List (%)'!G128 -> Establish DPTS-TNA 66kV loop | H128: ='Project List (%)'!H128 -> 4036 | J128: =$H128 * 'Project List (%)'!J128 -> 0 | K128: =$H128 * 'Project List (%)'!K128 -> 83 | L128: =$H128 * 'Project List (%)'!L128 -> 1178 | M128: =$H128 * 'Project List (%)'!M128 -> 1077 | N128: =$H128 * 'Project List (%)'!N128 -> 1590 | O128: =$H128 * 'Project List (%)'!O128 -> 108 | P128: =$H128 * 'Project List (%)'!P128 -> 0 | Q128: =$H128 * 'Project List (%)'!Q128 -> 0 | R128: =$H128 * 'Project List (%)'!R128 -> 0 | S128: ='Project List (%)'!S128 -> 0 | T128: ='Project List (%)'!T128 -> Overhead | U128: ='Project List (%)'!U128 -> Transmission connection point | V128: ='Project List (%)'!V128 -> 220 | W128: ='Project List (%)'!W128 -> 0 | X128: ='Project List (%)'!X128 -> 0 | Y128: ='Project List (%)'!Y128 -> 2018
C129: ='Project List (%)'!C129 -> Deer Park | D129: ='Project List (%)'!D129 -> 161 | E129: ='Project List (%)'!E129 -> Subtransmission | F129: ='Project List (%)'!F129 -> 0 | G129: ='Project List (%)'!G129 -> 3rd transformer st TNA and 3rd bus. | H129: ='Project List (%)'!H129 -> 4848.86159 | J129: =$H129 * 'Project List (%)'!J129 -> 0 | K129: =$H129 * 'Project List (%)'!K129 -> 0 | L129: =$H129 * 'Project List (%)'!L129 -> 0 | M129: =$H129 * 'Project List (%)'!M129 -> 0 | N129: =$H129 * 'Project List (%)'!N129 -> 0 | O129: =$H129 * 'Project List (%)'!O129 -> 484.886159 | P129: =$H129 * 'Project List (%)'!P129 -> 4363.975431 | Q129: =$H129 * 'Project List (%)'!Q129 -> 0 | R129: =$H129 * 'Project List (%)'!R129 -> 0 | S129: ='Project List (%)'!S129 -> 0 | T129: ='Project List (%)'!T129 -> 0 | U129: ='Project List (%)'!U129 -> Demand growth | V129: ='Project List (%)'!V129 -> 42 | W129: ='Project List (%)'!W129 -> 45.7 | X129: ='Project List (%)'!X129 -> 47.6 | Y129: ='Project List (%)'!Y129 -> 2019
C130: ='Project List (%)'!C130 -> Altona-Brooklyn | D130: ='Project List (%)'!D130 -> 161 | E130: ='Project List (%)'!E130 -> Subtransmission | F130: ='Project List (%)'!F130 -> 0 | G130: ='Project List (%)'!G130 -> WBE 2nd cap bank | H130: ='Project List (%)'!H130 -> 0 | J130: =$H130 * 'Project List (%)'!J130 -> 0 | K130: =$H130 * 'Project List (%)'!K130 -> 0 | L130: =$H130 * 'Project List (%)'!L130 -> 0 | M130: =$H130 * 'Project List (%)'!M130 -> 0 | N130: =$H130 * 'Project List (%)'!N130 -> 0 | O130: =$H130 * 'Project List (%)'!O130 -> 0 | P130: =$H130 * 'Project List (%)'!P130 -> 0 | Q130: =$H130 * 'Project List (%)'!Q130 -> 0 | R130: =$H130 * 'Project List (%)'!R130 -> 0 | S130: ='Project List (%)'!S130 -> 0 | T130: ='Project List (%)'!T130 -> 0 | U130: ='Project List (%)'!U130 -> 0 | V130: ='Project List (%)'!V130 -> 0 | W130: ='Project List (%)'!W130 -> 0 | X130: ='Project List (%)'!X130 -> 0 | Y130: ='Project List (%)'!Y130 -> 2021+
C131: ='Project List (%)'!C131 -> Altona-Brooklyn | D131: ='Project List (%)'!D131 -> 161 | E131: ='Project List (%)'!E131 -> Subtransmission | F131: ='Project List (%)'!F131 -> 0 | G131: ='Project List (%)'!G131 -> Land for Wyndham Vale Zone substation (WVL) | H131: ='Project List (%)'!H131 -> 0 | J131: =$H131 * 'Project List (%)'!J131 -> 0 | K131: =$H131 * 'Project List (%)'!K131 -> 0 | L131: =$H131 * 'Project List (%)'!L131 -> 0 | M131: =$H131 * 'Project List (%)'!M131 -> 0 | N131: =$H131 * 'Project List (%)'!N131 -> 0 | O131: =$H131 * 'Project List (%)'!O131 -> 0 | P131: =$H131 * 'Project List (%)'!P131 -> 0 | Q131: =$H131 * 'Project List (%)'!Q131 -> 0 | R131: =$H131 * 'Project List (%)'!R131 -> 0 | S131: ='Project List (%)'!S131 -> 0 | T131: ='Project List (%)'!T131 -> 0 | U131: ='Project List (%)'!U131 -> 0 | V131: ='Project List (%)'!V131 -> 0 | W131: ='Project List (%)'!W131 -> 0 | X131: ='Project List (%)'!X131 -> 0 | Y131: ='Project List (%)'!Y131 -> 2021+
C132: ='Project List (%)'!C132 -> Altona-Brooklyn | D132: ='Project List (%)'!D132 -> 162 | E132: ='Project List (%)'!E132 -> Subtransmission | F132: ='Project List (%)'!F132 -> 0 | G132: ='Project List (%)'!G132 -> Series Cap or Reg on WVL-WBE Line | H132: ='Project List (%)'!H132 -> 0 | J132: =$H132 * 'Project List (%)'!J132 -> 0 | K132: =$H132 * 'Project List (%)'!K132 -> 0 | L132: =$H132 * 'Project List (%)'!L132 -> 0 | M132: =$H132 * 'Project List (%)'!M132 -> 0 | N132: =$H132 * 'Project List (%)'!N132 -> 0 | O132: =$H132 * 'Project List (%)'!O132 -> 0 | P132: =$H132 * 'Project List (%)'!P132 -> 0 | Q132: =$H132 * 'Project List (%)'!Q132 -> 0 | R132: =$H132 * 'Project List (%)'!R132 -> 0 | S132: ='Project List (%)'!S132 -> 0 | T132: ='Project List (%)'!T132 -> 0 | U132: ='Project List (%)'!U132 -> 0 | V132: ='Project List (%)'!V132 -> 0 | W132: ='Project List (%)'!W132 -> 0 | X132: ='Project List (%)'!X132 -> 0 | Y132: ='Project List (%)'!Y132 -> 2021+
C133: ='Project List (%)'!C133 -> Altona-Brooklyn | D133: ='Project List (%)'!D133 -> 161 | E133: ='Project List (%)'!E133 -> Subtransmission | F133: ='Project List (%)'!F133 -> 0 | G133: ='Project List (%)'!G133 -> New WVL Zone substation with 2 x 33/25MVA Tx+12MVAr Cap bank | H133: ='Project List (%)'!H133 -> 0 | J133: =$H133 * 'Project List (%)'!J133 -> 0 | K133: =$H133 * 'Project List (%)'!K133 -> 0 | L133: =$H133 * 'Project List (%)'!L133 -> 0 | M133: =$H133 * 'Project List (%)'!M133 -> 0 | N133: =$H133 * 'Project List (%)'!N133 -> 0 | O133: =$H133 * 'Project List (%)'!O133 -> 0 | P133: =$H133 * 'Project List (%)'!P133 -> 0 | Q133: =$H133 * 'Project List (%)'!Q133 -> 0 | R133: =$H133 * 'Project List (%)'!R133 -> 0 | S133: ='Project List (%)'!S133 -> 0 | T133: ='Project List (%)'!T133 -> 0 | U133: ='Project List (%)'!U133 -> 0 | V133: ='Project List (%)'!V133 -> 0 | W133: ='Project List (%)'!W133 -> 0 | X133: ='Project List (%)'!X133 -> 0 | Y133: ='Project List (%)'!Y133 -> 2021+
C134: ='Project List (%)'!C134 -> Altona-Brooklyn | D134: ='Project List (%)'!D134 -> 162 | E134: ='Project List (%)'!E134 -> Subtransmission | F134: ='Project List (%)'!F134 -> 0 | G134: ='Project List (%)'!G134 -> 66KV lines to WVL (Form ATS-WVL-WBE-HCP-ATS) | H134: ='Project List (%)'!H134 -> 0 | J134: =$H134 * 'Project List (%)'!J134 -> 0 | K134: =$H134 * 'Project List (%)'!K134 -> 0 | L134: =$H134 * 'Project List (%)'!L134 -> 0 | M134: =$H134 * 'Project List (%)'!M134 -> 0 | N134: =$H134 * 'Project List (%)'!N134 -> 0 | O134: =$H134 * 'Project List (%)'!O134 -> 0 | P134: =$H134 * 'Project List (%)'!P134 -> 0 | Q134: =$H134 * 'Project List (%)'!Q134 -> 0 | R134: =$H134 * 'Project List (%)'!R134 -> 0 | S134: ='Project List (%)'!S134 -> 0 | T134: ='Project List (%)'!T134 -> 0 | U134: ='Project List (%)'!U134 -> 0 | V134: ='Project List (%)'!V134 -> 0 | W134: ='Project List (%)'!W134 -> 0 | X134: ='Project List (%)'!X134 -> 0 | Y134: ='Project List (%)'!Y134 -> 2021+
C135: ='Project List (%)'!C135 -> Altona-Brooklyn | D135: ='Project List (%)'!D135 -> 161 | E135: ='Project List (%)'!E135 -> Subtransmission | F135: ='Project List (%)'!F135 -> 0 | G135: ='Project List (%)'!G135 -> Install 1st 66/22kV transf at AC + 1 x 22kV Bus | H135: ='Project List (%)'!H135 -> 0 | J135: =$H135 * 'Project List (%)'!J135 -> 0 | K135: =$H135 * 'Project List (%)'!K135 -> 0 | L135: =$H135 * 'Project List (%)'!L135 -> 0 | M135: =$H135 * 'Project List (%)'!M135 -> 0 | N135: =$H135 * 'Project List (%)'!N135 -> 0 | O135: =$H135 * 'Project List (%)'!O135 -> 0 | P135: =$H135 * 'Project List (%)'!P135 -> 0 | Q135: =$H135 * 'Project List (%)'!Q135 -> 0 | R135: =$H135 * 'Project List (%)'!R135 -> 0 | S135: ='Project List (%)'!S135 -> 0 | T135: ='Project List (%)'!T135 -> 0 | U135: ='Project List (%)'!U135 -> 0 | V135: ='Project List (%)'!V135 -> 0 | W135: ='Project List (%)'!W135 -> 0 | X135: ='Project List (%)'!X135 -> 0 | Y135: ='Project List (%)'!Y135 -> 2021+
C136: ='Project List (%)'!C136 -> Altona-Brooklyn | D136: ='Project List (%)'!D136 -> 161 | E136: ='Project List (%)'!E136 -> Subtransmission | F136: ='Project List (%)'!F136 -> 0 | G136: ='Project List (%)'!G136 -> Install 2nd 66/22kV transf at AC + 1 x 22kV Bus | H136: ='Project List (%)'!H136 -> 0 | J136: =$H136 * 'Project List (%)'!J136 -> 0 | K136: =$H136 * 'Project List (%)'!K136 -> 0 | L136: =$H136 * 'Project List (%)'!L136 -> 0 | M136: =$H136 * 'Project List (%)'!M136 -> 0 | N136: =$H136 * 'Project List (%)'!N136 -> 0 | O136: =$H136 * 'Project List (%)'!O136 -> 0 | P136: =$H136 * 'Project List (%)'!P136 -> 0 | Q136: =$H136 * 'Project List (%)'!Q136 -> 0 | R136: =$H136 * 'Project List (%)'!R136 -> 0 | S136: ='Project List (%)'!S136 -> 0 | T136: ='Project List (%)'!T136 -> 0 | U136: ='Project List (%)'!U136 -> 0 | V136: ='Project List (%)'!V136 -> 0 | W136: ='Project List (%)'!W136 -> 0 | X136: ='Project List (%)'!X136 -> 0 | Y136: ='Project List (%)'!Y136 -> 2021+
C137: ='Project List (%)'!C137 -> Altona-Brooklyn | D137: ='Project List (%)'!D137 -> 161 | E137: ='Project List (%)'!E137 -> Subtransmission | F137: ='Project List (%)'!F137 -> 0 | G137: ='Project List (%)'!G137 -> Move 1 x 66/11TR from AC to AL | H137: ='Project List (%)'!H137 -> 0 | J137: =$H137 * 'Project List (%)'!J137 -> 0 | K137: =$H137 * 'Project List (%)'!K137 -> 0 | L137: =$H137 * 'Project List (%)'!L137 -> 0 | M137: =$H137 * 'Project List (%)'!M137 -> 0 | N137: =$H137 * 'Project List (%)'!N137 -> 0 | O137: =$H137 * 'Project List (%)'!O137 -> 0 | P137: =$H137 * 'Project List (%)'!P137 -> 0 | Q137: =$H137 * 'Project List (%)'!Q137 -> 0 | R137: =$H137 * 'Project List (%)'!R137 -> 0 | S137: ='Project List (%)'!S137 -> 0 | T137: ='Project List (%)'!T137 -> 0 | U137: ='Project List (%)'!U137 -> 0 | V137: ='Project List (%)'!V137 -> 0 | W137: ='Project List (%)'!W137 -> 0 | X137: ='Project List (%)'!X137 -> 0 | Y137: ='Project List (%)'!Y137 -> 2021+
C138: ='Project List (%)'!C138 -> Altona-Brooklyn | D138: ='Project List (%)'!D138 -> 162 | E138: ='Project List (%)'!E138 -> Subtransmission | F138: ='Project List (%)'!F138 -> 0 | G138: ='Project List (%)'!G138 -> BLTS-BMH 66kV line augmentation Stage 1 | H138: ='Project List (%)'!H138 -> 0 | J138: =$H138 * 'Project List (%)'!J138 -> 0 | K138: =$H138 * 'Project List (%)'!K138 -> 0 | L138: =$H138 * 'Project List (%)'!L138 -> 0 | M138: =$H138 * 'Project List (%)'!M138 -> 0 | N138: =$H138 * 'Project List (%)'!N138 -> 0 | O138: =$H138 * 'Project List (%)'!O138 -> 0 | P138: =$H138 * 'Project List (%)'!P138 -> 0 | Q138: =$H138 * 'Project List (%)'!Q138 -> 0 | R138: =$H138 * 'Project List (%)'!R138 -> 0 | S138: ='Project List (%)'!S138 -> 0 | T138: ='Project List (%)'!T138 -> 0 | U138: ='Project List (%)'!U138 -> 0 | V138: ='Project List (%)'!V138 -> 0 | W138: ='Project List (%)'!W138 -> 0 | X138: ='Project List (%)'!X138 -> 0 | Y138: ='Project List (%)'!Y138 -> 2021+
C139: ='Project List (%)'!C139 -> Altona-Brooklyn | D139: ='Project List (%)'!D139 -> 162 | E139: ='Project List (%)'!E139 -> Subtransmission | F139: ='Project List (%)'!F139 -> 0 | G139: ='Project List (%)'!G139 -> BLTS-BMH 66kV line augmentation Stage 2 | H139: ='Project List (%)'!H139 -> 0 | J139: =$H139 * 'Project List (%)'!J139 -> 0 | K139: =$H139 * 'Project List (%)'!K139 -> 0 | L139: =$H139 * 'Project List (%)'!L139 -> 0 | M139: =$H139 * 'Project List (%)'!M139 -> 0 | N139: =$H139 * 'Project List (%)'!N139 -> 0 | O139: =$H139 * 'Project List (%)'!O139 -> 0 | P139: =$H139 * 'Project List (%)'!P139 -> 0 | Q139: =$H139 * 'Project List (%)'!Q139 -> 0 | R139: =$H139 * 'Project List (%)'!R139 -> 0 | S139: ='Project List (%)'!S139 -> 0 | T139: ='Project List (%)'!T139 -> 0 | U139: ='Project List (%)'!U139 -> 0 | V139: ='Project List (%)'!V139 -> 0 | W139: ='Project List (%)'!W139 -> 0 | X139: ='Project List (%)'!X139 -> 0 | Y139: ='Project List (%)'!Y139 -> 2021+
C140: ='Project List (%)'!C140 -> Altona-Brooklyn | D140: ='Project List (%)'!D140 -> 161 | E140: ='Project List (%)'!E140 -> Subtransmission | F140: ='Project List (%)'!F140 -> 0 | G140: ='Project List (%)'!G140 -> BMH ZSS new 66/22kV 25/33 MVA Tr-3 | H140: ='Project List (%)'!H140 -> 0 | J140: =$H140 * 'Project List (%)'!J140 -> 0 | K140: =$H140 * 'Project List (%)'!K140 -> 0 | L140: =$H140 * 'Project List (%)'!L140 -> 0 | M140: =$H140 * 'Project List (%)'!M140 -> 0 | N140: =$H140 * 'Project List (%)'!N140 -> 0 | O140: =$H140 * 'Project List (%)'!O140 -> 0 | P140: =$H140 * 'Project List (%)'!P140 -> 0 | Q140: =$H140 * 'Project List (%)'!Q140 -> 0 | R140: =$H140 * 'Project List (%)'!R140 -> 0 | S140: ='Project List (%)'!S140 -> 0 | T140: ='Project List (%)'!T140 -> 0 | U140: ='Project List (%)'!U140 -> 0 | V140: ='Project List (%)'!V140 -> 0 | W140: ='Project List (%)'!W140 -> 0 | X140: ='Project List (%)'!X140 -> 0 | Y140: ='Project List (%)'!Y140 -> 2021+
C141: ='Project List (%)'!C141 -> Deer Park | D141: ='Project List (%)'!D141 -> 161 | E141: ='Project List (%)'!E141 -> Subtransmission | F141: ='Project List (%)'!F141 -> 0 | G141: ='Project List (%)'!G141 -> New TRT Zone substation with 2 x 33/25MVA Tx+12MVAr Cap bank | H141: ='Project List (%)'!H141 -> 0 | J141: =$H141 * 'Project List (%)'!J141 -> 0 | K141: =$H141 * 'Project List (%)'!K141 -> 0 | L141: =$H141 * 'Project List (%)'!L141 -> 0 | M141: =$H141 * 'Project List (%)'!M141 -> 0 | N141: =$H141 * 'Project List (%)'!N141 -> 0 | O141: =$H141 * 'Project List (%)'!O141 -> 0 | P141: =$H141 * 'Project List (%)'!P141 -> 0 | Q141: =$H141 * 'Project List (%)'!Q141 -> 0 | R141: =$H141 * 'Project List (%)'!R141 -> 0 | S141: ='Project List (%)'!S141 -> 0 | T141: ='Project List (%)'!T141 -> 0 | U141: ='Project List (%)'!U141 -> 0 | V141: ='Project List (%)'!V141 -> 0 | W141: ='Project List (%)'!W141 -> 0 | X141: ='Project List (%)'!X141 -> 0 | Y141: ='Project List (%)'!Y141 -> 2021+
C142: ='Project List (%)'!C142 -> Deer Park | D142: ='Project List (%)'!D142 -> 161 | E142: ='Project List (%)'!E142 -> Subtransmission | F142: ='Project List (%)'!F142 -> 0 | G142: ='Project List (%)'!G142 -> TRT 3rd Tx & Bus | H142: ='Project List (%)'!H142 -> 0 | J142: =$H142 * 'Project List (%)'!J142 -> 0 | K142: =$H142 * 'Project List (%)'!K142 -> 0 | L142: =$H142 * 'Project List (%)'!L142 -> 0 | M142: =$H142 * 'Project List (%)'!M142 -> 0 | N142: =$H142 * 'Project List (%)'!N142 -> 0 | O142: =$H142 * 'Project List (%)'!O142 -> 0 | P142: =$H142 * 'Project List (%)'!P142 -> 0 | Q142: =$H142 * 'Project List (%)'!Q142 -> 0 | R142: =$H142 * 'Project List (%)'!R142 -> 0 | S142: ='Project List (%)'!S142 -> 0 | T142: ='Project List (%)'!T142 -> 0 | U142: ='Project List (%)'!U142 -> 0 | V142: ='Project List (%)'!V142 -> 0 | W142: ='Project List (%)'!W142 -> 0 | X142: ='Project List (%)'!X142 -> 0 | Y142: ='Project List (%)'!Y142 -> 2021+
C143: ='Project List (%)'!C143 -> Deer Park | D143: ='Project List (%)'!D143 -> 161 | E143: ='Project List (%)'!E143 -> Subtransmission | F143: ='Project List (%)'!F143 -> 0 | G143: ='Project List (%)'!G143 -> BMH transfer to ATS/West DPTS | H143: ='Project List (%)'!H143 -> 0 | J143: =$H143 * 'Project List (%)'!J143 -> 0 | K143: =$H143 * 'Project List (%)'!K143 -> 0 | L143: =$H143 * 'Project List (%)'!L143 -> 0 | M143: =$H143 * 'Project List (%)'!M143 -> 0 | N143: =$H143 * 'Project List (%)'!N143 -> 0 | O143: =$H143 * 'Project List (%)'!O143 -> 0 | P143: =$H143 * 'Project List (%)'!P143 -> 0 | Q143: =$H143 * 'Project List (%)'!Q143 -> 0 | R143: =$H143 * 'Project List (%)'!R143 -> 0 | S143: ='Project List (%)'!S143 -> 0 | T143: ='Project List (%)'!T143 -> 0 | U143: ='Project List (%)'!U143 -> 0 | V143: ='Project List (%)'!V143 -> 0 | W143: ='Project List (%)'!W143 -> 0 | X143: ='Project List (%)'!X143 -> 0 | Y143: ='Project List (%)'!Y143 -> 2021+
C144: ='Project List (%)'!C144 -> Altona-Brooklyn | D144: ='Project List (%)'!D144 -> 162 | E144: ='Project List (%)'!E144 -> Subtransmission | F144: ='Project List (%)'!F144 -> 0 | G144: ='Project List (%)'!G144 -> Uprate ATS-WBE Exit and HCP-WBE at WBE to 1050A minimum summer | H144: ='Project List (%)'!H144 -> 0 | J144: =$H144 * 'Project List (%)'!J144 -> 0 | K144: =$H144 * 'Project List (%)'!K144 -> 0 | L144: =$H144 * 'Project List (%)'!L144 -> 0 | M144: =$H144 * 'Project List (%)'!M144 -> 0 | N144: =$H144 * 'Project List (%)'!N144 -> 0 | O144: =$H144 * 'Project List (%)'!O144 -> 0 | P144: =$H144 * 'Project List (%)'!P144 -> 0 | Q144: =$H144 * 'Project List (%)'!Q144 -> 0 | R144: =$H144 * 'Project List (%)'!R144 -> 0 | S144: ='Project List (%)'!S144 -> 0 | T144: ='Project List (%)'!T144 -> 0 | U144: ='Project List (%)'!U144 -> 0 | V144: ='Project List (%)'!V144 -> 0 | W144: ='Project List (%)'!W144 -> 0 | X144: ='Project List (%)'!X144 -> 0 | Y144: ='Project List (%)'!Y144 -> 2021+
C145: ='Project List (%)'!C145 -> Altona-Brooklyn | D145: ='Project List (%)'!D145 -> 162 | E145: ='Project List (%)'!E145 -> Subtransmission | F145: ='Project List (%)'!F145 -> 0 | G145: ='Project List (%)'!G145 -> Uprate ATS-HCP Exit and HCP-WBE at HCP to 1050A minimum summer | H145: ='Project List (%)'!H145 -> 0 | J145: =$H145 * 'Project List (%)'!J145 -> 0 | K145: =$H145 * 'Project List (%)'!K145 -> 0 | L145: =$H145 * 'Project List (%)'!L145 -> 0 | M145: =$H145 * 'Project List (%)'!M145 -> 0 | N145: =$H145 * 'Project List (%)'!N145 -> 0 | O145: =$H145 * 'Project List (%)'!O145 -> 0 | P145: =$H145 * 'Project List (%)'!P145 -> 0 | Q145: =$H145 * 'Project List (%)'!Q145 -> 0 | R145: =$H145 * 'Project List (%)'!R145 -> 0 | S145: ='Project List (%)'!S145 -> 0 | T145: ='Project List (%)'!T145 -> 0 | U145: ='Project List (%)'!U145 -> 0 | V145: ='Project List (%)'!V145 -> 0 | W145: ='Project List (%)'!W145 -> 0 | X145: ='Project List (%)'!X145 -> 0 | Y145: ='Project List (%)'!Y145 -> 2021+
C146: ='Project List (%)'!C146 -> Altona-Brooklyn | D146: ='Project List (%)'!D146 -> 0 | E146: ='Project List (%)'!E146 -> 0 | F146: ='Project List (%)'!F146 -> 0 | G146: ='Project List (%)'!G146 -> 0 | H146: ='Project List (%)'!H146 -> 0 | J146: =$H146 * 'Project List (%)'!J146 -> 0 | K146: =$H146 * 'Project List (%)'!K146 -> 0 | L146: =$H146 * 'Project List (%)'!L146 -> 0 | M146: =$H146 * 'Project List (%)'!M146 -> 0 | N146: =$H146 * 'Project List (%)'!N146 -> 0 | O146: =$H146 * 'Project List (%)'!O146 -> 0 | P146: =$H146 * 'Project List (%)'!P146 -> 0 | Q146: =$H146 * 'Project List (%)'!Q146 -> 0 | R146: =$H146 * 'Project List (%)'!R146 -> 0 | S146: ='Project List (%)'!S146 -> 0 | T146: ='Project List (%)'!T146 -> 0 | U146: ='Project List (%)'!U146 -> 0 | V146: ='Project List (%)'!V146 -> 0 | W146: ='Project List (%)'!W146 -> 0 | X146: ='Project List (%)'!X146 -> 0 | Y146: ='Project List (%)'!Y146 -> 0
C147: ='Project List (%)'!C147 -> Altona-Brooklyn | D147: ='Project List (%)'!D147 -> DISTRIBUTION MAJOR | E147: ='Project List (%)'!E147 -> 0 | F147: ='Project List (%)'!F147 -> 0 | G147: ='Project List (%)'!G147 -> Altona Chem, AC | H147: ='Project List (%)'!H147 -> 0 | J147: =$H147 * 'Project List (%)'!J147 -> 0 | K147: =$H147 * 'Project List (%)'!K147 -> 0 | L147: =$H147 * 'Project List (%)'!L147 -> 0 | M147: =$H147 * 'Project List (%)'!M147 -> 0 | N147: =$H147 * 'Project List (%)'!N147 -> 0 | O147: =$H147 * 'Project List (%)'!O147 -> 0 | P147: =$H147 * 'Project List (%)'!P147 -> 0 | Q147: =$H147 * 'Project List (%)'!Q147 -> 0 | R147: =$H147 * 'Project List (%)'!R147 -> 0 | S147: ='Project List (%)'!S147 -> 0 | T147: ='Project List (%)'!T147 -> 0 | U147: ='Project List (%)'!U147 -> 0 | V147: ='Project List (%)'!V147 -> 0 | W147: ='Project List (%)'!W147 -> 0 | X147: ='Project List (%)'!X147 -> 0 | Y147: ='Project List (%)'!Y147 -> 0
C148: ='Project List (%)'!C148 -> Altona-Brooklyn | D148: ='Project List (%)'!D148 -> 0 | E148: ='Project List (%)'!E148 -> 0 | F148: ='Project List (%)'!F148 -> 0 | G148: ='Project List (%)'!G148 -> 0 | H148: ='Project List (%)'!H148 -> 0 | J148: =$H148 * 'Project List (%)'!J148 -> 0 | K148: =$H148 * 'Project List (%)'!K148 -> 0 | L148: =$H148 * 'Project List (%)'!L148 -> 0 | M148: =$H148 * 'Project List (%)'!M148 -> 0 | N148: =$H148 * 'Project List (%)'!N148 -> 0 | O148: =$H148 * 'Project List (%)'!O148 -> 0 | P148: =$H148 * 'Project List (%)'!P148 -> 0 | Q148: =$H148 * 'Project List (%)'!Q148 -> 0 | R148: =$H148 * 'Project List (%)'!R148 -> 0 | S148: ='Project List (%)'!S148 -> 0 | T148: ='Project List (%)'!T148 -> 0 | U148: ='Project List (%)'!U148 -> 0 | V148: ='Project List (%)'!V148 -> 0 | W148: ='Project List (%)'!W148 -> 0 | X148: ='Project List (%)'!X148 -> 0 | Y148: ='Project List (%)'!Y148 -> 0
C149: ='Project List (%)'!C149 -> Altona-Brooklyn | D149: ='Project List (%)'!D149 -> 0 | E149: ='Project List (%)'!E149 -> 0 | F149: ='Project List (%)'!F149 -> 0 | G149: ='Project List (%)'!G149 -> Altona, Al | H149: ='Project List (%)'!H149 -> 0 | J149: =$H149 * 'Project List (%)'!J149 -> 0 | K149: =$H149 * 'Project List (%)'!K149 -> 0 | L149: =$H149 * 'Project List (%)'!L149 -> 0 | M149: =$H149 * 'Project List (%)'!M149 -> 0 | N149: =$H149 * 'Project List (%)'!N149 -> 0 | O149: =$H149 * 'Project List (%)'!O149 -> 0 | P149: =$H149 * 'Project List (%)'!P149 -> 0 | Q149: =$H149 * 'Project List (%)'!Q149 -> 0 | R149: =$H149 * 'Project List (%)'!R149 -> 0 | S149: ='Project List (%)'!S149 -> 0 | T149: ='Project List (%)'!T149 -> 0 | U149: ='Project List (%)'!U149 -> 0 | V149: ='Project List (%)'!V149 -> 0 | W149: ='Project List (%)'!W149 -> 0 | X149: ='Project List (%)'!X149 -> 0 | Y149: ='Project List (%)'!Y149 -> 0
C150: ='Project List (%)'!C150 -> Altona-Brooklyn | D150: ='Project List (%)'!D150 -> 162 | E150: ='Project List (%)'!E150 -> Urban | F150: ='Project List (%)'!F150 -> 0 | G150: ='Project List (%)'!G150 -> AL 12 Extend feeder to Civic Pde and other works. | H150: ='Project List (%)'!H150 -> 621.4718643 | J150: =$H150 * 'Project List (%)'!J150 -> 0 | K150: =$H150 * 'Project List (%)'!K150 -> 0 | L150: =$H150 * 'Project List (%)'!L150 -> 0 | M150: =$H150 * 'Project List (%)'!M150 -> 0 | N150: =$H150 * 'Project List (%)'!N150 -> 0 | O150: =$H150 * 'Project List (%)'!O150 -> 621.4718643 | P150: =$H150 * 'Project List (%)'!P150 -> 0 | Q150: =$H150 * 'Project List (%)'!Q150 -> 0 | R150: =$H150 * 'Project List (%)'!R150 -> 0 | S150: ='Project List (%)'!S150 -> 0 | T150: ='Project List (%)'!T150 -> Both | U150: ='Project List (%)'!U150 -> Demand growth | V150: ='Project List (%)'!V150 -> 6 | W150: ='Project List (%)'!W150 -> 0 | X150: ='Project List (%)'!X150 -> 0 | Y150: ='Project List (%)'!Y150 -> 2018
C151: ='Project List (%)'!C151 -> Altona-Brooklyn | D151: ='Project List (%)'!D151 -> 162 | E151: ='Project List (%)'!E151 -> Urban | F151: ='Project List (%)'!F151 -> 0 | G151: ='Project List (%)'!G151 -> AL 1 New feeder | H151: ='Project List (%)'!H151 -> 0 | J151: =$H151 * 'Project List (%)'!J151 -> 0 | K151: =$H151 * 'Project List (%)'!K151 -> 0 | L151: =$H151 * 'Project List (%)'!L151 -> 0 | M151: =$H151 * 'Project List (%)'!M151 -> 0 | N151: =$H151 * 'Project List (%)'!N151 -> 0 | O151: =$H151 * 'Project List (%)'!O151 -> 0 | P151: =$H151 * 'Project List (%)'!P151 -> 0 | Q151: =$H151 * 'Project List (%)'!Q151 -> 0 | R151: =$H151 * 'Project List (%)'!R151 -> 0 | S151: ='Project List (%)'!S151 -> 0 | T151: ='Project List (%)'!T151 -> 0 | U151: ='Project List (%)'!U151 -> 0 | V151: ='Project List (%)'!V151 -> 0 | W151: ='Project List (%)'!W151 -> 0 | X151: ='Project List (%)'!X151 -> 0 | Y151: ='Project List (%)'!Y151 -> 2021+
C152: ='Project List (%)'!C152 -> Altona-Brooklyn | D152: ='Project List (%)'!D152 -> 0 | E152: ='Project List (%)'!E152 -> 0 | F152: ='Project List (%)'!F152 -> 0 | G152: ='Project List (%)'!G152 -> 0 | H152: ='Project List (%)'!H152 -> 0 | J152: =$H152 * 'Project List (%)'!J152 -> 0 | K152: =$H152 * 'Project List (%)'!K152 -> 0 | L152: =$H152 * 'Project List (%)'!L152 -> 0 | M152: =$H152 * 'Project List (%)'!M152 -> 0 | N152: =$H152 * 'Project List (%)'!N152 -> 0 | O152: =$H152 * 'Project List (%)'!O152 -> 0 | P152: =$H152 * 'Project List (%)'!P152 -> 0 | Q152: =$H152 * 'Project List (%)'!Q152 -> 0 | R152: =$H152 * 'Project List (%)'!R152 -> 0 | S152: ='Project List (%)'!S152 -> 0 | T152: ='Project List (%)'!T152 -> 0 | U152: ='Project List (%)'!U152 -> 0 | V152: ='Project List (%)'!V152 -> 0 | W152: ='Project List (%)'!W152 -> 0 | X152: ='Project List (%)'!X152 -> 0 | Y152: ='Project List (%)'!Y152 -> 0
C153: ='Project List (%)'!C153 -> Altona-Brooklyn | D153: ='Project List (%)'!D153 -> 0 | E153: ='Project List (%)'!E153 -> 0 | F153: ='Project List (%)'!F153 -> Laverton | G153: ='Project List (%)'!G153 -> Laverton, LV | H153: ='Project List (%)'!H153 -> 0 | J153: =$H153 * 'Project List (%)'!J153 -> 0 | K153: =$H153 * 'Project List (%)'!K153 -> 0 | L153: =$H153 * 'Project List (%)'!L153 -> 0 | M153: =$H153 * 'Project List (%)'!M153 -> 0 | N153: =$H153 * 'Project List (%)'!N153 -> 0 | O153: =$H153 * 'Project List (%)'!O153 -> 0 | P153: =$H153 * 'Project List (%)'!P153 -> 0 | Q153: =$H153 * 'Project List (%)'!Q153 -> 0 | R153: =$H153 * 'Project List (%)'!R153 -> 0 | S153: ='Project List (%)'!S153 -> 0 | T153: ='Project List (%)'!T153 -> 0 | U153: ='Project List (%)'!U153 -> 0 | V153: ='Project List (%)'!V153 -> 0 | W153: ='Project List (%)'!W153 -> 0 | X153: ='Project List (%)'!X153 -> 0 | Y153: ='Project List (%)'!Y153 -> 0
C154: ='Project List (%)'!C154 -> Altona-Brooklyn | D154: ='Project List (%)'!D154 -> 162 | E154: ='Project List (%)'!E154 -> Urban | F154: ='Project List (%)'!F154 -> 0 | G154: ='Project List (%)'!G154 -> LV7 - Augment to 19/4.75AAC conductors in old Geelong Rd (2.2km) plus New ACR. | H154: ='Project List (%)'!H154 -> 0 | J154: =$H154 * 'Project List (%)'!J154 -> 0 | K154: =$H154 * 'Project List (%)'!K154 -> 0 | L154: =$H154 * 'Project List (%)'!L154 -> 0 | M154: =$H154 * 'Project List (%)'!M154 -> 0 | N154: =$H154 * 'Project List (%)'!N154 -> 0 | O154: =$H154 * 'Project List (%)'!O154 -> 0 | P154: =$H154 * 'Project List (%)'!P154 -> 0 | Q154: =$H154 * 'Project List (%)'!Q154 -> 0 | R154: =$H154 * 'Project List (%)'!R154 -> 0 | S154: ='Project List (%)'!S154 -> 0 | T154: ='Project List (%)'!T154 -> 0 | U154: ='Project List (%)'!U154 -> 0 | V154: ='Project List (%)'!V154 -> 0 | W154: ='Project List (%)'!W154 -> 0 | X154: ='Project List (%)'!X154 -> 0 | Y154: ='Project List (%)'!Y154 -> 2021+
C155: ='Project List (%)'!C155 -> Altona-Brooklyn | D155: ='Project List (%)'!D155 -> 162 | E155: ='Project List (%)'!E155 -> Urban | F155: ='Project List (%)'!F155 -> 0 | G155: ='Project List (%)'!G155 -> Uprate LV1 (80/45oC) 2.4km | H155: ='Project List (%)'!H155 -> 0 | J155: =$H155 * 'Project List (%)'!J155 -> 0 | K155: =$H155 * 'Project List (%)'!K155 -> 0 | L155: =$H155 * 'Project List (%)'!L155 -> 0 | M155: =$H155 * 'Project List (%)'!M155 -> 0 | N155: =$H155 * 'Project List (%)'!N155 -> 0 | O155: =$H155 * 'Project List (%)'!O155 -> 0 | P155: =$H155 * 'Project List (%)'!P155 -> 0 | Q155: =$H155 * 'Project List (%)'!Q155 -> 0 | R155: =$H155 * 'Project List (%)'!R155 -> 0 | S155: ='Project List (%)'!S155 -> 0 | T155: ='Project List (%)'!T155 -> 0 | U155: ='Project List (%)'!U155 -> 0 | V155: ='Project List (%)'!V155 -> 0 | W155: ='Project List (%)'!W155 -> 0 | X155: ='Project List (%)'!X155 -> 0 | Y155: ='Project List (%)'!Y155 -> 2021+
C156: ='Project List (%)'!C156 -> Altona-Brooklyn | D156: ='Project List (%)'!D156 -> 162 | E156: ='Project List (%)'!E156 -> Urban | F156: ='Project List (%)'!F156 -> 0 | G156: ='Project List (%)'!G156 -> HV U/G tie LV3 to LV2 | H156: ='Project List (%)'!H156 -> 0 | J156: =$H156 * 'Project List (%)'!J156 -> 0 | K156: =$H156 * 'Project List (%)'!K156 -> 0 | L156: =$H156 * 'Project List (%)'!L156 -> 0 | M156: =$H156 * 'Project List (%)'!M156 -> 0 | N156: =$H156 * 'Project List (%)'!N156 -> 0 | O156: =$H156 * 'Project List (%)'!O156 -> 0 | P156: =$H156 * 'Project List (%)'!P156 -> 0 | Q156: =$H156 * 'Project List (%)'!Q156 -> 0 | R156: =$H156 * 'Project List (%)'!R156 -> 0 | S156: ='Project List (%)'!S156 -> 0 | T156: ='Project List (%)'!T156 -> 0 | U156: ='Project List (%)'!U156 -> 0 | V156: ='Project List (%)'!V156 -> 0 | W156: ='Project List (%)'!W156 -> 0 | X156: ='Project List (%)'!X156 -> 0 | Y156: ='Project List (%)'!Y156 -> 2021+
C157: ='Project List (%)'!C157 -> Altona-Brooklyn | D157: ='Project List (%)'!D157 -> 162 | E157: ='Project List (%)'!E157 -> Rural Short | F157: ='Project List (%)'!F157 -> 0 | G157: ='Project List (%)'!G157 -> HV tie LV3 to LV1 Morris Rd (replace 95mm2 HV cable 500m +T joint) | H157: ='Project List (%)'!H157 -> 0 | J157: =$H157 * 'Project List (%)'!J157 -> 0 | K157: =$H157 * 'Project List (%)'!K157 -> 0 | L157: =$H157 * 'Project List (%)'!L157 -> 0 | M157: =$H157 * 'Project List (%)'!M157 -> 0 | N157: =$H157 * 'Project List (%)'!N157 -> 0 | O157: =$H157 * 'Project List (%)'!O157 -> 0 | P157: =$H157 * 'Project List (%)'!P157 -> 0 | Q157: =$H157 * 'Project List (%)'!Q157 -> 0 | R157: =$H157 * 'Project List (%)'!R157 -> 0 | S157: ='Project List (%)'!S157 -> 0 | T157: ='Project List (%)'!T157 -> 0 | U157: ='Project List (%)'!U157 -> 0 | V157: ='Project List (%)'!V157 -> 0 | W157: ='Project List (%)'!W157 -> 0 | X157: ='Project List (%)'!X157 -> 0 | Y157: ='Project List (%)'!Y157 -> 2021+
C158: ='Project List (%)'!C158 -> Altona-Brooklyn | D158: ='Project List (%)'!D158 -> 162 | E158: ='Project List (%)'!E158 -> Rural Short | F158: ='Project List (%)'!F158 -> 5087117 | G158: ='Project List (%)'!G158 -> LV21 into Point Cook New Feeder Design& Construction | H158: ='Project List (%)'!H158 -> 1905.84705 | J158: =$H158 * 'Project List (%)'!J158 -> 0 | K158: =$H158 * 'Project List (%)'!K158 -> 0 | L158: =$H158 * 'Project List (%)'!L158 -> 0 | M158: =$H158 * 'Project List (%)'!M158 -> 476.4617626 | N158: =$H158 * 'Project List (%)'!N158 -> 1429.385288 | O158: =$H158 * 'Project List (%)'!O158 -> 0 | P158: =$H158 * 'Project List (%)'!P158 -> 0 | Q158: =$H158 * 'Project List (%)'!Q158 -> 0 | R158: =$H158 * 'Project List (%)'!R158 -> 0 | S158: ='Project List (%)'!S158 -> 0 | T158: ='Project List (%)'!T158 -> Both | U158: ='Project List (%)'!U158 -> Demand growth | V158: ='Project List (%)'!V158 -> 12 | W158: ='Project List (%)'!W158 -> 0 | X158: ='Project List (%)'!X158 -> 0 | Y158: ='Project List (%)'!Y158 -> 2017
C159: ='Project List (%)'!C159 -> Altona-Brooklyn | D159: ='Project List (%)'!D159 -> 162 | E159: ='Project List (%)'!E159 -> Urban | F159: ='Project List (%)'!F159 -> 0 | G159: ='Project List (%)'!G159 -> LV5 HV switch - Forsyth Road | H159: ='Project List (%)'!H159 -> 39.48360002 | J159: =$H159 * 'Project List (%)'!J159 -> 0 | K159: =$H159 * 'Project List (%)'!K159 -> 0 | L159: =$H159 * 'Project List (%)'!L159 -> 39.48360002 | M159: =$H159 * 'Project List (%)'!M159 -> 0 | N159: =$H159 * 'Project List (%)'!N159 -> 0 | O159: =$H159 * 'Project List (%)'!O159 -> 0 | P159: =$H159 * 'Project List (%)'!P159 -> 0 | Q159: =$H159 * 'Project List (%)'!Q159 -> 0 | R159: =$H159 * 'Project List (%)'!R159 -> 0 | S159: ='Project List (%)'!S159 -> 0 | T159: ='Project List (%)'!T159 -> Overhead | U159: ='Project List (%)'!U159 -> Demand growth | V159: ='Project List (%)'!V159 -> 0 | W159: ='Project List (%)'!W159 -> 0 | X159: ='Project List (%)'!X159 -> 0 | Y159: ='Project List (%)'!Y159 -> 2015
C160: ='Project List (%)'!C160 -> Altona-Brooklyn | D160: ='Project List (%)'!D160 -> 162 | E160: ='Project List (%)'!E160 -> Urban | F160: ='Project List (%)'!F160 -> 0 | G160: ='Project List (%)'!G160 -> LV5 CHP HV switch | H160: ='Project List (%)'!H160 -> 39.35988474 | J160: =$H160 * 'Project List (%)'!J160 -> 0 | K160: =$H160 * 'Project List (%)'!K160 -> 0 | L160: =$H160 * 'Project List (%)'!L160 -> 39.35988474 | M160: =$H160 * 'Project List (%)'!M160 -> 0 | N160: =$H160 * 'Project List (%)'!N160 -> 0 | O160: =$H160 * 'Project List (%)'!O160 -> 0 | P160: =$H160 * 'Project List (%)'!P160 -> 0 | Q160: =$H160 * 'Project List (%)'!Q160 -> 0 | R160: =$H160 * 'Project List (%)'!R160 -> 0 | S160: ='Project List (%)'!S160 -> 0 | T160: ='Project List (%)'!T160 -> Overhead | U160: ='Project List (%)'!U160 -> Demand growth | V160: ='Project List (%)'!V160 -> 0 | W160: ='Project List (%)'!W160 -> 0 | X160: ='Project List (%)'!X160 -> 0 | Y160: ='Project List (%)'!Y160 -> 2015
C161: ='Project List (%)'!C161 -> Altona-Brooklyn | D161: ='Project List (%)'!D161 -> 162 | E161: ='Project List (%)'!E161 -> Urban | F161: ='Project List (%)'!F161 -> 0 | G161: ='Project List (%)'!G161 -> LV3 to LV6 HV tie | H161: ='Project List (%)'!H161 -> 59.03982711 | J161: =$H161 * 'Project List (%)'!J161 -> 0 | K161: =$H161 * 'Project List (%)'!K161 -> 0 | L161: =$H161 * 'Project List (%)'!L161 -> 59.03982711 | M161: =$H161 * 'Project List (%)'!M161 -> 0 | N161: =$H161 * 'Project List (%)'!N161 -> 0 | O161: =$H161 * 'Project List (%)'!O161 -> 0 | P161: =$H161 * 'Project List (%)'!P161 -> 0 | Q161: =$H161 * 'Project List (%)'!Q161 -> 0 | R161: =$H161 * 'Project List (%)'!R161 -> 0 | S161: ='Project List (%)'!S161 -> 0 | T161: ='Project List (%)'!T161 -> Overhead | U161: ='Project List (%)'!U161 -> Demand growth | V161: ='Project List (%)'!V161 -> 6 | W161: ='Project List (%)'!W161 -> 0 | X161: ='Project List (%)'!X161 -> 0 | Y161: ='Project List (%)'!Y161 -> 2015
C162: ='Project List (%)'!C162 -> Altona-Brooklyn | D162: ='Project List (%)'!D162 -> 0 | E162: ='Project List (%)'!E162 -> 0 | F162: ='Project List (%)'!F162 -> 0 | G162: ='Project List (%)'!G162 -> 0 | H162: ='Project List (%)'!H162 -> 0 | J162: =$H162 * 'Project List (%)'!J162 -> 0 | K162: =$H162 * 'Project List (%)'!K162 -> 0 | L162: =$H162 * 'Project List (%)'!L162 -> 0 | M162: =$H162 * 'Project List (%)'!M162 -> 0 | N162: =$H162 * 'Project List (%)'!N162 -> 0 | O162: =$H162 * 'Project List (%)'!O162 -> 0 | P162: =$H162 * 'Project List (%)'!P162 -> 0 | Q162: =$H162 * 'Project List (%)'!Q162 -> 0 | R162: =$H162 * 'Project List (%)'!R162 -> 0 | S162: ='Project List (%)'!S162 -> 0 | T162: ='Project List (%)'!T162 -> 0 | U162: ='Project List (%)'!U162 -> 0 | V162: ='Project List (%)'!V162 -> 0 | W162: ='Project List (%)'!W162 -> 0 | X162: ='Project List (%)'!X162 -> 0 | Y162: ='Project List (%)'!Y162 -> 0
C163: ='Project List (%)'!C163 -> Altona-Brooklyn | D163: ='Project List (%)'!D163 -> 0 | E163: ='Project List (%)'!E163 -> 0 | F163: ='Project List (%)'!F163 -> 0 | G163: ='Project List (%)'!G163 -> Laverton North, LVN | H163: ='Project List (%)'!H163 -> 0 | J163: =$H163 * 'Project List (%)'!J163 -> 0 | K163: =$H163 * 'Project List (%)'!K163 -> 0 | L163: =$H163 * 'Project List (%)'!L163 -> 0 | M163: =$H163 * 'Project List (%)'!M163 -> 0 | N163: =$H163 * 'Project List (%)'!N163 -> 0 | O163: =$H163 * 'Project List (%)'!O163 -> 0 | P163: =$H163 * 'Project List (%)'!P163 -> 0 | Q163: =$H163 * 'Project List (%)'!Q163 -> 0 | R163: =$H163 * 'Project List (%)'!R163 -> 0 | S163: ='Project List (%)'!S163 -> 0 | T163: ='Project List (%)'!T163 -> 0 | U163: ='Project List (%)'!U163 -> 0 | V163: ='Project List (%)'!V163 -> 0 | W163: ='Project List (%)'!W163 -> 0 | X163: ='Project List (%)'!X163 -> 0 | Y163: ='Project List (%)'!Y163 -> 0
C164: ='Project List (%)'!C164 -> Altona-Brooklyn | D164: ='Project List (%)'!D164 -> 162 | E164: ='Project List (%)'!E164 -> Urban | F164: ='Project List (%)'!F164 -> 0 | G164: ='Project List (%)'!G164 -> Augment LVN33 19/4.75 | H164: ='Project List (%)'!H164 -> 0 | J164: =$H164 * 'Project List (%)'!J164 -> 0 | K164: =$H164 * 'Project List (%)'!K164 -> 0 | L164: =$H164 * 'Project List (%)'!L164 -> 0 | M164: =$H164 * 'Project List (%)'!M164 -> 0 | N164: =$H164 * 'Project List (%)'!N164 -> 0 | O164: =$H164 * 'Project List (%)'!O164 -> 0 | P164: =$H164 * 'Project List (%)'!P164 -> 0 | Q164: =$H164 * 'Project List (%)'!Q164 -> 0 | R164: =$H164 * 'Project List (%)'!R164 -> 0 | S164: ='Project List (%)'!S164 -> 0 | T164: ='Project List (%)'!T164 -> 0 | U164: ='Project List (%)'!U164 -> 0 | V164: ='Project List (%)'!V164 -> 0 | W164: ='Project List (%)'!W164 -> 0 | X164: ='Project List (%)'!X164 -> 0 | Y164: ='Project List (%)'!Y164 -> 2021+
C165: ='Project List (%)'!C165 -> Altona-Brooklyn | D165: ='Project List (%)'!D165 -> 162 | E165: ='Project List (%)'!E165 -> Urban | F165: ='Project List (%)'!F165 -> 0 | G165: ='Project List (%)'!G165 -> LVN22 Uprate Princes Fwy to Altona Meadows | H165: ='Project List (%)'!H165 -> 155.3679661 | J165: =$H165 * 'Project List (%)'!J165 -> 0 | K165: =$H165 * 'Project List (%)'!K165 -> 0 | L165: =$H165 * 'Project List (%)'!L165 -> 155.3679661 | M165: =$H165 * 'Project List (%)'!M165 -> 0 | N165: =$H165 * 'Project List (%)'!N165 -> 0 | O165: =$H165 * 'Project List (%)'!O165 -> 0 | P165: =$H165 * 'Project List (%)'!P165 -> 0 | Q165: =$H165 * 'Project List (%)'!Q165 -> 0 | R165: =$H165 * 'Project List (%)'!R165 -> 0 | S165: ='Project List (%)'!S165 -> 0 | T165: ='Project List (%)'!T165 -> Overhead | U165: ='Project List (%)'!U165 -> Demand growth | V165: ='Project List (%)'!V165 -> 5.5 | W165: ='Project List (%)'!W165 -> 0 | X165: ='Project List (%)'!X165 -> 0 | Y165: ='Project List (%)'!Y165 -> 2015
C166: ='Project List (%)'!C166 -> Altona-Brooklyn | D166: ='Project List (%)'!D166 -> 162 | E166: ='Project List (%)'!E166 -> Urban | F166: ='Project List (%)'!F166 -> 0 | G166: ='Project List (%)'!G166 -> LVN22 Augment 1km Cherry La to Princes Fwy | H166: ='Project List (%)'!H166 -> 155.3679661 | J166: =$H166 * 'Project List (%)'!J166 -> 0 | K166: =$H166 * 'Project List (%)'!K166 -> 0 | L166: =$H166 * 'Project List (%)'!L166 -> 0 | M166: =$H166 * 'Project List (%)'!M166 -> 0 | N166: =$H166 * 'Project List (%)'!N166 -> 0 | O166: =$H166 * 'Project List (%)'!O166 -> 0 | P166: =$H166 * 'Project List (%)'!P166 -> 0 | Q166: =$H166 * 'Project List (%)'!Q166 -> 155.3679661 | R166: =$H166 * 'Project List (%)'!R166 -> 0 | S166: ='Project List (%)'!S166 -> 0 | T166: ='Project List (%)'!T166 -> Overhead | U166: ='Project List (%)'!U166 -> Demand growth | V166: ='Project List (%)'!V166 -> 5.5 | W166: ='Project List (%)'!W166 -> 0 | X166: ='Project List (%)'!X166 -> 0 | Y166: ='Project List (%)'!Y166 -> 2020
C167: ='Project List (%)'!C167 -> Altona-Brooklyn | D167: ='Project List (%)'!D167 -> 162 | E167: ='Project List (%)'!E167 -> Urban | F167: ='Project List (%)'!F167 -> 0 | G167: ='Project List (%)'!G167 -> LVN21 - LVN24 Feeder load rearrangement | H167: ='Project List (%)'!H167 -> 310.7359321 | J167: =$H167 * 'Project List (%)'!J167 -> 0 | K167: =$H167 * 'Project List (%)'!K167 -> 0 | L167: =$H167 * 'Project List (%)'!L167 -> 0 | M167: =$H167 * 'Project List (%)'!M167 -> 0 | N167: =$H167 * 'Project List (%)'!N167 -> 0 | O167: =$H167 * 'Project List (%)'!O167 -> 310.7359321 | P167: =$H167 * 'Project List (%)'!P167 -> 0 | Q167: =$H167 * 'Project List (%)'!Q167 -> 0 | R167: =$H167 * 'Project List (%)'!R167 -> 0 | S167: ='Project List (%)'!S167 -> 0 | T167: ='Project List (%)'!T167 -> Both | U167: ='Project List (%)'!U167 -> Demand growth | V167: ='Project List (%)'!V167 -> 5 | W167: ='Project List (%)'!W167 -> 0 | X167: ='Project List (%)'!X167 -> 0 | Y167: ='Project List (%)'!Y167 -> 2018
C168: ='Project List (%)'!C168 -> Altona-Brooklyn | D168: ='Project List (%)'!D168 -> 162 | E168: ='Project List (%)'!E168 -> Urban | F168: ='Project List (%)'!F168 -> 0 | G168: ='Project List (%)'!G168 -> LVN23-LVN24 tie in along Foundation Rd | H168: ='Project List (%)'!H168 -> 427.6343474 | J168: =$H168 * 'Project List (%)'!J168 -> 0 | K168: =$H168 * 'Project List (%)'!K168 -> 0 | L168: =$H168 * 'Project List (%)'!L168 -> 0 | M168: =$H168 * 'Project List (%)'!M168 -> 0 | N168: =$H168 * 'Project List (%)'!N168 -> 0 | O168: =$H168 * 'Project List (%)'!O168 -> 0 | P168: =$H168 * 'Project List (%)'!P168 -> 0 | Q168: =$H168 * 'Project List (%)'!Q168 -> 427.6343474 | R168: =$H168 * 'Project List (%)'!R168 -> 0 | S168: ='Project List (%)'!S168 -> 0 | T168: ='Project List (%)'!T168 -> Both | U168: ='Project List (%)'!U168 -> Demand growth | V168: ='Project List (%)'!V168 -> 4 | W168: ='Project List (%)'!W168 -> 0 | X168: ='Project List (%)'!X168 -> 0 | Y168: ='Project List (%)'!Y168 -> 2020
C169: ='Project List (%)'!C169 -> Altona-Brooklyn | D169: ='Project List (%)'!D169 -> 0 | E169: ='Project List (%)'!E169 -> 0 | F169: ='Project List (%)'!F169 -> 0 | G169: ='Project List (%)'!G169 -> 0 | H169: ='Project List (%)'!H169 -> 0 | J169: =$H169 * 'Project List (%)'!J169 -> 0 | K169: =$H169 * 'Project List (%)'!K169 -> 0 | L169: =$H169 * 'Project List (%)'!L169 -> 0 | M169: =$H169 * 'Project List (%)'!M169 -> 0 | N169: =$H169 * 'Project List (%)'!N169 -> 0 | O169: =$H169 * 'Project List (%)'!O169 -> 0 | P169: =$H169 * 'Project List (%)'!P169 -> 0 | Q169: =$H169 * 'Project List (%)'!Q169 -> 0 | R169: =$H169 * 'Project List (%)'!R169 -> 0 | S169: ='Project List (%)'!S169 -> 0 | T169: ='Project List (%)'!T169 -> 0 | U169: ='Project List (%)'!U169 -> 0 | V169: ='Project List (%)'!V169 -> 0 | W169: ='Project List (%)'!W169 -> 0 | X169: ='Project List (%)'!X169 -> 0 | Y169: ='Project List (%)'!Y169 -> 0
C170: ='Project List (%)'!C170 -> Altona-Brooklyn | D170: ='Project List (%)'!D170 -> 0 | E170: ='Project List (%)'!E170 -> 0 | F170: ='Project List (%)'!F170 -> 0 | G170: ='Project List (%)'!G170 -> Werribee, WBE | H170: ='Project List (%)'!H170 -> 0 | J170: =$H170 * 'Project List (%)'!J170 -> 0 | K170: =$H170 * 'Project List (%)'!K170 -> 0 | L170: =$H170 * 'Project List (%)'!L170 -> 0 | M170: =$H170 * 'Project List (%)'!M170 -> 0 | N170: =$H170 * 'Project List (%)'!N170 -> 0 | O170: =$H170 * 'Project List (%)'!O170 -> 0 | P170: =$H170 * 'Project List (%)'!P170 -> 0 | Q170: =$H170 * 'Project List (%)'!Q170 -> 0 | R170: =$H170 * 'Project List (%)'!R170 -> 0 | S170: ='Project List (%)'!S170 -> 0 | T170: ='Project List (%)'!T170 -> 0 | U170: ='Project List (%)'!U170 -> 0 | V170: ='Project List (%)'!V170 -> 0 | W170: ='Project List (%)'!W170 -> 0 | X170: ='Project List (%)'!X170 -> 0 | Y170: ='Project List (%)'!Y170 -> 0
C171: ='Project List (%)'!C171 -> Altona-Brooklyn | D171: ='Project List (%)'!D171 -> 162 | E171: ='Project List (%)'!E171 -> Urban | F171: ='Project List (%)'!F171 -> 0 | G171: ='Project List (%)'!G171 -> WBE12 HV T-Joints Removal | H171: ='Project List (%)'!H171 -> 0 | J171: =$H171 * 'Project List (%)'!J171 -> 0 | K171: =$H171 * 'Project List (%)'!K171 -> 0 | L171: =$H171 * 'Project List (%)'!L171 -> 0 | M171: =$H171 * 'Project List (%)'!M171 -> 0 | N171: =$H171 * 'Project List (%)'!N171 -> 0 | O171: =$H171 * 'Project List (%)'!O171 -> 0 | P171: =$H171 * 'Project List (%)'!P171 -> 0 | Q171: =$H171 * 'Project List (%)'!Q171 -> 0 | R171: =$H171 * 'Project List (%)'!R171 -> 0 | S171: ='Project List (%)'!S171 -> 0 | T171: ='Project List (%)'!T171 -> 0 | U171: ='Project List (%)'!U171 -> 0 | V171: ='Project List (%)'!V171 -> 0 | W171: ='Project List (%)'!W171 -> 0 | X171: ='Project List (%)'!X171 -> 0 | Y171: ='Project List (%)'!Y171 -> 2021+
C172: ='Project List (%)'!C172 -> Altona-Brooklyn | D172: ='Project List (%)'!D172 -> 162 | E172: ='Project List (%)'!E172 -> Rural Short | F172: ='Project List (%)'!F172 -> 0 | G172: ='Project List (%)'!G172 -> WBE34 Augment (Robbs Rd& Cunningham Rd) | H172: ='Project List (%)'!H172 -> 0 | J172: =$H172 * 'Project List (%)'!J172 -> 0 | K172: =$H172 * 'Project List (%)'!K172 -> 0 | L172: =$H172 * 'Project List (%)'!L172 -> 0 | M172: =$H172 * 'Project List (%)'!M172 -> 0 | N172: =$H172 * 'Project List (%)'!N172 -> 0 | O172: =$H172 * 'Project List (%)'!O172 -> 0 | P172: =$H172 * 'Project List (%)'!P172 -> 0 | Q172: =$H172 * 'Project List (%)'!Q172 -> 0 | R172: =$H172 * 'Project List (%)'!R172 -> 0 | S172: ='Project List (%)'!S172 -> 0 | T172: ='Project List (%)'!T172 -> 0 | U172: ='Project List (%)'!U172 -> 0 | V172: ='Project List (%)'!V172 -> 0 | W172: ='Project List (%)'!W172 -> 0 | X172: ='Project List (%)'!X172 -> 0 | Y172: ='Project List (%)'!Y172 -> 2021+
C173: ='Project List (%)'!C173 -> Altona-Brooklyn | D173: ='Project List (%)'!D173 -> 0 | E173: ='Project List (%)'!E173 -> 0 | F173: ='Project List (%)'!F173 -> 0 | G173: ='Project List (%)'!G173 -> 0 | H173: ='Project List (%)'!H173 -> 0 | J173: =$H173 * 'Project List (%)'!J173 -> 0 | K173: =$H173 * 'Project List (%)'!K173 -> 0 | L173: =$H173 * 'Project List (%)'!L173 -> 0 | M173: =$H173 * 'Project List (%)'!M173 -> 0 | N173: =$H173 * 'Project List (%)'!N173 -> 0 | O173: =$H173 * 'Project List (%)'!O173 -> 0 | P173: =$H173 * 'Project List (%)'!P173 -> 0 | Q173: =$H173 * 'Project List (%)'!Q173 -> 0 | R173: =$H173 * 'Project List (%)'!R173 -> 0 | S173: ='Project List (%)'!S173 -> 0 | T173: ='Project List (%)'!T173 -> 0 | U173: ='Project List (%)'!U173 -> 0 | V173: ='Project List (%)'!V173 -> 0 | W173: ='Project List (%)'!W173 -> 0 | X173: ='Project List (%)'!X173 -> 0 | Y173: ='Project List (%)'!Y173 -> 0
C174: ='Project List (%)'!C174 -> Altona-Brooklyn | D174: ='Project List (%)'!D174 -> 0 | E174: ='Project List (%)'!E174 -> 0 | F174: ='Project List (%)'!F174 -> 0 | G174: ='Project List (%)'!G174 -> Brooklyn, BLT | H174: ='Project List (%)'!H174 -> 0 | J174: =$H174 * 'Project List (%)'!J174 -> 0 | K174: =$H174 * 'Project List (%)'!K174 -> 0 | L174: =$H174 * 'Project List (%)'!L174 -> 0 | M174: =$H174 * 'Project List (%)'!M174 -> 0 | N174: =$H174 * 'Project List (%)'!N174 -> 0 | O174: =$H174 * 'Project List (%)'!O174 -> 0 | P174: =$H174 * 'Project List (%)'!P174 -> 0 | Q174: =$H174 * 'Project List (%)'!Q174 -> 0 | R174: =$H174 * 'Project List (%)'!R174 -> 0 | S174: ='Project List (%)'!S174 -> 0 | T174: ='Project List (%)'!T174 -> 0 | U174: ='Project List (%)'!U174 -> 0 | V174: ='Project List (%)'!V174 -> 0 | W174: ='Project List (%)'!W174 -> 0 | X174: ='Project List (%)'!X174 -> 0 | Y174: ='Project List (%)'!Y174 -> 0
C175: ='Project List (%)'!C175 -> Altona-Brooklyn | D175: ='Project List (%)'!D175 -> 162 | E175: ='Project List (%)'!E175 -> Rural Short | F175: ='Project List (%)'!F175 -> 0 | G175: ='Project List (%)'!G175 -> BLT20 exit cable (to 300mm2) and rerate 19/3.75 to 65oC and replace 250mm to 300mm2 | H175: ='Project List (%)'!H175 -> 0 | J175: =$H175 * 'Project List (%)'!J175 -> 0 | K175: =$H175 * 'Project List (%)'!K175 -> 0 | L175: =$H175 * 'Project List (%)'!L175 -> 0 | M175: =$H175 * 'Project List (%)'!M175 -> 0 | N175: =$H175 * 'Project List (%)'!N175 -> 0 | O175: =$H175 * 'Project List (%)'!O175 -> 0 | P175: =$H175 * 'Project List (%)'!P175 -> 0 | Q175: =$H175 * 'Project List (%)'!Q175 -> 0 | R175: =$H175 * 'Project List (%)'!R175 -> 0 | S175: ='Project List (%)'!S175 -> 0 | T175: ='Project List (%)'!T175 -> 0 | U175: ='Project List (%)'!U175 -> 0 | V175: ='Project List (%)'!V175 -> 0 | W175: ='Project List (%)'!W175 -> 0 | X175: ='Project List (%)'!X175 -> 0 | Y175: ='Project List (%)'!Y175 -> 2021+
C176: ='Project List (%)'!C176 -> Altona-Brooklyn | D176: ='Project List (%)'!D176 -> 162 | E176: ='Project List (%)'!E176 -> Rural Short | F176: ='Project List (%)'!F176 -> 0 | G176: ='Project List (%)'!G176 -> BLT 17, 21, 30 and 31 feeder rearrangement Phase 1 | H176: ='Project List (%)'!H176 -> 155.3679661 | J176: =$H176 * 'Project List (%)'!J176 -> 0 | K176: =$H176 * 'Project List (%)'!K176 -> 0 | L176: =$H176 * 'Project List (%)'!L176 -> 155.3679661 | M176: =$H176 * 'Project List (%)'!M176 -> 0 | N176: =$H176 * 'Project List (%)'!N176 -> 0 | O176: =$H176 * 'Project List (%)'!O176 -> 0 | P176: =$H176 * 'Project List (%)'!P176 -> 0 | Q176: =$H176 * 'Project List (%)'!Q176 -> 0 | R176: =$H176 * 'Project List (%)'!R176 -> 0 | S176: ='Project List (%)'!S176 -> 0 | T176: ='Project List (%)'!T176 -> Overhead | U176: ='Project List (%)'!U176 -> Demand growth | V176: ='Project List (%)'!V176 -> 3 | W176: ='Project List (%)'!W176 -> 0 | X176: ='Project List (%)'!X176 -> 0 | Y176: ='Project List (%)'!Y176 -> 2015
C177: ='Project List (%)'!C177 -> Altona-Brooklyn | D177: ='Project List (%)'!D177 -> 162 | E177: ='Project List (%)'!E177 -> Rural Short | F177: ='Project List (%)'!F177 -> 0 | G177: ='Project List (%)'!G177 -> Uprate/Augment BLT22 feeder to 65oC | H177: ='Project List (%)'!H177 -> 0 | J177: =$H177 * 'Project List (%)'!J177 -> 0 | K177: =$H177 * 'Project List (%)'!K177 -> 0 | L177: =$H177 * 'Project List (%)'!L177 -> 0 | M177: =$H177 * 'Project List (%)'!M177 -> 0 | N177: =$H177 * 'Project List (%)'!N177 -> 0 | O177: =$H177 * 'Project List (%)'!O177 -> 0 | P177: =$H177 * 'Project List (%)'!P177 -> 0 | Q177: =$H177 * 'Project List (%)'!Q177 -> 0 | R177: =$H177 * 'Project List (%)'!R177 -> 0 | S177: ='Project List (%)'!S177 -> 0 | T177: ='Project List (%)'!T177 -> 0 | U177: ='Project List (%)'!U177 -> 0 | V177: ='Project List (%)'!V177 -> 0 | W177: ='Project List (%)'!W177 -> 0 | X177: ='Project List (%)'!X177 -> 0 | Y177: ='Project List (%)'!Y177 -> 2021+
C178: ='Project List (%)'!C178 -> Altona-Brooklyn | D178: ='Project List (%)'!D178 -> 162 | E178: ='Project List (%)'!E178 -> Urban | F178: ='Project List (%)'!F178 -> 0 | G178: ='Project List (%)'!G178 -> BLT15 Re-commission | H178: ='Project List (%)'!H178 -> 1584.753254 | J178: =$H178 * 'Project List (%)'!J178 -> 0 | K178: =$H178 * 'Project List (%)'!K178 -> 0 | L178: =$H178 * 'Project List (%)'!L178 -> 0 | M178: =$H178 * 'Project List (%)'!M178 -> 0 | N178: =$H178 * 'Project List (%)'!N178 -> 0 | O178: =$H178 * 'Project List (%)'!O178 -> 0 | P178: =$H178 * 'Project List (%)'!P178 -> 0 | Q178: =$H178 * 'Project List (%)'!Q178 -> 1584.753254 | R178: =$H178 * 'Project List (%)'!R178 -> 0 | S178: ='Project List (%)'!S178 -> 0 | T178: ='Project List (%)'!T178 -> Both | U178: ='Project List (%)'!U178 -> Demand growth | V178: ='Project List (%)'!V178 -> 12 | W178: ='Project List (%)'!W178 -> 0 | X178: ='Project List (%)'!X178 -> 0 | Y178: ='Project List (%)'!Y178 -> 2020
C179: ='Project List (%)'!C179 -> Altona-Brooklyn | D179: ='Project List (%)'!D179 -> 162 | E179: ='Project List (%)'!E179 -> Urban | F179: ='Project List (%)'!F179 -> 0 | G179: ='Project List (%)'!G179 -> BLT31 East Leg Tie to offload other feeders | H179: ='Project List (%)'!H179 -> 310.7359321 | J179: =$H179 * 'Project List (%)'!J179 -> 0 | K179: =$H179 * 'Project List (%)'!K179 -> 0 | L179: =$H179 * 'Project List (%)'!L179 -> 0 | M179: =$H179 * 'Project List (%)'!M179 -> 0 | N179: =$H179 * 'Project List (%)'!N179 -> 0 | O179: =$H179 * 'Project List (%)'!O179 -> 0 | P179: =$H179 * 'Project List (%)'!P179 -> 310.7359321 | Q179: =$H179 * 'Project List (%)'!Q179 -> 0 | R179: =$H179 * 'Project List (%)'!R179 -> 0 | S179: ='Project List (%)'!S179 -> 0 | T179: ='Project List (%)'!T179 -> Both | U179: ='Project List (%)'!U179 -> Demand growth | V179: ='Project List (%)'!V179 -> 5 | W179: ='Project List (%)'!W179 -> 0 | X179: ='Project List (%)'!X179 -> 0 | Y179: ='Project List (%)'!Y179 -> 2019
C180: ='Project List (%)'!C180 -> Altona-Brooklyn | D180: ='Project List (%)'!D180 -> 0 | E180: ='Project List (%)'!E180 -> 0 | F180: ='Project List (%)'!F180 -> 0 | G180: ='Project List (%)'!G180 -> 0 | H180: ='Project List (%)'!H180 -> 0 | J180: =$H180 * 'Project List (%)'!J180 -> 0 | K180: =$H180 * 'Project List (%)'!K180 -> 0 | L180: =$H180 * 'Project List (%)'!L180 -> 0 | M180: =$H180 * 'Project List (%)'!M180 -> 0 | N180: =$H180 * 'Project List (%)'!N180 -> 0 | O180: =$H180 * 'Project List (%)'!O180 -> 0 | P180: =$H180 * 'Project List (%)'!P180 -> 0 | Q180: =$H180 * 'Project List (%)'!Q180 -> 0 | R180: =$H180 * 'Project List (%)'!R180 -> 0 | S180: ='Project List (%)'!S180 -> 0 | T180: ='Project List (%)'!T180 -> 0 | U180: ='Project List (%)'!U180 -> 0 | V180: ='Project List (%)'!V180 -> 0 | W180: ='Project List (%)'!W180 -> 0 | X180: ='Project List (%)'!X180 -> 0 | Y180: ='Project List (%)'!Y180 -> 0
C181: ='Project List (%)'!C181 -> Altona-Brooklyn | D181: ='Project List (%)'!D181 -> 0 | E181: ='Project List (%)'!E181 -> 0 | F181: ='Project List (%)'!F181 -> 0 | G181: ='Project List (%)'!G181 -> 0 | H181: ='Project List (%)'!H181 -> 0 | J181: =$H181 * 'Project List (%)'!J181 -> 0 | K181: =$H181 * 'Project List (%)'!K181 -> 0 | L181: =$H181 * 'Project List (%)'!L181 -> 0 | M181: =$H181 * 'Project List (%)'!M181 -> 0 | N181: =$H181 * 'Project List (%)'!N181 -> 0 | O181: =$H181 * 'Project List (%)'!O181 -> 0 | P181: =$H181 * 'Project List (%)'!P181 -> 0 | Q181: =$H181 * 'Project List (%)'!Q181 -> 0 | R181: =$H181 * 'Project List (%)'!R181 -> 0 | S181: ='Project List (%)'!S181 -> 0 | T181: ='Project List (%)'!T181 -> 0 | U181: ='Project List (%)'!U181 -> 0 | V181: ='Project List (%)'!V181 -> 0 | W181: ='Project List (%)'!W181 -> 0 | X181: ='Project List (%)'!X181 -> 0 | Y181: ='Project List (%)'!Y181 -> 0
C182: ='Project List (%)'!C182 -> Deer Park | D182: ='Project List (%)'!D182 -> 162 | E182: ='Project List (%)'!E182 -> Urban | F182: ='Project List (%)'!F182 -> 5080700 | G182: ='Project List (%)'!G182 -> TNA Build 5 x 22kV feeders | H182: ='Project List (%)'!H182 -> 1646.162401 | J182: =$H182 * 'Project List (%)'!J182 -> 0 | K182: =$H182 * 'Project List (%)'!K182 -> 18.22320001 | L182: =$H182 * 'Project List (%)'!L182 -> 211.5916001 | M182: =$H182 * 'Project List (%)'!M182 -> 175.1452001 | N182: =$H182 * 'Project List (%)'!N182 -> 1181.470801 | O182: =$H182 * 'Project List (%)'!O182 -> 59.73160003 | P182: =$H182 * 'Project List (%)'!P182 -> 0 | Q182: =$H182 * 'Project List (%)'!Q182 -> 0 | R182: =$H182 * 'Project List (%)'!R182 -> 0 | S182: ='Project List (%)'!S182 -> 0 | T182: ='Project List (%)'!T182 -> Both | U182: ='Project List (%)'!U182 -> Demand growth | V182: ='Project List (%)'!V182 -> 60 | W182: ='Project List (%)'!W182 -> 0 | X182: ='Project List (%)'!X182 -> 0 | Y182: ='Project List (%)'!Y182 -> 2018
C183: ='Project List (%)'!C183 -> Deer Park | D183: ='Project List (%)'!D183 -> 162 | E183: ='Project List (%)'!E183 -> Urban | F183: ='Project List (%)'!F183 -> 0 | G183: ='Project List (%)'!G183 -> TNA next 3 feeders | H183: ='Project List (%)'!H183 -> 3332.124979 | J183: =$H183 * 'Project List (%)'!J183 -> 0 | K183: =$H183 * 'Project List (%)'!K183 -> 0 | L183: =$H183 * 'Project List (%)'!L183 -> 0 | M183: =$H183 * 'Project List (%)'!M183 -> 0 | N183: =$H183 * 'Project List (%)'!N183 -> 0 | O183: =$H183 * 'Project List (%)'!O183 -> 0 | P183: =$H183 * 'Project List (%)'!P183 -> 3332.124979 | Q183: =$H183 * 'Project List (%)'!Q183 -> 0 | R183: =$H183 * 'Project List (%)'!R183 -> 0 | S183: ='Project List (%)'!S183 -> 0 | T183: ='Project List (%)'!T183 -> Both | U183: ='Project List (%)'!U183 -> Demand growth | V183: ='Project List (%)'!V183 -> 36 | W183: ='Project List (%)'!W183 -> 0 | X183: ='Project List (%)'!X183 -> 0 | Y183: ='Project List (%)'!Y183 -> 2019
C184: ='Project List (%)'!C184 -> Deer Park | D184: ='Project List (%)'!D184 -> 162 | E184: ='Project List (%)'!E184 -> Urban | F184: ='Project List (%)'!F184 -> 0 | G184: ='Project List (%)'!G184 -> TNA next 2 feeder | H184: ='Project List (%)'!H184 -> 3832.40983 | J184: =$H184 * 'Project List (%)'!J184 -> 0 | K184: =$H184 * 'Project List (%)'!K184 -> 0 | L184: =$H184 * 'Project List (%)'!L184 -> 0 | M184: =$H184 * 'Project List (%)'!M184 -> 0 | N184: =$H184 * 'Project List (%)'!N184 -> 0 | O184: =$H184 * 'Project List (%)'!O184 -> 0 | P184: =$H184 * 'Project List (%)'!P184 -> 0 | Q184: =$H184 * 'Project List (%)'!Q184 -> 0 | R184: =$H184 * 'Project List (%)'!R184 -> 3832.40983 | S184: ='Project List (%)'!S184 -> 0 | T184: ='Project List (%)'!T184 -> Both | U184: ='Project List (%)'!U184 -> Demand growth | V184: ='Project List (%)'!V184 -> 24 | W184: ='Project List (%)'!W184 -> 0 | X184: ='Project List (%)'!X184 -> 0 | Y184: ='Project List (%)'!Y184 -> 2021+
C185: ='Project List (%)'!C185 -> Deer Park | D185: ='Project List (%)'!D185 -> 162 | E185: ='Project List (%)'!E185 -> Urban | F185: ='Project List (%)'!F185 -> 0 | G185: ='Project List (%)'!G185 -> TNA24 to TNA23 HV tie | H185: ='Project List (%)'!H185 -> 207.1572881 | J185: =$H185 * 'Project List (%)'!J185 -> 0 | K185: =$H185 * 'Project List (%)'!K185 -> 0 | L185: =$H185 * 'Project List (%)'!L185 -> 0 | M185: =$H185 * 'Project List (%)'!M185 -> 0 | N185: =$H185 * 'Project List (%)'!N185 -> 207.1572881 | O185: =$H185 * 'Project List (%)'!O185 -> 0 | P185: =$H185 * 'Project List (%)'!P185 -> 0 | Q185: =$H185 * 'Project List (%)'!Q185 -> 0 | R185: =$H185 * 'Project List (%)'!R185 -> 0 | S185: ='Project List (%)'!S185 -> 0 | T185: ='Project List (%)'!T185 -> Both | U185: ='Project List (%)'!U185 -> Demand growth | V185: ='Project List (%)'!V185 -> 14.6 | W185: ='Project List (%)'!W185 -> 0 | X185: ='Project List (%)'!X185 -> 0 | Y185: ='Project List (%)'!Y185 -> 2017
C186: ='Project List (%)'!C186 -> Altona-Brooklyn | D186: ='Project List (%)'!D186 -> 0 | E186: ='Project List (%)'!E186 -> 0 | F186: ='Project List (%)'!F186 -> 0 | G186: ='Project List (%)'!G186 -> 0 | H186: ='Project List (%)'!H186 -> 0 | J186: =$H186 * 'Project List (%)'!J186 -> 0 | K186: =$H186 * 'Project List (%)'!K186 -> 0 | L186: =$H186 * 'Project List (%)'!L186 -> 0 | M186: =$H186 * 'Project List (%)'!M186 -> 0 | N186: =$H186 * 'Project List (%)'!N186 -> 0 | O186: =$H186 * 'Project List (%)'!O186 -> 0 | P186: =$H186 * 'Project List (%)'!P186 -> 0 | Q186: =$H186 * 'Project List (%)'!Q186 -> 0 | R186: =$H186 * 'Project List (%)'!R186 -> 0 | S186: ='Project List (%)'!S186 -> 0 | T186: ='Project List (%)'!T186 -> 0 | U186: ='Project List (%)'!U186 -> 0 | V186: ='Project List (%)'!V186 -> 0 | W186: ='Project List (%)'!W186 -> 0 | X186: ='Project List (%)'!X186 -> 0 | Y186: ='Project List (%)'!Y186 -> 0
C187: ='Project List (%)'!C187 -> Deer Park | D187: ='Project List (%)'!D187 -> 162 | E187: ='Project List (%)'!E187 -> Urban | F187: ='Project List (%)'!F187 -> 0 | G187: ='Project List (%)'!G187 -> TRT Feeders x 6 | H187: ='Project List (%)'!H187 -> 0 | J187: =$H187 * 'Project List (%)'!J187 -> 0 | K187: =$H187 * 'Project List (%)'!K187 -> 0 | L187: =$H187 * 'Project List (%)'!L187 -> 0 | M187: =$H187 * 'Project List (%)'!M187 -> 0 | N187: =$H187 * 'Project List (%)'!N187 -> 0 | O187: =$H187 * 'Project List (%)'!O187 -> 0 | P187: =$H187 * 'Project List (%)'!P187 -> 0 | Q187: =$H187 * 'Project List (%)'!Q187 -> 0 | R187: =$H187 * 'Project List (%)'!R187 -> 0 | S187: ='Project List (%)'!S187 -> 0 | T187: ='Project List (%)'!T187 -> 0 | U187: ='Project List (%)'!U187 -> 0 | V187: ='Project List (%)'!V187 -> 0 | W187: ='Project List (%)'!W187 -> 0 | X187: ='Project List (%)'!X187 -> 0 | Y187: ='Project List (%)'!Y187 -> 2021+
C188: ='Project List (%)'!C188 -> Deer Park | D188: ='Project List (%)'!D188 -> 162 | E188: ='Project List (%)'!E188 -> Urban | F188: ='Project List (%)'!F188 -> 0 | G188: ='Project List (%)'!G188 -> TRT next 2 feeders | H188: ='Project List (%)'!H188 -> 0 | J188: =$H188 * 'Project List (%)'!J188 -> 0 | K188: =$H188 * 'Project List (%)'!K188 -> 0 | L188: =$H188 * 'Project List (%)'!L188 -> 0 | M188: =$H188 * 'Project List (%)'!M188 -> 0 | N188: =$H188 * 'Project List (%)'!N188 -> 0 | O188: =$H188 * 'Project List (%)'!O188 -> 0 | P188: =$H188 * 'Project List (%)'!P188 -> 0 | Q188: =$H188 * 'Project List (%)'!Q188 -> 0 | R188: =$H188 * 'Project List (%)'!R188 -> 0 | S188: ='Project List (%)'!S188 -> 0 | T188: ='Project List (%)'!T188 -> 0 | U188: ='Project List (%)'!U188 -> 0 | V188: ='Project List (%)'!V188 -> 0 | W188: ='Project List (%)'!W188 -> 0 | X188: ='Project List (%)'!X188 -> 0 | Y188: ='Project List (%)'!Y188 -> 2021+
C189: ='Project List (%)'!C189 -> Deer Park | D189: ='Project List (%)'!D189 -> 162 | E189: ='Project List (%)'!E189 -> Urban | F189: ='Project List (%)'!F189 -> 0 | G189: ='Project List (%)'!G189 -> TRT next 2 feeders | H189: ='Project List (%)'!H189 -> 0 | J189: =$H189 * 'Project List (%)'!J189 -> 0 | K189: =$H189 * 'Project List (%)'!K189 -> 0 | L189: =$H189 * 'Project List (%)'!L189 -> 0 | M189: =$H189 * 'Project List (%)'!M189 -> 0 | N189: =$H189 * 'Project List (%)'!N189 -> 0 | O189: =$H189 * 'Project List (%)'!O189 -> 0 | P189: =$H189 * 'Project List (%)'!P189 -> 0 | Q189: =$H189 * 'Project List (%)'!Q189 -> 0 | R189: =$H189 * 'Project List (%)'!R189 -> 0 | S189: ='Project List (%)'!S189 -> 0 | T189: ='Project List (%)'!T189 -> 0 | U189: ='Project List (%)'!U189 -> 0 | V189: ='Project List (%)'!V189 -> 0 | W189: ='Project List (%)'!W189 -> 0 | X189: ='Project List (%)'!X189 -> 0 | Y189: ='Project List (%)'!Y189 -> 2021+
C190: ='Project List (%)'!C190 -> Deer Park | D190: ='Project List (%)'!D190 -> 162 | E190: ='Project List (%)'!E190 -> Urban | F190: ='Project List (%)'!F190 -> 0 | G190: ='Project List (%)'!G190 -> TRT Build 2 feeders | H190: ='Project List (%)'!H190 -> 0 | J190: =$H190 * 'Project List (%)'!J190 -> 0 | K190: =$H190 * 'Project List (%)'!K190 -> 0 | L190: =$H190 * 'Project List (%)'!L190 -> 0 | M190: =$H190 * 'Project List (%)'!M190 -> 0 | N190: =$H190 * 'Project List (%)'!N190 -> 0 | O190: =$H190 * 'Project List (%)'!O190 -> 0 | P190: =$H190 * 'Project List (%)'!P190 -> 0 | Q190: =$H190 * 'Project List (%)'!Q190 -> 0 | R190: =$H190 * 'Project List (%)'!R190 -> 0 | S190: ='Project List (%)'!S190 -> 0 | T190: ='Project List (%)'!T190 -> 0 | U190: ='Project List (%)'!U190 -> 0 | V190: ='Project List (%)'!V190 -> 0 | W190: ='Project List (%)'!W190 -> 0 | X190: ='Project List (%)'!X190 -> 0 | Y190: ='Project List (%)'!Y190 -> 2021+
C191: ='Project List (%)'!C191 -> Altona-Brooklyn | D191: ='Project List (%)'!D191 -> 0 | E191: ='Project List (%)'!E191 -> 0 | F191: ='Project List (%)'!F191 -> 0 | G191: ='Project List (%)'!G191 -> 0 | H191: ='Project List (%)'!H191 -> 0 | J191: =$H191 * 'Project List (%)'!J191 -> 0 | K191: =$H191 * 'Project List (%)'!K191 -> 0 | L191: =$H191 * 'Project List (%)'!L191 -> 0 | M191: =$H191 * 'Project List (%)'!M191 -> 0 | N191: =$H191 * 'Project List (%)'!N191 -> 0 | O191: =$H191 * 'Project List (%)'!O191 -> 0 | P191: =$H191 * 'Project List (%)'!P191 -> 0 | Q191: =$H191 * 'Project List (%)'!Q191 -> 0 | R191: =$H191 * 'Project List (%)'!R191 -> 0 | S191: ='Project List (%)'!S191 -> 0 | T191: ='Project List (%)'!T191 -> 0 | U191: ='Project List (%)'!U191 -> 0 | V191: ='Project List (%)'!V191 -> 0 | W191: ='Project List (%)'!W191 -> 0 | X191: ='Project List (%)'!X191 -> 0 | Y191: ='Project List (%)'!Y191 -> 0
C192: ='Project List (%)'!C192 -> Altona-Brooklyn | D192: ='Project List (%)'!D192 -> 162 | E192: ='Project List (%)'!E192 -> Urban | F192: ='Project List (%)'!F192 -> 0 | G192: ='Project List (%)'!G192 -> CRC Feeders x 6 | H192: ='Project List (%)'!H192 -> 0 | J192: =$H192 * 'Project List (%)'!J192 -> 0 | K192: =$H192 * 'Project List (%)'!K192 -> 0 | L192: =$H192 * 'Project List (%)'!L192 -> 0 | M192: =$H192 * 'Project List (%)'!M192 -> 0 | N192: =$H192 * 'Project List (%)'!N192 -> 0 | O192: =$H192 * 'Project List (%)'!O192 -> 0 | P192: =$H192 * 'Project List (%)'!P192 -> 0 | Q192: =$H192 * 'Project List (%)'!Q192 -> 0 | R192: =$H192 * 'Project List (%)'!R192 -> 0 | S192: ='Project List (%)'!S192 -> 0 | T192: ='Project List (%)'!T192 -> 0 | U192: ='Project List (%)'!U192 -> 0 | V192: ='Project List (%)'!V192 -> 0 | W192: ='Project List (%)'!W192 -> 0 | X192: ='Project List (%)'!X192 -> 0 | Y192: ='Project List (%)'!Y192 -> 2021+
C193: ='Project List (%)'!C193 -> Altona-Brooklyn | D193: ='Project List (%)'!D193 -> 162 | E193: ='Project List (%)'!E193 -> Urban | F193: ='Project List (%)'!F193 -> 0 | G193: ='Project List (%)'!G193 -> CRC next 2 feeders | H193: ='Project List (%)'!H193 -> 0 | J193: =$H193 * 'Project List (%)'!J193 -> 0 | K193: =$H193 * 'Project List (%)'!K193 -> 0 | L193: =$H193 * 'Project List (%)'!L193 -> 0 | M193: =$H193 * 'Project List (%)'!M193 -> 0 | N193: =$H193 * 'Project List (%)'!N193 -> 0 | O193: =$H193 * 'Project List (%)'!O193 -> 0 | P193: =$H193 * 'Project List (%)'!P193 -> 0 | Q193: =$H193 * 'Project List (%)'!Q193 -> 0 | R193: =$H193 * 'Project List (%)'!R193 -> 0 | S193: ='Project List (%)'!S193 -> 0 | T193: ='Project List (%)'!T193 -> 0 | U193: ='Project List (%)'!U193 -> 0 | V193: ='Project List (%)'!V193 -> 0 | W193: ='Project List (%)'!W193 -> 0 | X193: ='Project List (%)'!X193 -> 0 | Y193: ='Project List (%)'!Y193 -> 2021+
C194: ='Project List (%)'!C194 -> Altona-Brooklyn | D194: ='Project List (%)'!D194 -> 162 | E194: ='Project List (%)'!E194 -> Urban | F194: ='Project List (%)'!F194 -> 0 | G194: ='Project List (%)'!G194 -> CRC next 2 feeders | H194: ='Project List (%)'!H194 -> 0 | J194: =$H194 * 'Project List (%)'!J194 -> 0 | K194: =$H194 * 'Project List (%)'!K194 -> 0 | L194: =$H194 * 'Project List (%)'!L194 -> 0 | M194: =$H194 * 'Project List (%)'!M194 -> 0 | N194: =$H194 * 'Project List (%)'!N194 -> 0 | O194: =$H194 * 'Project List (%)'!O194 -> 0 | P194: =$H194 * 'Project List (%)'!P194 -> 0 | Q194: =$H194 * 'Project List (%)'!Q194 -> 0 | R194: =$H194 * 'Project List (%)'!R194 -> 0 | S194: ='Project List (%)'!S194 -> 0 | T194: ='Project List (%)'!T194 -> 0 | U194: ='Project List (%)'!U194 -> 0 | V194: ='Project List (%)'!V194 -> 0 | W194: ='Project List (%)'!W194 -> 0 | X194: ='Project List (%)'!X194 -> 0 | Y194: ='Project List (%)'!Y194 -> 2021+
C195: ='Project List (%)'!C195 -> Altona-Brooklyn | D195: ='Project List (%)'!D195 -> 162 | E195: ='Project List (%)'!E195 -> Urban | F195: ='Project List (%)'!F195 -> 0 | G195: ='Project List (%)'!G195 -> CRC Build 2 feeders | H195: ='Project List (%)'!H195 -> 0 | J195: =$H195 * 'Project List (%)'!J195 -> 0 | K195: =$H195 * 'Project List (%)'!K195 -> 0 | L195: =$H195 * 'Project List (%)'!L195 -> 0 | M195: =$H195 * 'Project List (%)'!M195 -> 0 | N195: =$H195 * 'Project List (%)'!N195 -> 0 | O195: =$H195 * 'Project List (%)'!O195 -> 0 | P195: =$H195 * 'Project List (%)'!P195 -> 0 | Q195: =$H195 * 'Project List (%)'!Q195 -> 0 | R195: =$H195 * 'Project List (%)'!R195 -> 0 | S195: ='Project List (%)'!S195 -> 0 | T195: ='Project List (%)'!T195 -> 0 | U195: ='Project List (%)'!U195 -> 0 | V195: ='Project List (%)'!V195 -> 0 | W195: ='Project List (%)'!W195 -> 0 | X195: ='Project List (%)'!X195 -> 0 | Y195: ='Project List (%)'!Y195 -> 2021+
C196: ='Project List (%)'!C196 -> Altona-Brooklyn | D196: ='Project List (%)'!D196 -> 0 | E196: ='Project List (%)'!E196 -> 0 | F196: ='Project List (%)'!F196 -> 0 | G196: ='Project List (%)'!G196 -> 0 | H196: ='Project List (%)'!H196 -> 0 | J196: =$H196 * 'Project List (%)'!J196 -> 0 | K196: =$H196 * 'Project List (%)'!K196 -> 0 | L196: =$H196 * 'Project List (%)'!L196 -> 0 | M196: =$H196 * 'Project List (%)'!M196 -> 0 | N196: =$H196 * 'Project List (%)'!N196 -> 0 | O196: =$H196 * 'Project List (%)'!O196 -> 0 | P196: =$H196 * 'Project List (%)'!P196 -> 0 | Q196: =$H196 * 'Project List (%)'!Q196 -> 0 | R196: =$H196 * 'Project List (%)'!R196 -> 0 | S196: ='Project List (%)'!S196 -> 0 | T196: ='Project List (%)'!T196 -> 0 | U196: ='Project List (%)'!U196 -> 0 | V196: ='Project List (%)'!V196 -> 0 | W196: ='Project List (%)'!W196 -> 0 | X196: ='Project List (%)'!X196 -> 0 | Y196: ='Project List (%)'!Y196 -> 0
C197: ='Project List (%)'!C197 -> Altona-Brooklyn | D197: ='Project List (%)'!D197 -> 162 | E197: ='Project List (%)'!E197 -> Urban | F197: ='Project List (%)'!F197 -> 0 | G197: ='Project List (%)'!G197 -> AC Build 4 x 22kV feeders | H197: ='Project List (%)'!H197 -> 0 | J197: =$H197 * 'Project List (%)'!J197 -> 0 | K197: =$H197 * 'Project List (%)'!K197 -> 0 | L197: =$H197 * 'Project List (%)'!L197 -> 0 | M197: =$H197 * 'Project List (%)'!M197 -> 0 | N197: =$H197 * 'Project List (%)'!N197 -> 0 | O197: =$H197 * 'Project List (%)'!O197 -> 0 | P197: =$H197 * 'Project List (%)'!P197 -> 0 | Q197: =$H197 * 'Project List (%)'!Q197 -> 0 | R197: =$H197 * 'Project List (%)'!R197 -> 0 | S197: ='Project List (%)'!S197 -> 0 | T197: ='Project List (%)'!T197 -> 0 | U197: ='Project List (%)'!U197 -> 0 | V197: ='Project List (%)'!V197 -> 0 | W197: ='Project List (%)'!W197 -> 0 | X197: ='Project List (%)'!X197 -> 0 | Y197: ='Project List (%)'!Y197 -> 2021+
C198: ='Project List (%)'!C198 -> Altona-Brooklyn | D198: ='Project List (%)'!D198 -> 162 | E198: ='Project List (%)'!E198 -> Urban | F198: ='Project List (%)'!F198 -> 0 | G198: ='Project List (%)'!G198 -> AC Build 2 x 22kV feeders | H198: ='Project List (%)'!H198 -> 0 | J198: =$H198 * 'Project List (%)'!J198 -> 0 | K198: =$H198 * 'Project List (%)'!K198 -> 0 | L198: =$H198 * 'Project List (%)'!L198 -> 0 | M198: =$H198 * 'Project List (%)'!M198 -> 0 | N198: =$H198 * 'Project List (%)'!N198 -> 0 | O198: =$H198 * 'Project List (%)'!O198 -> 0 | P198: =$H198 * 'Project List (%)'!P198 -> 0 | Q198: =$H198 * 'Project List (%)'!Q198 -> 0 | R198: =$H198 * 'Project List (%)'!R198 -> 0 | S198: ='Project List (%)'!S198 -> 0 | T198: ='Project List (%)'!T198 -> 0 | U198: ='Project List (%)'!U198 -> 0 | V198: ='Project List (%)'!V198 -> 0 | W198: ='Project List (%)'!W198 -> 0 | X198: ='Project List (%)'!X198 -> 0 | Y198: ='Project List (%)'!Y198 -> 2021+
C199: ='Project List (%)'!C199 -> Altona-Brooklyn | D199: ='Project List (%)'!D199 -> 162 | E199: ='Project List (%)'!E199 -> Urban | F199: ='Project List (%)'!F199 -> 0 | G199: ='Project List (%)'!G199 -> AC Build 2 x 22kV feeders | H199: ='Project List (%)'!H199 -> 0 | J199: =$H199 * 'Project List (%)'!J199 -> 0 | K199: =$H199 * 'Project List (%)'!K199 -> 0 | L199: =$H199 * 'Project List (%)'!L199 -> 0 | M199: =$H199 * 'Project List (%)'!M199 -> 0 | N199: =$H199 * 'Project List (%)'!N199 -> 0 | O199: =$H199 * 'Project List (%)'!O199 -> 0 | P199: =$H199 * 'Project List (%)'!P199 -> 0 | Q199: =$H199 * 'Project List (%)'!Q199 -> 0 | R199: =$H199 * 'Project List (%)'!R199 -> 0 | S199: ='Project List (%)'!S199 -> 0 | T199: ='Project List (%)'!T199 -> 0 | U199: ='Project List (%)'!U199 -> 0 | V199: ='Project List (%)'!V199 -> 0 | W199: ='Project List (%)'!W199 -> 0 | X199: ='Project List (%)'!X199 -> 0 | Y199: ='Project List (%)'!Y199 -> 2021+
C200: ='Project List (%)'!C200 -> Altona-Brooklyn | D200: ='Project List (%)'!D200 -> 0 | E200: ='Project List (%)'!E200 -> 0 | F200: ='Project List (%)'!F200 -> 0 | G200: ='Project List (%)'!G200 -> 0 | H200: ='Project List (%)'!H200 -> 0 | J200: =$H200 * 'Project List (%)'!J200 -> 0 | K200: =$H200 * 'Project List (%)'!K200 -> 0 | L200: =$H200 * 'Project List (%)'!L200 -> 0 | M200: =$H200 * 'Project List (%)'!M200 -> 0 | N200: =$H200 * 'Project List (%)'!N200 -> 0 | O200: =$H200 * 'Project List (%)'!O200 -> 0 | P200: =$H200 * 'Project List (%)'!P200 -> 0 | Q200: =$H200 * 'Project List (%)'!Q200 -> 0 | R200: =$H200 * 'Project List (%)'!R200 -> 0 | S200: ='Project List (%)'!S200 -> 0 | T200: ='Project List (%)'!T200 -> 0 | U200: ='Project List (%)'!U200 -> 0 | V200: ='Project List (%)'!V200 -> 0 | W200: ='Project List (%)'!W200 -> 0 | X200: ='Project List (%)'!X200 -> 0 | Y200: ='Project List (%)'!Y200 -> 0
C201: ='Project List (%)'!C201 -> Altona-Brooklyn | D201: ='Project List (%)'!D201 -> 162 | E201: ='Project List (%)'!E201 -> Rural Short | F201: ='Project List (%)'!F201 -> 0 | G201: ='Project List (%)'!G201 -> PCK establish 4 x new feeders | H201: ='Project List (%)'!H201 -> 0 | J201: =$H201 * 'Project List (%)'!J201 -> 0 | K201: =$H201 * 'Project List (%)'!K201 -> 0 | L201: =$H201 * 'Project List (%)'!L201 -> 0 | M201: =$H201 * 'Project List (%)'!M201 -> 0 | N201: =$H201 * 'Project List (%)'!N201 -> 0 | O201: =$H201 * 'Project List (%)'!O201 -> 0 | P201: =$H201 * 'Project List (%)'!P201 -> 0 | Q201: =$H201 * 'Project List (%)'!Q201 -> 0 | R201: =$H201 * 'Project List (%)'!R201 -> 0 | S201: ='Project List (%)'!S201 -> 0 | T201: ='Project List (%)'!T201 -> 0 | U201: ='Project List (%)'!U201 -> 0 | V201: ='Project List (%)'!V201 -> 0 | W201: ='Project List (%)'!W201 -> 0 | X201: ='Project List (%)'!X201 -> 0 | Y201: ='Project List (%)'!Y201 -> 2021+
C202: ='Project List (%)'!C202 -> Altona-Brooklyn | D202: ='Project List (%)'!D202 -> 162 | E202: ='Project List (%)'!E202 -> Rural Short | F202: ='Project List (%)'!F202 -> 0 | G202: ='Project List (%)'!G202 -> WVL establish 4 x new feeders | H202: ='Project List (%)'!H202 -> 0 | J202: =$H202 * 'Project List (%)'!J202 -> 0 | K202: =$H202 * 'Project List (%)'!K202 -> 0 | L202: =$H202 * 'Project List (%)'!L202 -> 0 | M202: =$H202 * 'Project List (%)'!M202 -> 0 | N202: =$H202 * 'Project List (%)'!N202 -> 0 | O202: =$H202 * 'Project List (%)'!O202 -> 0 | P202: =$H202 * 'Project List (%)'!P202 -> 0 | Q202: =$H202 * 'Project List (%)'!Q202 -> 0 | R202: =$H202 * 'Project List (%)'!R202 -> 0 | S202: ='Project List (%)'!S202 -> 0 | T202: ='Project List (%)'!T202 -> 0 | U202: ='Project List (%)'!U202 -> 0 | V202: ='Project List (%)'!V202 -> 0 | W202: ='Project List (%)'!W202 -> 0 | X202: ='Project List (%)'!X202 -> 0 | Y202: ='Project List (%)'!Y202 -> 2021+
... 1526 more rows

Sheet Function code by area
A1: PAL Augmentation Expenditure Model | E1: Model Master Check: | F1: =Model_Check -> 0
A2: =MID(CELL("Filename",A1),FIND("]",CELL("Filename",A1))+1,255) -> Function code by area | E2: Sheet Check: | F2: =D77 -> 0
B4: FC | C4: ='Project List (%)'!L7 -> 2015 | D4: ='Project List (%)'!M7 -> 2016 | E4: ='Project List (%)'!N7 -> 2017 | F4: ='Project List (%)'!O7 -> 2018 | G4: ='Project List (%)'!P7 -> 2019 | H4: ='Project List (%)'!Q7 -> 2020 | I4: ='Project List (%)'!R7 -> 2021+
A5: Expenditure Summary ($2015)
A7: Fisherman's Bend
A8: Fisherman's Bend SS | B8: 161 | C8: =SUMIFS('Project List ($)'!L:L,'Project List ($)'!$C:$C,$A7,'Project List ($)'!$D:$D,$B8) -> 0 | D8: =SUMIFS('Project List ($)'!M:M,'Project List ($)'!$C:$C,$A7,'Project List ($)'!$D:$D,$B8) -> 0 | E8: =SUMIFS('Project List ($)'!N:N,'Project List ($)'!$C:$C,$A7,'Project List ($)'!$D:$D,$B8) -> 0 | F8: =SUMIFS('Project List ($)'!O:O,'Project List ($)'!$C:$C,$A7,'Project List ($)'!$D:$D,$B8) -> 0 | G8: =SUMIFS('Project List ($)'!P:P,'Project List ($)'!$C:$C,$A7,'Project List ($)'!$D:$D,$B8) -> 0 | H8: =SUMIFS('Project List ($)'!Q:Q,'Project List ($)'!$C:$C,$A7,'Project List ($)'!$D:$D,$B8) -> 0 | I8: =SUMIFS('Project List ($)'!R:R,'Project List ($)'!$C:$C,$A7,'Project List ($)'!$D:$D,$B8) -> 0
A9: Fisherman's Bend Lines | B9: 162 | C9: =SUMIFS('Project List ($)'!L:L,'Project List ($)'!$C:$C,$A7,'Project List ($)'!$D:$D,$B9) -> 0 | D9: =SUMIFS('Project List ($)'!M:M,'Project List ($)'!$C:$C,$A7,'Project List ($)'!$D:$D,$B9) -> 0 | E9: =SUMIFS('Project List ($)'!N:N,'Project List ($)'!$C:$C,$A7,'Project List ($)'!$D:$D,$B9) -> 0 | F9: =SUMIFS('Project List ($)'!O:O,'Project List ($)'!$C:$C,$A7,'Project List ($)'!$D:$D,$B9) -> 0 | G9: =SUMIFS('Project List ($)'!P:P,'Project List ($)'!$C:$C,$A7,'Project List ($)'!$D:$D,$B9) -> 0 | H9: =SUMIFS('Project List ($)'!Q:Q,'Project List ($)'!$C:$C,$A7,'Project List ($)'!$D:$D,$B9) -> 0 | I9: =SUMIFS('Project List ($)'!R:R,'Project List ($)'!$C:$C,$A7,'Project List ($)'!$D:$D,$B9) -> 0
A10: Fisherman's Bend Total | C10: =SUM(C8:C9) -> 0 | D10: =SUM(D8:D9) -> 0 | E10: 0 | F10: 0 | G10: 0 | H10: 0 | I10: =SUM(I8:I9) -> 0
A12: Keilor
A13: Keilor SS | B13: 161 | C13: =SUMIFS('Project List ($)'!L:L,'Project List ($)'!$C:$C,$A12,'Project List ($)'!$D:$D,$B13) -> 0 | D13: =SUMIFS('Project List ($)'!M:M,'Project List ($)'!$C:$C,$A12,'Project List ($)'!$D:$D,$B13) -> 0 | E13: =SUMIFS('Project List ($)'!N:N,'Project List ($)'!$C:$C,$A12,'Project List ($)'!$D:$D,$B13) -> 0 | F13: =SUMIFS('Project List ($)'!O:O,'Project List ($)'!$C:$C,$A12,'Project List ($)'!$D:$D,$B13) -> 0 | G13: =SUMIFS('Project List ($)'!P:P,'Project List ($)'!$C:$C,$A12,'Project List ($)'!$D:$D,$B13) -> 0 | H13: =SUMIFS('Project List ($)'!Q:Q,'Project List ($)'!$C:$C,$A12,'Project List ($)'!$D:$D,$B13) -> 207.1572881 | I13: =SUMIFS('Project List ($)'!R:R,'Project List ($)'!$C:$C,$A12,'Project List ($)'!$D:$D,$B13) -> 0
A14: Keilor Lines | B14: 162 | C14: =SUMIFS('Project List ($)'!L:L,'Project List ($)'!$C:$C,$A12,'Project List ($)'!$D:$D,$B14) -> 356.5342656 | D14: =SUMIFS('Project List ($)'!M:M,'Project List ($)'!$C:$C,$A12,'Project List ($)'!$D:$D,$B14) -> 1702.120505 | E14: =SUMIFS('Project List ($)'!N:N,'Project List ($)'!$C:$C,$A12,'Project List ($)'!$D:$D,$B14) -> 675.8256374 | F14: =SUMIFS('Project List ($)'!O:O,'Project List ($)'!$C:$C,$A12,'Project List ($)'!$D:$D,$B14) -> 545.2877003 | G14: =SUMIFS('Project List ($)'!P:P,'Project List ($)'!$C:$C,$A12,'Project List ($)'!$D:$D,$B14) -> 360.8256374 | H14: =SUMIFS('Project List ($)'!Q:Q,'Project List ($)'!$C:$C,$A12,'Project List ($)'!$D:$D,$B14) -> 1022.449943 | I14: =SUMIFS('Project List ($)'!R:R,'Project List ($)'!$C:$C,$A12,'Project List ($)'!$D:$D,$B14) -> 0
A15: Keilor Total | C15: =SUM(C13:C14) -> 356.5342656 | D15: =SUM(D13:D14) -> 1702.120505 | E15: 675.8256374 | F15: 545.2877003 | G15: 360.8256374 | H15: 1229.607231 | I15: =SUM(I13:I14) -> 0
A17: Altona-Brooklyn
A18: Altona-Brooklyn SS | B18: 161 | C18: =SUMIFS('Project List ($)'!L:L,'Project List ($)'!$C:$C,$A17,'Project List ($)'!$D:$D,$B18) -> 0 | D18: =SUMIFS('Project List ($)'!M:M,'Project List ($)'!$C:$C,$A17,'Project List ($)'!$D:$D,$B18) -> 0 | E18: =SUMIFS('Project List ($)'!N:N,'Project List ($)'!$C:$C,$A17,'Project List ($)'!$D:$D,$B18) -> 0 | F18: =SUMIFS('Project List ($)'!O:O,'Project List ($)'!$C:$C,$A17,'Project List ($)'!$D:$D,$B18) -> 1139.365085 | G18: =SUMIFS('Project List ($)'!P:P,'Project List ($)'!$C:$C,$A17,'Project List ($)'!$D:$D,$B18) -> 0 | H18: =SUMIFS('Project List ($)'!Q:Q,'Project List ($)'!$C:$C,$A17,'Project List ($)'!$D:$D,$B18) -> 0 | I18: =SUMIFS('Project List ($)'!R:R,'Project List ($)'!$C:$C,$A17,'Project List ($)'!$D:$D,$B18) -> 0
A19: Altona-Brooklyn Lines | B19: 162 | C19: =SUMIFS('Project List ($)'!L:L,'Project List ($)'!$C:$C,$A17,'Project List ($)'!$D:$D,$B19) -> 448.619244 | D19: =SUMIFS('Project List ($)'!M:M,'Project List ($)'!$C:$C,$A17,'Project List ($)'!$D:$D,$B19) -> 476.4617626 | E19: =SUMIFS('Project List ($)'!N:N,'Project List ($)'!$C:$C,$A17,'Project List ($)'!$D:$D,$B19) -> 1429.385288 | F19: =SUMIFS('Project List ($)'!O:O,'Project List ($)'!$C:$C,$A17,'Project List ($)'!$D:$D,$B19) -> 932.2077964 | G19: =SUMIFS('Project List ($)'!P:P,'Project List ($)'!$C:$C,$A17,'Project List ($)'!$D:$D,$B19) -> 310.7359321 | H19: =SUMIFS('Project List ($)'!Q:Q,'Project List ($)'!$C:$C,$A17,'Project List ($)'!$D:$D,$B19) -> 2167.755567 | I19: =SUMIFS('Project List ($)'!R:R,'Project List ($)'!$C:$C,$A17,'Project List ($)'!$D:$D,$B19) -> 0
A20: Altona-Brooklyn Total | C20: =SUM(C18:C19) -> 448.619244 | D20: =SUM(D18:D19) -> 476.4617626 | E20: 1429.385288 | F20: 2071.572881 | G20: 310.7359321 | H20: 2167.755567 | I20: =SUM(I18:I19) -> 0
A22: Deer Park
A23: Deer Park SS | B23: 161 | C23: =SUMIFS('Project List ($)'!L:L,'Project List ($)'!$C:$C,$A22,'Project List ($)'!$D:$D,$B23) -> 1921.365085 | D23: =SUMIFS('Project List ($)'!M:M,'Project List ($)'!$C:$C,$A22,'Project List ($)'!$D:$D,$B23) -> 5699.364709 | E23: =SUMIFS('Project List ($)'!N:N,'Project List ($)'!$C:$C,$A22,'Project List ($)'!$D:$D,$B23) -> 12617.39884 | F23: =SUMIFS('Project List ($)'!O:O,'Project List ($)'!$C:$C,$A22,'Project List ($)'!$D:$D,$B23) -> 616.886159 | G23: =SUMIFS('Project List ($)'!P:P,'Project List ($)'!$C:$C,$A22,'Project List ($)'!$D:$D,$B23) -> 4363.975431 | H23: =SUMIFS('Project List ($)'!Q:Q,'Project List ($)'!$C:$C,$A22,'Project List ($)'!$D:$D,$B23) -> 0 | I23: =SUMIFS('Project List ($)'!R:R,'Project List ($)'!$C:$C,$A22,'Project List ($)'!$D:$D,$B23) -> 0
A24: Deer Park Lines | B24: 162 | C24: =SUMIFS('Project List ($)'!L:L,'Project List ($)'!$C:$C,$A22,'Project List ($)'!$D:$D,$B24) -> 6803.5916 | D24: =SUMIFS('Project List ($)'!M:M,'Project List ($)'!$C:$C,$A22,'Project List ($)'!$D:$D,$B24) -> 8080.947833 | E24: =SUMIFS('Project List ($)'!N:N,'Project List ($)'!$C:$C,$A22,'Project List ($)'!$D:$D,$B24) -> 13739.87811 | F24: =SUMIFS('Project List ($)'!O:O,'Project List ($)'!$C:$C,$A22,'Project List ($)'!$D:$D,$B24) -> 1360.203464 | G24: =SUMIFS('Project List ($)'!P:P,'Project List ($)'!$C:$C,$A22,'Project List ($)'!$D:$D,$B24) -> 5774.588127 | H24: =SUMIFS('Project List ($)'!Q:Q,'Project List ($)'!$C:$C,$A22,'Project List ($)'!$D:$D,$B24) -> 1299.601247 | I24: =SUMIFS('Project List ($)'!R:R,'Project List ($)'!$C:$C,$A22,'Project List ($)'!$D:$D,$B24) -> 3832.40983
A25: Deer Park Total | C25: =SUM(C23:C24) -> 8724.956685 | D25: 13780.31254 | E25: 26357.27695 | F25: 1977.089623 | G25: 10138.56356 | H25: 1299.601247 | I25: 3832.40983
A27: Geelong
A28: Geelong SS | B28: 161 | C28: =SUMIFS('Project List ($)'!L:L,'Project List ($)'!$C:$C,$A27,'Project List ($)'!$D:$D,$B28) -> 815.701023 | D28: =SUMIFS('Project List ($)'!M:M,'Project List ($)'!$C:$C,$A27,'Project List ($)'!$D:$D,$B28) -> 3471.584711 | E28: =SUMIFS('Project List ($)'!N:N,'Project List ($)'!$C:$C,$A27,'Project List ($)'!$D:$D,$B28) -> 6417.819746 | F28: =SUMIFS('Project List ($)'!O:O,'Project List ($)'!$C:$C,$A27,'Project List ($)'!$D:$D,$B28) -> 10957.23165 | G28: =SUMIFS('Project List ($)'!P:P,'Project List ($)'!$C:$C,$A27,'Project List ($)'!$D:$D,$B28) -> 0 | H28: =SUMIFS('Project List ($)'!Q:Q,'Project List ($)'!$C:$C,$A27,'Project List ($)'!$D:$D,$B28) -> 0 | I28: =SUMIFS('Project List ($)'!R:R,'Project List ($)'!$C:$C,$A27,'Project List ($)'!$D:$D,$B28) -> 5092.868208
A29: Geelong Lines | B29: 162 | C29: =SUMIFS('Project List ($)'!L:L,'Project List ($)'!$C:$C,$A27,'Project List ($)'!$D:$D,$B29) -> 614.1836917 | D29: =SUMIFS('Project List ($)'!M:M,'Project List ($)'!$C:$C,$A27,'Project List ($)'!$D:$D,$B29) -> 1798.127454 | E29: =SUMIFS('Project List ($)'!N:N,'Project List ($)'!$C:$C,$A27,'Project List ($)'!$D:$D,$B29) -> 659.1774709 | F29: =SUMIFS('Project List ($)'!O:O,'Project List ($)'!$C:$C,$A27,'Project List ($)'!$D:$D,$B29) -> 8811.403329 | G29: =SUMIFS('Project List ($)'!P:P,'Project List ($)'!$C:$C,$A27,'Project List ($)'!$D:$D,$B29) -> 718.2131773 | H29: =SUMIFS('Project List ($)'!Q:Q,'Project List ($)'!$C:$C,$A27,'Project List ($)'!$D:$D,$B29) -> 4416.183733 | I29: =SUMIFS('Project List ($)'!R:R,'Project List ($)'!$C:$C,$A27,'Project List ($)'!$D:$D,$B29) -> 1389.732075
A30: Geelong Total | C30: =SUM(C28:C29) -> 1429.884715 | D30: =SUM(D28:D29) -> 5269.712165 | E30: 7076.997217 | F30: 19768.63498 | G30: 718.2131773 | H30: 4416.183733 | I30: =SUM(I28:I29) -> 6482.600283
A32: Terang
A33: Terang SS | B33: 161 | C33: =SUMIFS('Project List ($)'!L:L,'Project List ($)'!$C:$C,$A32,'Project List ($)'!$D:$D,$B33) -> 106.302 | D33: =SUMIFS('Project List ($)'!M:M,'Project List ($)'!$C:$C,$A32,'Project List ($)'!$D:$D,$B33) -> 0 | E33: =SUMIFS('Project List ($)'!N:N,'Project List ($)'!$C:$C,$A32,'Project List ($)'!$D:$D,$B33) -> 0 | F33: =SUMIFS('Project List ($)'!O:O,'Project List ($)'!$C:$C,$A32,'Project List ($)'!$D:$D,$B33) -> 0 | G33: =SUMIFS('Project List ($)'!P:P,'Project List ($)'!$C:$C,$A32,'Project List ($)'!$D:$D,$B33) -> 0 | H33: =SUMIFS('Project List ($)'!Q:Q,'Project List ($)'!$C:$C,$A32,'Project List ($)'!$D:$D,$B33) -> 0 | I33: =SUMIFS('Project List ($)'!R:R,'Project List ($)'!$C:$C,$A32,'Project List ($)'!$D:$D,$B33) -> 11609.09442
A34: Terang Lines | B34: 162 | C34: =SUMIFS('Project List ($)'!L:L,'Project List ($)'!$C:$C,$A32,'Project List ($)'!$D:$D,$B34) -> 118.789322 | D34: =SUMIFS('Project List ($)'!M:M,'Project List ($)'!$C:$C,$A32,'Project List ($)'!$D:$D,$B34) -> 201.9783559 | E34: =SUMIFS('Project List ($)'!N:N,'Project List ($)'!$C:$C,$A32,'Project List ($)'!$D:$D,$B34) -> 3362.727288 | F34: =SUMIFS('Project List ($)'!O:O,'Project List ($)'!$C:$C,$A32,'Project List ($)'!$D:$D,$B34) -> 1942.839423 | G34: =SUMIFS('Project List ($)'!P:P,'Project List ($)'!$C:$C,$A32,'Project List ($)'!$D:$D,$B34) -> 5711.622372 | H34: =SUMIFS('Project List ($)'!Q:Q,'Project List ($)'!$C:$C,$A32,'Project List ($)'!$D:$D,$B34) -> 2923.812878 | I34: =SUMIFS('Project List ($)'!R:R,'Project List ($)'!$C:$C,$A32,'Project List ($)'!$D:$D,$B34) -> 0
A35: Terang Total | C35: =SUM(C33:C34) -> 225.0913221 | D35: =SUM(D33:D34) -> 201.9783559 | E35: 3362.727288 | F35: 1942.839423 | G35: 5711.622372 | H35: 2923.812878 | I35: =SUM(I33:I34) -> 11609.09442
A37: Horsham
A38: Horsham SS | B38: 161 | C38: =SUMIFS('Project List ($)'!L:L,'Project List ($)'!$C:$C,$A37,'Project List ($)'!$D:$D,$B38) -> 0 | D38: =SUMIFS('Project List ($)'!M:M,'Project List ($)'!$C:$C,$A37,'Project List ($)'!$D:$D,$B38) -> 0 | E38: =SUMIFS('Project List ($)'!N:N,'Project List ($)'!$C:$C,$A37,'Project List ($)'!$D:$D,$B38) -> 0 | F38: =SUMIFS('Project List ($)'!O:O,'Project List ($)'!$C:$C,$A37,'Project List ($)'!$D:$D,$B38) -> 0 | G38: =SUMIFS('Project List ($)'!P:P,'Project List ($)'!$C:$C,$A37,'Project List ($)'!$D:$D,$B38) -> 0 | H38: =SUMIFS('Project List ($)'!Q:Q,'Project List ($)'!$C:$C,$A37,'Project List ($)'!$D:$D,$B38) -> 0 | I38: =SUMIFS('Project List ($)'!R:R,'Project List ($)'!$C:$C,$A37,'Project List ($)'!$D:$D,$B38) -> 0
A39: Horsham Lines | B39: 162 | C39: =SUMIFS('Project List ($)'!L:L,'Project List ($)'!$C:$C,$A37,'Project List ($)'!$D:$D,$B39) -> 310.7359321 | D39: =SUMIFS('Project List ($)'!M:M,'Project List ($)'!$C:$C,$A37,'Project List ($)'!$D:$D,$B39) -> 0 | E39: =SUMIFS('Project List ($)'!N:N,'Project List ($)'!$C:$C,$A37,'Project List ($)'!$D:$D,$B39) -> 70 | F39: =SUMIFS('Project List ($)'!O:O,'Project List ($)'!$C:$C,$A37,'Project List ($)'!$D:$D,$B39) -> 0 | G39: =SUMIFS('Project List ($)'!P:P,'Project List ($)'!$C:$C,$A37,'Project List ($)'!$D:$D,$B39) -> 700.0652612 | H39: =SUMIFS('Project List ($)'!Q:Q,'Project List ($)'!$C:$C,$A37,'Project List ($)'!$D:$D,$B39) -> 0 | I39: =SUMIFS('Project List ($)'!R:R,'Project List ($)'!$C:$C,$A37,'Project List ($)'!$D:$D,$B39) -> 0
A40: Horsham Total | C40: =SUM(C38:C39) -> 310.7359321 | D40: =SUM(D38:D39) -> 0 | E40: 70 | F40: 0 | G40: 700.0652612 | H40: 0 | I40: =SUM(I38:I39) -> 0
A42: Ballarat
A43: Ballarat SS | B43: 161 | C43: =SUMIFS('Project List ($)'!L:L,'Project List ($)'!$C:$C,$A42,'Project List ($)'!$D:$D,$B43) -> 0 | D43: =SUMIFS('Project List ($)'!M:M,'Project List ($)'!$C:$C,$A42,'Project List ($)'!$D:$D,$B43) -> 0 | E43: =SUMIFS('Project List ($)'!N:N,'Project List ($)'!$C:$C,$A42,'Project List ($)'!$D:$D,$B43) -> 0 | F43: =SUMIFS('Project List ($)'!O:O,'Project List ($)'!$C:$C,$A42,'Project List ($)'!$D:$D,$B43) -> 0 | G43: =SUMIFS('Project List ($)'!P:P,'Project List ($)'!$C:$C,$A42,'Project List ($)'!$D:$D,$B43) -> 704.3347795 | H43: =SUMIFS('Project List ($)'!Q:Q,'Project List ($)'!$C:$C,$A42,'Project List ($)'!$D:$D,$B43) -> 0 | I43: =SUMIFS('Project List ($)'!R:R,'Project List ($)'!$C:$C,$A42,'Project List ($)'!$D:$D,$B43) -> 0
A44: Ballarat Lines | B44: 162 | C44: =SUMIFS('Project List ($)'!L:L,'Project List ($)'!$C:$C,$A42,'Project List ($)'!$D:$D,$B44) -> 0 | D44: =SUMIFS('Project List ($)'!M:M,'Project List ($)'!$C:$C,$A42,'Project List ($)'!$D:$D,$B44) -> 798.848217 | E44: =SUMIFS('Project List ($)'!N:N,'Project List ($)'!$C:$C,$A42,'Project List ($)'!$D:$D,$B44) -> 1521.340841 | F44: =SUMIFS('Project List ($)'!O:O,'Project List ($)'!$C:$C,$A42,'Project List ($)'!$D:$D,$B44) -> 2553.634323 | G44: =SUMIFS('Project List ($)'!P:P,'Project List ($)'!$C:$C,$A42,'Project List ($)'!$D:$D,$B44) -> 1519.599996 | H44: =SUMIFS('Project List ($)'!Q:Q,'Project List ($)'!$C:$C,$A42,'Project List ($)'!$D:$D,$B44) -> 4680.967218 | I44: =SUMIFS('Project List ($)'!R:R,'Project List ($)'!$C:$C,$A42,'Project List ($)'!$D:$D,$B44) -> 0
A45: Ballarat Total | C45: =SUM(C43:C44) -> 0 | D45: =SUM(D43:D44) -> 798.848217 | E45: 1521.340841 | F45: 2553.634323 | G45: 2223.934775 | H45: 4680.967218 | I45: =SUM(I43:I44) -> 0
A47: Shepparton
A48: Shepparton SS | B48: 161 | C48: =SUMIFS('Project List ($)'!L:L,'Project List ($)'!$C:$C,$A47,'Project List ($)'!$D:$D,$B48) -> 0 | D48: =SUMIFS('Project List ($)'!M:M,'Project List ($)'!$C:$C,$A47,'Project List ($)'!$D:$D,$B48) -> 211.3004339 | E48: =SUMIFS('Project List ($)'!N:N,'Project List ($)'!$C:$C,$A47,'Project List ($)'!$D:$D,$B48) -> 0 | F48: =SUMIFS('Project List ($)'!O:O,'Project List ($)'!$C:$C,$A47,'Project List ($)'!$D:$D,$B48) -> 0 | G48: =SUMIFS('Project List ($)'!P:P,'Project List ($)'!$C:$C,$A47,'Project List ($)'!$D:$D,$B48) -> 0 | H48: =SUMIFS('Project List ($)'!Q:Q,'Project List ($)'!$C:$C,$A47,'Project List ($)'!$D:$D,$B48) -> 0 | I48: =SUMIFS('Project List ($)'!R:R,'Project List ($)'!$C:$C,$A47,'Project List ($)'!$D:$D,$B48) -> 0
A49: Shepparton Lines | B49: 162 | C49: =SUMIFS('Project List ($)'!L:L,'Project List ($)'!$C:$C,$A47,'Project List ($)'!$D:$D,$B49) -> 562.5252542 | D49: =SUMIFS('Project List ($)'!M:M,'Project List ($)'!$C:$C,$A47,'Project List ($)'!$D:$D,$B49) -> 826.8398304 | E49: =SUMIFS('Project List ($)'!N:N,'Project List ($)'!$C:$C,$A47,'Project List ($)'!$D:$D,$B49) -> 390 | F49: =SUMIFS('Project List ($)'!O:O,'Project List ($)'!$C:$C,$A47,'Project List ($)'!$D:$D,$B49) -> 416.3861491 | G49: =SUMIFS('Project List ($)'!P:P,'Project List ($)'!$C:$C,$A47,'Project List ($)'!$D:$D,$B49) -> 222.8629152 | H49: =SUMIFS('Project List ($)'!Q:Q,'Project List ($)'!$C:$C,$A47,'Project List ($)'!$D:$D,$B49) -> 393.5988474 | I49: =SUMIFS('Project List ($)'!R:R,'Project List ($)'!$C:$C,$A47,'Project List ($)'!$D:$D,$B49) -> 0
A50: Shepparton Total | C50: =SUM(C48:C49) -> 562.5252542 | D50: =SUM(D48:D49) -> 1038.140264 | E50: 390 | F50: 416.3861491 | G50: 222.8629152 | H50: 393.5988474 | I50: =SUM(I48:I49) -> 0
A52: Kerang
A53: Kerang SS | B53: 161 | C53: =SUMIFS('Project List ($)'!L:L,'Project List ($)'!$C:$C,$A52,'Project List ($)'!$D:$D,$B53) -> 0 | D53: =SUMIFS('Project List ($)'!M:M,'Project List ($)'!$C:$C,$A52,'Project List ($)'!$D:$D,$B53) -> 0 | E53: =SUMIFS('Project List ($)'!N:N,'Project List ($)'!$C:$C,$A52,'Project List ($)'!$D:$D,$B53) -> 0 | F53: =SUMIFS('Project List ($)'!O:O,'Project List ($)'!$C:$C,$A52,'Project List ($)'!$D:$D,$B53) -> 0 | G53: =SUMIFS('Project List ($)'!P:P,'Project List ($)'!$C:$C,$A52,'Project List ($)'!$D:$D,$B53) -> 0 | H53: =SUMIFS('Project List ($)'!Q:Q,'Project List ($)'!$C:$C,$A52,'Project List ($)'!$D:$D,$B53) -> 0 | I53: =SUMIFS('Project List ($)'!R:R,'Project List ($)'!$C:$C,$A52,'Project List ($)'!$D:$D,$B53) -> 0
A54: Kerang Lines | B54: 162 | C54: =SUMIFS('Project List ($)'!L:L,'Project List ($)'!$C:$C,$A52,'Project List ($)'!$D:$D,$B54) -> 331.451661 | D54: =SUMIFS('Project List ($)'!M:M,'Project List ($)'!$C:$C,$A52,'Project List ($)'!$D:$D,$B54) -> 517.8932202 | E54: =SUMIFS('Project List ($)'!N:N,'Project List ($)'!$C:$C,$A52,'Project List ($)'!$D:$D,$B54) -> 0 | F54: =SUMIFS('Project List ($)'!O:O,'Project List ($)'!$C:$C,$A52,'Project List ($)'!$D:$D,$B54) -> 457.1572881 | G54: =SUMIFS('Project List ($)'!P:P,'Project List ($)'!$C:$C,$A52,'Project List ($)'!$D:$D,$B54) -> 310.7359321 | H54: =SUMIFS('Project List ($)'!Q:Q,'Project List ($)'!$C:$C,$A52,'Project List ($)'!$D:$D,$B54) -> 258.9466101 | I54: =SUMIFS('Project List ($)'!R:R,'Project List ($)'!$C:$C,$A52,'Project List ($)'!$D:$D,$B54) -> 0
A55: Kerang Total | C55: =SUM(C53:C54) -> 331.451661 | D55: =SUM(D53:D54) -> 517.8932202 | E55: 0 | F55: 457.1572881 | G55: 310.7359321 | H55: 258.9466101 | I55: =SUM(I53:I54) -> 0
A57: Red Cliff
A58: Red Cliff SS | B58: 161 | C58: =SUMIFS('Project List ($)'!L:L,'Project List ($)'!$C:$C,$A57,'Project List ($)'!$D:$D,$B58) -> 477.7572008 | D58: =SUMIFS('Project List ($)'!M:M,'Project List ($)'!$C:$C,$A57,'Project List ($)'!$D:$D,$B58) -> 5487.519208 | E58: =SUMIFS('Project List ($)'!N:N,'Project List ($)'!$C:$C,$A57,'Project List ($)'!$D:$D,$B58) -> 0 | F58: =SUMIFS('Project List ($)'!O:O,'Project List ($)'!$C:$C,$A57,'Project List ($)'!$D:$D,$B58) -> 0 | G58: =SUMIFS('Project List ($)'!P:P,'Project List ($)'!$C:$C,$A57,'Project List ($)'!$D:$D,$B58) -> 0 | H58: =SUMIFS('Project List ($)'!Q:Q,'Project List ($)'!$C:$C,$A57,'Project List ($)'!$D:$D,$B58) -> 0 | I58: =SUMIFS('Project List ($)'!R:R,'Project List ($)'!$C:$C,$A57,'Project List ($)'!$D:$D,$B58) -> 0
A59: Red Cliff Lines | B59: 162 | C59: =SUMIFS('Project List ($)'!L:L,'Project List ($)'!$C:$C,$A57,'Project List ($)'!$D:$D,$B59) -> 730.3311867 | D59: =SUMIFS('Project List ($)'!M:M,'Project List ($)'!$C:$C,$A57,'Project List ($)'!$D:$D,$B59) -> 207.1572881 | E59: =SUMIFS('Project List ($)'!N:N,'Project List ($)'!$C:$C,$A57,'Project List ($)'!$D:$D,$B59) -> 261.018183 | F59: =SUMIFS('Project List ($)'!O:O,'Project List ($)'!$C:$C,$A57,'Project List ($)'!$D:$D,$B59) -> 4089.284867 | G59: =SUMIFS('Project List ($)'!P:P,'Project List ($)'!$C:$C,$A57,'Project List ($)'!$D:$D,$B59) -> 3188.150664 | H59: =SUMIFS('Project List ($)'!Q:Q,'Project List ($)'!$C:$C,$A57,'Project List ($)'!$D:$D,$B59) -> 3396.397398 | I59: =SUMIFS('Project List ($)'!R:R,'Project List ($)'!$C:$C,$A57,'Project List ($)'!$D:$D,$B59) -> 0
A60: Red Cliff Total | C60: =SUM(C58:C59) -> 1208.088388 | D60: =SUM(D58:D59) -> 5694.676496 | E60: 261.018183 | F60: 4089.284867 | G60: 3188.150664 | H60: 3396.397398 | I60: =SUM(I58:I59) -> 0
A62: Bendigo
A63: Bendigo SS | B63: 161 | C63: =SUMIFS('Project List ($)'!L:L,'Project List ($)'!$C:$C,$A62,'Project List ($)'!$D:$D,$B63) -> 0 | D63: =SUMIFS('Project List ($)'!M:M,'Project List ($)'!$C:$C,$A62,'Project List ($)'!$D:$D,$B63) -> 0 | E63: =SUMIFS('Project List ($)'!N:N,'Project List ($)'!$C:$C,$A62,'Project List ($)'!$D:$D,$B63) -> 155.3679661 | F63: =SUMIFS('Project List ($)'!O:O,'Project List ($)'!$C:$C,$A62,'Project List ($)'!$D:$D,$B63) -> 414.3145762 | G63: =SUMIFS('Project List ($)'!P:P,'Project List ($)'!$C:$C,$A62,'Project List ($)'!$D:$D,$B63) -> 1553.679661 | H63: =SUMIFS('Project List ($)'!Q:Q,'Project List ($)'!$C:$C,$A62,'Project List ($)'!$D:$D,$B63) -> 466.1038982 | I63: =SUMIFS('Project List ($)'!R:R,'Project List ($)'!$C:$C,$A62,'Project List ($)'!$D:$D,$B63) -> 0
A64: Bendigo Lines | B64: 162 | C64: =SUMIFS('Project List ($)'!L:L,'Project List ($)'!$C:$C,$A62,'Project List ($)'!$D:$D,$B64) -> 1119.034068 | D64: =SUMIFS('Project List ($)'!M:M,'Project List ($)'!$C:$C,$A62,'Project List ($)'!$D:$D,$B64) -> 1143.562495 | E64: =SUMIFS('Project List ($)'!N:N,'Project List ($)'!$C:$C,$A62,'Project List ($)'!$D:$D,$B64) -> 840 | F64: =SUMIFS('Project List ($)'!O:O,'Project List ($)'!$C:$C,$A62,'Project List ($)'!$D:$D,$B64) -> 2746.127058 | G64: =SUMIFS('Project List ($)'!P:P,'Project List ($)'!$C:$C,$A62,'Project List ($)'!$D:$D,$B64) -> 6452.949524 | H64: =SUMIFS('Project List ($)'!Q:Q,'Project List ($)'!$C:$C,$A62,'Project List ($)'!$D:$D,$B64) -> 4038.584991 | I64: =SUMIFS('Project List ($)'!R:R,'Project List ($)'!$C:$C,$A62,'Project List ($)'!$D:$D,$B64) -> 517.8932202
A65: Bendigo Total | C65: =SUM(C63:C64) -> 1119.034068 | D65: =SUM(D63:D64) -> 1143.562495 | E65: 995.3679661 | F65: 3160.441634 | G65: 8006.629185 | H65: 4504.688889 | I65: =SUM(I63:I64) -> 517.8932202
A67: Contingency
A68: Contingency SS | B68: 161 | C68: =SUMIFS('Project List ($)'!L:L,'Project List ($)'!$C:$C,$A67,'Project List ($)'!$D:$D,$B68) -> 0 | D68: =SUMIFS('Project List ($)'!M:M,'Project List ($)'!$C:$C,$A67,'Project List ($)'!$D:$D,$B68) -> 0 | E68: =SUMIFS('Project List ($)'!N:N,'Project List ($)'!$C:$C,$A67,'Project List ($)'!$D:$D,$B68) -> 0 | F68: =SUMIFS('Project List ($)'!O:O,'Project List ($)'!$C:$C,$A67,'Project List ($)'!$D:$D,$B68) -> 0 | G68: =SUMIFS('Project List ($)'!P:P,'Project List ($)'!$C:$C,$A67,'Project List ($)'!$D:$D,$B68) -> 0 | H68: =SUMIFS('Project List ($)'!Q:Q,'Project List ($)'!$C:$C,$A67,'Project List ($)'!$D:$D,$B68) -> 0 | I68: =SUMIFS('Project List ($)'!R:R,'Project List ($)'!$C:$C,$A67,'Project List ($)'!$D:$D,$B68) -> 0
A69: Contingency Lines | B69: 162 | C69: =SUMIFS('Project List ($)'!L:L,'Project List ($)'!$C:$C,$A67,'Project List ($)'!$D:$D,$B69) -> 4048.587602 | D69: =SUMIFS('Project List ($)'!M:M,'Project List ($)'!$C:$C,$A67,'Project List ($)'!$D:$D,$B69) -> 0 | E69: =SUMIFS('Project List ($)'!N:N,'Project List ($)'!$C:$C,$A67,'Project List ($)'!$D:$D,$B69) -> 0 | F69: =SUMIFS('Project List ($)'!O:O,'Project List ($)'!$C:$C,$A67,'Project List ($)'!$D:$D,$B69) -> 0 | G69: =SUMIFS('Project List ($)'!P:P,'Project List ($)'!$C:$C,$A67,'Project List ($)'!$D:$D,$B69) -> 0 | H69: =SUMIFS('Project List ($)'!Q:Q,'Project List ($)'!$C:$C,$A67,'Project List ($)'!$D:$D,$B69) -> 0 | I69: =SUMIFS('Project List ($)'!R:R,'Project List ($)'!$C:$C,$A67,'Project List ($)'!$D:$D,$B69) -> 0
A70: Contingency Total | C70: =SUM(C68:C69) -> 4048.587602 | D70: 0 | E70: 0 | F70: 0 | G70: 0 | H70: 0 | I70: 0
C72: 2015 | D72: 2016 | E72: 2017 | F72: 2018 | G72: 2019 | H72: 2020 | I72: 2021
A73: 161 | C73: =SUMIF($B$8:$B$70,$A73,C$8:C$70) -> 3321.125308 | D73: =SUMIF($B$8:$B$70,$A73,D$8:D$70) -> 14869.76906 | E73: 19190.58655 | F73: 13127.79747 | G73: 6621.989871 | H73: 673.2611863 | I73: 16701.96263
A74: 162 | C74: 15444.38383 | D74: 15753.93696 | E74: 22949.35282 | F74: 23854.5314 | G74: 25270.34954 | H74: 24598.29843 | I74: 5740.035125
A75: Total | C75: =SUM(C73:C74) -> 18765.50914 | D75: =SUM(D73:D74) -> 30623.70602 | E75: =SUM(E73:E74) -> 42139.93936 | F75: 36982.32886 | G75: 31892.33941 | H75: =SUM(H73:H74) -> 25271.55962 | I75: 22441.99776
C77: Check: | D77: =SUM('Function code by area'!C75:H75)-SUM(Outputs!I20:N20) -> 0

Sheet Augex Calculations
A1: =+ModelName1 ->  | B1: PAL Augmentation Expenditure Model | G1: Model Master Check: | H1: =Model_Check -> 0
A2: =MID(CELL("Filename",A1),FIND("]",CELL("Filename",A1))+1,255) -> Augex Calculations | B2: =MID(CELL("Filename",A1),FIND("]",CELL("Filename",A1))+1,255) -> Augex Calculations | G2: Sheet Check: | H2: =Y25+W38+SUM(J106:O108) -> 0
C4: REGULATORY REPORTING STATEMENT | G4: Worksheet navigation | L4: Line upgrade - capacity | M4: String spare circuit | N4: Other - specify
C5: Victorian DNSP Reset
C6: 2016 to 2020
C7: 2.3 AUGEX PROJECT DATA
C10: TABLE 2.3.1 - AUGEX ASSET DATA - SUBTRANSMISSION SUBSTATIONS, SWITCHING STATIONS AND ZONE SUBSTATIONS
C11: NOTE: DNSP must provide expenditure information on an 'as incurred' basis.
C12: AUG231_1 | D12: AUG231_2 | E12: AUG231_3 | F12: AUG231_4 | G12: AUG231_5 | H12: AUG231_6 | I12: ED_AUG231_00001 | J12: ED_AUG231_00002 | K12: ED_AUG231_00003 | L12: ED_AUG231_00004 | M12: ED_AUG231_00005 | N12: ED_AUG231_00006 | O12: ED_AUG231_00007 | P12: ED_AUG231_00008 | Q12: ED_AUG231_00009 | R12: ED_AUG231_00010 | S12: ED_AUG231_00011 | T12: ED_AUG231_00012 | U12: ED_AUG231_00013 | V12: ED_AUG231_00014 | W12: ED_AUG231_00015 | X12: ED_AUG231_00016 | Y12: ED_AUG231_00017 | Z12: ED_AUG231_00018 | AA12: ED_AUG231_00019 | AB12: ED_AUG231_00020 | AC12: ED_AUG231_00021 | AD12: ED_AUG231_00022 | AE12: ED_AUG231_00023
C13: PROJECT DESCRIPTION AND CHANGES | M13: PLANT AND EQUIPMENT EXPENDITURE AND VOLUME | W13: OTHER EXPENDITURE | Y13: TOTAL DIRECT EXPENDITURE ($0's) | Z13: YEARS INCURRED | AA13: ALL RELATED PARTY CONTRACTS | AC13: ALL NON RELATED PARTYCONTRACTS | AD13: LAND AND EASEMENTS
C14: SUBSTATION ID | D14: SUBSTATION TYPE | E14: PROJECT ID | F14: PROJECT TYPE | G14: PROJECT TRIGGER | H14: VOLTAGE (KV) | I14: SUBSTATION RATING NORMAL CYCLIC (MVA) | K14: SUBSTATION RATING N-1 EMERGENCY (MVA) | M14: TRANSFORMERS | P14: SWITCHGEAR | R14: CAPACITORS | T14: OTHER PLANT ITEM | U14: INSTALLATION (LABOUR) | W14: CIVIL WORKS | X14: OTHER DIRECT | AA14: RELATED PARTY MARGINS | AB14: TOTAL | AD14: LAND PURCHASE | AE14: EASEMENTS
I15: PRE | J15: POST | K15: PRE | L15: POST | M15: UNITS ADDED | N15: MVA ADDED | O15: EXPENDITURE ($0's, real December 2015) | P15: UNITS ADDED | Q15: EXPENDITURE ($0's, real December 2015) | R15: MVAR ADDED | S15: EXPENDITURE ($0's, real December 2015) | T15: EXPENDITURE ($0's, real December 2015) | U15: VOLUME | V15: EXPENDITURE ($0's, real December 2015) | W15: EXPENDITURE ($0's, real December 2015) | AA15: EXPENDITURE ($0's, real December 2015) | AD15: EXPENDITURE ($0's, real December 2015)
A16: AUG231_1 | C16: Truganina (TNA) | D16: Zone substation | E16: 5080697 | F16: New substation establishment | G16: Demand growth | H16: 66/22 | I16: 0 | J16: 66 | K16: 0 | L16: 33 | M16: 2 | N16: 66 | O16: 1544929.402 | P16: 14 | Q16: 1065648.564 | R16: 12 | S16: 220099.5312 | T16: 2542925.578 | U16: 19818.39732 | V16: 2378207.678 | W16: 4374234.037 | X16: 1744955.21 | Y16: =SUM(O16,Q16,S16,T16,V16,W16,X16) -> 13871000 | Z16: 2014, 2015, 2016, 2017, 2018
A17: AUG231_2 | C17: Torquay (TQY) | D17: Zone substation | E17: 5082016 | F17: New substation establishment | G17: Voltage issues | H17: 66/22 | I17: 0 | J17: 33 | K17: 0 | L17: 0 | M17: 1 | N17: 33 | O17: 772464.701 | P17: 8 | Q17: 608942.0364 | R17: 12 | S17: 220099.5312 | T17: 2362347.341 | U17: 23014.0508 | V17: 2922335.65 | W17: 2129024 | X17: 1856915.621 | Y17: 10872128.88 | Z17: 2017, 2018
A18: AUG231_3 | C18: Geelong East (GLE) | D18: Zone substation | E18: 5077107 | F18: Substation upgrade - capacity | G18: Demand growth | H18: 66/22 | I18: 40.5 | J18: 67.5 | K18: 27 | L18: 40.5 | M18: 2 | N18: 66 | O18: 1512248.203 | P18: 7 | Q18: 528251.0846 | T18: 1427624.451 | U18: 23807.5 | V18: 2959138.282 | W18: 2047749.793 | X18: 875446.6995 | Y18: 9350458.513 | Z18: 2015, 2016, 2017
A19: AUG231_4 | C19: Melton (MLN) | D19: Zone substation | E19: 5071602 | F19: Substation upgrade - capacity | G19: Demand growth | H19: 66/22 | I19: 66 | J19: 99 | K19: 33 | L19: 66 | M19: 1 | N19: 33 | O19: 772464.701 | P19: 7 | Q19: 532824.2819 | T19: 1057077.38 | U19: 13298.33333 | V19: 1688629 | W19: 187296.2357 | X19: 653632.1175 | Y19: 4891923.716 | Z19: 2016, 2017
A20: AUG231_5 | C20: Merebin (MBN) | D20: Zone substation | E20: 5083581 | F20: Substation upgrade - capacity | G20: Demand growth | H20: 66/22 | I20: 27 | J20: 54 | K20: 13.5 | L20: 27 | M20: 1 | N20: 33 | O20: 756124.1016 | P20: 8 | Q20: 751980.9558 | T20: 1174581.824 | U20: 14506.66667 | V20: 1803097.036 | W20: 593377.1929 | X20: 886115.2998 | Y20: 5965276.409 | Z20: 2015, 2016
A21: AUG231_6 | C21: Truganina (TNA) | D21: Zone substation | F21: Substation upgrade - capacity | G21: Demand growth | H21: 66/22 | I21: 66 | J21: 99 | K21: 33 | L21: 66 | M21: 1 | N21: 33 | O21: 756124.1016 | P21: 7 | Q21: 521552.999 | T21: 776839.8304 | U21: 13298.33333 | V21: 1652908.002 | W21: 258946.6101 | X21: 882490.0473 | Y21: 4848861.59 | Z21: 2018, 2019
Y22: =SUM(O22,Q22,S22,T22,V22,W22,X22) -> 0
E23: Non material projects - [actual]
E24: Non material projects - [forecast] | Y24: =(((SUMIFS('Project List ($)'!$L$8:$L$1056,'Project List ($)'!$D$8:$D$1056,"161",'Project List ($)'!$E$8:$E$1056,"Subtransmission")+SUMIFS('Project List ($)'!$M$8:$M$1056,'Project List ($)'!$D$8:$D$1056,"161",'Project List ($)'!$E$8:$E$1056,"Subtransmission")+SUMIFS('Project List ($)'!$N$8:$N$1056,'Project List ($)'!$D$8:$D$1056,"161",'Project List ($)'!$E$8:$E$1056,"Subtransmission")+SUMIFS('Project List ($)'!$O$8:$O$1056,'Project List ($)'!$D$8:$D$1056,"161",'Project List ($)'!$E$8:$E$1056,"Subtransmission")+SUMIFS('Project List ($)'!$P$8:$P$1056,'Project List ($)'!$D$8:$D$1056,"161",'Project List ($)'!$E$8:$E$1056,"Subtransmission")+SUMIFS('Project List ($)'!$Q$8:$Q$1056,'Project List ($)'!$D$8:$D$1056,"161",'Project List ($)'!$E$8:$E$1056,"Subtransmission"))-(SUM('Project List ($)'!$L$127:$Q$127,'Project List ($)'!$L$129:$Q129,'Project List ($)'!$L$209:$Q$209,'Project List ($)'!$L$210:$Q$210,'Project List ($)'!$L$222:$Q$222,'Project List ($)'!$L$20:$Q$20,'Project List ($)'!$L$835:$Q$835)))*1000)-(AD24) -> 5171304.274 | Z24: 2015, 2016, 2017, 2018, 2019, 2020 | AD24: =SUM('Project List ($)'!$M$11:$Q$11,'Project List ($)'!$M$118:$Q$118,'Project List ($)'!$M$122:$Q$122,'Project List ($)'!$M$131:$Q$131,'Project List ($)'!$M$205:$Q$205,'Project List ($)'!$M$230:$Q$230,'Project List ($)'!$M$323:$Q$323,'Project List ($)'!$M$559:$Q$559,'Project List ($)'!$M$561:$Q$561,'Project List ($)'!$M$667:$Q$667,'Project List ($)'!$M$720:$Q$720,'Project List ($)'!$M$724:$Q$724)*1000 -> 3142576.06
X25: Check: | Y25: =(SUM(J96:O96)*1000)-(SUM(Y16:Y21)+AD24+Y24-('Project List ($)'!K127*1000)) -> 0
A26: AUG232 | C26: AUG232_1 | D26: AUG232_2 | E26: AUG232_3 | F26: AUG232_4 | G26: AUG232_5 | H26: AUG232_6 | I26: ED_AUG232_00001 | J26: ED_AUG232_00002 | K26: ED_AUG232_00003 | L26: ED_AUG232_00004 | M26: ED_AUG232_00005 | N26: ED_AUG232_00006 | O26: ED_AUG232_00007 | P26: ED_AUG232_00008 | Q26: ED_AUG232_00009 | R26: ED_AUG232_00010 | S26: ED_AUG232_00011 | T26: ED_AUG232_00012 | U26: ED_AUG232_00013 | V26: ED_AUG232_00014 | W26: ED_AUG232_00015 | X26: ED_AUG232_00016 | Z26: ED_AUG232_00018 | AA26: ED_AUG232_00019 | AB26: ED_AUG232_00020 | AC26: ED_AUG232_00021
C27: TABLE 2.3.2 - AUGEX ASSET DATA - SUBTRANSMISSION LINES
C28: NOTE: DNSP must provide expenditure information on an 'as incurred' basis.
C29: PROJECT DESCRIPTION AND CHANGES | I29: PLANT AND EQUIPMENT EXPENDITURE AND VOLUME | U29: OTHER EXPENDITURE | W29: TOTAL DIRECT EXPENDITURE ($0's) | X29: YEARS INCURRED | Y29: ALL RELATED PARTY CONTRACTS | AA29: ALL NON RELATED PARTY CONTRACTS | AB29: LAND AND EASEMENTS
C30: LINE ID | D30: PROJECT ID | E30: PROJECT TYPE | F30: PROJECT TRIGGER | G30: VOLTAGE (KV) | H30: ROUTE LINE LENGTH ADDED | I30: POLES/TOWERS (INCLUDING STRUCTURES, AND CIVIL WORKS) | L30: OVERHEAD LINES | O30: UNDERGROUND CABLES | R30: OTHER PLANT ITEM | S30: INSTALLATION (LABOUR) | U30: CIVIL WORKS | V30: OTHER DIRECT | Y30: RELATED PARTY MARGINS | Z30: TOTAL | AB30: LAND PURCHASE | AC30: EASEMENTS
H31: KM ADDED | I31: POLES/TOWERS ADDED | J31: POLES/TOWERS UPGRADED | K31: EXPENDITURE ($0's, real December 2015) | L31: CIRCUIT KM ADDED | M31: CIRCUIT KM UPGRADED | N31: EXPENDITURE ($0's, real December 2015) | O31: CIRCUIT KM ADDED | P31: CIRCUIT KM UPGRADED | Q31: EXPENDITURE ($0's, real December 2015) | R31: EXPENDITURE ($0's, real December 2015) | S31: VOLUME | T31: EXPENDITURE ($0's, real December 2015) | U31: EXPENDITURE ($0's, real December 2015) | Y31: EXPENDITURE ($0's, real December 2015) | AB31: EXPENDITURE ($0's, real December 2015)
A32: AUG232_1 | C32: DPTS-MLN No.1 | D32: 5080491 | E32: New line on new route - other | F32: Demand growth | G32: 66 | H32: =L32+O32 -> 21.96 | I32: 206 | J32: 41 | K32: 432991 | L32: 21.84 | M32: 0 | N32: 368739.9728 | O32: 0.12 | P32: 0 | Q32: 69397.69151 | R32: 335871.3357 | S32: 16662.25738 | T32: 1999470.886 | U32: 419612.7398 | V32: 554233.9992 | W32: =(V32+U32+T32+R32+Q32+N32+K32) -> 4180317.625 | X32: 2014, 2015, 2016, 2017, 2018
